{"text_format":"1","workbook":"xlsx","n_sheets":5,"sheets":["2025 GOLF Only Fall Solutions","SUMMARY - UNITS","REBATE MATRIX (NOW)","2025 NOW_EOP_LL","Sheet4"],"not_rendered":{"charts":0,"images":2,"macros":1,"external_links":1,"defined_names":20,"comments":3,"pivot_tables":1},"unopened":[],"bounds":{"document_bytes":16777216,"sheet_cells":100000,"rows_first":2000,"rows_last":500,"rows_between":2000,"halvings":0,"cell_chars":16384,"cell_head_chars":4096},"cells_cut":0,"cells_raw":0,"read":"whole","date_system":"1900"}

{"sheet":"2025 GOLF Only Fall Solutions","index":0,"n_rows":108,"n_cols":31,"rows_kept":108,"cut":false,"hidden":false,"merged":[[6,18,7,18],[6,17,7,17],[94,5,94,7],[95,5,95,7],[6,10,7,12],[8,10,8,12],[6,13,7,13],[11,25,13,25],[11,22,13,22],[11,23,13,23],[11,24,13,24],[93,12,99,23],[11,18,13,18],[11,0,13,0],[11,14,13,14],[11,16,13,16],[11,3,13,3],[11,12,13,12],[11,13,13,13],[11,8,13,8],[0,6,0,13],[11,17,13,17],[11,15,13,15],[11,5,13,5],[11,6,13,6],[11,7,13,7],[11,9,13,9],[11,10,13,10],[11,11,13,11],[3,5,3,6],[107,5,107,9],[105,5,105,7],[105,8,105,9],[100,5,100,7],[102,5,102,7],[103,5,103,7],[101,5,101,7],[100,12,104,23],[11,1,13,1],[11,2,13,2],[6,9,7,9],[11,19,13,19],[11,20,13,20],[11,21,13,21],[104,5,104,7],[98,5,98,7],[99,5,99,7],[94,8,94,9],[93,5,93,7],[93,8,93,9],[97,5,97,7],[96,5,96,7],[91,5,91,9]]}
[null,null,null,null,null,null,"Golf National 2025 Fall Solutions Calculator               "]
[]
[null,null,null,null,null,null,null,null,null,null,"Additional Rebates & Bonus Unlocks:"]
[null,null,null,null,null,"NAME YOUR DRAFT ORDER HERE:",null,null,null,"Spend Requirement:","$5k+",null,"$20k+","$50k+",null,null,null,"$100k+","$150k+"]
[null,null,null,null,null,"Description: ",null,null,null,"Tier Rebate:",0.02,null,0.03,0.04,null,null,null,0.05,0.06,null,null,null,null,null,null,null,null,null,"Tier Rebate Less Ronstar & Specticle Flo"]
[null,null,null,null,null,"Dist/DSR: ",null,null,null,null,{"$f":"AND($N$62+$O$88>=5000,$N$62+$O$88<20000)","v":false},null,{"$f":"AND($N$62+$O$88>=20000,$N$62+$O$88<50000)","v":false},{"$f":"AND($N$62+$O$88>=50000,$N$62+$O$88<100000)","v":false},null,null,null,{"$f":"AND($N$62+$O$88>=100000,$N$62+$O$88<150000)","v":false},{"$f":"AND($N$62+$O$88>=150000)","v":false}]
[null,null,null,null,null,"MER#: ",null,null,null,"Product:","Stressgard &Chipco Sig.\n(>$10k)",null,null,"Serata\n(8 unit min.)",null,null,null,"Durentis\n(4+ 64 oz units or\n16+ 16oz units)","Volume Buy\n(5 or more products)"]
[null,null,null,null,null,"Last Updated: "]
[null,null,null,null,null,"Created For: ",null,null,null,null,{"$f":"IF(M11=0,\"n/a\",M11)","v":"n/a"},null,null,{"$f":"IF(N11=0,\"n/a\",N11)","v":"n/a"},null,null,null,{"$f":"IF(R11=0,\"n/a\",R11)","v":"n/a"},{"$f":"IF(S11=0,\"n/a\",S11)","v":"n/a"}]
[null,null,null,null,null,null,null,null,null,null,"Spend < $50k = 1.0%;   Spend > $50k =  2.0%"]
["ZM ADD",null,null,null,null,null,null,null,null,null,null,"HIDE",{"$f":"IF(AND((N62+N88)>=5000,(N62+N88)<50000,V11>=10000),0.01,\nIF(AND(N62+N88>=50000,V11>=10000),0.02,0))","v":0},{"$f":"IF(AND(J32>=8,N62+N88<50000),0.01,IF(AND(J32>=8,N62+N88>=50000),0.02,0))","v":0},"HIDE","HIDE","HIDE",{"$f":"IF(AND(OR(J57>=16,J58>=4),N62+N88<50000),0.01,\nIF(AND(OR(J57>=16,J58>=4),N62+N88>=50000),0.02,0))","v":0},{"$f":"IF(AND($C$62>=5,N62+N88>=5000,N62+N88<50000),0.01,\nIF(AND($C$62>=5,N62+N88>=50000),0.02,0))","v":0},null,null,{"$f":"SUM(AC18,AC20,AC25,AC27,AC29,AC33:AC34)","v":0}]
["SKU Code","VOLUME BUY THRESHOLD","VOLUME BUY MET","RELEVANT",null,"REBATE FINDER. (Minimum Program Purchase to receive rebates is $5,000)","PRODUCT NAME","UNIT SIZE","CATEGORY","# UNITS","ORIGINAL PRICE","INSEASON SUBTOTAL","EOP PRICE/\nUNIT*","INVOICE SUBTOTAL must be a minimum of $5,000 across NOW/FALL program  to receive  rebates","REBATE TIERS AVAILABLE","REBATE TIERS QUALIFIED","QUALIFIED REBATE PER UNIT","VOL BUY \nREBATES**†","ENVU EXTRAS + TIER REBATES","NET PRICE/UNIT \n(after all rebates & discounts)","TOTAL AFTER REBATE","USE RATE / 1,000 FT2","USE RATE / ACRE","TOTAL ACRES TREATED","COST/ ACRE","COST/ 1,000 FT2"]
[]
[]
["D00000907",2,{"$f":"J15>=B15","v":false},{"$f":"COUNTIF([1]Sheet1!$J:$J,A15)","v":2},null,"$90 off 2+ units","Banol®","2.5 gal ","Fungicide",null,{"$f":"INDEX(PRICING[2025 In-Season Price],MATCH(A15,PRICING[SKU],0))","v":1267},{"$f":"IF(J15*K15= 0,\"\",J15*K15)","v":""},{"$f":"INDEX(PRICING[NOW Price],MATCH(A15,PRICING[SKU],0))","v":1267},{"$f":"IF(J15*M15= 0,\"\",J15*M15)","v":""},{"$f":"INDEX(Rebate_Lookup[Instances],MATCH(A15,Rebate_Lookup[SKU CODE],0))","v":2},{"$f":"IF(J15=\"\",\"\",INDEX(Rebate_Lookup[Qualified Rebate Tier],MATCH(A15,Rebate_Lookup[SKU CODE],0)))","v":""},{"$f":"IF(J15=\"\",\"\",IF(P15=1,INDEX(Rebate_Lookup[REB_MOQ_1],MATCH(A15,Rebate_Lookup[SKU CODE],0)),IF(P15=2,INDEX(Rebate_Lookup[REB_MOQ_2],MATCH(A15,Rebate_Lookup[SKU CODE],0)),IF(P15=3,INDEX(Rebate_Lookup[REB_MOQ_3],MATCH(A15,Rebate_Lookup[SKU CODE],0)),\"#err\"))))","v":""},{"$f":"IF(OR(Q15=0,Q15=\"\"),\"\",J15*Q15)","v":""},{"$f":"IFERROR(N15*SUM($I$99:$I$103),\"\")","v":""},{"$f":"IFERROR((N15-SUM(R15:S15))/J15,\"\")","v":""},{"$f":"IF(AND(J15<>\"\",J15>0), J15*T15,\"\")","v":""},2,{"$f":"V15*43.56","v":87.12},{"$f":"IF(AND(TRIM(W15)<>\"\",TRIM(J15)<>\"\"),(J15*320)/W15,\"\")","v":""},{"$f":"IF(J15<>0,U15/X15,0)","v":0},{"$f":"Y15/43.56","v":0}]
["D00000623",5,false,{"$f":"COUNTIF([1]Sheet1!$J:$J,A16)","v":3},null,"$525 off 5+,  $585 off 10+ units","Castlon™","1 gal","Fungicide",null,{"$f":"INDEX(PRICING[2025 In-Season Price],MATCH(A16,PRICING[SKU],0))","v":2748.2},"",{"$f":"INDEX(PRICING[NOW Price],MATCH(A16,PRICING[SKU],0))","v":2610.79},"",{"$f":"INDEX(Rebate_Lookup[Instances],MATCH(A16,Rebate_Lookup[SKU CODE],0))","v":3},{"$f":"IF(J16=\"\",\"\",INDEX(Rebate_Lookup[Qualified Rebate Tier],MATCH(A16,Rebate_Lookup[SKU CODE],0)))","v":""},{"$f":"IF(J16=\"\",\"\",IF(P16=1,INDEX(Rebate_Lookup[REB_MOQ_1],MATCH(A16,Rebate_Lookup[SKU CODE],0)),IF(P16=2,INDEX(Rebate_Lookup[REB_MOQ_2],MATCH(A16,Rebate_Lookup[SKU CODE],0)),IF(P16=3,INDEX(Rebate_Lookup[REB_MOQ_3],MATCH(A16,Rebate_Lookup[SKU CODE],0)),\"#err\"))))","v":""},"","",{"$f":"IFERROR((N16-SUM(R16:S16))/J16,\"\")","v":""},"",{"$f":"W16/43.56","v":0.3673094582185491},16,{"$f":"IF(AND(TRIM(W16)<>\"\",TRIM(J16)<>\"\"),(J16*127.999939675621)/W16,\"\")","v":""},{"$f":"IF(J16<>0,U16/X16,0)","v":0},{"$f":"Y16/43.56","v":0}]
["D00000624",4,false,{"$f":"COUNTIF([1]Sheet1!$J:$J,A17)","v":3},null,"$50 off 4+ units","Castlon™","16 oz","Fungicide",null,{"$f":"INDEX(PRICING[2025 In-Season Price],MATCH(A17,PRICING[SKU],0))","v":428},"",{"$f":"INDEX(PRICING[NOW Price],MATCH(A17,PRICING[SKU],0))","v":406.6},"",{"$f":"INDEX(Rebate_Lookup[Instances],MATCH(A17,Rebate_Lookup[SKU CODE],0))","v":2},{"$f":"IF(J17=\"\",\"\",INDEX(Rebate_Lookup[Qualified Rebate Tier],MATCH(A17,Rebate_Lookup[SKU CODE],0)))","v":""},{"$f":"IF(J17=\"\",\"\",IF(P17=1,INDEX(Rebate_Lookup[REB_MOQ_1],MATCH(A17,Rebate_Lookup[SKU CODE],0)),IF(P17=2,INDEX(Rebate_Lookup[REB_MOQ_2],MATCH(A17,Rebate_Lookup[SKU CODE],0)),IF(P17=3,INDEX(Rebate_Lookup[REB_MOQ_3],MATCH(A17,Rebate_Lookup[SKU CODE],0)),\"#err\"))))","v":""},"","","","",{"$f":"W17/43.56","v":0.3673094582185491},16,{"$f":"IF(AND(TRIM(W17)<>\"\",TRIM(J17)<>\"\"),(J17*16)/W17,\"\")","v":""},0,0]
["D00000914",9,false,{"$f":"COUNTIF([1]Sheet1!$J:$J,A18)","v":2},null,"$5 off 9+ units","Chipco® Signature™","11 lb","Fungicide",null,{"$f":"INDEX(PRICING[2025 In-Season Price],MATCH(A18,PRICING[SKU],0))","v":404.8},"",{"$f":"INDEX(PRICING[NOW Price],MATCH(A18,PRICING[SKU],0))","v":384.56},"",{"$f":"INDEX(Rebate_Lookup[Instances],MATCH(A18,Rebate_Lookup[SKU CODE],0))","v":2},{"$f":"IF(J18=\"\",\"\",INDEX(Rebate_Lookup[Qualified Rebate Tier],MATCH(A18,Rebate_Lookup[SKU CODE],0)))","v":""},{"$f":"IF(J18=\"\",\"\",IF(P18=1,INDEX(Rebate_Lookup[REB_MOQ_1],MATCH(A18,Rebate_Lookup[SKU CODE],0)),IF(P18=2,INDEX(Rebate_Lookup[REB_MOQ_2],MATCH(A18,Rebate_Lookup[SKU CODE],0)),IF(P18=3,INDEX(Rebate_Lookup[REB_MOQ_3],MATCH(A18,Rebate_Lookup[SKU CODE],0)),\"#err\"))))","v":""},"","","","",4,{"$f":"V18*43.56","v":174.24},{"$f":"IF(AND(TRIM(W18)<>\"\",TRIM(J18)<>\"\"),(J18*176)/W18,\"\")","v":""},0,0,null,null,{"$f":"N18","v":""}]
["D00001373",3,false,{"$f":"COUNTIF([1]Sheet1!$J:$J,A19)","v":2},null,"$100 off 3+ units","Densicor®","51 oz","Fungicide",null,{"$f":"INDEX(PRICING[2025 In-Season Price],MATCH(A19,PRICING[SKU],0))","v":702.8},"",{"$f":"INDEX(PRICING[NOW Price],MATCH(A19,PRICING[SKU],0))","v":667.66},"",{"$f":"INDEX(Rebate_Lookup[Instances],MATCH(A19,Rebate_Lookup[SKU CODE],0))","v":2},{"$f":"IF(J19=\"\",\"\",INDEX(Rebate_Lookup[Qualified Rebate Tier],MATCH(A19,Rebate_Lookup[SKU CODE],0)))","v":""},{"$f":"IF(J19=\"\",\"\",IF(P19=1,INDEX(Rebate_Lookup[REB_MOQ_1],MATCH(A19,Rebate_Lookup[SKU CODE],0)),IF(P19=2,INDEX(Rebate_Lookup[REB_MOQ_2],MATCH(A19,Rebate_Lookup[SKU CODE],0)),IF(P19=3,INDEX(Rebate_Lookup[REB_MOQ_3],MATCH(A19,Rebate_Lookup[SKU CODE],0)),\"#err\"))))","v":""},"","","","",{"$f":"W19/43.56","v":0.19513314967860421},8.5,{"$f":"IF(AND(TRIM(W19)<>\"\",TRIM(J19)<>\"\"),(J19*51)/W19,\"\")","v":""},0,0]
["D00000934",6,false,{"$f":"COUNTIF([1]Sheet1!$J:$J,A20)","v":2},null,"$45 off 6+ units","Exteris® Stressgard®"," 2.5 gal","Fungicide",null,{"$f":"INDEX(PRICING[2025 In-Season Price],MATCH(A20,PRICING[SKU],0))","v":370},"",{"$f":"INDEX(PRICING[NOW Price],MATCH(A20,PRICING[SKU],0))","v":370},"",{"$f":"INDEX(Rebate_Lookup[Instances],MATCH(A20,Rebate_Lookup[SKU CODE],0))","v":2},{"$f":"IF(J20=\"\",\"\",INDEX(Rebate_Lookup[Qualified Rebate Tier],MATCH(A20,Rebate_Lookup[SKU CODE],0)))","v":""},{"$f":"IF(J20=\"\",\"\",IF(P20=1,INDEX(Rebate_Lookup[REB_MOQ_1],MATCH(A20,Rebate_Lookup[SKU CODE],0)),IF(P20=2,INDEX(Rebate_Lookup[REB_MOQ_2],MATCH(A20,Rebate_Lookup[SKU CODE],0)),IF(P20=3,INDEX(Rebate_Lookup[REB_MOQ_3],MATCH(A20,Rebate_Lookup[SKU CODE],0)),\"#err\"))))","v":""},"","","","",4,{"$f":"V20*43.56","v":174.24},{"$f":"IF(AND(TRIM(W20)<>\"\",TRIM(J20)<>\"\"),(J20*320)/W20,\"\")","v":""},{"$f":"IF(J20<>0,U20/X20,0)","v":0},{"$f":"Y20/43.56","v":0},null,null,{"$f":"N20","v":""}]
[11008377,"n/a",false,{"$f":"COUNTIF([1]Sheet1!$J:$J,A21)","v":1},null,"n/a","Fame® +C","2.5 gal","Fungicide",null,{"$f":"INDEX(PRICING[2025 In-Season Price],MATCH(A21,PRICING[SKU],0))","v":575.4},"",{"$f":"INDEX(PRICING[NOW Price],MATCH(A21,PRICING[SKU],0))","v":575.4},"",{"$f":"INDEX(Rebate_Lookup[Instances],MATCH(A21,Rebate_Lookup[SKU CODE],0))","v":1},{"$f":"IF(J21=\"\",\"\",INDEX(Rebate_Lookup[Qualified Rebate Tier],MATCH(A21,Rebate_Lookup[SKU CODE],0)))","v":""},{"$f":"IF(J21=\"\",\"\",IF(P21=1,INDEX(Rebate_Lookup[REB_MOQ_1],MATCH(A21,Rebate_Lookup[SKU CODE],0)),IF(P21=2,INDEX(Rebate_Lookup[REB_MOQ_2],MATCH(A21,Rebate_Lookup[SKU CODE],0)),IF(P21=3,INDEX(Rebate_Lookup[REB_MOQ_3],MATCH(A21,Rebate_Lookup[SKU CODE],0)),\"#err\"))))","v":""},"","","","",4,174.24,{"$f":"IF(AND(TRIM(W21)<>\"\",TRIM(J21)<>\"\"),(J21*320)/W21,\"\")","v":""},0,0]
[11008393,4,false,{"$f":"COUNTIF([1]Sheet1!$J:$J,A22)","v":3},null,"$50 off 4+ units","Fame® SC","16 oz","Fungicide",null,{"$f":"INDEX(PRICING[2025 In-Season Price],MATCH(A22,PRICING[SKU],0))","v":428},"",{"$f":"INDEX(PRICING[NOW Price],MATCH(A22,PRICING[SKU],0))","v":406.6},"",{"$f":"INDEX(Rebate_Lookup[Instances],MATCH(A22,Rebate_Lookup[SKU CODE],0))","v":2},{"$f":"IF(J22=\"\",\"\",INDEX(Rebate_Lookup[Qualified Rebate Tier],MATCH(A22,Rebate_Lookup[SKU CODE],0)))","v":""},{"$f":"IF(J22=\"\",\"\",IF(P22=1,INDEX(Rebate_Lookup[REB_MOQ_1],MATCH(A22,Rebate_Lookup[SKU CODE],0)),IF(P22=2,INDEX(Rebate_Lookup[REB_MOQ_2],MATCH(A22,Rebate_Lookup[SKU CODE],0)),IF(P22=3,INDEX(Rebate_Lookup[REB_MOQ_3],MATCH(A22,Rebate_Lookup[SKU CODE],0)),\"#err\"))))","v":""},"","","","",{"$f":"W22/43.56","v":0.3673094582185491},16,{"$f":"IF(AND(TRIM(W22)<>\"\",TRIM(J22)<>\"\"),(J22*16)/W22,\"\")","v":""},{"$f":"IF(J22<>0,U22/X22,0)","v":0},{"$f":"Y22/43.56","v":0}]
[11008557,4,false,{"$f":"COUNTIF([1]Sheet1!$J:$J,A23)","v":2},null,"$410 off 4+ units","Fame® SC","64 oz","Fungicide",null,{"$f":"INDEX(PRICING[2025 In-Season Price],MATCH(A23,PRICING[SKU],0))","v":1549.45},"",{"$f":"INDEX(PRICING[NOW Price],MATCH(A23,PRICING[SKU],0))","v":1471.98},"",{"$f":"INDEX(Rebate_Lookup[Instances],MATCH(A23,Rebate_Lookup[SKU CODE],0))","v":2},{"$f":"IF(J23=\"\",\"\",INDEX(Rebate_Lookup[Qualified Rebate Tier],MATCH(A23,Rebate_Lookup[SKU CODE],0)))","v":""},{"$f":"IF(J23=\"\",\"\",IF(P23=1,INDEX(Rebate_Lookup[REB_MOQ_1],MATCH(A23,Rebate_Lookup[SKU CODE],0)),IF(P23=2,INDEX(Rebate_Lookup[REB_MOQ_2],MATCH(A23,Rebate_Lookup[SKU CODE],0)),IF(P23=3,INDEX(Rebate_Lookup[REB_MOQ_3],MATCH(A23,Rebate_Lookup[SKU CODE],0)),\"#err\"))))","v":""},"","","","",0.3673094582185491,16,{"$f":"IF(AND(TRIM(W23)<>\"\",TRIM(J23)<>\"\"),(J23*64)/W23,\"\")","v":""},0,0]
[11009500,2,false,{"$f":"COUNTIF([1]Sheet1!$J:$J,A24)","v":3},null,"$1,450 off 2+,  $1,600 off 4+ units","Fame® SC","2.5 gal","Fungicide",null,{"$f":"INDEX(PRICING[2025 In-Season Price],MATCH(A24,PRICING[SKU],0))","v":6863.6},"",{"$f":"INDEX(PRICING[NOW Price],MATCH(A24,PRICING[SKU],0))","v":6520.42},"",{"$f":"INDEX(Rebate_Lookup[Instances],MATCH(A24,Rebate_Lookup[SKU CODE],0))","v":3},{"$f":"IF(J24=\"\",\"\",INDEX(Rebate_Lookup[Qualified Rebate Tier],MATCH(A24,Rebate_Lookup[SKU CODE],0)))","v":""},{"$f":"IF(J24=\"\",\"\",IF(P24=1,INDEX(Rebate_Lookup[REB_MOQ_1],MATCH(A24,Rebate_Lookup[SKU CODE],0)),IF(P24=2,INDEX(Rebate_Lookup[REB_MOQ_2],MATCH(A24,Rebate_Lookup[SKU CODE],0)),IF(P24=3,INDEX(Rebate_Lookup[REB_MOQ_3],MATCH(A24,Rebate_Lookup[SKU CODE],0)),\"#err\"))))","v":""},"","","","",0.3673094582185491,16,{"$f":"IF(AND(TRIM(W24)<>\"\",TRIM(J24)<>\"\"),(J24*320)/W24,\"\")","v":""},0,0]
["D00000935",16,false,{"$f":"COUNTIF([1]Sheet1!$J:$J,A25)","v":2},null,"$10 off 16+ units","Fiata® Stressgard®"," 2.5 gal","Fungicide",null,{"$f":"INDEX(PRICING[2025 In-Season Price],MATCH(A25,PRICING[SKU],0))","v":192},"",{"$f":"INDEX(PRICING[NOW Price],MATCH(A25,PRICING[SKU],0))","v":192},"",{"$f":"INDEX(Rebate_Lookup[Instances],MATCH(A25,Rebate_Lookup[SKU CODE],0))","v":2},{"$f":"IF(J25=\"\",\"\",INDEX(Rebate_Lookup[Qualified Rebate Tier],MATCH(A25,Rebate_Lookup[SKU CODE],0)))","v":""},{"$f":"IF(J25=\"\",\"\",IF(P25=1,INDEX(Rebate_Lookup[REB_MOQ_1],MATCH(A25,Rebate_Lookup[SKU CODE],0)),IF(P25=2,INDEX(Rebate_Lookup[REB_MOQ_2],MATCH(A25,Rebate_Lookup[SKU CODE],0)),IF(P25=3,INDEX(Rebate_Lookup[REB_MOQ_3],MATCH(A25,Rebate_Lookup[SKU CODE],0)),\"#err\"))))","v":""},"","","","",3,{"$f":"V25*43.56","v":130.68},{"$f":"IF(AND(TRIM(W25)<>\"\",TRIM(J25)<>\"\"),(J25*320)/W25,\"\")","v":""},{"$f":"IF(J25<>0,U25/X25,0)","v":0},{"$f":"Y25/43.56","v":0},null,null,{"$f":"N25","v":""}]
["D00001379",3,false,{"$f":"COUNTIF([1]Sheet1!$J:$J,A26)","v":3},null,"$185 off 3+,  $410 off 6+ units","Indemnify®","17.1 fl oz","Fungicide",null,{"$f":"INDEX(PRICING[2025 In-Season Price],MATCH(A26,PRICING[SKU],0))","v":1963.6},"",{"$f":"INDEX(PRICING[NOW Price],MATCH(A26,PRICING[SKU],0))","v":1865.42},"",{"$f":"INDEX(Rebate_Lookup[Instances],MATCH(A26,Rebate_Lookup[SKU CODE],0))","v":3},{"$f":"IF(J26=\"\",\"\",INDEX(Rebate_Lookup[Qualified Rebate Tier],MATCH(A26,Rebate_Lookup[SKU CODE],0)))","v":""},{"$f":"IF(J26=\"\",\"\",IF(P26=1,INDEX(Rebate_Lookup[REB_MOQ_1],MATCH(A26,Rebate_Lookup[SKU CODE],0)),IF(P26=2,INDEX(Rebate_Lookup[REB_MOQ_2],MATCH(A26,Rebate_Lookup[SKU CODE],0)),IF(P26=3,INDEX(Rebate_Lookup[REB_MOQ_3],MATCH(A26,Rebate_Lookup[SKU CODE],0)),\"#err\"))))","v":""},"","","","",0.39,16.988400000000002,{"$f":"IF(AND(TRIM(W26)<>\"\",TRIM(J26)<>\"\"),(J26*17.1)/W26,\"\")","v":""},0,0]
[81701245,6,false,{"$f":"COUNTIF([1]Sheet1!$J:$J,A27)","v":2},null,"$90 off 6+ units","Interface® Stressgard®","2.5 gal","Fungicide",null,{"$f":"INDEX(PRICING[2025 In-Season Price],MATCH(A27,PRICING[SKU],0))","v":573},"",{"$f":"INDEX(PRICING[NOW Price],MATCH(A27,PRICING[SKU],0))","v":544.35},{"$f":"IF(J27*M27= 0,\"\",J27*M27)","v":""},{"$f":"INDEX(Rebate_Lookup[Instances],MATCH(A27,Rebate_Lookup[SKU CODE],0))","v":2},{"$f":"IF(J27=\"\",\"\",INDEX(Rebate_Lookup[Qualified Rebate Tier],MATCH(A27,Rebate_Lookup[SKU CODE],0)))","v":""},{"$f":"IF(J27=\"\",\"\",IF(P27=1,INDEX(Rebate_Lookup[REB_MOQ_1],MATCH(A27,Rebate_Lookup[SKU CODE],0)),IF(P27=2,INDEX(Rebate_Lookup[REB_MOQ_2],MATCH(A27,Rebate_Lookup[SKU CODE],0)),IF(P27=3,INDEX(Rebate_Lookup[REB_MOQ_3],MATCH(A27,Rebate_Lookup[SKU CODE],0)),\"#err\"))))","v":""},"","","","",4,174.24,{"$f":"IF(AND(TRIM(W27)<>\"\",TRIM(J27)<>\"\"),(J27*320)/W27,\"\")","v":""},0,0,null,null,{"$f":"N27","v":""}]
[11013671,4,false,{"$f":"COUNTIF([1]Sheet1!$J:$J,A28)","v":2},null,"$295 off 4+ units","Kalida® ","64 oz","Fungicide",null,{"$f":"INDEX(PRICING[2025 In-Season Price],MATCH(A28,PRICING[SKU],0))","v":866.4},"",{"$f":"INDEX(PRICING[NOW Price],MATCH(A28,PRICING[SKU],0))","v":866.4},"",{"$f":"INDEX(Rebate_Lookup[Instances],MATCH(A28,Rebate_Lookup[SKU CODE],0))","v":2},{"$f":"IF(J28=\"\",\"\",INDEX(Rebate_Lookup[Qualified Rebate Tier],MATCH(A28,Rebate_Lookup[SKU CODE],0)))","v":""},{"$f":"IF(J28=\"\",\"\",IF(P28=1,INDEX(Rebate_Lookup[REB_MOQ_1],MATCH(A28,Rebate_Lookup[SKU CODE],0)),IF(P28=2,INDEX(Rebate_Lookup[REB_MOQ_2],MATCH(A28,Rebate_Lookup[SKU CODE],0)),IF(P28=3,INDEX(Rebate_Lookup[REB_MOQ_3],MATCH(A28,Rebate_Lookup[SKU CODE],0)),\"#err\"))))","v":""},"","","","",0.4,17.424000000000003,{"$f":"IF(AND(TRIM(W28)<>\"\",TRIM(J28)<>\"\"),(J28*64)/W28,\"\")","v":""},0,0]
["D00000965",4,false,{"$f":"COUNTIF([1]Sheet1!$J:$J,A29)","v":2},null,"$90 off 4+ units","Mirage® Stressgard®","2.5 gal","Fungicide",null,{"$f":"INDEX(PRICING[2025 In-Season Price],MATCH(A29,PRICING[SKU],0))","v":493},"",{"$f":"INDEX(PRICING[NOW Price],MATCH(A29,PRICING[SKU],0))","v":493},"",{"$f":"INDEX(Rebate_Lookup[Instances],MATCH(A29,Rebate_Lookup[SKU CODE],0))","v":2},{"$f":"IF(J29=\"\",\"\",INDEX(Rebate_Lookup[Qualified Rebate Tier],MATCH(A29,Rebate_Lookup[SKU CODE],0)))","v":""},{"$f":"IF(J29=\"\",\"\",IF(P29=1,INDEX(Rebate_Lookup[REB_MOQ_1],MATCH(A29,Rebate_Lookup[SKU CODE],0)),IF(P29=2,INDEX(Rebate_Lookup[REB_MOQ_2],MATCH(A29,Rebate_Lookup[SKU CODE],0)),IF(P29=3,INDEX(Rebate_Lookup[REB_MOQ_3],MATCH(A29,Rebate_Lookup[SKU CODE],0)),\"#err\"))))","v":""},"","","","",1,43.56,{"$f":"IF(AND(TRIM(W29)<>\"\",TRIM(J29)<>\"\"),(J29*320)/W29,\"\")","v":""},0,0,null,null,{"$f":"N29","v":""}]
[11003880,6,false,{"$f":"COUNTIF([1]Sheet1!$J:$J,A30)","v":2},null,"$160 off 6+ units","Rayora® ","2.5 gal","Fungicide",null,{"$f":"INDEX(PRICING[2025 In-Season Price],MATCH(A30,PRICING[SKU],0))","v":631.4},"",{"$f":"INDEX(PRICING[NOW Price],MATCH(A30,PRICING[SKU],0))","v":631.4},"",{"$f":"INDEX(Rebate_Lookup[Instances],MATCH(A30,Rebate_Lookup[SKU CODE],0))","v":2},{"$f":"IF(J30=\"\",\"\",INDEX(Rebate_Lookup[Qualified Rebate Tier],MATCH(A30,Rebate_Lookup[SKU CODE],0)))","v":""},{"$f":"IF(J30=\"\",\"\",IF(P30=1,INDEX(Rebate_Lookup[REB_MOQ_1],MATCH(A30,Rebate_Lookup[SKU CODE],0)),IF(P30=2,INDEX(Rebate_Lookup[REB_MOQ_2],MATCH(A30,Rebate_Lookup[SKU CODE],0)),IF(P30=3,INDEX(Rebate_Lookup[REB_MOQ_3],MATCH(A30,Rebate_Lookup[SKU CODE],0)),\"#err\"))))","v":""},"","","","",1.4,60.984000000000002,{"$f":"IF(AND(TRIM(W30)<>\"\",TRIM(J30)<>\"\"),(J30*320)/W30,\"\")","v":""},0,0]
["D00000125",4,false,{"$f":"COUNTIF([1]Sheet1!$J:$J,A31)","v":3},null,"$65 off 4+,  $180 off 15+ units","Resilia™","2.72 gal","Fungicide",null,{"$f":"INDEX(PRICING[2025 In-Season Price],MATCH(A31,PRICING[SKU],0))","v":946.56},"",{"$f":"INDEX(PRICING[NOW Price],MATCH(A31,PRICING[SKU],0))","v":946.56},"",{"$f":"INDEX(Rebate_Lookup[Instances],MATCH(A31,Rebate_Lookup[SKU CODE],0))","v":3},{"$f":"IF(J31=\"\",\"\",INDEX(Rebate_Lookup[Qualified Rebate Tier],MATCH(A31,Rebate_Lookup[SKU CODE],0)))","v":""},{"$f":"IF(J31=\"\",\"\",IF(P31=1,INDEX(Rebate_Lookup[REB_MOQ_1],MATCH(A31,Rebate_Lookup[SKU CODE],0)),IF(P31=2,INDEX(Rebate_Lookup[REB_MOQ_2],MATCH(A31,Rebate_Lookup[SKU CODE],0)),IF(P31=3,INDEX(Rebate_Lookup[REB_MOQ_3],MATCH(A31,Rebate_Lookup[SKU CODE],0)),\"#err\"))))","v":""},"","","","",{"$f":"W31/43.56","v":4},174.24,{"$f":"IF(AND(TRIM(W31)<>\"\",TRIM(J31)<>\"\"),(J31*348.16)/W31,\"\")","v":""},0,0]
[11014245,8,false,{"$f":"COUNTIF([1]Sheet1!$J:$J,A32)","v":2},null,"$15 off 8+ units","Serata® ","35 oz","Fungicide",null,{"$f":"INDEX(PRICING[2025 In-Season Price],MATCH(A32,PRICING[SKU],0))","v":499.8},"",{"$f":"INDEX(PRICING[NOW Price],MATCH(A32,PRICING[SKU],0))","v":474.81},"",{"$f":"INDEX(Rebate_Lookup[Instances],MATCH(A32,Rebate_Lookup[SKU CODE],0))","v":2},{"$f":"IF(J32=\"\",\"\",INDEX(Rebate_Lookup[Qualified Rebate Tier],MATCH(A32,Rebate_Lookup[SKU CODE],0)))","v":""},{"$f":"IF(J32=\"\",\"\",IF(P32=1,INDEX(Rebate_Lookup[REB_MOQ_1],MATCH(A32,Rebate_Lookup[SKU CODE],0)),IF(P32=2,INDEX(Rebate_Lookup[REB_MOQ_2],MATCH(A32,Rebate_Lookup[SKU CODE],0)),IF(P32=3,INDEX(Rebate_Lookup[REB_MOQ_3],MATCH(A32,Rebate_Lookup[SKU CODE],0)),\"#err\"))))","v":""},"","","","",0.6,26.135999999999999,{"$f":"IF(AND(TRIM(W32)<>\"\",TRIM(J32)<>\"\"),(J32*35)/W32,\"\")","v":""},0,0]
["D00000989",24,false,{"$f":"COUNTIF([1]Sheet1!$J:$J,A33)","v":2},null,"$15 off 24+ units","Signature™ XTRA Stressgard® ","5.5 lb","Fungicide",null,{"$f":"INDEX(PRICING[2025 In-Season Price],MATCH(A33,PRICING[SKU],0))","v":210.4},"",{"$f":"INDEX(PRICING[NOW Price],MATCH(A33,PRICING[SKU],0))","v":199.88},"",{"$f":"INDEX(Rebate_Lookup[Instances],MATCH(A33,Rebate_Lookup[SKU CODE],0))","v":2},{"$f":"IF(J33=\"\",\"\",INDEX(Rebate_Lookup[Qualified Rebate Tier],MATCH(A33,Rebate_Lookup[SKU CODE],0)))","v":""},{"$f":"IF(J33=\"\",\"\",IF(P33=1,INDEX(Rebate_Lookup[REB_MOQ_1],MATCH(A33,Rebate_Lookup[SKU CODE],0)),IF(P33=2,INDEX(Rebate_Lookup[REB_MOQ_2],MATCH(A33,Rebate_Lookup[SKU CODE],0)),IF(P33=3,INDEX(Rebate_Lookup[REB_MOQ_3],MATCH(A33,Rebate_Lookup[SKU CODE],0)),\"#err\"))))","v":""},"","","","",4,174.24,{"$f":"IF(AND(TRIM(W33)<>\"\",TRIM(J33)<>\"\"),(J33*88)/W33,\"\")","v":""},0,0,null,null,{"$f":"N33","v":""}]
["D00000998",6,false,{"$f":"COUNTIF([1]Sheet1!$J:$J,A34)","v":2},null,"$93 off 6+ units","Tartan® Stressgard® ","2.5 gal","Fungicide",null,{"$f":"INDEX(PRICING[2025 In-Season Price],MATCH(A34,PRICING[SKU],0))","v":1033},"",{"$f":"INDEX(PRICING[NOW Price],MATCH(A34,PRICING[SKU],0))","v":981.35},"",{"$f":"INDEX(Rebate_Lookup[Instances],MATCH(A34,Rebate_Lookup[SKU CODE],0))","v":2},{"$f":"IF(J34=\"\",\"\",INDEX(Rebate_Lookup[Qualified Rebate Tier],MATCH(A34,Rebate_Lookup[SKU CODE],0)))","v":""},{"$f":"IF(J34=\"\",\"\",IF(P34=1,INDEX(Rebate_Lookup[REB_MOQ_1],MATCH(A34,Rebate_Lookup[SKU CODE],0)),IF(P34=2,INDEX(Rebate_Lookup[REB_MOQ_2],MATCH(A34,Rebate_Lookup[SKU CODE],0)),IF(P34=3,INDEX(Rebate_Lookup[REB_MOQ_3],MATCH(A34,Rebate_Lookup[SKU CODE],0)),\"#err\"))))","v":""},"","","","",1.5,65.34,{"$f":"IF(AND(TRIM(W34)<>\"\",TRIM(J34)<>\"\"),(J34*320)/W34,\"\")","v":""},0,0,null,null,""]
[11015981,3,false,{"$f":"COUNTIF([1]Sheet1!$J:$J,A35)","v":2},null,"$400 off 3+ units","Tarvecta™","2.5 gal","Fungicide",null,{"$f":"INDEX(PRICING[2025 In-Season Price],MATCH(A35,PRICING[SKU],0))","v":3360},"",{"$f":"INDEX(PRICING[NOW Price],MATCH(A35,PRICING[SKU],0))","v":3360},"",{"$f":"INDEX(Rebate_Lookup[Instances],MATCH(A35,Rebate_Lookup[SKU CODE],0))","v":2},{"$f":"IF(J35=\"\",\"\",INDEX(Rebate_Lookup[Qualified Rebate Tier],MATCH(A35,Rebate_Lookup[SKU CODE],0)))","v":""},{"$f":"IF(J35=\"\",\"\",IF(P35=1,INDEX(Rebate_Lookup[REB_MOQ_1],MATCH(A35,Rebate_Lookup[SKU CODE],0)),IF(P35=2,INDEX(Rebate_Lookup[REB_MOQ_2],MATCH(A35,Rebate_Lookup[SKU CODE],0)),IF(P35=3,INDEX(Rebate_Lookup[REB_MOQ_3],MATCH(A35,Rebate_Lookup[SKU CODE],0)),\"#err\"))))","v":""},"","","","",0.7,30.492000000000001,{"$f":"IF(AND(TRIM(W35)<>\"\",TRIM(J35)<>\"\"),(J35*320)/W35,\"\")","v":""},0,0]
[11015990,4,false,{"$f":"COUNTIF([1]Sheet1!$J:$J,A36)","v":2},null,"$145 off 4+ units","Tarvecta™","64 oz","Fungicide",null,{"$f":"INDEX(PRICING[2025 In-Season Price],MATCH(A36,PRICING[SKU],0))","v":772.8},"",{"$f":"INDEX(PRICING[NOW Price],MATCH(A36,PRICING[SKU],0))","v":772.8},"",{"$f":"INDEX(Rebate_Lookup[Instances],MATCH(A36,Rebate_Lookup[SKU CODE],0))","v":2},{"$f":"IF(J36=\"\",\"\",INDEX(Rebate_Lookup[Qualified Rebate Tier],MATCH(A36,Rebate_Lookup[SKU CODE],0)))","v":""},{"$f":"IF(J36=\"\",\"\",IF(P36=1,INDEX(Rebate_Lookup[REB_MOQ_1],MATCH(A36,Rebate_Lookup[SKU CODE],0)),IF(P36=2,INDEX(Rebate_Lookup[REB_MOQ_2],MATCH(A36,Rebate_Lookup[SKU CODE],0)),IF(P36=3,INDEX(Rebate_Lookup[REB_MOQ_3],MATCH(A36,Rebate_Lookup[SKU CODE],0)),\"#err\"))))","v":""},"","","","",0.7,30.492000000000001,{"$f":"IF(AND(TRIM(W36)<>\"\",TRIM(J36)<>\"\"),(J36*64)/W36,\"\")","v":""},0,0]
[79714858,48,false,{"$f":"COUNTIF([1]Sheet1!$J:$J,A37)","v":2},null,"$12 off 48+ units","Celsius® WG","10 oz","Herbicide",null,{"$f":"INDEX(PRICING[2025 In-Season Price],MATCH(A37,PRICING[SKU],0))","v":131.19999999999999},{"$f":"IF(J37*K37= 0,\"\",J37*K37)","v":""},{"$f":"INDEX(PRICING[NOW Price],MATCH(A37,PRICING[SKU],0))","v":124.64},{"$f":"IF(J37*M37= 0,\"\",J37*M37)","v":""},{"$f":"INDEX(Rebate_Lookup[Instances],MATCH(A37,Rebate_Lookup[SKU CODE],0))","v":2},{"$f":"IF(J37=\"\",\"\",INDEX(Rebate_Lookup[Qualified Rebate Tier],MATCH(A37,Rebate_Lookup[SKU CODE],0)))","v":""},{"$f":"IF(J37=\"\",\"\",IF(P37=1,INDEX(Rebate_Lookup[REB_MOQ_1],MATCH(A37,Rebate_Lookup[SKU CODE],0)),IF(P37=2,INDEX(Rebate_Lookup[REB_MOQ_2],MATCH(A37,Rebate_Lookup[SKU CODE],0)),IF(P37=3,INDEX(Rebate_Lookup[REB_MOQ_3],MATCH(A37,Rebate_Lookup[SKU CODE],0)),\"#err\"))))","v":""},{"$f":"IF(OR(Q37=0,Q37=\"\"),\"\",J37*Q37)","v":""},"",{"$f":"IFERROR((N37-SUM(R37:S37))/J37,\"\")","v":""},{"$f":"IF(AND(J37<>\"\",J37>0), J37*T37,\"\")","v":""},{"$f":"W37/43.56","v":8.4940312213039479E-2},3.7,{"$f":"IF(AND(TRIM(W37)<>\"\",TRIM(J37)<>\"\"),(J37*10)/W37,\"\")","v":""},0,0]
["D00000911",16,false,{"$f":"COUNTIF([1]Sheet1!$J:$J,A38)","v":2},null,"$12 off 16+ units","Celsius® XTRA","10 oz","Herbicide",null,{"$f":"INDEX(PRICING[2025 In-Season Price],MATCH(A38,PRICING[SKU],0))","v":166.4},"",{"$f":"INDEX(PRICING[NOW Price],MATCH(A38,PRICING[SKU],0))","v":158.08000000000001},"",{"$f":"INDEX(Rebate_Lookup[Instances],MATCH(A38,Rebate_Lookup[SKU CODE],0))","v":2},{"$f":"IF(J38=\"\",\"\",INDEX(Rebate_Lookup[Qualified Rebate Tier],MATCH(A38,Rebate_Lookup[SKU CODE],0)))","v":""},{"$f":"IF(J38=\"\",\"\",IF(P38=1,INDEX(Rebate_Lookup[REB_MOQ_1],MATCH(A38,Rebate_Lookup[SKU CODE],0)),IF(P38=2,INDEX(Rebate_Lookup[REB_MOQ_2],MATCH(A38,Rebate_Lookup[SKU CODE],0)),IF(P38=3,INDEX(Rebate_Lookup[REB_MOQ_3],MATCH(A38,Rebate_Lookup[SKU CODE],0)),\"#err\"))))","v":""},"","","","",{"$f":"W38/43.56","v":0.17217630853994489},7.5,{"$f":"IF(AND(TRIM(W38)<>\"\",TRIM(J38)<>\"\"),(J38*10)/W38,\"\")","v":""},0,0]
[11008409,"n/a",null,{"$f":"COUNTIF([1]Sheet1!$J:$J,A39)","v":1},null,"$11 off 1+ units","Dismiss® NXT","10 oz","Herbicide",null,{"$f":"INDEX(PRICING[2025 In-Season Price],MATCH(A39,PRICING[SKU],0))","v":94.8},{"$f":"IF(J39*K39= 0,\"\",J39*K39)","v":""},{"$f":"INDEX(PRICING[NOW Price],MATCH(A39,PRICING[SKU],0))","v":94.8},{"$f":"IF(J39*M39= 0,\"\",J39*M39)","v":""},{"$f":"INDEX(Rebate_Lookup[Instances],MATCH(A39,Rebate_Lookup[SKU CODE],0))","v":1},{"$f":"IF(J39=\"\",\"\",INDEX(Rebate_Lookup[Qualified Rebate Tier],MATCH(A39,Rebate_Lookup[SKU CODE],0)))","v":""},{"$f":"IF(J39=\"\",\"\",IF(P39=1,INDEX(Rebate_Lookup[REB_MOQ_1],MATCH(A39,Rebate_Lookup[SKU CODE],0)),IF(P39=2,INDEX(Rebate_Lookup[REB_MOQ_2],MATCH(A39,Rebate_Lookup[SKU CODE],0)),IF(P39=3,INDEX(Rebate_Lookup[REB_MOQ_3],MATCH(A39,Rebate_Lookup[SKU CODE],0)),\"#err\"))))","v":""},{"$f":"IF(OR(Q39=0,Q39=\"\"),\"\",J39*Q39)","v":""},"",{"$f":"IFERROR((N39-SUM(R39:S39))/J39,\"\")","v":""},{"$f":"IF(AND(J39<>\"\",J39>0), J39*T39,\"\")","v":""},0.23415977961432505,{"$f":"V39*43.56","v":10.199999999999999},{"$f":"IF(AND(TRIM(W39)<>\"\",TRIM(J39)<>\"\"),(J39*10)/W39,\"\")","v":""},{"$f":"IF(J39<>0,U39/X39,0)","v":0},{"$f":"Y39/43.56","v":0}]
[11008589,16,{"$f":"J40>=B40","v":false},{"$f":"COUNTIF([1]Sheet1!$J:$J,A40)","v":2},null,"$60 off 16+ units","Dismiss® NXT","60 oz","Herbicide",null,{"$f":"INDEX(PRICING[2025 In-Season Price],MATCH(A40,PRICING[SKU],0))","v":504.8},"",{"$f":"INDEX(PRICING[NOW Price],MATCH(A40,PRICING[SKU],0))","v":479.56},"",{"$f":"INDEX(Rebate_Lookup[Instances],MATCH(A40,Rebate_Lookup[SKU CODE],0))","v":2},{"$f":"IF(J40=\"\",\"\",INDEX(Rebate_Lookup[Qualified Rebate Tier],MATCH(A40,Rebate_Lookup[SKU CODE],0)))","v":""},{"$f":"IF(J40=\"\",\"\",IF(P40=1,INDEX(Rebate_Lookup[REB_MOQ_1],MATCH(A40,Rebate_Lookup[SKU CODE],0)),IF(P40=2,INDEX(Rebate_Lookup[REB_MOQ_2],MATCH(A40,Rebate_Lookup[SKU CODE],0)),IF(P40=3,INDEX(Rebate_Lookup[REB_MOQ_3],MATCH(A40,Rebate_Lookup[SKU CODE],0)),\"#err\"))))","v":""},"","","","",0.23415977961432505,10.199999999999999,{"$f":"IF(AND(TRIM(W40)<>\"\",TRIM(J40)<>\"\"),(J40*60)/W40,\"\")","v":""},0,0]
[11008464,16,{"$f":"J41>=B41","v":false},{"$f":"COUNTIF([1]Sheet1!$J:$J,A41)","v":2},null,"$145 off 16+ units","Echelon® 4SC","1 gal","Herbicide",null,{"$f":"INDEX(PRICING[2025 In-Season Price],MATCH(A41,PRICING[SKU],0))","v":454},"",{"$f":"INDEX(PRICING[NOW Price],MATCH(A41,PRICING[SKU],0))","v":431.3},"",{"$f":"INDEX(Rebate_Lookup[Instances],MATCH(A41,Rebate_Lookup[SKU CODE],0))","v":2},{"$f":"IF(J41=\"\",\"\",INDEX(Rebate_Lookup[Qualified Rebate Tier],MATCH(A41,Rebate_Lookup[SKU CODE],0)))","v":""},{"$f":"IF(J41=\"\",\"\",IF(P41=1,INDEX(Rebate_Lookup[REB_MOQ_1],MATCH(A41,Rebate_Lookup[SKU CODE],0)),IF(P41=2,INDEX(Rebate_Lookup[REB_MOQ_2],MATCH(A41,Rebate_Lookup[SKU CODE],0)),IF(P41=3,INDEX(Rebate_Lookup[REB_MOQ_3],MATCH(A41,Rebate_Lookup[SKU CODE],0)),\"#err\"))))","v":""},"","","","",0.55096000000000001,{"$f":"V41*43.56","v":23.9998176},{"$f":"IF(AND(TRIM(W41)<>\"\",TRIM(J41)<>\"\"),(J41*128)/W41,\"\")","v":""},0,0]
[79545312,16,{"$f":"J42>=B42","v":false},{"$f":"COUNTIF([1]Sheet1!$J:$J,A42)","v":2},null,"$50 off 16+ units","Revolver®","87 fl oz","Herbicide",null,{"$f":"INDEX(PRICING[2025 In-Season Price],MATCH(A42,PRICING[SKU],0))","v":765.6},"",{"$f":"INDEX(PRICING[NOW Price],MATCH(A42,PRICING[SKU],0))","v":727.32},"",{"$f":"INDEX(Rebate_Lookup[Instances],MATCH(A42,Rebate_Lookup[SKU CODE],0))","v":2},{"$f":"IF(J42=\"\",\"\",INDEX(Rebate_Lookup[Qualified Rebate Tier],MATCH(A42,Rebate_Lookup[SKU CODE],0)))","v":""},{"$f":"IF(J42=\"\",\"\",IF(P42=1,INDEX(Rebate_Lookup[REB_MOQ_1],MATCH(A42,Rebate_Lookup[SKU CODE],0)),IF(P42=2,INDEX(Rebate_Lookup[REB_MOQ_2],MATCH(A42,Rebate_Lookup[SKU CODE],0)),IF(P42=3,INDEX(Rebate_Lookup[REB_MOQ_3],MATCH(A42,Rebate_Lookup[SKU CODE],0)),\"#err\"))))","v":""},"","","","",{"$f":"W42/43.56","v":0.39990817263544537},17.420000000000002,{"$f":"IF(AND(TRIM(W42)<>\"\",TRIM(J42)<>\"\"),(J42*87)/W42,\"\")","v":""},0,0]
["D00000986","n/a",{"$f":"OR(J44>=12)","v":false},{"$f":"COUNTIF([1]Sheet1!$J:$J,A43)","v":3},null,"n/a","Ronstar® FLO (1-11 units)","2.5 gal","Herbicide",null,552,"",552,"",{"$f":"INDEX(Rebate_Lookup[Instances],MATCH(A43,Rebate_Lookup[SKU CODE],0))","v":2},"x",0,{"$f":"IF(OR(Q43=0,Q43=\"\"),\"\",J43*Q43)","v":""},{"$f":"IF(OR(J43=0,J43=\"\"),\"\",\"n/a\")","v":""},{"$f":"IFERROR((N43-SUM(R43:S43))/J43,\"\")","v":""},{"$f":"IF(AND(J43<>\"\",J43>0), J43*T43,\"\")","v":""},1.9972451790000001,{"$f":"V43*43.56","v":86.99999999724001},{"$f":"IF(AND(TRIM(W43)<>\"\",TRIM(J43)<>\"\"),(J43*320)/W43,\"\")","v":""},0,0]
["D00000986","n/a",null,{"$f":"COUNTIF([1]Sheet1!$J:$J,A44)","v":3},null,"n/a","Ronstar® FLO (12+ units)","2.5 gal","Herbicide",null,453,"",423,"",{"$f":"INDEX(Rebate_Lookup[Instances],MATCH(A44,Rebate_Lookup[SKU CODE],0))","v":2},"x",0,{"$f":"IF(OR(Q44=0,Q44=\"\"),\"\",J44*Q44)","v":""},{"$f":"IF(OR(J44=0,J44=\"\"),\"\",\"n/a\")","v":""},"","",1.9972451790000001,86.99999999724001,{"$f":"IF(AND(TRIM(W44)<>\"\",TRIM(J44)<>\"\"),(J44*320)/W44,\"\")","v":""},0,0]
[11008522,16,{"$f":"J45>=B45","v":false},{"$f":"COUNTIF([1]Sheet1!$J:$J,A45)","v":2},null,"$40 off 16+ units","Solitare® ","4 lb","Herbicide",null,{"$f":"INDEX(PRICING[2025 In-Season Price],MATCH(A45,PRICING[SKU],0))","v":596.4},"",{"$f":"INDEX(PRICING[NOW Price],MATCH(A45,PRICING[SKU],0))","v":566.58000000000004},"",{"$f":"INDEX(Rebate_Lookup[Instances],MATCH(A45,Rebate_Lookup[SKU CODE],0))","v":2},{"$f":"IF(J45=\"\",\"\",INDEX(Rebate_Lookup[Qualified Rebate Tier],MATCH(A45,Rebate_Lookup[SKU CODE],0)))","v":""},{"$f":"IF(J45=\"\",\"\",IF(P45=1,INDEX(Rebate_Lookup[REB_MOQ_1],MATCH(A45,Rebate_Lookup[SKU CODE],0)),IF(P45=2,INDEX(Rebate_Lookup[REB_MOQ_2],MATCH(A45,Rebate_Lookup[SKU CODE],0)),IF(P45=3,INDEX(Rebate_Lookup[REB_MOQ_3],MATCH(A45,Rebate_Lookup[SKU CODE],0)),\"#err\"))))","v":""},"",{"$f":"IFERROR(N45*SUM($I$99:$I$103),\"\")","v":""},"","",0.36730945799999998,15.999999990479999,{"$f":"IF(AND(TRIM(W45)<>\"\",TRIM(J45)<>\"\"),(J45*64)/W45,\"\")","v":""},0,0]
[11013862,24,{"$f":"J46>=B46","v":false},{"$f":"COUNTIF([1]Sheet1!$J:$J,A46)","v":2},null,"$40 off 24+ units","Solitare® WSL","2.5 gal","Herbicide",null,{"$f":"INDEX(PRICING[2025 In-Season Price],MATCH(A46,PRICING[SKU],0))","v":262.39999999999998},"",{"$f":"INDEX(PRICING[NOW Price],MATCH(A46,PRICING[SKU],0))","v":249.28},"",{"$f":"INDEX(Rebate_Lookup[Instances],MATCH(A46,Rebate_Lookup[SKU CODE],0))","v":2},{"$f":"IF(J46=\"\",\"\",INDEX(Rebate_Lookup[Qualified Rebate Tier],MATCH(A46,Rebate_Lookup[SKU CODE],0)))","v":""},{"$f":"IF(J46=\"\",\"\",IF(P46=1,INDEX(Rebate_Lookup[REB_MOQ_1],MATCH(A46,Rebate_Lookup[SKU CODE],0)),IF(P46=2,INDEX(Rebate_Lookup[REB_MOQ_2],MATCH(A46,Rebate_Lookup[SKU CODE],0)),IF(P46=3,INDEX(Rebate_Lookup[REB_MOQ_3],MATCH(A46,Rebate_Lookup[SKU CODE],0)),\"#err\"))))","v":""},"",{"$f":"IFERROR(N46*SUM($I$99:$I$103),\"\")","v":""},"","",3.9,169.88400000000001,{"$f":"IF(AND(TRIM(W46)<>\"\",TRIM(J46)<>\"\"),(J46*320)/W46,\"\")","v":""},0,0]
["D00000990","n/a",{"$f":"OR(J48>=7,J49>=14,J50>=26)","v":false},{"$f":"COUNTIF([1]Sheet1!$J:$J,A47)","v":4},null,"n/a","Specticle® FLO (1-6 units)","1 gal","Herbicide",null,2092.8000000000002,"",1946.3,"",{"$f":"INDEX(Rebate_Lookup[Instances],MATCH(A47,Rebate_Lookup[SKU CODE],0))","v":3},"x",0,{"$f":"IF(OR(Q47=0,Q47=\"\"),\"\",J47*Q47)","v":""},{"$f":"IF(OR(J47=0,J47=\"\"),\"\",\"n/a\")","v":""},{"$f":"IFERROR((N47-SUM(R47:S47))/J47,\"\")","v":""},{"$f":"IF(AND(J47<>\"\",J47>0), J47*T47,\"\")","v":""},{"$f":"W47/43.56","v":0.13774104683195593},6,{"$f":"IF(AND(TRIM(W47)<>\"\",TRIM(J47)<>\"\"),(J47*127.999939675621)/W47,\"\")","v":""},0,0]
["D00000990","n/a",null,{"$f":"COUNTIF([1]Sheet1!$J:$J,A48)","v":4},null,"$38 off 7-13 units","Specticle® FLO (7-13 units)","1 gal","Herbicide",null,2092.8000000000002,"",1862.59,"",{"$f":"INDEX(Rebate_Lookup[Instances],MATCH(A48,Rebate_Lookup[SKU CODE],0))","v":3},"x",38,{"$f":"IF(OR(Q48=0,Q48=\"\"),\"\",J48*Q48)","v":0},"",{"$f":"IFERROR((N48-SUM(R48:S48))/J48,\"\")","v":""},"",0.13774104683195593,6,{"$f":"IF(AND(TRIM(W48)<>\"\",TRIM(J48)<>\"\"),(J48*127.999939675621)/W48,\"\")","v":""},0,0]
["D00000990","n/a",null,{"$f":"COUNTIF([1]Sheet1!$J:$J,A49)","v":4},null,"$32 off 14-25 units","Specticle® FLO (14-25 units)","1 gal","Herbicide",null,1796.4,"",1625.74,"",{"$f":"INDEX(Rebate_Lookup[Instances],MATCH(A49,Rebate_Lookup[SKU CODE],0))","v":3},"x",32,{"$f":"IF(OR(Q49=0,Q49=\"\"),\"\",J49*Q49)","v":0},"","","",0.13774104683195593,6,{"$f":"IF(AND(TRIM(W49)<>\"\",TRIM(J49)<>\"\"),(J49*127.999939675621)/W49,\"\")","v":""},0,0]
["D00000990","n/a",null,{"$f":"COUNTIF([1]Sheet1!$J:$J,A50)","v":4},null,"$131 off 26+ units","Specticle® FLO (26+ units)","1 gal","Herbicide",null,1796.4,"",1455.08,"",{"$f":"INDEX(Rebate_Lookup[Instances],MATCH(A50,Rebate_Lookup[SKU CODE],0))","v":3},"x",131,0,{"$f":"IF(OR(J50=0,J50=\"\"),\"\",\"n/a\")","v":""},"","",0.13774104683195593,6,{"$f":"IF(AND(TRIM(W50)<>\"\",TRIM(J50)<>\"\"),(J50*127.999939675621)/W50,\"\")","v":""},0,0]
["D00000992",20,{"$f":"J51>=B51","v":false},{"$f":"COUNTIF([1]Sheet1!$J:$J,A51)","v":2},null,"$8 off 20+ units","Specticle® G","50 lb","Herbicide",null,{"$f":"INDEX(PRICING[2025 In-Season Price],MATCH(A51,PRICING[SKU],0))","v":130.5},"",{"$f":"INDEX(PRICING[NOW Price],MATCH(A51,PRICING[SKU],0))","v":123.98},"",{"$f":"INDEX(Rebate_Lookup[Instances],MATCH(A51,Rebate_Lookup[SKU CODE],0))","v":2},{"$f":"IF(J51=\"\",\"\",INDEX(Rebate_Lookup[Qualified Rebate Tier],MATCH(A51,Rebate_Lookup[SKU CODE],0)))","v":""},{"$f":"IF(J51=\"\",\"\",IF(P51=1,INDEX(Rebate_Lookup[REB_MOQ_1],MATCH(A51,Rebate_Lookup[SKU CODE],0)),IF(P51=2,INDEX(Rebate_Lookup[REB_MOQ_2],MATCH(A51,Rebate_Lookup[SKU CODE],0)),IF(P51=3,INDEX(Rebate_Lookup[REB_MOQ_3],MATCH(A51,Rebate_Lookup[SKU CODE],0)),\"#err\"))))","v":""},"",{"$f":"IFERROR(N51*SUM($I$99:$I$103),\"\")","v":""},"","",3.443526170798898,150,{"$f":"IF(AND(TRIM(W51)<>\"\",TRIM(J51)<>\"\"),(J51*50)/W51,\"\")","v":""},0,0]
[81746257,24,{"$f":"J52>=B52","v":false},{"$f":"COUNTIF([1]Sheet1!$J:$J,A52)","v":2},null,"$30 off 24+ units","Tribute® Total","6 oz","Herbicide",null,{"$f":"INDEX(PRICING[2025 In-Season Price],MATCH(A52,PRICING[SKU],0))","v":426.4},"",{"$f":"INDEX(PRICING[NOW Price],MATCH(A52,PRICING[SKU],0))","v":405.08},"",{"$f":"INDEX(Rebate_Lookup[Instances],MATCH(A52,Rebate_Lookup[SKU CODE],0))","v":2},{"$f":"IF(J52=\"\",\"\",INDEX(Rebate_Lookup[Qualified Rebate Tier],MATCH(A52,Rebate_Lookup[SKU CODE],0)))","v":""},{"$f":"IF(J52=\"\",\"\",IF(P52=1,INDEX(Rebate_Lookup[REB_MOQ_1],MATCH(A52,Rebate_Lookup[SKU CODE],0)),IF(P52=2,INDEX(Rebate_Lookup[REB_MOQ_2],MATCH(A52,Rebate_Lookup[SKU CODE],0)),IF(P52=3,INDEX(Rebate_Lookup[REB_MOQ_3],MATCH(A52,Rebate_Lookup[SKU CODE],0)),\"#err\"))))","v":""},"",{"$f":"IFERROR(N52*SUM($I$99:$I$103),\"\")","v":""},"","",{"$f":"W52/43.56","v":2.2956841138659319E-2},1,{"$f":"IF(AND(TRIM(W52)<>\"\",TRIM(J52)<>\"\"),(J52*6)/W52,\"\")","v":""},0,0]
[11008590,24,{"$f":"J53>=B53","v":false},{"$f":"COUNTIF([1]Sheet1!$J:$J,A53)","v":2},null,"$50 off 24+ units","Xonerate® 2SC","12 oz","Herbicide",null,{"$f":"INDEX(PRICING[2025 In-Season Price],MATCH(A53,PRICING[SKU],0))","v":489.4},"",{"$f":"INDEX(PRICING[NOW Price],MATCH(A53,PRICING[SKU],0))","v":464.93},"",{"$f":"INDEX(Rebate_Lookup[Instances],MATCH(A53,Rebate_Lookup[SKU CODE],0))","v":2},{"$f":"IF(J53=\"\",\"\",INDEX(Rebate_Lookup[Qualified Rebate Tier],MATCH(A53,Rebate_Lookup[SKU CODE],0)))","v":""},{"$f":"IF(J53=\"\",\"\",IF(P53=1,INDEX(Rebate_Lookup[REB_MOQ_1],MATCH(A53,Rebate_Lookup[SKU CODE],0)),IF(P53=2,INDEX(Rebate_Lookup[REB_MOQ_2],MATCH(A53,Rebate_Lookup[SKU CODE],0)),IF(P53=3,INDEX(Rebate_Lookup[REB_MOQ_3],MATCH(A53,Rebate_Lookup[SKU CODE],0)),\"#err\"))))","v":""},"",{"$f":"IFERROR(N53*SUM($I$99:$I$103),\"\")","v":""},"","",0.32139577600000002,{"$f":"V53*43.56","v":14.000000002560002},{"$f":"IF(AND(TRIM(W53)<>\"\",TRIM(J53)<>\"\"),(J53*12)/W53,\"\")","v":""},0,0]
["D00000903","n/a",{"$f":"OR(J54>=16,J55>=16,J56>=16)","v":false},{"$f":"COUNTIF([1]Sheet1!$J:$J,A54)","v":3},null,"n/a","Altus® (1-15 units)","64 oz","Insecticide",null,437.2,"",437.2,{"$f":"IF(J54*M54= 0,\"\",J54*M54)","v":""},{"$f":"INDEX(Rebate_Lookup[Instances],MATCH(A54,Rebate_Lookup[SKU CODE],0))","v":3},{"$f":"IF(J54=\"\",\"\",INDEX(Rebate_Lookup[Qualified Rebate Tier],MATCH(A54,Rebate_Lookup[SKU CODE],0)))","v":""},0,"",{"$f":"IF(OR(J54=0,J54=\"\"),\"\",\"n/a\")","v":""},{"$f":"IFERROR((N54-SUM(R54:S54))/J54,\"\")","v":""},{"$f":"IF(AND(J54<>\"\",J54>0), J54*T54,\"\")","v":""},0.32,13.939200000000001,{"$f":"IF(AND(TRIM(W54)<>\"\",TRIM(J54)<>\"\"),(J54*64)/W54,\"\")","v":""},{"$f":"IF(J54<>0,U54/X54,0)","v":0},{"$f":"Y54/43.56","v":0}]
["D00000903","n/a",null,{"$f":"COUNTIF([1]Sheet1!$J:$J,A55)","v":3},null,"n/a","Altus® (16-31 units)","64 oz","Insecticide",null,437.2,"",415.36,"",{"$f":"INDEX(Rebate_Lookup[Instances],MATCH(A55,Rebate_Lookup[SKU CODE],0))","v":3},{"$f":"IF(J55=\"\",\"\",INDEX(Rebate_Lookup[Qualified Rebate Tier],MATCH(A55,Rebate_Lookup[SKU CODE],0)))","v":""},0,"","","","",0.32,13.939200000000001,{"$f":"IF(AND(TRIM(W55)<>\"\",TRIM(J55)<>\"\"),(J55*64)/W55,\"\")","v":""},0,0]
["D00000903","n/a",null,{"$f":"COUNTIF([1]Sheet1!$J:$J,A56)","v":3},null,"n/a","Altus® (32+ units)","64 oz","Insecticide",null,437.2,"",393.6,"",{"$f":"INDEX(Rebate_Lookup[Instances],MATCH(A56,Rebate_Lookup[SKU CODE],0))","v":3},{"$f":"IF(J56=\"\",\"\",INDEX(Rebate_Lookup[Qualified Rebate Tier],MATCH(A56,Rebate_Lookup[SKU CODE],0)))","v":""},0,"","","","",0.32,13.939200000000001,"",0,0]
[11015390,4,{"$f":"J57>=B57","v":false},{"$f":"COUNTIF([1]Sheet1!$J:$J,A57)","v":4},null,"$90 off 4+ units","Durentis™  ","16 oz","Insecticide",null,{"$f":"INDEX(PRICING[2025 In-Season Price],MATCH(A57,PRICING[SKU],0))","v":630},"",{"$f":"INDEX(PRICING[NOW Price],MATCH(A57,PRICING[SKU],0))","v":567},"",{"$f":"INDEX(Rebate_Lookup[Instances],MATCH(A57,Rebate_Lookup[SKU CODE],0))","v":2},{"$f":"IF(J57=\"\",\"\",INDEX(Rebate_Lookup[Qualified Rebate Tier],MATCH(A57,Rebate_Lookup[SKU CODE],0)))","v":""},{"$f":"IF(J57=\"\",\"\",IF(P57=1,INDEX(Rebate_Lookup[REB_MOQ_1],MATCH(A57,Rebate_Lookup[SKU CODE],0)),IF(P57=2,INDEX(Rebate_Lookup[REB_MOQ_2],MATCH(A57,Rebate_Lookup[SKU CODE],0)),IF(P57=3,INDEX(Rebate_Lookup[REB_MOQ_3],MATCH(A57,Rebate_Lookup[SKU CODE],0)),\"#err\"))))","v":""},"",{"$f":"IFERROR(N57*SUM($I$99:$I$103),\"\")","v":""},"","",{"$f":"W57/43.56","v":6.1983471074380167E-2},2.7,{"$f":"IF(AND(TRIM(W57)<>\"\",TRIM(J57)<>\"\"),(J57*16)/W57,\"\")","v":""},0,0]
[11015391,2,{"$f":"J58>=B58","v":false},{"$f":"COUNTIF([1]Sheet1!$J:$J,A58)","v":3},null,"$550 off 2+,  $650 off 4+ units","Durentis™  ","64 oz","Insecticide",null,{"$f":"INDEX(PRICING[2025 In-Season Price],MATCH(A58,PRICING[SKU],0))","v":2362.6},"",{"$f":"INDEX(PRICING[NOW Price],MATCH(A58,PRICING[SKU],0))","v":2126.34},"",{"$f":"INDEX(Rebate_Lookup[Instances],MATCH(A58,Rebate_Lookup[SKU CODE],0))","v":3},{"$f":"IF(J58=\"\",\"\",INDEX(Rebate_Lookup[Qualified Rebate Tier],MATCH(A58,Rebate_Lookup[SKU CODE],0)))","v":""},{"$f":"IF(J58=\"\",\"\",IF(P58=1,INDEX(Rebate_Lookup[REB_MOQ_1],MATCH(A58,Rebate_Lookup[SKU CODE],0)),IF(P58=2,INDEX(Rebate_Lookup[REB_MOQ_2],MATCH(A58,Rebate_Lookup[SKU CODE],0)),IF(P58=3,INDEX(Rebate_Lookup[REB_MOQ_3],MATCH(A58,Rebate_Lookup[SKU CODE],0)),\"#err\"))))","v":""},"",{"$f":"IFERROR(N58*SUM($I$99:$I$103),\"\")","v":""},"","",{"$f":"W58/43.56","v":6.1983471074380167E-2},2.7,{"$f":"IF(AND(TRIM(W58)<>\"\",TRIM(J58)<>\"\"),(J58*64)/W58,\"\")","v":""},0,0]
[86797658,4,{"$f":"J59>=B59","v":false},{"$f":"COUNTIF([1]Sheet1!$J:$J,A59)","v":2},null,"$40 off 4+ units","Tetrino®","1 gal","Insecticide",null,{"$f":"INDEX(PRICING[2025 In-Season Price],MATCH(A59,PRICING[SKU],0))","v":528},"",{"$f":"INDEX(PRICING[NOW Price],MATCH(A59,PRICING[SKU],0))","v":528},"",{"$f":"INDEX(Rebate_Lookup[Instances],MATCH(A59,Rebate_Lookup[SKU CODE],0))","v":2},{"$f":"IF(J59=\"\",\"\",INDEX(Rebate_Lookup[Qualified Rebate Tier],MATCH(A59,Rebate_Lookup[SKU CODE],0)))","v":""},{"$f":"IF(J59=\"\",\"\",IF(P59=1,INDEX(Rebate_Lookup[REB_MOQ_1],MATCH(A59,Rebate_Lookup[SKU CODE],0)),IF(P59=2,INDEX(Rebate_Lookup[REB_MOQ_2],MATCH(A59,Rebate_Lookup[SKU CODE],0)),IF(P59=3,INDEX(Rebate_Lookup[REB_MOQ_3],MATCH(A59,Rebate_Lookup[SKU CODE],0)),\"#err\"))))","v":""},"",{"$f":"IFERROR(N59*SUM($I$99:$I$103),\"\")","v":""},"","",0.73,31.7988,{"$f":"IF(AND(TRIM(W59)<>\"\",TRIM(J59)<>\"\"),(J59*128)/W59,\"\")","v":""},0,0]
[11008521,20,{"$f":"J60>=B60","v":false},{"$f":"COUNTIF([1]Sheet1!$J:$J,A60)","v":3},null,"$12 off 20+,  $25 off 40+ units","Triple Crown® Golf (RUP)","1 gal","Insecticide",null,{"$f":"INDEX(PRICING[2025 In-Season Price],MATCH(A60,PRICING[SKU],0))","v":348.2},{"$f":"IF(J60*K60= 0,\"\",J60*K60)","v":""},{"$f":"INDEX(PRICING[NOW Price],MATCH(A60,PRICING[SKU],0))","v":330.79},"",{"$f":"INDEX(Rebate_Lookup[Instances],MATCH(A60,Rebate_Lookup[SKU CODE],0))","v":3},{"$f":"IF(J60=\"\",\"\",INDEX(Rebate_Lookup[Qualified Rebate Tier],MATCH(A60,Rebate_Lookup[SKU CODE],0)))","v":""},{"$f":"IF(J60=\"\",\"\",IF(P60=1,INDEX(Rebate_Lookup[REB_MOQ_1],MATCH(A60,Rebate_Lookup[SKU CODE],0)),IF(P60=2,INDEX(Rebate_Lookup[REB_MOQ_2],MATCH(A60,Rebate_Lookup[SKU CODE],0)),IF(P60=3,INDEX(Rebate_Lookup[REB_MOQ_3],MATCH(A60,Rebate_Lookup[SKU CODE],0)),\"#err\"))))","v":""},"",{"$f":"IFERROR(N60*SUM($I$99:$I$103),\"\")","v":""},"","",0.46,20.037600000000001,{"$f":"IF(AND(TRIM(W60)<>\"\",TRIM(J60)<>\"\"),(J60*128)/W60,\"\")","v":""},0,0]
[null,null,null,null,null,null,"Durentis FAW Program:"]
[null,null,{"$f":"COUNTIF(C15:C60,TRUE)","v":0},null,null,null,null,null,null,null,null,{"$f":"SUM(L15:L60,N61)","v":0},null,{"$f":"SUM(N15:N61)","v":0},null,null,null,{"$f":"SUM(R15:R60)","v":0},{"$f":"SUM(S15:S60)","v":0},null,{"$f":"SUM(U15:U60)","v":0}]
[]
[null,null,null,null,null,"NON-AGENCY PRODUCTS",null,null,null,null,null,"HIDE",null,null,"HIDE","HIDE","HIDE"]
[null,null,null,null,null,"MINIMUM QUANTITY REQUIREMENT FOR REBATE","PRODUCT NAME","UNIT SIZE","CATEGORY","# UNITS","PRICE / \nUNIT","REDEMPTION VALUE","REBATE PER UNIT","SUBTOTAL BEFORE REBATE","IN SEASON SUBTOTAL","IN SEASON SUBTOTAL AFTER REBATE",null,"SUBTOTAL AFTER REBATE","REBATE PER UNIT",null,null,"USE RATE / 1,000 FT2","USE RATE / ACRE","TOTAL ACRES TREATED","COST/ ACRE","COST/ 1,000 FT2"]
[4250930,null,null,{"$f":"COUNTIF([1]Sheet1!$J:$J,A66)","v":1},null,"n/a","26GT™","2.5 gal","Fungicide",null,null,{"$f":"INDEX(PRICING[NOW Price],MATCH(A66,PRICING[SKU],0))","v":509},"n/a",{"$f":"IF(OR(ISBLANK(J66),ISBLANK(K66)),\"\",J66*K66)","v":""},{"$f":"IF(OR(J66=0,J66=\"\"),\"\",J66*L66)","v":""},{"$f":"IF(OR(J66=0,J66=\"\"),\"\",O66)","v":""},null,{"$f":"IF(OR(J66=0,J66=\"\"),\"\",N66)","v":""},{"$f":"IF(OR(ISBLANK(J66),ISBLANK(K66)),\"\",R66/J66)","v":""},null,null,{"$f":"W66/43.56","v":4},174.24,{"$f":"IF(AND(TRIM(W66)<>\"\",TRIM(J66)<>\"\"),(J66*320)/W66,\"\")","v":""},{"$f":"IF(J66<>0,R66/X66,0)","v":0},{"$f":"Y66/43.56","v":0},null,null,null,null,{"$f":"OR(R66<0,AND(ISBLANK(K66),NOT(ISBLANK(J66))))","v":false}]
[87300722,null,null,{"$f":"COUNTIF([1]Sheet1!$J:$J,A67)","v":1},null,"n/a","Acclaim Extra","1 gal","Herbicide",null,null,{"$f":"INDEX(PRICING[NOW Price],MATCH(A67,PRICING[SKU],0))","v":665.2},90,{"$f":"IF(OR(ISBLANK(J67),ISBLANK(K67)),\"\",J67*K67)","v":""},"",{"$f":"IF(OR(J67=0,J67=\"\"),\"\",(L67-M67)*J67)","v":""},null,{"$f":"IF(OR(J67=0,J67=\"\"),\"\",(K67-M67)*J67)","v":""},{"$f":"IF(OR(ISBLANK(J67),ISBLANK(K67)),\"\",R67/J67)","v":""},null,null,{"$f":"W67/43.56","v":0.5},21.78,{"$f":"IF(AND(TRIM(W67)<>\"\",TRIM(J67)<>\"\"),(J67*128)/W67,\"\")","v":""},{"$f":"IF(J67<>0,R67/X67,0)","v":0},{"$f":"Y67/43.56","v":0},null,null,null,null,{"$f":"OR(R67<0,AND(ISBLANK(K67),NOT(ISBLANK(J67))))","v":false}]
[11008351,null,null,{"$f":"COUNTIF([1]Sheet1!$J:$J,A68)","v":1},null,"n/a","Blindside® ","0.5 lb","Herbicide",null,null,{"$f":"INDEX(PRICING[NOW Price],MATCH(A68,PRICING[SKU],0))","v":139.05000000000001},22,"","","",null,"","",null,null,0.14921946740128558,{"$f":"V68*43.56","v":6.5},{"$f":"IF(AND(TRIM(W68)<>\"\",TRIM(J68)<>\"\"),(J68*8)/W68,\"\")","v":""},0,0,null,null,null,null,false]
[11008357,null,null,{"$f":"COUNTIF([1]Sheet1!$J:$J,A69)","v":1},null,"n/a","Dismiss® CA","6 oz","Herbicide",null,null,{"$f":"INDEX(PRICING[NOW Price],MATCH(A69,PRICING[SKU],0))","v":68.150000000000006},14,"","","",null,"","",null,null,0.18365472910927455,8,{"$f":"IF(AND(TRIM(W69)<>\"\",TRIM(J69)<>\"\"),(J69*6)/W69,\"\")","v":""},0,0,null,null,null,null,false]
[11008474,null,null,{"$f":"COUNTIF([1]Sheet1!$J:$J,A70)","v":1},null,"n/a","Dismiss® South","1 pint ","Herbicide",null,null,{"$f":"INDEX(PRICING[NOW Price],MATCH(A70,PRICING[SKU],0))","v":155.55000000000001},24,"","","",null,"","",null,null,0.18365472910927455,8,{"$f":"IF(AND(TRIM(W70)<>\"\",TRIM(J70)<>\"\"),(J70*16)/W70,\"\")","v":""},0,0,null,null,null,null,false]
[11008475,null,null,{"$f":"COUNTIF([1]Sheet1!$J:$J,A71)","v":1},null,"n/a","Dismiss® Turf","6 oz","Herbicide",null,null,{"$f":"INDEX(PRICING[NOW Price],MATCH(A71,PRICING[SKU],0))","v":81.78},14,"","","",null,"","",null,null,0.18365472910927455,{"$f":"V71*43.56","v":8},{"$f":"IF(AND(TRIM(W71)<>\"\",TRIM(J71)<>\"\"),(J71*6)/W71,\"\")","v":""},0,0,null,null,null,null,false]
[11008336,null,null,{"$f":"COUNTIF([1]Sheet1!$J:$J,A72)","v":1},null,"n/a","Dismiss® Turf","64 oz","Herbicide",null,null,{"$f":"INDEX(PRICING[NOW Price],MATCH(A72,PRICING[SKU],0))","v":303},40,"","","",null,"","",null,null,0.18365472910927455,8,{"$f":"IF(AND(TRIM(W72)<>\"\",TRIM(J72)<>\"\"),(J72*64)/W72,\"\")","v":""},0,0,null,null,null,null,false]
[86215578,null,null,{"$f":"COUNTIF([1]Sheet1!$J:$J,A73)","v":1},null,"n/a","Prograss EC","2.5 gal ","Herbicide",null,null,{"$f":"INDEX(PRICING[NOW Price],MATCH(A73,PRICING[SKU],0))","v":368.25},22,"","","",null,"","",null,null,1.9513314967860422,85,{"$f":"IF(AND(TRIM(W73)<>\"\",TRIM(J73)<>\"\"),(J73*320)/W73,\"\")","v":""},0,0,null,null,null,null,false]
["D00000913",null,null,{"$f":"COUNTIF([1]Sheet1!$J:$J,A74)","v":1},null,"n/a","Proxy","2.5 gal ","Herbicide",null,null,{"$f":"INDEX(PRICING[NOW Price],MATCH(A74,PRICING[SKU],0))","v":102.25},"n/a","","",{"$f":"IF(OR(J74=0,J74=\"\"),\"\",O74)","v":""},null,{"$f":"IF(OR(J74=0,J74=\"\"),\"\",N74)","v":""},"",null,null,5,217.8,"",0,0,null,null,null,null,false]
[11008447,null,null,{"$f":"COUNTIF([1]Sheet1!$J:$J,A75)","v":1},null,"n/a","QuickSilver® ","8 oz","Herbicide",null,null,{"$f":"INDEX(PRICING[NOW Price],MATCH(A75,PRICING[SKU],0))","v":166.6},20,"","",{"$f":"IF(OR(J75=0,J75=\"\"),\"\",(L75-M75)*J75)","v":""},null,"","",null,null,2.7548209366391182E-2,1.2,{"$f":"IF(AND(TRIM(W75)<>\"\",TRIM(J75)<>\"\"),(J75*8)/W75,\"\")","v":""},0,0,null,null,null,null,false]
[79850980,null,null,{"$f":"COUNTIF([1]Sheet1!$J:$J,A76)","v":1},null,"n/a","Revolver®","32 fl oz","Herbicide",null,null,{"$f":"INDEX(PRICING[NOW Price],MATCH(A76,PRICING[SKU],0))","v":291.45},21,"","",{"$f":"IF(OR(J76=0,J76=\"\"),\"\",(L76-M76)*J76)","v":""},null,"","",null,null,0.3994490358126721,17.399999999999999,{"$f":"IF(AND(TRIM(W76)<>\"\",TRIM(J76)<>\"\"),(J76*32)/W76,\"\")","v":""},0,0,null,null,null,null,false]
[427709,null,null,{"$f":"COUNTIF([1]Sheet1!$J:$J,A77)","v":1},null,"n/a","Sencor 75","5 lb","Herbicide",null,null,{"$f":"INDEX(PRICING[NOW Price],MATCH(A77,PRICING[SKU],0))","v":591.75},"n/a",{"$f":"IF(OR(ISBLANK(J77),ISBLANK(K77)),\"\",J77*K77)","v":""},"",{"$f":"IF(OR(J77=0,J77=\"\"),\"\",O77)","v":""},null,{"$f":"IF(OR(J77=0,J77=\"\"),\"\",N77)","v":""},{"$f":"IF(OR(ISBLANK(J77),ISBLANK(K77)),\"\",R77/J77)","v":""},null,null,0.24334251606978877,10.6,{"$f":"IF(AND(TRIM(W77)<>\"\",TRIM(J77)<>\"\"),(J77*10.6)/W77,\"\")","v":""},0,0,null,null,null,null,{"$f":"OR(R77<0,AND(ISBLANK(K77),NOT(ISBLANK(J77))))","v":false}]
[11008482,null,null,{"$f":"COUNTIF([1]Sheet1!$J:$J,A78)","v":1},null,"n/a","Solitare® ","1 lb ","Herbicide",null,null,{"$f":"INDEX(PRICING[NOW Price],MATCH(A78,PRICING[SKU],0))","v":164.8},15,{"$f":"IF(OR(ISBLANK(J78),ISBLANK(K78)),\"\",J78*K78)","v":""},"",{"$f":"IF(OR(J78=0,J78=\"\"),\"\",(L78-M78)*J78)","v":""},null,{"$f":"IF(OR(J78=0,J78=\"\"),\"\",(K78-M78)*J78)","v":""},{"$f":"IF(OR(ISBLANK(J78),ISBLANK(K78)),\"\",R78/J78)","v":""},null,null,0.3673094582185491,16,{"$f":"IF(AND(TRIM(W78)<>\"\",TRIM(J78)<>\"\"),(J78*16)/W78,\"\")","v":""},0,0,null,null,null,null,{"$f":"OR(R78<0,AND(ISBLANK(K78),NOT(ISBLANK(J78))))","v":false}]
[11008369,null,null,{"$f":"COUNTIF([1]Sheet1!$J:$J,A79)","v":1},null,"n/a","Solitare® WSL","0.75 gal ","Herbicide",null,null,{"$f":"INDEX(PRICING[NOW Price],MATCH(A79,PRICING[SKU],0))","v":98},12,"","",{"$f":"IF(OR(J79=0,J79=\"\"),\"\",(L79-M79)*J79)","v":""},null,"","",null,null,3.9,169.88400000000001,{"$f":"IF(AND(TRIM(W79)<>\"\",TRIM(J79)<>\"\"),(J79*96)/W79,\"\")","v":""},0,0,null,null,"GALLONS PER","ORDERED",false]
["NoSKU1",null,null,{"$f":"COUNTIF([1]Sheet1!$J:$J,A80)","v":1},null,"n/a","Chipco Choice","50 lb","Insecticide",null,null,221,"n/a","","",{"$f":"IF(OR(J80=0,J80=\"\"),\"\",O80)","v":""},null,{"$f":"IF(OR(J80=0,J80=\"\"),\"\",N80)","v":""},"",null,null,{"$f":"W80/43.56","v":0.57392102846648296},25,{"$f":"IF(AND(TRIM(W80)<>\"\",TRIM(J80)<>\"\"),(J80*800)/W80,\"\")","v":""},0,0,null,null,null,null,false]
["NoSKU2",null,null,{"$f":"COUNTIF([1]Sheet1!$J:$J,A81)","v":1},null,"n/a","Durentis 0.058% On-Fertilizer","50 lb","Insecticide",null,null,20,2,"","",{"$f":"IF(OR(J81=0,J81=\"\"),\"\",IF(J81<4,L81*J81,(L81-M81)*J81))","v":""},null,{"$f":"IF(OR(J81=0,J81=\"\"),\"\",(K81-M81)*J81)","v":""},"",null,null,"n/a","n/a","",0,0,null,null,null,null,false]
["NoSKU3",null,null,{"$f":"COUNTIF([1]Sheet1!$J:$J,A82)","v":1},null,"n/a","Durentis 0.067% On-Fertilizer","50 lb","Insecticide",null,null,25,5,"","",{"$f":"IF(OR(J82=0,J82=\"\"),\"\",IF(J82<4,L82*J82,(L82-M82)*J82))","v":""},null,"","",null,null,"n/a","n/a","",0,0,null,null,null,null,false]
["D00001040",null,null,{"$f":"COUNTIF([1]Sheet1!$J:$J,A83)","v":1},null,"n/a","Dylox SL420","2.5 gal ","Insecticide",null,null,{"$f":"INDEX(PRICING[NOW Price],MATCH(A83,PRICING[SKU],0))","v":225.38},"n/a","","",{"$f":"IF(OR(J83=0,J83=\"\"),\"\",O83)","v":""},null,{"$f":"IF(OR(J83=0,J83=\"\"),\"\",N83)","v":""},"",null,null,6.9,{"$f":"V83*43.56","v":300.56400000000002},"",0,0,null,null,null,null,false]
[3944704,null,null,{"$f":"COUNTIF([1]Sheet1!$J:$J,A84)","v":1},null,"n/a","Forbid","8 oz ","Insecticide",null,null,{"$f":"INDEX(PRICING[NOW Price],MATCH(A84,PRICING[SKU],0))","v":253.95},22,"","",{"$f":"IF(OR(J84=0,J84=\"\"),\"\",(L84-M84)*J84)","v":""},null,"","",null,null,1,43.56,{"$f":"IF(AND(TRIM(W84)<>\"\",TRIM(J84)<>\"\"),(J84*8)/W84,\"\")","v":""},0,0,null,null,null,null,false]
["D00000961",null,null,{"$f":"COUNTIF([1]Sheet1!$J:$J,A85)","v":1},null,"n/a","Merit 2F","1 gal","Insecticide",null,null,{"$f":"INDEX(PRICING[NOW Price],MATCH(A85,PRICING[SKU],0))","v":52.5},"n/a","","",{"$f":"IF(OR(J85=0,J85=\"\"),\"\",O85)","v":""},null,{"$f":"IF(OR(J85=0,J85=\"\"),\"\",N85)","v":""},"",null,null,0.6,26.135999999999999,{"$f":"IF(AND(TRIM(W85)<>\"\",TRIM(J85)<>\"\"),(J85*128)/W85,\"\")","v":""},0,0,null,null,null,null,false]
[11008457,null,null,{"$f":"COUNTIF([1]Sheet1!$J:$J,A86)","v":1},null,"$6 off 4+ units","Talstar® Select","1 gal","Insecticide",null,null,60.72,6,"","",{"$f":"IF(OR(J86=0,J86=\"\"),\"\",IF(J86<4,L86*J86,(L86-M86)*J86))","v":""},null,"","",null,null,1.8365472910927456,80,{"$f":"IF(AND(TRIM(W86)<>\"\",TRIM(J86)<>\"\"),(J86*128)/W86,\"\")","v":""},0,0,null,null,null,null,false]
["D00001012",null,null,{"$f":"COUNTIF([1]Sheet1!$J:$J,A87)","v":1},null,"n/a","TopChoice","50 lb","Insecticide",null,null,{"$f":"INDEX(PRICING[NOW Price],MATCH(A87,PRICING[SKU],0))","v":63.5},2,"","",{"$f":"IF(OR(J87=0,J87=\"\"),\"\",(L87-M87)*J87)","v":""},null,"","",null,null,{"$f":"W87/43.56","v":1.9972451790633607},87,{"$f":"IF(AND(TRIM(W87)<>\"\",TRIM(J87)<>\"\"),(J87*800)/W87,\"\")","v":""},0,0,null,null,null,{"$f":"SUM(#REF!,#REF!)","v":{"$error":"#REF!"}},false]
[null,null,{"$f":"COUNTIF(C45:C79,TRUE)","v":0},null,null,null,null,null,null,null,null,null,null,{"$f":"SUM(N66:N87)","v":0},{"$f":"SUM(O66:O87)","v":0},{"$f":"SUM(P66:P87)","v":0},null,{"$f":"SUM(R66:R87)","v":0},null,null,null,null,null,null,null,null,null,null,null,null,{"$f":"COUNTIF($AE$66:$AE$87,TRUE)","v":0}]
[]
[null,null,null,null,null,null,null,null,null,"**ERROR**:   MISSING PRICE INPUT VALUE"]
[null,null,null,null,null,"Summary"]
[null,null,null,null,null,"Summary is provided as an estimate only. See program rules and conditions."]
[]
[null,null,null,null,null,"Estimated Total Before Off Invoice Discounts:",null,null,{"$f":"L62+N61+N88","v":0},null,null,null,"CHIPCO CHOICE, RONSTAR FLO, TALSTAR SELECT, TOPCHOICE AND TRIPLE CROWN GOLF ARE RESTRICTED USE PESTICIDES. For retail sale to and use only by Certified Applicators or persons under their direct supervision and only for those uses covered by the Certified Applicator's certification. *Pricing for all states except CA or WA. Must be purchased on a single invoice to receive volume discount price. †Specticle FLO and Ronstar FLO are not eligible for Envu Extras and tier rebates. **Must be registered in My Envu Rewards and accept current Terms and Conditions to participate. ***Customer Fall Solutions and NOW Solutions promotional cumulative purchases (Aug. 1 - Dec. 5, 2025) must be $5,000 or more to qualify for program rebates. New members signed up before Dec. 31, 2025, will receive 2025 NOW/Fall Solutions rebates. All rebates for 2025 NOW/Fall Solutions will be paid in points, which can be redeemed for thousands of catalog items, distributor credits and/or company checks (no checks can be issued to a third party). All products must be invoiced between Oct. 1 and Dec. 5, 2025, to qualify for Fall Solutions. Rebate calculations will be based on the date of actual product invoice and calculator tools are provided for estimation purposes only. Rebates will only be paid or delivered to the company or name listed on the invoice. Please allow for rebates to be fulfilled by July 31, 2026. End users are only eligible for one Envu incentive program on these invoiced products. Must be an end user with MER membership and accept current Terms and Conditions. Resale of product(s) purchased within this program will not qualify for rebates. If questions arise, please contact MER at 1-888-456-6464 or email info@myenvurewards.com. Envu reserves the right to modify any portion thereof, or discontinue this program without prior notice. "]
[null,null,null,null,null,"Estimated Invoice Total:",null,null,{"$f":"N62+N88","v":0}]
[null,null,null,null,null,"Estimated Off-Invoice Discount:",null,null,{"$f":"IFERROR(J96/I94,\"n/a\")","v":"n/a"},{"$f":"I94-I95","v":0}]
[null,null,null,null,null,"Volume Buy Rebate, Envu Extras & Tier Rebates:"]
[null,null,null,null,null,"Estimated Total Volume Buy Rebate:",null,null,{"$f":"IFERROR(J98/I95,\"n/a\")","v":"n/a"},{"$f":"R62+(N88-R88)","v":0}]
[null,null,null,null,null,"Estimated Tier Rebate Amount:",null,null,{"$f":"IF(K6=TRUE,K5,IF(M6=TRUE,M5,IF(N6=TRUE,N5,IF(R6=TRUE,R5,IF(S6=TRUE,S5,\"n/a\")))))","v":"n/a"},{"$f":"IFERROR(($N$62-SUM($N$47:$N$50,$N$43:$N$44,$N$61,$N$54:$N$56,#REF!))*$I$99,\"n/a\")","v":"n/a"}]
[null,null,null,null,null,"Estimated Chipco Signature & Stressgard® Rebate ($10k+):",null,null,{"$f":"K9","v":"n/a"},{"$f":"IFERROR((N62-N61-SUM($N$43:$N$44,$N$47:$N$50,$N$54:$N$56,#REF!))*I100,\"n/a\")","v":"n/a"}]
[null,null,null,null,null,"Estimated Serata Rebate (8+ units):",null,null,{"$f":"N9","v":"n/a"},{"$f":"IFERROR((N62-N61-SUM($N$43:N44,$N$47:$N$50,$N$54:$N$56,#REF!))*I101,\"n/a\")","v":"n/a"},null,null,"ALWAYS READ AND FOLLOW LABEL INSTRUCTIONS. Environmental Science U.S. LLC, 5000 CentreGreen Way, Suite 400, Cary, NC 27513. For additional product information, call toll-free 1-800-331-2867. www.envu.com. Please verify state registration of these products in your state before selling, using or distributing. Not all products are registered in all states. Envu, the Envu logo and product logos are trademarks owned by Environmental Science U.S. LLC or one of its affiliates. Other trademarks are the property of their respective owners. ©2025 Environmental Science U.S. LLC. ES-0725-GLF-358-R-R"]
[null,null,null,null,null,"Estimated Durentis Rebate (4+ 64oz units OR 16+ 16oz units):",null,null,{"$f":"R9","v":"n/a"},{"$f":"IFERROR((N62-N61-SUM($N$43:N44,$N$47:$N$50,$N$54:$N$56,#REF!))*I102,\"n/a\")","v":"n/a"}]
[null,null,null,null,null,"Estimated Volume Buy Rebate (5 or more products):",null,null,{"$f":"S9","v":"n/a"},{"$f":"IFERROR((N62-N61-SUM($N$43:$N$44,$N$47:$N$50,$N$54:$N$56,#REF!))*I103,\"n/a\")","v":"n/a"}]
[null,null,null,null,null,"Estimated Total Rebate:",null,null,{"$f":"SUM(I98:I103)","v":0},{"$f":"SUM(J98:J103)","v":0}]
[null,null,null,null,null,"Estimated Total Savings (Rebates + Off Invoice Discounts):  ",null,null,{"$f":"IFERROR(J105/I95,\"n/a\")","v":"n/a"},{"$f":"J104+J96","v":0}]
[null,null,null,null,null,"Estimated Net Total after Rebates & Discounts:",null,null,{"$f":"I95-J104","v":0}]
[]
[null,null,null,null,null,{"$f":"CONCATENATE(\"Estimated MER points to be earned: \",TEXT(IF(AND(J104 <>\"\", J104 > 0),J104*100, 0),\"#,##0\"))","v":"Estimated MER points to be earned: 0"}]

{"sheet":"SUMMARY - UNITS","index":1,"n_rows":112,"n_cols":12,"rows_kept":112,"cut":false,"hidden":false,"merged":[[103,3,110,11],[99,8,99,9],[101,3,101,9],[111,3,113,11],[99,3,99,7],[98,3,98,7],[85,3,86,11],[8,9,10,9],[8,11,10,11],[90,3,90,6],[88,8,88,9],[8,10,10,10],[92,3,92,7],[97,3,97,7],[96,3,96,7],[94,3,94,7],[89,3,89,7],[88,3,88,7],[87,3,87,7],[87,8,87,9],[8,5,10,5],[95,3,95,7],[1,3,1,8],[2,4,2,8],[3,4,3,8],[4,4,4,8],[5,4,5,8],[93,3,93,7],[6,4,6,8],[8,3,10,3],[8,4,10,4],[8,6,10,6],[8,8,10,8],[8,7,10,7],[91,3,91,7]]}
[]
[null,null,null,{"$f":"'2025 GOLF Only Fall Solutions'!F4","v":"NAME YOUR DRAFT ORDER HERE:"}]
[null,null,null,"Description: ",{"$f":"IF('2025 GOLF Only Fall Solutions'!G5=\"\",\"\",'2025 GOLF Only Fall Solutions'!G5)","v":""}]
[null,null,null,"Distributor/DSR: ",{"$f":"IF('2025 GOLF Only Fall Solutions'!G6=\"\",\"\",'2025 GOLF Only Fall Solutions'!G6)","v":""}]
[null,null,null,"MER#: ",{"$f":"IF('2025 GOLF Only Fall Solutions'!G7=\"\",\"\",'2025 GOLF Only Fall Solutions'!G7)","v":""}]
[null,null,null,"Last Updated: ",{"$f":"IF('2025 GOLF Only Fall Solutions'!G8=\"\",\"\",'2025 GOLF Only Fall Solutions'!G8)","v":""}]
[null,null,null,"Created For: ",{"$f":"IF('2025 GOLF Only Fall Solutions'!G9=\"\",\"\",'2025 GOLF Only Fall Solutions'!G9)","v":""}]
[null,null,null,"Page 1 of 1"]
[null,null,null,"PRODUCT NAME","UNIT SIZE","Category","# UNITS","IN-SEASON PRICE/UNIT","EOP \nPRICE/UNIT","SUBTOTAL\n(before rebates & discounts)","SUBTOTAL\n(after rebates & discounts)","NET PRICE/UNIT\n(after rebate)"]
["sku","filter"]
[]
[{"$f":"'2025 GOLF Only Fall Solutions'!A15","v":"D00000907"},{"$f":"G12>0","v":false},null,{"$f":"'2025 GOLF Only Fall Solutions'!G15","v":"Banol®"},{"$f":"'2025 GOLF Only Fall Solutions'!H15","v":"2.5 gal "},{"$f":"'2025 GOLF Only Fall Solutions'!I15","v":"Fungicide"},{"$f":"'2025 GOLF Only Fall Solutions'!J15","v":0},{"$f":"'2025 GOLF Only Fall Solutions'!K15","v":1267},{"$f":"'2025 GOLF Only Fall Solutions'!M15","v":1267},{"$f":"'2025 GOLF Only Fall Solutions'!N15","v":""},{"$f":"'2025 GOLF Only Fall Solutions'!U15","v":""},{"$f":"K12/G12","v":{"$error":"#VALUE!"}}]
[{"$f":"'2025 GOLF Only Fall Solutions'!A16","v":"D00000623"},{"$f":"G13>0","v":false},null,{"$f":"'2025 GOLF Only Fall Solutions'!G16","v":"Castlon™"},{"$f":"'2025 GOLF Only Fall Solutions'!H16","v":"1 gal"},{"$f":"'2025 GOLF Only Fall Solutions'!I16","v":"Fungicide"},{"$f":"'2025 GOLF Only Fall Solutions'!J16","v":0},{"$f":"'2025 GOLF Only Fall Solutions'!K16","v":2748.2},{"$f":"'2025 GOLF Only Fall Solutions'!M16","v":2610.79},{"$f":"'2025 GOLF Only Fall Solutions'!N16","v":""},{"$f":"'2025 GOLF Only Fall Solutions'!U16","v":""},{"$f":"K13/G13","v":{"$error":"#VALUE!"}}]
[{"$f":"'2025 GOLF Only Fall Solutions'!A17","v":"D00000624"},false,null,{"$f":"'2025 GOLF Only Fall Solutions'!G17","v":"Castlon™"},{"$f":"'2025 GOLF Only Fall Solutions'!H17","v":"16 oz"},{"$f":"'2025 GOLF Only Fall Solutions'!I17","v":"Fungicide"},{"$f":"'2025 GOLF Only Fall Solutions'!J17","v":0},{"$f":"'2025 GOLF Only Fall Solutions'!K17","v":428},{"$f":"'2025 GOLF Only Fall Solutions'!M17","v":406.6},{"$f":"'2025 GOLF Only Fall Solutions'!N17","v":""},{"$f":"'2025 GOLF Only Fall Solutions'!U17","v":""},{"$error":"#VALUE!"}]
[{"$f":"'2025 GOLF Only Fall Solutions'!A18","v":"D00000914"},false,null,{"$f":"'2025 GOLF Only Fall Solutions'!G18","v":"Chipco® Signature™"},{"$f":"'2025 GOLF Only Fall Solutions'!H18","v":"11 lb"},{"$f":"'2025 GOLF Only Fall Solutions'!I18","v":"Fungicide"},{"$f":"'2025 GOLF Only Fall Solutions'!J18","v":0},{"$f":"'2025 GOLF Only Fall Solutions'!K18","v":404.8},{"$f":"'2025 GOLF Only Fall Solutions'!M18","v":384.56},{"$f":"'2025 GOLF Only Fall Solutions'!N18","v":""},{"$f":"'2025 GOLF Only Fall Solutions'!U18","v":""},{"$error":"#VALUE!"}]
[{"$f":"'2025 GOLF Only Fall Solutions'!A19","v":"D00001373"},false,null,{"$f":"'2025 GOLF Only Fall Solutions'!G19","v":"Densicor®"},{"$f":"'2025 GOLF Only Fall Solutions'!H19","v":"51 oz"},{"$f":"'2025 GOLF Only Fall Solutions'!I19","v":"Fungicide"},{"$f":"'2025 GOLF Only Fall Solutions'!J19","v":0},{"$f":"'2025 GOLF Only Fall Solutions'!K19","v":702.8},{"$f":"'2025 GOLF Only Fall Solutions'!M19","v":667.66},{"$f":"'2025 GOLF Only Fall Solutions'!N19","v":""},{"$f":"'2025 GOLF Only Fall Solutions'!U19","v":""},{"$error":"#VALUE!"}]
[{"$f":"'2025 GOLF Only Fall Solutions'!A20","v":"D00000934"},false,null,{"$f":"'2025 GOLF Only Fall Solutions'!G20","v":"Exteris® Stressgard®"},{"$f":"'2025 GOLF Only Fall Solutions'!H20","v":" 2.5 gal"},{"$f":"'2025 GOLF Only Fall Solutions'!I20","v":"Fungicide"},{"$f":"'2025 GOLF Only Fall Solutions'!J20","v":0},{"$f":"'2025 GOLF Only Fall Solutions'!K20","v":370},{"$f":"'2025 GOLF Only Fall Solutions'!M20","v":370},{"$f":"'2025 GOLF Only Fall Solutions'!N20","v":""},{"$f":"'2025 GOLF Only Fall Solutions'!U20","v":""},{"$f":"K17/G17","v":{"$error":"#VALUE!"}}]
[{"$f":"'2025 GOLF Only Fall Solutions'!A21","v":11008377},false,null,{"$f":"'2025 GOLF Only Fall Solutions'!G21","v":"Fame® +C"},{"$f":"'2025 GOLF Only Fall Solutions'!H21","v":"2.5 gal"},{"$f":"'2025 GOLF Only Fall Solutions'!I21","v":"Fungicide"},{"$f":"'2025 GOLF Only Fall Solutions'!J21","v":0},{"$f":"'2025 GOLF Only Fall Solutions'!K21","v":575.4},{"$f":"'2025 GOLF Only Fall Solutions'!M21","v":575.4},{"$f":"'2025 GOLF Only Fall Solutions'!N21","v":""},{"$f":"'2025 GOLF Only Fall Solutions'!U21","v":""},{"$error":"#VALUE!"}]
[{"$f":"'2025 GOLF Only Fall Solutions'!A22","v":11008393},false,null,{"$f":"'2025 GOLF Only Fall Solutions'!G22","v":"Fame® SC"},{"$f":"'2025 GOLF Only Fall Solutions'!H22","v":"16 oz"},{"$f":"'2025 GOLF Only Fall Solutions'!I22","v":"Fungicide"},{"$f":"'2025 GOLF Only Fall Solutions'!J22","v":0},{"$f":"'2025 GOLF Only Fall Solutions'!K22","v":428},{"$f":"'2025 GOLF Only Fall Solutions'!M22","v":406.6},{"$f":"'2025 GOLF Only Fall Solutions'!N22","v":""},{"$f":"'2025 GOLF Only Fall Solutions'!U22","v":""},{"$error":"#VALUE!"}]
[{"$f":"'2025 GOLF Only Fall Solutions'!A23","v":11008557},false,null,{"$f":"'2025 GOLF Only Fall Solutions'!G23","v":"Fame® SC"},{"$f":"'2025 GOLF Only Fall Solutions'!H23","v":"64 oz"},{"$f":"'2025 GOLF Only Fall Solutions'!I23","v":"Fungicide"},{"$f":"'2025 GOLF Only Fall Solutions'!J23","v":0},{"$f":"'2025 GOLF Only Fall Solutions'!K23","v":1549.45},{"$f":"'2025 GOLF Only Fall Solutions'!M23","v":1471.98},{"$f":"'2025 GOLF Only Fall Solutions'!N23","v":""},{"$f":"'2025 GOLF Only Fall Solutions'!U23","v":""},{"$error":"#VALUE!"}]
[{"$f":"'2025 GOLF Only Fall Solutions'!A24","v":11009500},false,null,{"$f":"'2025 GOLF Only Fall Solutions'!G24","v":"Fame® SC"},{"$f":"'2025 GOLF Only Fall Solutions'!H24","v":"2.5 gal"},{"$f":"'2025 GOLF Only Fall Solutions'!I24","v":"Fungicide"},{"$f":"'2025 GOLF Only Fall Solutions'!J24","v":0},{"$f":"'2025 GOLF Only Fall Solutions'!K24","v":6863.6},{"$f":"'2025 GOLF Only Fall Solutions'!M24","v":6520.42},{"$f":"'2025 GOLF Only Fall Solutions'!N24","v":""},{"$f":"'2025 GOLF Only Fall Solutions'!U24","v":""},{"$error":"#VALUE!"}]
[{"$f":"'2025 GOLF Only Fall Solutions'!A25","v":"D00000935"},false,null,{"$f":"'2025 GOLF Only Fall Solutions'!G25","v":"Fiata® Stressgard®"},{"$f":"'2025 GOLF Only Fall Solutions'!H25","v":" 2.5 gal"},{"$f":"'2025 GOLF Only Fall Solutions'!I25","v":"Fungicide"},{"$f":"'2025 GOLF Only Fall Solutions'!J25","v":0},{"$f":"'2025 GOLF Only Fall Solutions'!K25","v":192},{"$f":"'2025 GOLF Only Fall Solutions'!M25","v":192},{"$f":"'2025 GOLF Only Fall Solutions'!N25","v":""},{"$f":"'2025 GOLF Only Fall Solutions'!U25","v":""},{"$error":"#VALUE!"}]
[{"$f":"'2025 GOLF Only Fall Solutions'!A26","v":"D00001379"},false,null,{"$f":"'2025 GOLF Only Fall Solutions'!G26","v":"Indemnify®"},{"$f":"'2025 GOLF Only Fall Solutions'!H26","v":"17.1 fl oz"},{"$f":"'2025 GOLF Only Fall Solutions'!I26","v":"Fungicide"},{"$f":"'2025 GOLF Only Fall Solutions'!J26","v":0},{"$f":"'2025 GOLF Only Fall Solutions'!K26","v":1963.6},{"$f":"'2025 GOLF Only Fall Solutions'!M26","v":1865.42},{"$f":"'2025 GOLF Only Fall Solutions'!N26","v":""},{"$f":"'2025 GOLF Only Fall Solutions'!U26","v":""},{"$error":"#VALUE!"}]
[{"$f":"'2025 GOLF Only Fall Solutions'!A27","v":81701245},false,null,{"$f":"'2025 GOLF Only Fall Solutions'!G27","v":"Interface® Stressgard®"},{"$f":"'2025 GOLF Only Fall Solutions'!H27","v":"2.5 gal"},{"$f":"'2025 GOLF Only Fall Solutions'!I27","v":"Fungicide"},{"$f":"'2025 GOLF Only Fall Solutions'!J27","v":0},{"$f":"'2025 GOLF Only Fall Solutions'!K27","v":573},{"$f":"'2025 GOLF Only Fall Solutions'!M27","v":544.35},{"$f":"'2025 GOLF Only Fall Solutions'!N27","v":""},{"$f":"'2025 GOLF Only Fall Solutions'!U27","v":""},{"$error":"#VALUE!"}]
[{"$f":"'2025 GOLF Only Fall Solutions'!A28","v":11013671},false,null,{"$f":"'2025 GOLF Only Fall Solutions'!G28","v":"Kalida® "},{"$f":"'2025 GOLF Only Fall Solutions'!H28","v":"64 oz"},{"$f":"'2025 GOLF Only Fall Solutions'!I28","v":"Fungicide"},{"$f":"'2025 GOLF Only Fall Solutions'!J28","v":0},{"$f":"'2025 GOLF Only Fall Solutions'!K28","v":866.4},{"$f":"'2025 GOLF Only Fall Solutions'!M28","v":866.4},{"$f":"'2025 GOLF Only Fall Solutions'!N28","v":""},{"$f":"'2025 GOLF Only Fall Solutions'!U28","v":""},{"$error":"#VALUE!"}]
[{"$f":"'2025 GOLF Only Fall Solutions'!A29","v":"D00000965"},false,null,{"$f":"'2025 GOLF Only Fall Solutions'!G29","v":"Mirage® Stressgard®"},{"$f":"'2025 GOLF Only Fall Solutions'!H29","v":"2.5 gal"},{"$f":"'2025 GOLF Only Fall Solutions'!I29","v":"Fungicide"},{"$f":"'2025 GOLF Only Fall Solutions'!J29","v":0},{"$f":"'2025 GOLF Only Fall Solutions'!K29","v":493},{"$f":"'2025 GOLF Only Fall Solutions'!M29","v":493},{"$f":"'2025 GOLF Only Fall Solutions'!N29","v":""},{"$f":"'2025 GOLF Only Fall Solutions'!U29","v":""},{"$error":"#VALUE!"}]
[{"$f":"'2025 GOLF Only Fall Solutions'!A30","v":11003880},false,null,{"$f":"'2025 GOLF Only Fall Solutions'!G30","v":"Rayora® "},{"$f":"'2025 GOLF Only Fall Solutions'!H30","v":"2.5 gal"},{"$f":"'2025 GOLF Only Fall Solutions'!I30","v":"Fungicide"},{"$f":"'2025 GOLF Only Fall Solutions'!J30","v":0},{"$f":"'2025 GOLF Only Fall Solutions'!K30","v":631.4},{"$f":"'2025 GOLF Only Fall Solutions'!M30","v":631.4},{"$f":"'2025 GOLF Only Fall Solutions'!N30","v":""},{"$f":"'2025 GOLF Only Fall Solutions'!U30","v":""},{"$error":"#VALUE!"}]
[{"$f":"'2025 GOLF Only Fall Solutions'!A31","v":"D00000125"},false,null,{"$f":"'2025 GOLF Only Fall Solutions'!G31","v":"Resilia™"},{"$f":"'2025 GOLF Only Fall Solutions'!H31","v":"2.72 gal"},{"$f":"'2025 GOLF Only Fall Solutions'!I31","v":"Fungicide"},{"$f":"'2025 GOLF Only Fall Solutions'!J31","v":0},{"$f":"'2025 GOLF Only Fall Solutions'!K31","v":946.56},{"$f":"'2025 GOLF Only Fall Solutions'!M31","v":946.56},{"$f":"'2025 GOLF Only Fall Solutions'!N31","v":""},{"$f":"'2025 GOLF Only Fall Solutions'!U31","v":""},{"$error":"#VALUE!"}]
[{"$f":"'2025 GOLF Only Fall Solutions'!A32","v":11014245},false,null,{"$f":"'2025 GOLF Only Fall Solutions'!G32","v":"Serata® "},{"$f":"'2025 GOLF Only Fall Solutions'!H32","v":"35 oz"},{"$f":"'2025 GOLF Only Fall Solutions'!I32","v":"Fungicide"},{"$f":"'2025 GOLF Only Fall Solutions'!J32","v":0},{"$f":"'2025 GOLF Only Fall Solutions'!K32","v":499.8},{"$f":"'2025 GOLF Only Fall Solutions'!M32","v":474.81},{"$f":"'2025 GOLF Only Fall Solutions'!N32","v":""},{"$f":"'2025 GOLF Only Fall Solutions'!U32","v":""},{"$error":"#VALUE!"}]
[{"$f":"'2025 GOLF Only Fall Solutions'!A33","v":"D00000989"},false,null,{"$f":"'2025 GOLF Only Fall Solutions'!G33","v":"Signature™ XTRA Stressgard® "},{"$f":"'2025 GOLF Only Fall Solutions'!H33","v":"5.5 lb"},{"$f":"'2025 GOLF Only Fall Solutions'!I33","v":"Fungicide"},{"$f":"'2025 GOLF Only Fall Solutions'!J33","v":0},{"$f":"'2025 GOLF Only Fall Solutions'!K33","v":210.4},{"$f":"'2025 GOLF Only Fall Solutions'!M33","v":199.88},{"$f":"'2025 GOLF Only Fall Solutions'!N33","v":""},{"$f":"'2025 GOLF Only Fall Solutions'!U33","v":""},{"$error":"#VALUE!"}]
[{"$f":"'2025 GOLF Only Fall Solutions'!A34","v":"D00000998"},false,null,{"$f":"'2025 GOLF Only Fall Solutions'!G34","v":"Tartan® Stressgard® "},{"$f":"'2025 GOLF Only Fall Solutions'!H34","v":"2.5 gal"},{"$f":"'2025 GOLF Only Fall Solutions'!I34","v":"Fungicide"},{"$f":"'2025 GOLF Only Fall Solutions'!J34","v":0},{"$f":"'2025 GOLF Only Fall Solutions'!K34","v":1033},{"$f":"'2025 GOLF Only Fall Solutions'!M34","v":981.35},{"$f":"'2025 GOLF Only Fall Solutions'!N34","v":""},{"$f":"'2025 GOLF Only Fall Solutions'!U34","v":""},{"$error":"#VALUE!"}]
[{"$f":"'2025 GOLF Only Fall Solutions'!A35","v":11015981},false,null,{"$f":"'2025 GOLF Only Fall Solutions'!G35","v":"Tarvecta™"},{"$f":"'2025 GOLF Only Fall Solutions'!H35","v":"2.5 gal"},{"$f":"'2025 GOLF Only Fall Solutions'!I35","v":"Fungicide"},{"$f":"'2025 GOLF Only Fall Solutions'!J35","v":0},{"$f":"'2025 GOLF Only Fall Solutions'!K35","v":3360},{"$f":"'2025 GOLF Only Fall Solutions'!M35","v":3360},{"$f":"'2025 GOLF Only Fall Solutions'!N35","v":""},{"$f":"'2025 GOLF Only Fall Solutions'!U35","v":""},{"$error":"#VALUE!"}]
[{"$f":"'2025 GOLF Only Fall Solutions'!A36","v":11015990},false,null,{"$f":"'2025 GOLF Only Fall Solutions'!G36","v":"Tarvecta™"},{"$f":"'2025 GOLF Only Fall Solutions'!H36","v":"64 oz"},{"$f":"'2025 GOLF Only Fall Solutions'!I36","v":"Fungicide"},{"$f":"'2025 GOLF Only Fall Solutions'!J36","v":0},{"$f":"'2025 GOLF Only Fall Solutions'!K36","v":772.8},{"$f":"'2025 GOLF Only Fall Solutions'!M36","v":772.8},{"$f":"'2025 GOLF Only Fall Solutions'!N36","v":""},{"$f":"'2025 GOLF Only Fall Solutions'!U36","v":""},{"$error":"#VALUE!"}]
[{"$f":"'2025 GOLF Only Fall Solutions'!A37","v":79714858},false,null,{"$f":"'2025 GOLF Only Fall Solutions'!G37","v":"Celsius® WG"},{"$f":"'2025 GOLF Only Fall Solutions'!H37","v":"10 oz"},{"$f":"'2025 GOLF Only Fall Solutions'!I37","v":"Herbicide"},{"$f":"'2025 GOLF Only Fall Solutions'!J37","v":0},{"$f":"'2025 GOLF Only Fall Solutions'!K37","v":131.19999999999999},{"$f":"'2025 GOLF Only Fall Solutions'!M37","v":124.64},{"$f":"'2025 GOLF Only Fall Solutions'!N37","v":""},{"$f":"'2025 GOLF Only Fall Solutions'!U37","v":""},{"$error":"#VALUE!"}]
[{"$f":"'2025 GOLF Only Fall Solutions'!A38","v":"D00000911"},false,null,{"$f":"'2025 GOLF Only Fall Solutions'!G38","v":"Celsius® XTRA"},{"$f":"'2025 GOLF Only Fall Solutions'!H38","v":"10 oz"},{"$f":"'2025 GOLF Only Fall Solutions'!I38","v":"Herbicide"},{"$f":"'2025 GOLF Only Fall Solutions'!J38","v":0},{"$f":"'2025 GOLF Only Fall Solutions'!K38","v":166.4},{"$f":"'2025 GOLF Only Fall Solutions'!M38","v":158.08000000000001},{"$f":"'2025 GOLF Only Fall Solutions'!N38","v":""},{"$f":"'2025 GOLF Only Fall Solutions'!U38","v":""},{"$error":"#VALUE!"}]
[{"$f":"'2025 GOLF Only Fall Solutions'!A39","v":11008409},{"$f":"G36>0","v":false},null,{"$f":"'2025 GOLF Only Fall Solutions'!G39","v":"Dismiss® NXT"},{"$f":"'2025 GOLF Only Fall Solutions'!H39","v":"10 oz"},{"$f":"'2025 GOLF Only Fall Solutions'!I39","v":"Herbicide"},{"$f":"'2025 GOLF Only Fall Solutions'!J39","v":0},{"$f":"'2025 GOLF Only Fall Solutions'!K39","v":94.8},{"$f":"'2025 GOLF Only Fall Solutions'!M39","v":94.8},{"$f":"'2025 GOLF Only Fall Solutions'!N39","v":""},{"$f":"'2025 GOLF Only Fall Solutions'!U39","v":""},{"$f":"K36/G36","v":{"$error":"#VALUE!"}}]
[{"$f":"'2025 GOLF Only Fall Solutions'!A40","v":11008589},false,null,{"$f":"'2025 GOLF Only Fall Solutions'!G40","v":"Dismiss® NXT"},{"$f":"'2025 GOLF Only Fall Solutions'!H40","v":"60 oz"},{"$f":"'2025 GOLF Only Fall Solutions'!I40","v":"Herbicide"},{"$f":"'2025 GOLF Only Fall Solutions'!J40","v":0},{"$f":"'2025 GOLF Only Fall Solutions'!K40","v":504.8},{"$f":"'2025 GOLF Only Fall Solutions'!M40","v":479.56},{"$f":"'2025 GOLF Only Fall Solutions'!N40","v":""},{"$f":"'2025 GOLF Only Fall Solutions'!U40","v":""},{"$error":"#VALUE!"}]
[{"$f":"'2025 GOLF Only Fall Solutions'!A41","v":11008464},false,null,{"$f":"'2025 GOLF Only Fall Solutions'!G41","v":"Echelon® 4SC"},{"$f":"'2025 GOLF Only Fall Solutions'!H41","v":"1 gal"},{"$f":"'2025 GOLF Only Fall Solutions'!I41","v":"Herbicide"},{"$f":"'2025 GOLF Only Fall Solutions'!J41","v":0},{"$f":"'2025 GOLF Only Fall Solutions'!K41","v":454},{"$f":"'2025 GOLF Only Fall Solutions'!M41","v":431.3},{"$f":"'2025 GOLF Only Fall Solutions'!N41","v":""},{"$f":"'2025 GOLF Only Fall Solutions'!U41","v":""},{"$error":"#VALUE!"}]
[{"$f":"'2025 GOLF Only Fall Solutions'!A42","v":79545312},false,null,{"$f":"'2025 GOLF Only Fall Solutions'!G42","v":"Revolver®"},{"$f":"'2025 GOLF Only Fall Solutions'!H42","v":"87 fl oz"},{"$f":"'2025 GOLF Only Fall Solutions'!I42","v":"Herbicide"},{"$f":"'2025 GOLF Only Fall Solutions'!J42","v":0},{"$f":"'2025 GOLF Only Fall Solutions'!K42","v":765.6},{"$f":"'2025 GOLF Only Fall Solutions'!M42","v":727.32},{"$f":"'2025 GOLF Only Fall Solutions'!N42","v":""},{"$f":"'2025 GOLF Only Fall Solutions'!U42","v":""},{"$error":"#VALUE!"}]
[{"$f":"'2025 GOLF Only Fall Solutions'!A43","v":"D00000986"},false,null,{"$f":"'2025 GOLF Only Fall Solutions'!G43","v":"Ronstar® FLO (1-11 units)"},{"$f":"'2025 GOLF Only Fall Solutions'!H43","v":"2.5 gal"},{"$f":"'2025 GOLF Only Fall Solutions'!I43","v":"Herbicide"},{"$f":"'2025 GOLF Only Fall Solutions'!J43","v":0},{"$f":"'2025 GOLF Only Fall Solutions'!K43","v":552},{"$f":"'2025 GOLF Only Fall Solutions'!M43","v":552},{"$f":"'2025 GOLF Only Fall Solutions'!N43","v":""},{"$f":"'2025 GOLF Only Fall Solutions'!U43","v":""},{"$error":"#VALUE!"}]
[{"$f":"'2025 GOLF Only Fall Solutions'!A44","v":"D00000986"},false,null,{"$f":"'2025 GOLF Only Fall Solutions'!G44","v":"Ronstar® FLO (12+ units)"},{"$f":"'2025 GOLF Only Fall Solutions'!H44","v":"2.5 gal"},{"$f":"'2025 GOLF Only Fall Solutions'!I44","v":"Herbicide"},{"$f":"'2025 GOLF Only Fall Solutions'!J44","v":0},{"$f":"'2025 GOLF Only Fall Solutions'!K44","v":453},{"$f":"'2025 GOLF Only Fall Solutions'!M44","v":423},{"$f":"'2025 GOLF Only Fall Solutions'!N44","v":""},{"$f":"'2025 GOLF Only Fall Solutions'!U44","v":""},{"$error":"#VALUE!"}]
[{"$f":"'2025 GOLF Only Fall Solutions'!A45","v":11008522},false,null,{"$f":"'2025 GOLF Only Fall Solutions'!G45","v":"Solitare® "},{"$f":"'2025 GOLF Only Fall Solutions'!H45","v":"4 lb"},{"$f":"'2025 GOLF Only Fall Solutions'!I45","v":"Herbicide"},{"$f":"'2025 GOLF Only Fall Solutions'!J45","v":0},{"$f":"'2025 GOLF Only Fall Solutions'!K45","v":596.4},{"$f":"'2025 GOLF Only Fall Solutions'!M45","v":566.58000000000004},{"$f":"'2025 GOLF Only Fall Solutions'!N45","v":""},{"$f":"'2025 GOLF Only Fall Solutions'!U45","v":""},{"$error":"#VALUE!"}]
[{"$f":"'2025 GOLF Only Fall Solutions'!A46","v":11013862},false,null,{"$f":"'2025 GOLF Only Fall Solutions'!G46","v":"Solitare® WSL"},{"$f":"'2025 GOLF Only Fall Solutions'!H46","v":"2.5 gal"},{"$f":"'2025 GOLF Only Fall Solutions'!I46","v":"Herbicide"},{"$f":"'2025 GOLF Only Fall Solutions'!J46","v":0},{"$f":"'2025 GOLF Only Fall Solutions'!K46","v":262.39999999999998},{"$f":"'2025 GOLF Only Fall Solutions'!M46","v":249.28},{"$f":"'2025 GOLF Only Fall Solutions'!N46","v":""},{"$f":"'2025 GOLF Only Fall Solutions'!U46","v":""},{"$error":"#VALUE!"}]
[{"$f":"'2025 GOLF Only Fall Solutions'!A47","v":"D00000990"},false,null,{"$f":"'2025 GOLF Only Fall Solutions'!G47","v":"Specticle® FLO (1-6 units)"},{"$f":"'2025 GOLF Only Fall Solutions'!H47","v":"1 gal"},{"$f":"'2025 GOLF Only Fall Solutions'!I47","v":"Herbicide"},{"$f":"'2025 GOLF Only Fall Solutions'!J47","v":0},{"$f":"'2025 GOLF Only Fall Solutions'!K47","v":2092.8000000000002},{"$f":"'2025 GOLF Only Fall Solutions'!M47","v":1946.3},{"$f":"'2025 GOLF Only Fall Solutions'!N47","v":""},{"$f":"'2025 GOLF Only Fall Solutions'!U47","v":""},{"$error":"#VALUE!"}]
[{"$f":"'2025 GOLF Only Fall Solutions'!A48","v":"D00000990"},false,null,{"$f":"'2025 GOLF Only Fall Solutions'!G48","v":"Specticle® FLO (7-13 units)"},{"$f":"'2025 GOLF Only Fall Solutions'!H48","v":"1 gal"},{"$f":"'2025 GOLF Only Fall Solutions'!I48","v":"Herbicide"},{"$f":"'2025 GOLF Only Fall Solutions'!J48","v":0},{"$f":"'2025 GOLF Only Fall Solutions'!K48","v":2092.8000000000002},{"$f":"'2025 GOLF Only Fall Solutions'!M48","v":1862.59},{"$f":"'2025 GOLF Only Fall Solutions'!N48","v":""},{"$f":"'2025 GOLF Only Fall Solutions'!U48","v":""},{"$error":"#VALUE!"}]
[{"$f":"'2025 GOLF Only Fall Solutions'!A49","v":"D00000990"},false,null,{"$f":"'2025 GOLF Only Fall Solutions'!G49","v":"Specticle® FLO (14-25 units)"},{"$f":"'2025 GOLF Only Fall Solutions'!H49","v":"1 gal"},{"$f":"'2025 GOLF Only Fall Solutions'!I49","v":"Herbicide"},{"$f":"'2025 GOLF Only Fall Solutions'!J49","v":0},{"$f":"'2025 GOLF Only Fall Solutions'!K49","v":1796.4},{"$f":"'2025 GOLF Only Fall Solutions'!M49","v":1625.74},{"$f":"'2025 GOLF Only Fall Solutions'!N49","v":""},{"$f":"'2025 GOLF Only Fall Solutions'!U49","v":""},{"$error":"#VALUE!"}]
[{"$f":"'2025 GOLF Only Fall Solutions'!A50","v":"D00000990"},false,null,{"$f":"'2025 GOLF Only Fall Solutions'!G50","v":"Specticle® FLO (26+ units)"},{"$f":"'2025 GOLF Only Fall Solutions'!H50","v":"1 gal"},{"$f":"'2025 GOLF Only Fall Solutions'!I50","v":"Herbicide"},{"$f":"'2025 GOLF Only Fall Solutions'!J50","v":0},{"$f":"'2025 GOLF Only Fall Solutions'!K50","v":1796.4},{"$f":"'2025 GOLF Only Fall Solutions'!M50","v":1455.08},{"$f":"'2025 GOLF Only Fall Solutions'!N50","v":""},{"$f":"'2025 GOLF Only Fall Solutions'!U50","v":""},{"$error":"#VALUE!"}]
[{"$f":"'2025 GOLF Only Fall Solutions'!A51","v":"D00000992"},false,null,{"$f":"'2025 GOLF Only Fall Solutions'!G51","v":"Specticle® G"},{"$f":"'2025 GOLF Only Fall Solutions'!H51","v":"50 lb"},{"$f":"'2025 GOLF Only Fall Solutions'!I51","v":"Herbicide"},{"$f":"'2025 GOLF Only Fall Solutions'!J51","v":0},{"$f":"'2025 GOLF Only Fall Solutions'!K51","v":130.5},{"$f":"'2025 GOLF Only Fall Solutions'!M51","v":123.98},{"$f":"'2025 GOLF Only Fall Solutions'!N51","v":""},{"$f":"'2025 GOLF Only Fall Solutions'!U51","v":""},{"$error":"#VALUE!"}]
[{"$f":"'2025 GOLF Only Fall Solutions'!A52","v":81746257},false,null,{"$f":"'2025 GOLF Only Fall Solutions'!G52","v":"Tribute® Total"},{"$f":"'2025 GOLF Only Fall Solutions'!H52","v":"6 oz"},{"$f":"'2025 GOLF Only Fall Solutions'!I52","v":"Herbicide"},{"$f":"'2025 GOLF Only Fall Solutions'!J52","v":0},{"$f":"'2025 GOLF Only Fall Solutions'!K52","v":426.4},{"$f":"'2025 GOLF Only Fall Solutions'!M52","v":405.08},{"$f":"'2025 GOLF Only Fall Solutions'!N52","v":""},{"$f":"'2025 GOLF Only Fall Solutions'!U52","v":""},{"$error":"#VALUE!"}]
[{"$f":"'2025 GOLF Only Fall Solutions'!A53","v":11008590},false,null,{"$f":"'2025 GOLF Only Fall Solutions'!G53","v":"Xonerate® 2SC"},{"$f":"'2025 GOLF Only Fall Solutions'!H53","v":"12 oz"},{"$f":"'2025 GOLF Only Fall Solutions'!I53","v":"Herbicide"},{"$f":"'2025 GOLF Only Fall Solutions'!J53","v":0},{"$f":"'2025 GOLF Only Fall Solutions'!K53","v":489.4},{"$f":"'2025 GOLF Only Fall Solutions'!M53","v":464.93},{"$f":"'2025 GOLF Only Fall Solutions'!N53","v":""},{"$f":"'2025 GOLF Only Fall Solutions'!U53","v":""},{"$error":"#VALUE!"}]
[{"$f":"'2025 GOLF Only Fall Solutions'!A54","v":"D00000903"},false,null,{"$f":"'2025 GOLF Only Fall Solutions'!G54","v":"Altus® (1-15 units)"},{"$f":"'2025 GOLF Only Fall Solutions'!H54","v":"64 oz"},{"$f":"'2025 GOLF Only Fall Solutions'!I54","v":"Insecticide"},{"$f":"'2025 GOLF Only Fall Solutions'!J54","v":0},{"$f":"'2025 GOLF Only Fall Solutions'!K54","v":437.2},{"$f":"'2025 GOLF Only Fall Solutions'!M54","v":437.2},{"$f":"'2025 GOLF Only Fall Solutions'!N54","v":""},{"$f":"'2025 GOLF Only Fall Solutions'!U54","v":""},{"$error":"#VALUE!"}]
[{"$f":"'2025 GOLF Only Fall Solutions'!A55","v":"D00000903"},false,null,{"$f":"'2025 GOLF Only Fall Solutions'!G55","v":"Altus® (16-31 units)"},{"$f":"'2025 GOLF Only Fall Solutions'!H55","v":"64 oz"},{"$f":"'2025 GOLF Only Fall Solutions'!I55","v":"Insecticide"},{"$f":"'2025 GOLF Only Fall Solutions'!J55","v":0},{"$f":"'2025 GOLF Only Fall Solutions'!K55","v":437.2},{"$f":"'2025 GOLF Only Fall Solutions'!M55","v":415.36},{"$f":"'2025 GOLF Only Fall Solutions'!N55","v":""},{"$f":"'2025 GOLF Only Fall Solutions'!U55","v":""},{"$error":"#VALUE!"}]
[{"$f":"'2025 GOLF Only Fall Solutions'!A56","v":"D00000903"},false,null,{"$f":"'2025 GOLF Only Fall Solutions'!G56","v":"Altus® (32+ units)"},{"$f":"'2025 GOLF Only Fall Solutions'!H56","v":"64 oz"},{"$f":"'2025 GOLF Only Fall Solutions'!I56","v":"Insecticide"},{"$f":"'2025 GOLF Only Fall Solutions'!J56","v":0},{"$f":"'2025 GOLF Only Fall Solutions'!K56","v":437.2},{"$f":"'2025 GOLF Only Fall Solutions'!M56","v":393.6},{"$f":"'2025 GOLF Only Fall Solutions'!N56","v":""},{"$f":"'2025 GOLF Only Fall Solutions'!U56","v":""},{"$error":"#VALUE!"}]
[{"$f":"'2025 GOLF Only Fall Solutions'!A57","v":11015390},false,null,{"$f":"'2025 GOLF Only Fall Solutions'!G57","v":"Durentis™  "},{"$f":"'2025 GOLF Only Fall Solutions'!H57","v":"16 oz"},{"$f":"'2025 GOLF Only Fall Solutions'!I57","v":"Insecticide"},{"$f":"'2025 GOLF Only Fall Solutions'!J57","v":0},{"$f":"'2025 GOLF Only Fall Solutions'!K57","v":630},{"$f":"'2025 GOLF Only Fall Solutions'!M57","v":567},{"$f":"'2025 GOLF Only Fall Solutions'!N57","v":""},{"$f":"'2025 GOLF Only Fall Solutions'!U57","v":""},{"$error":"#VALUE!"}]
[{"$f":"'2025 GOLF Only Fall Solutions'!A58","v":11015391},false,null,{"$f":"'2025 GOLF Only Fall Solutions'!G58","v":"Durentis™  "},{"$f":"'2025 GOLF Only Fall Solutions'!H58","v":"64 oz"},{"$f":"'2025 GOLF Only Fall Solutions'!I58","v":"Insecticide"},{"$f":"'2025 GOLF Only Fall Solutions'!J58","v":0},{"$f":"'2025 GOLF Only Fall Solutions'!K58","v":2362.6},{"$f":"'2025 GOLF Only Fall Solutions'!M58","v":2126.34},{"$f":"'2025 GOLF Only Fall Solutions'!N58","v":""},{"$f":"'2025 GOLF Only Fall Solutions'!U58","v":""},{"$error":"#VALUE!"}]
[{"$f":"'2025 GOLF Only Fall Solutions'!A59","v":86797658},{"$f":"G56>0","v":false},null,{"$f":"'2025 GOLF Only Fall Solutions'!G59","v":"Tetrino®"},{"$f":"'2025 GOLF Only Fall Solutions'!H59","v":"1 gal"},{"$f":"'2025 GOLF Only Fall Solutions'!I59","v":"Insecticide"},{"$f":"'2025 GOLF Only Fall Solutions'!J59","v":0},{"$f":"'2025 GOLF Only Fall Solutions'!K59","v":528},{"$f":"'2025 GOLF Only Fall Solutions'!M59","v":528},{"$f":"'2025 GOLF Only Fall Solutions'!N59","v":""},{"$f":"'2025 GOLF Only Fall Solutions'!U59","v":""},{"$error":"#VALUE!"}]
[{"$f":"'2025 GOLF Only Fall Solutions'!A60","v":11008521},false,null,{"$f":"'2025 GOLF Only Fall Solutions'!G60","v":"Triple Crown® Golf (RUP)"},{"$f":"'2025 GOLF Only Fall Solutions'!H60","v":"1 gal"},{"$f":"'2025 GOLF Only Fall Solutions'!I60","v":"Insecticide"},{"$f":"'2025 GOLF Only Fall Solutions'!J60","v":0},{"$f":"'2025 GOLF Only Fall Solutions'!K60","v":348.2},{"$f":"'2025 GOLF Only Fall Solutions'!M60","v":330.79},{"$f":"'2025 GOLF Only Fall Solutions'!N60","v":""},{"$f":"'2025 GOLF Only Fall Solutions'!U60","v":""},{"$error":"#VALUE!"}]
[null,{"$f":"G58>0","v":false},null,"Durentis FAW Program:",null,null,null,null,null,{"$f":"'2025 GOLF Only Fall Solutions'!N61","v":0}]
[]
[null,null,null,"NON-AGENCY PRODUCTS"]
[]
[{"$f":"'2025 GOLF Only Fall Solutions'!A66","v":4250930},false,null,{"$f":"'2025 GOLF Only Fall Solutions'!G66","v":"26GT™"},{"$f":"'2025 GOLF Only Fall Solutions'!H66","v":"2.5 gal"},{"$f":"'2025 GOLF Only Fall Solutions'!I66","v":"Fungicide"},{"$f":"'2025 GOLF Only Fall Solutions'!J66","v":0},null,{"$f":"IF(OR(G62=0,G62=\"\"),\"\",'2025 GOLF Only Fall Solutions'!K66)","v":""},{"$f":"'2025 GOLF Only Fall Solutions'!N66","v":""},{"$f":"'2025 GOLF Only Fall Solutions'!R66","v":""},{"$f":"'2025 GOLF Only Fall Solutions'!S66","v":""}]
[{"$f":"'2025 GOLF Only Fall Solutions'!A67","v":87300722},{"$f":"G63>0","v":false},null,{"$f":"'2025 GOLF Only Fall Solutions'!G67","v":"Acclaim Extra"},{"$f":"'2025 GOLF Only Fall Solutions'!H67","v":"1 gal"},{"$f":"'2025 GOLF Only Fall Solutions'!I67","v":"Herbicide"},{"$f":"'2025 GOLF Only Fall Solutions'!J67","v":0},null,{"$f":"IF(OR(G63=0,G63=\"\"),\"\",'2025 GOLF Only Fall Solutions'!K67)","v":""},{"$f":"'2025 GOLF Only Fall Solutions'!N67","v":""},{"$f":"'2025 GOLF Only Fall Solutions'!R67","v":""},{"$f":"'2025 GOLF Only Fall Solutions'!S67","v":""}]
[{"$f":"'2025 GOLF Only Fall Solutions'!A68","v":11008351},false,null,{"$f":"'2025 GOLF Only Fall Solutions'!G68","v":"Blindside® "},{"$f":"'2025 GOLF Only Fall Solutions'!H68","v":"0.5 lb"},{"$f":"'2025 GOLF Only Fall Solutions'!I68","v":"Herbicide"},{"$f":"'2025 GOLF Only Fall Solutions'!J68","v":0},null,{"$f":"IF(OR(G64=0,G64=\"\"),\"\",'2025 GOLF Only Fall Solutions'!K68)","v":""},{"$f":"'2025 GOLF Only Fall Solutions'!N68","v":""},{"$f":"'2025 GOLF Only Fall Solutions'!R68","v":""},{"$f":"'2025 GOLF Only Fall Solutions'!S68","v":""}]
[{"$f":"'2025 GOLF Only Fall Solutions'!A69","v":11008357},false,null,{"$f":"'2025 GOLF Only Fall Solutions'!G69","v":"Dismiss® CA"},{"$f":"'2025 GOLF Only Fall Solutions'!H69","v":"6 oz"},{"$f":"'2025 GOLF Only Fall Solutions'!I69","v":"Herbicide"},{"$f":"'2025 GOLF Only Fall Solutions'!J69","v":0},null,{"$f":"IF(OR(G65=0,G65=\"\"),\"\",'2025 GOLF Only Fall Solutions'!K69)","v":""},{"$f":"'2025 GOLF Only Fall Solutions'!N69","v":""},{"$f":"'2025 GOLF Only Fall Solutions'!R69","v":""},{"$f":"'2025 GOLF Only Fall Solutions'!S69","v":""}]
[{"$f":"'2025 GOLF Only Fall Solutions'!A70","v":11008474},false,null,{"$f":"'2025 GOLF Only Fall Solutions'!G70","v":"Dismiss® South"},{"$f":"'2025 GOLF Only Fall Solutions'!H70","v":"1 pint "},{"$f":"'2025 GOLF Only Fall Solutions'!I70","v":"Herbicide"},{"$f":"'2025 GOLF Only Fall Solutions'!J70","v":0},null,{"$f":"IF(OR(G66=0,G66=\"\"),\"\",'2025 GOLF Only Fall Solutions'!K70)","v":""},{"$f":"'2025 GOLF Only Fall Solutions'!N70","v":""},{"$f":"'2025 GOLF Only Fall Solutions'!R70","v":""},{"$f":"'2025 GOLF Only Fall Solutions'!S70","v":""}]
[{"$f":"'2025 GOLF Only Fall Solutions'!A71","v":11008475},false,null,{"$f":"'2025 GOLF Only Fall Solutions'!G71","v":"Dismiss® Turf"},{"$f":"'2025 GOLF Only Fall Solutions'!H71","v":"6 oz"},{"$f":"'2025 GOLF Only Fall Solutions'!I71","v":"Herbicide"},{"$f":"'2025 GOLF Only Fall Solutions'!J71","v":0},null,{"$f":"IF(OR(G67=0,G67=\"\"),\"\",'2025 GOLF Only Fall Solutions'!K71)","v":""},{"$f":"'2025 GOLF Only Fall Solutions'!N71","v":""},{"$f":"'2025 GOLF Only Fall Solutions'!R71","v":""},{"$f":"'2025 GOLF Only Fall Solutions'!S71","v":""}]
[{"$f":"'2025 GOLF Only Fall Solutions'!A72","v":11008336},false,null,{"$f":"'2025 GOLF Only Fall Solutions'!G72","v":"Dismiss® Turf"},{"$f":"'2025 GOLF Only Fall Solutions'!H72","v":"64 oz"},{"$f":"'2025 GOLF Only Fall Solutions'!I72","v":"Herbicide"},{"$f":"'2025 GOLF Only Fall Solutions'!J72","v":0},null,{"$f":"IF(OR(G68=0,G68=\"\"),\"\",'2025 GOLF Only Fall Solutions'!K72)","v":""},{"$f":"'2025 GOLF Only Fall Solutions'!N72","v":""},{"$f":"'2025 GOLF Only Fall Solutions'!R72","v":""},{"$f":"'2025 GOLF Only Fall Solutions'!S72","v":""}]
[{"$f":"'2025 GOLF Only Fall Solutions'!A73","v":86215578},false,null,{"$f":"'2025 GOLF Only Fall Solutions'!G73","v":"Prograss EC"},{"$f":"'2025 GOLF Only Fall Solutions'!H73","v":"2.5 gal "},{"$f":"'2025 GOLF Only Fall Solutions'!I73","v":"Herbicide"},{"$f":"'2025 GOLF Only Fall Solutions'!J73","v":0},null,{"$f":"IF(OR(G69=0,G69=\"\"),\"\",'2025 GOLF Only Fall Solutions'!K73)","v":""},{"$f":"'2025 GOLF Only Fall Solutions'!N73","v":""},{"$f":"'2025 GOLF Only Fall Solutions'!R73","v":""},{"$f":"'2025 GOLF Only Fall Solutions'!S73","v":""}]
[{"$f":"'2025 GOLF Only Fall Solutions'!A74","v":"D00000913"},false,null,{"$f":"'2025 GOLF Only Fall Solutions'!G74","v":"Proxy"},{"$f":"'2025 GOLF Only Fall Solutions'!H74","v":"2.5 gal "},{"$f":"'2025 GOLF Only Fall Solutions'!I74","v":"Herbicide"},{"$f":"'2025 GOLF Only Fall Solutions'!J74","v":0},null,{"$f":"IF(OR(G70=0,G70=\"\"),\"\",'2025 GOLF Only Fall Solutions'!K74)","v":""},{"$f":"'2025 GOLF Only Fall Solutions'!N74","v":""},{"$f":"'2025 GOLF Only Fall Solutions'!R74","v":""},{"$f":"'2025 GOLF Only Fall Solutions'!S74","v":""}]
[{"$f":"'2025 GOLF Only Fall Solutions'!A75","v":11008447},false,null,{"$f":"'2025 GOLF Only Fall Solutions'!G75","v":"QuickSilver® "},{"$f":"'2025 GOLF Only Fall Solutions'!H75","v":"8 oz"},{"$f":"'2025 GOLF Only Fall Solutions'!I75","v":"Herbicide"},{"$f":"'2025 GOLF Only Fall Solutions'!J75","v":0},null,{"$f":"IF(OR(G71=0,G71=\"\"),\"\",'2025 GOLF Only Fall Solutions'!K75)","v":""},{"$f":"'2025 GOLF Only Fall Solutions'!N75","v":""},{"$f":"'2025 GOLF Only Fall Solutions'!R75","v":""},{"$f":"'2025 GOLF Only Fall Solutions'!S75","v":""}]
[{"$f":"'2025 GOLF Only Fall Solutions'!A76","v":79850980},false,null,{"$f":"'2025 GOLF Only Fall Solutions'!G76","v":"Revolver®"},{"$f":"'2025 GOLF Only Fall Solutions'!H76","v":"32 fl oz"},{"$f":"'2025 GOLF Only Fall Solutions'!I76","v":"Herbicide"},{"$f":"'2025 GOLF Only Fall Solutions'!J76","v":0},null,{"$f":"IF(OR(G72=0,G72=\"\"),\"\",'2025 GOLF Only Fall Solutions'!K76)","v":""},{"$f":"'2025 GOLF Only Fall Solutions'!N76","v":""},{"$f":"'2025 GOLF Only Fall Solutions'!R76","v":""},{"$f":"'2025 GOLF Only Fall Solutions'!S76","v":""}]
[{"$f":"'2025 GOLF Only Fall Solutions'!A77","v":427709},false,null,{"$f":"'2025 GOLF Only Fall Solutions'!G77","v":"Sencor 75"},{"$f":"'2025 GOLF Only Fall Solutions'!H77","v":"5 lb"},{"$f":"'2025 GOLF Only Fall Solutions'!I77","v":"Herbicide"},{"$f":"'2025 GOLF Only Fall Solutions'!J77","v":0},null,{"$f":"IF(OR(G73=0,G73=\"\"),\"\",'2025 GOLF Only Fall Solutions'!K77)","v":""},{"$f":"'2025 GOLF Only Fall Solutions'!N77","v":""},{"$f":"'2025 GOLF Only Fall Solutions'!R77","v":""},{"$f":"'2025 GOLF Only Fall Solutions'!S77","v":""}]
[{"$f":"'2025 GOLF Only Fall Solutions'!A78","v":11008482},false,null,{"$f":"'2025 GOLF Only Fall Solutions'!G78","v":"Solitare® "},{"$f":"'2025 GOLF Only Fall Solutions'!H78","v":"1 lb "},{"$f":"'2025 GOLF Only Fall Solutions'!I78","v":"Herbicide"},{"$f":"'2025 GOLF Only Fall Solutions'!J78","v":0},null,{"$f":"IF(OR(G74=0,G74=\"\"),\"\",'2025 GOLF Only Fall Solutions'!K78)","v":""},{"$f":"'2025 GOLF Only Fall Solutions'!N78","v":""},{"$f":"'2025 GOLF Only Fall Solutions'!R78","v":""},{"$f":"'2025 GOLF Only Fall Solutions'!S78","v":""}]
[{"$f":"'2025 GOLF Only Fall Solutions'!A79","v":11008369},false,null,{"$f":"'2025 GOLF Only Fall Solutions'!G79","v":"Solitare® WSL"},{"$f":"'2025 GOLF Only Fall Solutions'!H79","v":"0.75 gal "},{"$f":"'2025 GOLF Only Fall Solutions'!I79","v":"Herbicide"},{"$f":"'2025 GOLF Only Fall Solutions'!J79","v":0},null,{"$f":"IF(OR(G75=0,G75=\"\"),\"\",'2025 GOLF Only Fall Solutions'!K79)","v":""},{"$f":"'2025 GOLF Only Fall Solutions'!N79","v":""},{"$f":"'2025 GOLF Only Fall Solutions'!R79","v":""},{"$f":"'2025 GOLF Only Fall Solutions'!S79","v":""}]
[{"$f":"'2025 GOLF Only Fall Solutions'!A80","v":"NoSKU1"},false,null,{"$f":"'2025 GOLF Only Fall Solutions'!G80","v":"Chipco Choice"},{"$f":"'2025 GOLF Only Fall Solutions'!H80","v":"50 lb"},{"$f":"'2025 GOLF Only Fall Solutions'!I80","v":"Insecticide"},{"$f":"'2025 GOLF Only Fall Solutions'!J80","v":0},null,{"$f":"IF(OR(G76=0,G76=\"\"),\"\",'2025 GOLF Only Fall Solutions'!K80)","v":""},{"$f":"'2025 GOLF Only Fall Solutions'!N80","v":""},{"$f":"'2025 GOLF Only Fall Solutions'!R80","v":""},{"$f":"'2025 GOLF Only Fall Solutions'!S80","v":""}]
[{"$f":"'2025 GOLF Only Fall Solutions'!A81","v":"NoSKU2"},false,null,{"$f":"'2025 GOLF Only Fall Solutions'!G81","v":"Durentis 0.058% On-Fertilizer"},{"$f":"'2025 GOLF Only Fall Solutions'!H81","v":"50 lb"},{"$f":"'2025 GOLF Only Fall Solutions'!I81","v":"Insecticide"},{"$f":"'2025 GOLF Only Fall Solutions'!J81","v":0},null,{"$f":"IF(OR(G77=0,G77=\"\"),\"\",'2025 GOLF Only Fall Solutions'!K81)","v":""},{"$f":"'2025 GOLF Only Fall Solutions'!N81","v":""},{"$f":"'2025 GOLF Only Fall Solutions'!R81","v":""},{"$f":"'2025 GOLF Only Fall Solutions'!S81","v":""}]
[{"$f":"'2025 GOLF Only Fall Solutions'!A82","v":"NoSKU3"},false,null,{"$f":"'2025 GOLF Only Fall Solutions'!G82","v":"Durentis 0.067% On-Fertilizer"},{"$f":"'2025 GOLF Only Fall Solutions'!H82","v":"50 lb"},{"$f":"'2025 GOLF Only Fall Solutions'!I82","v":"Insecticide"},{"$f":"'2025 GOLF Only Fall Solutions'!J82","v":0},null,{"$f":"IF(OR(G78=0,G78=\"\"),\"\",'2025 GOLF Only Fall Solutions'!K82)","v":""},{"$f":"'2025 GOLF Only Fall Solutions'!N82","v":""},{"$f":"'2025 GOLF Only Fall Solutions'!R82","v":""},{"$f":"'2025 GOLF Only Fall Solutions'!S82","v":""}]
[{"$f":"'2025 GOLF Only Fall Solutions'!A83","v":"D00001040"},false,null,{"$f":"'2025 GOLF Only Fall Solutions'!G83","v":"Dylox SL420"},{"$f":"'2025 GOLF Only Fall Solutions'!H83","v":"2.5 gal "},{"$f":"'2025 GOLF Only Fall Solutions'!I83","v":"Insecticide"},{"$f":"'2025 GOLF Only Fall Solutions'!J83","v":0},null,{"$f":"IF(OR(G79=0,G79=\"\"),\"\",'2025 GOLF Only Fall Solutions'!K83)","v":""},{"$f":"'2025 GOLF Only Fall Solutions'!N83","v":""},{"$f":"'2025 GOLF Only Fall Solutions'!R83","v":""},{"$f":"'2025 GOLF Only Fall Solutions'!S83","v":""}]
[{"$f":"'2025 GOLF Only Fall Solutions'!A84","v":3944704},false,null,{"$f":"'2025 GOLF Only Fall Solutions'!G84","v":"Forbid"},{"$f":"'2025 GOLF Only Fall Solutions'!H84","v":"8 oz "},{"$f":"'2025 GOLF Only Fall Solutions'!I84","v":"Insecticide"},{"$f":"'2025 GOLF Only Fall Solutions'!J84","v":0},null,{"$f":"IF(OR(G80=0,G80=\"\"),\"\",'2025 GOLF Only Fall Solutions'!K84)","v":""},{"$f":"'2025 GOLF Only Fall Solutions'!N84","v":""},{"$f":"'2025 GOLF Only Fall Solutions'!R84","v":""},{"$f":"'2025 GOLF Only Fall Solutions'!S84","v":""}]
[{"$f":"'2025 GOLF Only Fall Solutions'!A85","v":"D00000961"},{"$f":"G81>0","v":false},null,{"$f":"'2025 GOLF Only Fall Solutions'!G85","v":"Merit 2F"},{"$f":"'2025 GOLF Only Fall Solutions'!H85","v":"1 gal"},{"$f":"'2025 GOLF Only Fall Solutions'!I85","v":"Insecticide"},{"$f":"'2025 GOLF Only Fall Solutions'!J85","v":0},null,{"$f":"IF(OR(G81=0,G81=\"\"),\"\",'2025 GOLF Only Fall Solutions'!K85)","v":""},{"$f":"'2025 GOLF Only Fall Solutions'!N85","v":""},{"$f":"'2025 GOLF Only Fall Solutions'!R85","v":""},{"$f":"'2025 GOLF Only Fall Solutions'!S85","v":""}]
[{"$f":"'2025 GOLF Only Fall Solutions'!A86","v":11008457},false,null,{"$f":"'2025 GOLF Only Fall Solutions'!G86","v":"Talstar® Select"},{"$f":"'2025 GOLF Only Fall Solutions'!H86","v":"1 gal"},{"$f":"'2025 GOLF Only Fall Solutions'!I86","v":"Insecticide"},{"$f":"'2025 GOLF Only Fall Solutions'!J86","v":0},null,{"$f":"IF(OR(G82=0,G82=\"\"),\"\",'2025 GOLF Only Fall Solutions'!K86)","v":""},{"$f":"'2025 GOLF Only Fall Solutions'!N86","v":""},{"$f":"'2025 GOLF Only Fall Solutions'!R86","v":""},{"$f":"'2025 GOLF Only Fall Solutions'!S86","v":""}]
[{"$f":"'2025 GOLF Only Fall Solutions'!A87","v":"D00001012"},false,null,{"$f":"'2025 GOLF Only Fall Solutions'!G87","v":"TopChoice"},{"$f":"'2025 GOLF Only Fall Solutions'!H87","v":"50 lb"},{"$f":"'2025 GOLF Only Fall Solutions'!I87","v":"Insecticide"},{"$f":"'2025 GOLF Only Fall Solutions'!J87","v":0},null,{"$f":"IF(OR(G83=0,G83=\"\"),\"\",'2025 GOLF Only Fall Solutions'!K87)","v":""},{"$f":"'2025 GOLF Only Fall Solutions'!N87","v":""},{"$f":"'2025 GOLF Only Fall Solutions'!R87","v":""},{"$f":"'2025 GOLF Only Fall Solutions'!S87","v":""}]
[null,null,null,null,null,null,null,"**ERROR**:   MISSING PRICE INPUT VALUE"]
[null,null,null,"Summary"]
[null,null,null,"Summary is provided as an estimate only. See program rules and conditions."]
[]
[null,null,null,{"$f":"'2025 GOLF Only Fall Solutions'!F94","v":"Estimated Total Before Off Invoice Discounts:"},null,null,null,null,{"$f":"'2025 GOLF Only Fall Solutions'!I94","v":0}]
[null,null,null,{"$f":"'2025 GOLF Only Fall Solutions'!F95","v":"Estimated Invoice Total:"},null,null,null,null,{"$f":"'2025 GOLF Only Fall Solutions'!I95","v":0}]
[null,null,null,{"$f":"'2025 GOLF Only Fall Solutions'!F96","v":"Estimated Off-Invoice Discount:"},null,null,null,null,{"$f":"'2025 GOLF Only Fall Solutions'!I96","v":"n/a"},{"$f":"'2025 GOLF Only Fall Solutions'!J96","v":0}]
[null,null,null,{"$f":"'2025 GOLF Only Fall Solutions'!F97","v":"Volume Buy Rebate, Envu Extras & Tier Rebates:"}]
[null,null,null,{"$f":"'2025 GOLF Only Fall Solutions'!F98","v":"Estimated Total Volume Buy Rebate:"},null,null,null,null,{"$f":"'2025 GOLF Only Fall Solutions'!I98","v":"n/a"},{"$f":"'2025 GOLF Only Fall Solutions'!J98","v":0}]
[null,null,null,{"$f":"'2025 GOLF Only Fall Solutions'!F99","v":"Estimated Tier Rebate Amount:"},null,null,null,null,{"$f":"'2025 GOLF Only Fall Solutions'!I99","v":"n/a"},{"$f":"'2025 GOLF Only Fall Solutions'!J99","v":"n/a"}]
[null,null,null,{"$f":"'2025 GOLF Only Fall Solutions'!F100","v":"Estimated Chipco Signature & Stressgard® Rebate ($10k+):"},null,null,null,null,{"$f":"'2025 GOLF Only Fall Solutions'!I100","v":"n/a"},{"$f":"'2025 GOLF Only Fall Solutions'!J100","v":"n/a"}]
[null,null,null,{"$f":"'2025 GOLF Only Fall Solutions'!F101","v":"Estimated Serata Rebate (8+ units):"},null,null,null,null,{"$f":"'2025 GOLF Only Fall Solutions'!I101","v":"n/a"},{"$f":"'2025 GOLF Only Fall Solutions'!J101","v":"n/a"}]
[null,null,null,{"$f":"'2025 GOLF Only Fall Solutions'!F102","v":"Estimated Durentis Rebate (4+ 64oz units OR 16+ 16oz units):"},null,null,null,null,{"$f":"'2025 GOLF Only Fall Solutions'!I102","v":"n/a"},{"$f":"'2025 GOLF Only Fall Solutions'!J102","v":"n/a"}]
[null,null,null,{"$f":"'2025 GOLF Only Fall Solutions'!F103","v":"Estimated Volume Buy Rebate (5 or more products):"},null,null,null,null,{"$f":"'2025 GOLF Only Fall Solutions'!I103","v":"n/a"},{"$f":"'2025 GOLF Only Fall Solutions'!J103","v":"n/a"}]
[null,null,null,{"$f":"'2025 GOLF Only Fall Solutions'!F104","v":"Estimated Total Rebate:"},null,null,null,null,{"$f":"'2025 GOLF Only Fall Solutions'!I104","v":0},{"$f":"'2025 GOLF Only Fall Solutions'!J104","v":0}]
[null,null,null,{"$f":"'2025 GOLF Only Fall Solutions'!F105","v":"Estimated Total Savings (Rebates + Off Invoice Discounts):  "},null,null,null,null,{"$f":"'2025 GOLF Only Fall Solutions'!I105","v":"n/a"},{"$f":"'2025 GOLF Only Fall Solutions'!J105","v":0}]
[null,null,null,{"$f":"'2025 GOLF Only Fall Solutions'!F106","v":"Estimated Net Total after Rebates & Discounts:"},null,null,null,null,{"$f":"'2025 GOLF Only Fall Solutions'!I106","v":0}]
[]
[null,null,null,{"$f":"'2025 GOLF Only Fall Solutions'!F108","v":"Estimated MER points to be earned: 0"}]
[]
[null,null,null,"CHIPCO CHOICE, RONSTAR FLO, TALSTAR SELECT, TOPCHOICE AND TRIPLE CROWN GOLF ARE RESTRICTED USE PESTICIDES. For retail sale to and use only by Certified Applicators or persons under their direct supervision and only for those uses covered by the Certified Applicator's certification. *Pricing for all states except CA or WA. Must be purchased on a single invoice to receive volume discount price. †Specticle FLO and Ronstar FLO are not eligible for Envu Extras and tier rebates. **Must be registered in My Envu Rewards and accept current Terms and Conditions to participate. ***Customer Fall Solutions and NOW Solutions promotional cumulative purchases (Aug. 1 - Dec. 5, 2025) must be $5,000 or more to qualify for program rebates. New members signed up before Dec. 31, 2025, will receive 2025 NOW/Fall Solutions rebates. All rebates for 2025 NOW/Fall Solutions will be paid in points, which can be redeemed for thousands of catalog items, distributor credits and/or company checks (no checks can be issued to a third party). All products must be invoiced between Oct. 1 and Dec. 5, 2025, to qualify for Fall Solutions. Rebate calculations will be based on the date of actual product invoice and calculator tools are provided for estimation purposes only. Rebates will only be paid or delivered to the company or name listed on the invoice. Please allow for rebates to be fulfilled by July 31, 2026. End users are only eligible for one Envu incentive program on these invoiced products. Must be an end user with MER membership and accept current Terms and Conditions. Resale of product(s) purchased within this program will not qualify for rebates. If questions arise, please contact MER at 1-888-456-6464 or email info@myenvurewards.com. Envu reserves the right to modify any portion thereof, or discontinue this program without prior notice. "]
[]
[]
[]
[]
[]
[]
[]
[null,null,null,"ALWAYS READ AND FOLLOW LABEL INSTRUCTIONS. Environmental Science U.S. LLC, 5000 CentreGreen Way, Suite 400, Cary, NC 27513. For additional product information, call toll-free 1-800-331-2867. www.envu.com. Please verify state registration of these products in your state before selling, using or distributing. Not all products are registered in all states. Envu, the Envu logo and product logos are trademarks owned by Environmental Science U.S. LLC or one of its affiliates. Other trademarks are the property of their respective owners. ©2025 Environmental Science U.S. LLC. ES-0725-GLF-358-R-R"]

{"sheet":"REBATE MATRIX (NOW)","index":2,"n_rows":70,"n_cols":19,"rows_kept":70,"cut":false,"hidden":true,"merged":[]}
[null,null,null,null,null,null,null,null,null,null,null,null,null,null,null,null,{"$f":"COUNTIF(Rebate_Lookup[Volume Buy Counter],TRUE)","v":19}]
[null,"SKU CODE","Agency/TT","Description","Size","Type","Instances","MOQ_1","MOQ_2","MOQ_3","REB_MOQ_1","REB_MOQ_2","REB_MOQ_3","Order Form Quantity","Qualified Rebate Tier","Column1","Volume Buy Counter"]
[null,"D00000903",{"$f":"INDEX(PRICING[Agency/TT],MATCH(Rebate_Lookup[[#This Row],[SKU CODE]],PRICING[SKU],0))","v":"A"},{"$f":"INDEX(PRICING[Product],MATCH(B3,PRICING[SKU],0))","v":"Altus®"},{"$f":"INDEX(PRICING[Size],MATCH(Rebate_Lookup[[#This Row],[SKU CODE]],PRICING[SKU],0))","v":"64 oz"},{"$f":"INDEX(PRICING[Indication],MATCH(Rebate_Lookup[[#This Row],[SKU CODE]],PRICING[SKU],0))","v":"I"},{"$f":"COUNTIFS(PRICING[SKU],B3)","v":3},null,null,null,null,{"$f":"SUMIFS(PRICING[Rebate $],PRICING[Program],\"NOW\",PRICING[SKU],Rebate_Lookup[[#This Row],[SKU CODE]],PRICING[Set],2)","v":0},{"$f":"SUMIFS(PRICING[Rebate $],PRICING[Program],\"NOW\",PRICING[SKU],Rebate_Lookup[[#This Row],[SKU CODE]],PRICING[Set],3)","v":0},{"$f":"INDEX('2025 GOLF Only Fall Solutions'!J:J,MATCH(Rebate_Lookup[[#This Row],[SKU CODE]],'2025 GOLF Only Fall Solutions'!A:A,0))","v":0},{"$f":"IF(Rebate_Lookup[[#This Row],[Instances]]=1,1,\nIF(AND(Rebate_Lookup[[#This Row],[Instances]]=2,Rebate_Lookup[[#This Row],[Order Form Quantity]]<Rebate_Lookup[[#This Row],[MOQ_2]]),1,IF(AND(Rebate_Lookup[[#This Row],[Instances]]=2,Rebate_Lookup[[#This Row],[Order Form Quantity]]>=Rebate_Lookup[[#This Row],[MOQ_2]]),2,\nIF(AND(Rebate_Lookup[[#This Row],[Instances]]=3,Rebate_Lookup[[#This Row],[Order Form Quantity]]<Rebate_Lookup[[#This Row],[MOQ_2]]),1,IF(AND(Rebate_Lookup[[#This Row],[Instances]]=3,Rebate_Lookup[[#This Row],[MOQ_2]]<=Rebate_Lookup[[#This Row],[Order Form Quantity]],Rebate_Lookup[[#This Row],[Order Form Quantity]]<Rebate_Lookup[[#This Row],[MOQ_3]]),2,IF(AND(Rebate_Lookup[[#This Row],[Instances]]=3,Rebate_Lookup[[#This Row],[Order Form Quantity]]>=Rebate_Lookup[[#This Row],[MOQ_3]]),3))))))","v":3},{"$f":"COUNTIF('2025 GOLF Only Fall Solutions'!A:A,Rebate_Lookup[[#This Row],[SKU CODE]])","v":3},{"$f":"IFERROR(Rebate_Lookup[[#This Row],[Order Form Quantity]]>=Rebate_Lookup[[#This Row],[MOQ_2]],0)","v":true}]
[null,"D00000907",{"$f":"INDEX(PRICING[Agency/TT],MATCH(Rebate_Lookup[[#This Row],[SKU CODE]],PRICING[SKU],0))","v":"A"},{"$f":"INDEX(PRICING[Product],MATCH(B4,PRICING[SKU],0))","v":"Banol®"},{"$f":"INDEX(PRICING[Size],MATCH(Rebate_Lookup[[#This Row],[SKU CODE]],PRICING[SKU],0))","v":"2.5 gal "},{"$f":"INDEX(PRICING[Indication],MATCH(Rebate_Lookup[[#This Row],[SKU CODE]],PRICING[SKU],0))","v":"F"},{"$f":"COUNTIFS(PRICING[SKU],B4)","v":2},0,2,null,{"$f":"SUMIFS(PRICING[Rebate $],PRICING[SKU],Rebate_Lookup[[#This Row],[SKU CODE]],PRICING[Set],1)","v":0},{"$f":"SUMIFS(PRICING[Rebate $],PRICING[SKU],Rebate_Lookup[[#This Row],[SKU CODE]],PRICING[Set],2)","v":90},{"$f":"SUMIFS(PRICING[Rebate $],PRICING[SKU],Rebate_Lookup[[#This Row],[SKU CODE]],PRICING[Set],3)","v":0},{"$f":"INDEX('2025 GOLF Only Fall Solutions'!J:J,MATCH(Rebate_Lookup[[#This Row],[SKU CODE]],'2025 GOLF Only Fall Solutions'!A:A,0))","v":0},{"$f":"IF(Rebate_Lookup[[#This Row],[Instances]]=1,1,\nIF(AND(Rebate_Lookup[[#This Row],[Instances]]=2,Rebate_Lookup[[#This Row],[Order Form Quantity]]<Rebate_Lookup[[#This Row],[MOQ_2]]),1,IF(AND(Rebate_Lookup[[#This Row],[Instances]]=2,Rebate_Lookup[[#This Row],[Order Form Quantity]]>=Rebate_Lookup[[#This Row],[MOQ_2]]),2,\nIF(AND(Rebate_Lookup[[#This Row],[Instances]]=3,Rebate_Lookup[[#This Row],[Order Form Quantity]]<Rebate_Lookup[[#This Row],[MOQ_2]]),1,IF(AND(Rebate_Lookup[[#This Row],[Instances]]=3,Rebate_Lookup[[#This Row],[MOQ_2]]<=Rebate_Lookup[[#This Row],[Order Form Quantity]],Rebate_Lookup[[#This Row],[Order Form Quantity]]<Rebate_Lookup[[#This Row],[MOQ_3]]),2,IF(AND(Rebate_Lookup[[#This Row],[Instances]]=3,Rebate_Lookup[[#This Row],[Order Form Quantity]]>=Rebate_Lookup[[#This Row],[MOQ_3]]),3))))))","v":1},{"$f":"COUNTIF('2025 GOLF Only Fall Solutions'!A:A,Rebate_Lookup[[#This Row],[SKU CODE]])","v":1},{"$f":"IFERROR(Rebate_Lookup[[#This Row],[Order Form Quantity]]>=Rebate_Lookup[[#This Row],[MOQ_2]],0)","v":false},null,{"$f":"COUNTIF('2025 GOLF Only Fall Solutions'!A:A,Rebate_Lookup[[#This Row],[SKU CODE]])","v":1}]
[null,"D00000623",{"$f":"INDEX(PRICING[Agency/TT],MATCH(Rebate_Lookup[[#This Row],[SKU CODE]],PRICING[SKU],0))","v":"A"},{"$f":"INDEX(PRICING[Product],MATCH(B5,PRICING[SKU],0))","v":"Castlon™"},{"$f":"INDEX(PRICING[Size],MATCH(Rebate_Lookup[[#This Row],[SKU CODE]],PRICING[SKU],0))","v":"1 gal"},{"$f":"INDEX(PRICING[Indication],MATCH(Rebate_Lookup[[#This Row],[SKU CODE]],PRICING[SKU],0))","v":"F"},{"$f":"COUNTIFS(PRICING[SKU],B5)","v":3},0,5,10,{"$f":"SUMIFS(PRICING[Rebate $],PRICING[SKU],Rebate_Lookup[[#This Row],[SKU CODE]],PRICING[Set],1)","v":0},{"$f":"SUMIFS(PRICING[Rebate $],PRICING[SKU],Rebate_Lookup[[#This Row],[SKU CODE]],PRICING[Set],2)","v":525},{"$f":"SUMIFS(PRICING[Rebate $],PRICING[SKU],Rebate_Lookup[[#This Row],[SKU CODE]],PRICING[Set],3)","v":585},{"$f":"INDEX('2025 GOLF Only Fall Solutions'!J:J,MATCH(Rebate_Lookup[[#This Row],[SKU CODE]],'2025 GOLF Only Fall Solutions'!A:A,0))","v":0},{"$f":"IF(Rebate_Lookup[[#This Row],[Instances]]=1,1,\nIF(AND(Rebate_Lookup[[#This Row],[Instances]]=2,Rebate_Lookup[[#This Row],[Order Form Quantity]]<Rebate_Lookup[[#This Row],[MOQ_2]]),1,IF(AND(Rebate_Lookup[[#This Row],[Instances]]=2,Rebate_Lookup[[#This Row],[Order Form Quantity]]>=Rebate_Lookup[[#This Row],[MOQ_2]]),2,\nIF(AND(Rebate_Lookup[[#This Row],[Instances]]=3,Rebate_Lookup[[#This Row],[Order Form Quantity]]<Rebate_Lookup[[#This Row],[MOQ_2]]),1,IF(AND(Rebate_Lookup[[#This Row],[Instances]]=3,Rebate_Lookup[[#This Row],[MOQ_2]]<=Rebate_Lookup[[#This Row],[Order Form Quantity]],Rebate_Lookup[[#This Row],[Order Form Quantity]]<Rebate_Lookup[[#This Row],[MOQ_3]]),2,IF(AND(Rebate_Lookup[[#This Row],[Instances]]=3,Rebate_Lookup[[#This Row],[Order Form Quantity]]>=Rebate_Lookup[[#This Row],[MOQ_3]]),3))))))","v":1},{"$f":"COUNTIF('2025 GOLF Only Fall Solutions'!A:A,Rebate_Lookup[[#This Row],[SKU CODE]])","v":1},{"$f":"IFERROR(Rebate_Lookup[[#This Row],[Order Form Quantity]]>=Rebate_Lookup[[#This Row],[MOQ_2]],0)","v":false},null,{"$f":"COUNTIF('2025 GOLF Only Fall Solutions'!A:A,Rebate_Lookup[[#This Row],[SKU CODE]])","v":1}]
[null,"D00000624",{"$f":"INDEX(PRICING[Agency/TT],MATCH(Rebate_Lookup[[#This Row],[SKU CODE]],PRICING[SKU],0))","v":"A"},{"$f":"INDEX(PRICING[Product],MATCH(B6,PRICING[SKU],0))","v":"Castlon™"},{"$f":"INDEX(PRICING[Size],MATCH(Rebate_Lookup[[#This Row],[SKU CODE]],PRICING[SKU],0))","v":"16 oz"},{"$f":"INDEX(PRICING[Indication],MATCH(Rebate_Lookup[[#This Row],[SKU CODE]],PRICING[SKU],0))","v":"F"},{"$f":"COUNTIFS(PRICING[SKU],B6)","v":2},0,4,null,{"$f":"SUMIFS(PRICING[Rebate $],PRICING[SKU],Rebate_Lookup[[#This Row],[SKU CODE]],PRICING[Set],1)","v":0},{"$f":"SUMIFS(PRICING[Rebate $],PRICING[SKU],Rebate_Lookup[[#This Row],[SKU CODE]],PRICING[Set],2)","v":50},{"$f":"SUMIFS(PRICING[Rebate $],PRICING[SKU],Rebate_Lookup[[#This Row],[SKU CODE]],PRICING[Set],3)","v":0},{"$f":"INDEX('2025 GOLF Only Fall Solutions'!J:J,MATCH(Rebate_Lookup[[#This Row],[SKU CODE]],'2025 GOLF Only Fall Solutions'!A:A,0))","v":0},{"$f":"IF(Rebate_Lookup[[#This Row],[Instances]]=1,1,\nIF(AND(Rebate_Lookup[[#This Row],[Instances]]=2,Rebate_Lookup[[#This Row],[Order Form Quantity]]<Rebate_Lookup[[#This Row],[MOQ_2]]),1,IF(AND(Rebate_Lookup[[#This Row],[Instances]]=2,Rebate_Lookup[[#This Row],[Order Form Quantity]]>=Rebate_Lookup[[#This Row],[MOQ_2]]),2,\nIF(AND(Rebate_Lookup[[#This Row],[Instances]]=3,Rebate_Lookup[[#This Row],[Order Form Quantity]]<Rebate_Lookup[[#This Row],[MOQ_2]]),1,IF(AND(Rebate_Lookup[[#This Row],[Instances]]=3,Rebate_Lookup[[#This Row],[MOQ_2]]<=Rebate_Lookup[[#This Row],[Order Form Quantity]],Rebate_Lookup[[#This Row],[Order Form Quantity]]<Rebate_Lookup[[#This Row],[MOQ_3]]),2,IF(AND(Rebate_Lookup[[#This Row],[Instances]]=3,Rebate_Lookup[[#This Row],[Order Form Quantity]]>=Rebate_Lookup[[#This Row],[MOQ_3]]),3))))))","v":1},{"$f":"COUNTIF('2025 GOLF Only Fall Solutions'!A:A,Rebate_Lookup[[#This Row],[SKU CODE]])","v":1},{"$f":"IFERROR(Rebate_Lookup[[#This Row],[Order Form Quantity]]>=Rebate_Lookup[[#This Row],[MOQ_2]],0)","v":false},null,{"$f":"COUNTIF('2025 GOLF Only Fall Solutions'!A:A,Rebate_Lookup[[#This Row],[SKU CODE]])","v":1}]
[null,79714858,{"$f":"INDEX(PRICING[Agency/TT],MATCH(Rebate_Lookup[[#This Row],[SKU CODE]],PRICING[SKU],0))","v":"A"},{"$f":"INDEX(PRICING[Product],MATCH(B7,PRICING[SKU],0))","v":"Celsius® WG"},{"$f":"INDEX(PRICING[Size],MATCH(Rebate_Lookup[[#This Row],[SKU CODE]],PRICING[SKU],0))","v":"10 oz"},{"$f":"INDEX(PRICING[Indication],MATCH(Rebate_Lookup[[#This Row],[SKU CODE]],PRICING[SKU],0))","v":"H"},{"$f":"COUNTIFS(PRICING[SKU],B7)","v":2},0,48,null,{"$f":"SUMIFS(PRICING[Rebate $],PRICING[SKU],Rebate_Lookup[[#This Row],[SKU CODE]],PRICING[Set],1)","v":0},12,{"$f":"SUMIFS(PRICING[Rebate $],PRICING[SKU],Rebate_Lookup[[#This Row],[SKU CODE]],PRICING[Set],3)","v":0},{"$f":"INDEX('2025 GOLF Only Fall Solutions'!J:J,MATCH(Rebate_Lookup[[#This Row],[SKU CODE]],'2025 GOLF Only Fall Solutions'!A:A,0))","v":0},{"$f":"IF(Rebate_Lookup[[#This Row],[Instances]]=1,1,\nIF(AND(Rebate_Lookup[[#This Row],[Instances]]=2,Rebate_Lookup[[#This Row],[Order Form Quantity]]<Rebate_Lookup[[#This Row],[MOQ_2]]),1,IF(AND(Rebate_Lookup[[#This Row],[Instances]]=2,Rebate_Lookup[[#This Row],[Order Form Quantity]]>=Rebate_Lookup[[#This Row],[MOQ_2]]),2,\nIF(AND(Rebate_Lookup[[#This Row],[Instances]]=3,Rebate_Lookup[[#This Row],[Order Form Quantity]]<Rebate_Lookup[[#This Row],[MOQ_2]]),1,IF(AND(Rebate_Lookup[[#This Row],[Instances]]=3,Rebate_Lookup[[#This Row],[MOQ_2]]<=Rebate_Lookup[[#This Row],[Order Form Quantity]],Rebate_Lookup[[#This Row],[Order Form Quantity]]<Rebate_Lookup[[#This Row],[MOQ_3]]),2,IF(AND(Rebate_Lookup[[#This Row],[Instances]]=3,Rebate_Lookup[[#This Row],[Order Form Quantity]]>=Rebate_Lookup[[#This Row],[MOQ_3]]),3))))))","v":1},{"$f":"COUNTIF('2025 GOLF Only Fall Solutions'!A:A,Rebate_Lookup[[#This Row],[SKU CODE]])","v":1},{"$f":"IFERROR(Rebate_Lookup[[#This Row],[Order Form Quantity]]>=Rebate_Lookup[[#This Row],[MOQ_2]],0)","v":false},null,{"$f":"COUNTIF('2025 GOLF Only Fall Solutions'!A:A,Rebate_Lookup[[#This Row],[SKU CODE]])","v":1}]
[null,"D00000911",{"$f":"INDEX(PRICING[Agency/TT],MATCH(Rebate_Lookup[[#This Row],[SKU CODE]],PRICING[SKU],0))","v":"A"},{"$f":"INDEX(PRICING[Product],MATCH(B8,PRICING[SKU],0))","v":"Celsius® XTRA"},{"$f":"INDEX(PRICING[Size],MATCH(Rebate_Lookup[[#This Row],[SKU CODE]],PRICING[SKU],0))","v":"10 oz"},{"$f":"INDEX(PRICING[Indication],MATCH(Rebate_Lookup[[#This Row],[SKU CODE]],PRICING[SKU],0))","v":"H"},{"$f":"COUNTIFS(PRICING[SKU],B8)","v":2},0,16,null,{"$f":"SUMIFS(PRICING[Rebate $],PRICING[SKU],Rebate_Lookup[[#This Row],[SKU CODE]],PRICING[Set],1)","v":0},{"$f":"SUMIFS(PRICING[Rebate $],PRICING[SKU],Rebate_Lookup[[#This Row],[SKU CODE]],PRICING[Set],2)","v":12},{"$f":"SUMIFS(PRICING[Rebate $],PRICING[SKU],Rebate_Lookup[[#This Row],[SKU CODE]],PRICING[Set],3)","v":0},{"$f":"INDEX('2025 GOLF Only Fall Solutions'!J:J,MATCH(Rebate_Lookup[[#This Row],[SKU CODE]],'2025 GOLF Only Fall Solutions'!A:A,0))","v":0},{"$f":"IF(Rebate_Lookup[[#This Row],[Instances]]=1,1,\nIF(AND(Rebate_Lookup[[#This Row],[Instances]]=2,Rebate_Lookup[[#This Row],[Order Form Quantity]]<Rebate_Lookup[[#This Row],[MOQ_2]]),1,IF(AND(Rebate_Lookup[[#This Row],[Instances]]=2,Rebate_Lookup[[#This Row],[Order Form Quantity]]>=Rebate_Lookup[[#This Row],[MOQ_2]]),2,\nIF(AND(Rebate_Lookup[[#This Row],[Instances]]=3,Rebate_Lookup[[#This Row],[Order Form Quantity]]<Rebate_Lookup[[#This Row],[MOQ_2]]),1,IF(AND(Rebate_Lookup[[#This Row],[Instances]]=3,Rebate_Lookup[[#This Row],[MOQ_2]]<=Rebate_Lookup[[#This Row],[Order Form Quantity]],Rebate_Lookup[[#This Row],[Order Form Quantity]]<Rebate_Lookup[[#This Row],[MOQ_3]]),2,IF(AND(Rebate_Lookup[[#This Row],[Instances]]=3,Rebate_Lookup[[#This Row],[Order Form Quantity]]>=Rebate_Lookup[[#This Row],[MOQ_3]]),3))))))","v":1},{"$f":"COUNTIF('2025 GOLF Only Fall Solutions'!A:A,Rebate_Lookup[[#This Row],[SKU CODE]])","v":1},{"$f":"IFERROR(Rebate_Lookup[[#This Row],[Order Form Quantity]]>=Rebate_Lookup[[#This Row],[MOQ_2]],0)","v":false},null,{"$f":"COUNTIF('2025 GOLF Only Fall Solutions'!A:A,Rebate_Lookup[[#This Row],[SKU CODE]])","v":1}]
[null,"D00000914",{"$f":"INDEX(PRICING[Agency/TT],MATCH(Rebate_Lookup[[#This Row],[SKU CODE]],PRICING[SKU],0))","v":"A"},{"$f":"INDEX(PRICING[Product],MATCH(B9,PRICING[SKU],0))","v":"Chipco® Signature™"},{"$f":"INDEX(PRICING[Size],MATCH(Rebate_Lookup[[#This Row],[SKU CODE]],PRICING[SKU],0))","v":"11 lb"},{"$f":"INDEX(PRICING[Indication],MATCH(Rebate_Lookup[[#This Row],[SKU CODE]],PRICING[SKU],0))","v":"F"},{"$f":"COUNTIFS(PRICING[SKU],B9)","v":2},0,9,null,{"$f":"SUMIFS(PRICING[Rebate $],PRICING[SKU],Rebate_Lookup[[#This Row],[SKU CODE]],PRICING[Set],1)","v":0},{"$f":"SUMIFS(PRICING[Rebate $],PRICING[SKU],Rebate_Lookup[[#This Row],[SKU CODE]],PRICING[Set],2)","v":5},{"$f":"SUMIFS(PRICING[Rebate $],PRICING[SKU],Rebate_Lookup[[#This Row],[SKU CODE]],PRICING[Set],3)","v":0},{"$f":"INDEX('2025 GOLF Only Fall Solutions'!J:J,MATCH(Rebate_Lookup[[#This Row],[SKU CODE]],'2025 GOLF Only Fall Solutions'!A:A,0))","v":0},{"$f":"IF(Rebate_Lookup[[#This Row],[Instances]]=1,1,\nIF(AND(Rebate_Lookup[[#This Row],[Instances]]=2,Rebate_Lookup[[#This Row],[Order Form Quantity]]<Rebate_Lookup[[#This Row],[MOQ_2]]),1,IF(AND(Rebate_Lookup[[#This Row],[Instances]]=2,Rebate_Lookup[[#This Row],[Order Form Quantity]]>=Rebate_Lookup[[#This Row],[MOQ_2]]),2,\nIF(AND(Rebate_Lookup[[#This Row],[Instances]]=3,Rebate_Lookup[[#This Row],[Order Form Quantity]]<Rebate_Lookup[[#This Row],[MOQ_2]]),1,IF(AND(Rebate_Lookup[[#This Row],[Instances]]=3,Rebate_Lookup[[#This Row],[MOQ_2]]<=Rebate_Lookup[[#This Row],[Order Form Quantity]],Rebate_Lookup[[#This Row],[Order Form Quantity]]<Rebate_Lookup[[#This Row],[MOQ_3]]),2,IF(AND(Rebate_Lookup[[#This Row],[Instances]]=3,Rebate_Lookup[[#This Row],[Order Form Quantity]]>=Rebate_Lookup[[#This Row],[MOQ_3]]),3))))))","v":1},{"$f":"COUNTIF('2025 GOLF Only Fall Solutions'!A:A,Rebate_Lookup[[#This Row],[SKU CODE]])","v":1},{"$f":"IFERROR(Rebate_Lookup[[#This Row],[Order Form Quantity]]>=Rebate_Lookup[[#This Row],[MOQ_2]],0)","v":false},null,{"$f":"COUNTIF('2025 GOLF Only Fall Solutions'!A:A,Rebate_Lookup[[#This Row],[SKU CODE]])","v":1}]
[null,"D00001373",{"$f":"INDEX(PRICING[Agency/TT],MATCH(Rebate_Lookup[[#This Row],[SKU CODE]],PRICING[SKU],0))","v":"A"},{"$f":"INDEX(PRICING[Product],MATCH(B10,PRICING[SKU],0))","v":"Densicor®"},{"$f":"INDEX(PRICING[Size],MATCH(Rebate_Lookup[[#This Row],[SKU CODE]],PRICING[SKU],0))","v":"51 oz"},{"$f":"INDEX(PRICING[Indication],MATCH(Rebate_Lookup[[#This Row],[SKU CODE]],PRICING[SKU],0))","v":"F"},{"$f":"COUNTIFS(PRICING[SKU],B10)","v":2},0,3,null,{"$f":"SUMIFS(PRICING[Rebate $],PRICING[SKU],Rebate_Lookup[[#This Row],[SKU CODE]],PRICING[Set],1)","v":0},{"$f":"SUMIFS(PRICING[Rebate $],PRICING[SKU],Rebate_Lookup[[#This Row],[SKU CODE]],PRICING[Set],2)","v":100},{"$f":"SUMIFS(PRICING[Rebate $],PRICING[SKU],Rebate_Lookup[[#This Row],[SKU CODE]],PRICING[Set],3)","v":0},{"$f":"INDEX('2025 GOLF Only Fall Solutions'!J:J,MATCH(Rebate_Lookup[[#This Row],[SKU CODE]],'2025 GOLF Only Fall Solutions'!A:A,0))","v":0},{"$f":"IF(Rebate_Lookup[[#This Row],[Instances]]=1,1,\nIF(AND(Rebate_Lookup[[#This Row],[Instances]]=2,Rebate_Lookup[[#This Row],[Order Form Quantity]]<Rebate_Lookup[[#This Row],[MOQ_2]]),1,IF(AND(Rebate_Lookup[[#This Row],[Instances]]=2,Rebate_Lookup[[#This Row],[Order Form Quantity]]>=Rebate_Lookup[[#This Row],[MOQ_2]]),2,\nIF(AND(Rebate_Lookup[[#This Row],[Instances]]=3,Rebate_Lookup[[#This Row],[Order Form Quantity]]<Rebate_Lookup[[#This Row],[MOQ_2]]),1,IF(AND(Rebate_Lookup[[#This Row],[Instances]]=3,Rebate_Lookup[[#This Row],[MOQ_2]]<=Rebate_Lookup[[#This Row],[Order Form Quantity]],Rebate_Lookup[[#This Row],[Order Form Quantity]]<Rebate_Lookup[[#This Row],[MOQ_3]]),2,IF(AND(Rebate_Lookup[[#This Row],[Instances]]=3,Rebate_Lookup[[#This Row],[Order Form Quantity]]>=Rebate_Lookup[[#This Row],[MOQ_3]]),3))))))","v":1},{"$f":"COUNTIF('2025 GOLF Only Fall Solutions'!A:A,Rebate_Lookup[[#This Row],[SKU CODE]])","v":1},{"$f":"IFERROR(Rebate_Lookup[[#This Row],[Order Form Quantity]]>=Rebate_Lookup[[#This Row],[MOQ_2]],0)","v":false},null,{"$f":"COUNTIF('2025 GOLF Only Fall Solutions'!A:A,Rebate_Lookup[[#This Row],[SKU CODE]])","v":1}]
[null,11008409,{"$f":"INDEX(PRICING[Agency/TT],MATCH(Rebate_Lookup[[#This Row],[SKU CODE]],PRICING[SKU],0))","v":"A"},{"$f":"INDEX(PRICING[Product],MATCH(B11,PRICING[SKU],0))","v":"Dismiss® NXT Herbicide"},{"$f":"INDEX(PRICING[Size],MATCH(Rebate_Lookup[[#This Row],[SKU CODE]],PRICING[SKU],0))","v":"10 oz"},{"$f":"INDEX(PRICING[Indication],MATCH(Rebate_Lookup[[#This Row],[SKU CODE]],PRICING[SKU],0))","v":"H"},{"$f":"COUNTIFS(PRICING[SKU],B11)","v":1},1,null,null,{"$f":"SUMIFS(PRICING[Rebate $],PRICING[SKU],Rebate_Lookup[[#This Row],[SKU CODE]],PRICING[Set],1)","v":11},{"$f":"SUMIFS(PRICING[Rebate $],PRICING[SKU],Rebate_Lookup[[#This Row],[SKU CODE]],PRICING[Set],2)","v":0},{"$f":"SUMIFS(PRICING[Rebate $],PRICING[SKU],Rebate_Lookup[[#This Row],[SKU CODE]],PRICING[Set],3)","v":0},{"$f":"INDEX('2025 GOLF Only Fall Solutions'!J:J,MATCH(Rebate_Lookup[[#This Row],[SKU CODE]],'2025 GOLF Only Fall Solutions'!A:A,0))","v":0},{"$f":"IF(Rebate_Lookup[[#This Row],[Instances]]=1,1,\nIF(AND(Rebate_Lookup[[#This Row],[Instances]]=2,Rebate_Lookup[[#This Row],[Order Form Quantity]]<Rebate_Lookup[[#This Row],[MOQ_2]]),1,IF(AND(Rebate_Lookup[[#This Row],[Instances]]=2,Rebate_Lookup[[#This Row],[Order Form Quantity]]>=Rebate_Lookup[[#This Row],[MOQ_2]]),2,\nIF(AND(Rebate_Lookup[[#This Row],[Instances]]=3,Rebate_Lookup[[#This Row],[Order Form Quantity]]<Rebate_Lookup[[#This Row],[MOQ_2]]),1,IF(AND(Rebate_Lookup[[#This Row],[Instances]]=3,Rebate_Lookup[[#This Row],[MOQ_2]]<=Rebate_Lookup[[#This Row],[Order Form Quantity]],Rebate_Lookup[[#This Row],[Order Form Quantity]]<Rebate_Lookup[[#This Row],[MOQ_3]]),2,IF(AND(Rebate_Lookup[[#This Row],[Instances]]=3,Rebate_Lookup[[#This Row],[Order Form Quantity]]>=Rebate_Lookup[[#This Row],[MOQ_3]]),3))))))","v":1},{"$f":"COUNTIF('2025 GOLF Only Fall Solutions'!A:A,Rebate_Lookup[[#This Row],[SKU CODE]])","v":1},{"$f":"IFERROR(Rebate_Lookup[[#This Row],[Order Form Quantity]]>=Rebate_Lookup[[#This Row],[MOQ_2]],0)","v":true}]
[null,11008589,{"$f":"INDEX(PRICING[Agency/TT],MATCH(Rebate_Lookup[[#This Row],[SKU CODE]],PRICING[SKU],0))","v":"A"},{"$f":"INDEX(PRICING[Product],MATCH(B12,PRICING[SKU],0))","v":"Dismiss® NXT Herbicide"},{"$f":"INDEX(PRICING[Size],MATCH(Rebate_Lookup[[#This Row],[SKU CODE]],PRICING[SKU],0))","v":"60 oz"},{"$f":"INDEX(PRICING[Indication],MATCH(Rebate_Lookup[[#This Row],[SKU CODE]],PRICING[SKU],0))","v":"H"},{"$f":"COUNTIFS(PRICING[SKU],B12)","v":2},1,16,null,{"$f":"SUMIFS(PRICING[Rebate $],PRICING[SKU],Rebate_Lookup[[#This Row],[SKU CODE]],PRICING[Set],1)","v":0},{"$f":"SUMIFS(PRICING[Rebate $],PRICING[SKU],Rebate_Lookup[[#This Row],[SKU CODE]],PRICING[Set],2)","v":60},{"$f":"SUMIFS(PRICING[Rebate $],PRICING[SKU],Rebate_Lookup[[#This Row],[SKU CODE]],PRICING[Set],3)","v":0},{"$f":"INDEX('2025 GOLF Only Fall Solutions'!J:J,MATCH(Rebate_Lookup[[#This Row],[SKU CODE]],'2025 GOLF Only Fall Solutions'!A:A,0))","v":0},{"$f":"IF(Rebate_Lookup[[#This Row],[Instances]]=1,1,\nIF(AND(Rebate_Lookup[[#This Row],[Instances]]=2,Rebate_Lookup[[#This Row],[Order Form Quantity]]<Rebate_Lookup[[#This Row],[MOQ_2]]),1,IF(AND(Rebate_Lookup[[#This Row],[Instances]]=2,Rebate_Lookup[[#This Row],[Order Form Quantity]]>=Rebate_Lookup[[#This Row],[MOQ_2]]),2,\nIF(AND(Rebate_Lookup[[#This Row],[Instances]]=3,Rebate_Lookup[[#This Row],[Order Form Quantity]]<Rebate_Lookup[[#This Row],[MOQ_2]]),1,IF(AND(Rebate_Lookup[[#This Row],[Instances]]=3,Rebate_Lookup[[#This Row],[MOQ_2]]<=Rebate_Lookup[[#This Row],[Order Form Quantity]],Rebate_Lookup[[#This Row],[Order Form Quantity]]<Rebate_Lookup[[#This Row],[MOQ_3]]),2,IF(AND(Rebate_Lookup[[#This Row],[Instances]]=3,Rebate_Lookup[[#This Row],[Order Form Quantity]]>=Rebate_Lookup[[#This Row],[MOQ_3]]),3))))))","v":1},{"$f":"COUNTIF('2025 GOLF Only Fall Solutions'!A:A,Rebate_Lookup[[#This Row],[SKU CODE]])","v":1},{"$f":"IFERROR(Rebate_Lookup[[#This Row],[Order Form Quantity]]>=Rebate_Lookup[[#This Row],[MOQ_2]],0)","v":false}]
[null,11015390,{"$f":"INDEX(PRICING[Agency/TT],MATCH(Rebate_Lookup[[#This Row],[SKU CODE]],PRICING[SKU],0))","v":"A"},{"$f":"INDEX(PRICING[Product],MATCH(B13,PRICING[SKU],0))","v":"Durentis™ Insecticide  "},{"$f":"INDEX(PRICING[Size],MATCH(Rebate_Lookup[[#This Row],[SKU CODE]],PRICING[SKU],0))","v":"16 oz"},{"$f":"INDEX(PRICING[Indication],MATCH(Rebate_Lookup[[#This Row],[SKU CODE]],PRICING[SKU],0))","v":"I"},2,0,4,null,{"$f":"SUMIFS(PRICING[Rebate $],PRICING[SKU],Rebate_Lookup[[#This Row],[SKU CODE]],PRICING[Set],1)","v":0},{"$f":"SUMIFS(PRICING[Rebate $],PRICING[SKU],Rebate_Lookup[[#This Row],[SKU CODE]],PRICING[Set],2)","v":90},{"$f":"SUMIFS(PRICING[Rebate $],PRICING[SKU],Rebate_Lookup[[#This Row],[SKU CODE]],PRICING[Set],3)","v":0},{"$f":"INDEX('2025 GOLF Only Fall Solutions'!J:J,MATCH(Rebate_Lookup[[#This Row],[SKU CODE]],'2025 GOLF Only Fall Solutions'!A:A,0))","v":0},{"$f":"IF(Rebate_Lookup[[#This Row],[Instances]]=1,1,\nIF(AND(Rebate_Lookup[[#This Row],[Instances]]=2,Rebate_Lookup[[#This Row],[Order Form Quantity]]<Rebate_Lookup[[#This Row],[MOQ_2]]),1,IF(AND(Rebate_Lookup[[#This Row],[Instances]]=2,Rebate_Lookup[[#This Row],[Order Form Quantity]]>=Rebate_Lookup[[#This Row],[MOQ_2]]),2,\nIF(AND(Rebate_Lookup[[#This Row],[Instances]]=3,Rebate_Lookup[[#This Row],[Order Form Quantity]]<Rebate_Lookup[[#This Row],[MOQ_2]]),1,IF(AND(Rebate_Lookup[[#This Row],[Instances]]=3,Rebate_Lookup[[#This Row],[MOQ_2]]<=Rebate_Lookup[[#This Row],[Order Form Quantity]],Rebate_Lookup[[#This Row],[Order Form Quantity]]<Rebate_Lookup[[#This Row],[MOQ_3]]),2,IF(AND(Rebate_Lookup[[#This Row],[Instances]]=3,Rebate_Lookup[[#This Row],[Order Form Quantity]]>=Rebate_Lookup[[#This Row],[MOQ_3]]),3))))))","v":1},{"$f":"COUNTIF('2025 GOLF Only Fall Solutions'!A:A,Rebate_Lookup[[#This Row],[SKU CODE]])","v":1},{"$f":"IFERROR(Rebate_Lookup[[#This Row],[Order Form Quantity]]>=Rebate_Lookup[[#This Row],[MOQ_2]],0)","v":false},null,{"$f":"COUNTIF('2025 GOLF Only Fall Solutions'!A:A,Rebate_Lookup[[#This Row],[SKU CODE]])","v":1}]
[null,11015391,{"$f":"INDEX(PRICING[Agency/TT],MATCH(Rebate_Lookup[[#This Row],[SKU CODE]],PRICING[SKU],0))","v":"A"},{"$f":"INDEX(PRICING[Product],MATCH(B14,PRICING[SKU],0))","v":"Durentis™ Insecticide  "},{"$f":"INDEX(PRICING[Size],MATCH(Rebate_Lookup[[#This Row],[SKU CODE]],PRICING[SKU],0))","v":"64 oz"},{"$f":"INDEX(PRICING[Indication],MATCH(Rebate_Lookup[[#This Row],[SKU CODE]],PRICING[SKU],0))","v":"I"},{"$f":"COUNTIFS(PRICING[SKU],B14)","v":3},0,2,4,{"$f":"SUMIFS(PRICING[Rebate $],PRICING[SKU],Rebate_Lookup[[#This Row],[SKU CODE]],PRICING[Set],1)","v":0},{"$f":"SUMIFS(PRICING[Rebate $],PRICING[SKU],Rebate_Lookup[[#This Row],[SKU CODE]],PRICING[Set],2)","v":550},{"$f":"SUMIFS(PRICING[Rebate $],PRICING[SKU],Rebate_Lookup[[#This Row],[SKU CODE]],PRICING[Set],3)","v":650},{"$f":"INDEX('2025 GOLF Only Fall Solutions'!J:J,MATCH(Rebate_Lookup[[#This Row],[SKU CODE]],'2025 GOLF Only Fall Solutions'!A:A,0))","v":0},{"$f":"IF(Rebate_Lookup[[#This Row],[Instances]]=1,1,\nIF(AND(Rebate_Lookup[[#This Row],[Instances]]=2,Rebate_Lookup[[#This Row],[Order Form Quantity]]<Rebate_Lookup[[#This Row],[MOQ_2]]),1,IF(AND(Rebate_Lookup[[#This Row],[Instances]]=2,Rebate_Lookup[[#This Row],[Order Form Quantity]]>=Rebate_Lookup[[#This Row],[MOQ_2]]),2,\nIF(AND(Rebate_Lookup[[#This Row],[Instances]]=3,Rebate_Lookup[[#This Row],[Order Form Quantity]]<Rebate_Lookup[[#This Row],[MOQ_2]]),1,IF(AND(Rebate_Lookup[[#This Row],[Instances]]=3,Rebate_Lookup[[#This Row],[MOQ_2]]<=Rebate_Lookup[[#This Row],[Order Form Quantity]],Rebate_Lookup[[#This Row],[Order Form Quantity]]<Rebate_Lookup[[#This Row],[MOQ_3]]),2,IF(AND(Rebate_Lookup[[#This Row],[Instances]]=3,Rebate_Lookup[[#This Row],[Order Form Quantity]]>=Rebate_Lookup[[#This Row],[MOQ_3]]),3))))))","v":1},{"$f":"COUNTIF('2025 GOLF Only Fall Solutions'!A:A,Rebate_Lookup[[#This Row],[SKU CODE]])","v":1},{"$f":"IFERROR(Rebate_Lookup[[#This Row],[Order Form Quantity]]>=Rebate_Lookup[[#This Row],[MOQ_2]],0)","v":false},null,{"$f":"COUNTIF('2025 GOLF Only Fall Solutions'!A:A,Rebate_Lookup[[#This Row],[SKU CODE]])","v":1}]
[null,11008464,{"$f":"INDEX(PRICING[Agency/TT],MATCH(Rebate_Lookup[[#This Row],[SKU CODE]],PRICING[SKU],0))","v":"A"},{"$f":"INDEX(PRICING[Product],MATCH(B15,PRICING[SKU],0))","v":"Echelon® 4SC Herbicide"},{"$f":"INDEX(PRICING[Size],MATCH(Rebate_Lookup[[#This Row],[SKU CODE]],PRICING[SKU],0))","v":"1 gal"},{"$f":"INDEX(PRICING[Indication],MATCH(Rebate_Lookup[[#This Row],[SKU CODE]],PRICING[SKU],0))","v":"H"},{"$f":"COUNTIFS(PRICING[SKU],B15)","v":2},0,16,null,{"$f":"SUMIFS(PRICING[Rebate $],PRICING[SKU],Rebate_Lookup[[#This Row],[SKU CODE]],PRICING[Set],1)","v":0},{"$f":"SUMIFS(PRICING[Rebate $],PRICING[SKU],Rebate_Lookup[[#This Row],[SKU CODE]],PRICING[Set],2)","v":145},{"$f":"SUMIFS(PRICING[Rebate $],PRICING[SKU],Rebate_Lookup[[#This Row],[SKU CODE]],PRICING[Set],3)","v":0},{"$f":"INDEX('2025 GOLF Only Fall Solutions'!J:J,MATCH(Rebate_Lookup[[#This Row],[SKU CODE]],'2025 GOLF Only Fall Solutions'!A:A,0))","v":0},{"$f":"IF(Rebate_Lookup[[#This Row],[Instances]]=1,1,\nIF(AND(Rebate_Lookup[[#This Row],[Instances]]=2,Rebate_Lookup[[#This Row],[Order Form Quantity]]<Rebate_Lookup[[#This Row],[MOQ_2]]),1,IF(AND(Rebate_Lookup[[#This Row],[Instances]]=2,Rebate_Lookup[[#This Row],[Order Form Quantity]]>=Rebate_Lookup[[#This Row],[MOQ_2]]),2,\nIF(AND(Rebate_Lookup[[#This Row],[Instances]]=3,Rebate_Lookup[[#This Row],[Order Form Quantity]]<Rebate_Lookup[[#This Row],[MOQ_2]]),1,IF(AND(Rebate_Lookup[[#This Row],[Instances]]=3,Rebate_Lookup[[#This Row],[MOQ_2]]<=Rebate_Lookup[[#This Row],[Order Form Quantity]],Rebate_Lookup[[#This Row],[Order Form Quantity]]<Rebate_Lookup[[#This Row],[MOQ_3]]),2,IF(AND(Rebate_Lookup[[#This Row],[Instances]]=3,Rebate_Lookup[[#This Row],[Order Form Quantity]]>=Rebate_Lookup[[#This Row],[MOQ_3]]),3))))))","v":1},{"$f":"COUNTIF('2025 GOLF Only Fall Solutions'!A:A,Rebate_Lookup[[#This Row],[SKU CODE]])","v":1},{"$f":"IFERROR(Rebate_Lookup[[#This Row],[Order Form Quantity]]>=Rebate_Lookup[[#This Row],[MOQ_2]],0)","v":false},null,{"$f":"COUNTIF('2025 GOLF Only Fall Solutions'!A:A,Rebate_Lookup[[#This Row],[SKU CODE]])","v":1}]
[null,"D00000934",{"$f":"INDEX(PRICING[Agency/TT],MATCH(Rebate_Lookup[[#This Row],[SKU CODE]],PRICING[SKU],0))","v":"A"},{"$f":"INDEX(PRICING[Product],MATCH(B16,PRICING[SKU],0))","v":"Exteris® Stressgard®"},{"$f":"INDEX(PRICING[Size],MATCH(Rebate_Lookup[[#This Row],[SKU CODE]],PRICING[SKU],0))","v":" 2.5 gal"},{"$f":"INDEX(PRICING[Indication],MATCH(Rebate_Lookup[[#This Row],[SKU CODE]],PRICING[SKU],0))","v":"F"},{"$f":"COUNTIFS(PRICING[SKU],B16)","v":2},0,6,null,{"$f":"SUMIFS(PRICING[Rebate $],PRICING[SKU],Rebate_Lookup[[#This Row],[SKU CODE]],PRICING[Set],1)","v":0},{"$f":"SUMIFS(PRICING[Rebate $],PRICING[SKU],Rebate_Lookup[[#This Row],[SKU CODE]],PRICING[Set],2)","v":45},{"$f":"SUMIFS(PRICING[Rebate $],PRICING[SKU],Rebate_Lookup[[#This Row],[SKU CODE]],PRICING[Set],3)","v":0},{"$f":"INDEX('2025 GOLF Only Fall Solutions'!J:J,MATCH(Rebate_Lookup[[#This Row],[SKU CODE]],'2025 GOLF Only Fall Solutions'!A:A,0))","v":0},{"$f":"IF(Rebate_Lookup[[#This Row],[Instances]]=1,1,\nIF(AND(Rebate_Lookup[[#This Row],[Instances]]=2,Rebate_Lookup[[#This Row],[Order Form Quantity]]<Rebate_Lookup[[#This Row],[MOQ_2]]),1,IF(AND(Rebate_Lookup[[#This Row],[Instances]]=2,Rebate_Lookup[[#This Row],[Order Form Quantity]]>=Rebate_Lookup[[#This Row],[MOQ_2]]),2,\nIF(AND(Rebate_Lookup[[#This Row],[Instances]]=3,Rebate_Lookup[[#This Row],[Order Form Quantity]]<Rebate_Lookup[[#This Row],[MOQ_2]]),1,IF(AND(Rebate_Lookup[[#This Row],[Instances]]=3,Rebate_Lookup[[#This Row],[MOQ_2]]<=Rebate_Lookup[[#This Row],[Order Form Quantity]],Rebate_Lookup[[#This Row],[Order Form Quantity]]<Rebate_Lookup[[#This Row],[MOQ_3]]),2,IF(AND(Rebate_Lookup[[#This Row],[Instances]]=3,Rebate_Lookup[[#This Row],[Order Form Quantity]]>=Rebate_Lookup[[#This Row],[MOQ_3]]),3))))))","v":1},{"$f":"COUNTIF('2025 GOLF Only Fall Solutions'!A:A,Rebate_Lookup[[#This Row],[SKU CODE]])","v":1},{"$f":"IFERROR(Rebate_Lookup[[#This Row],[Order Form Quantity]]>=Rebate_Lookup[[#This Row],[MOQ_2]],0)","v":false},null,{"$f":"COUNTIF('2025 GOLF Only Fall Solutions'!A:A,Rebate_Lookup[[#This Row],[SKU CODE]])","v":1}]
[null,11008377,{"$f":"INDEX(PRICING[Agency/TT],MATCH(Rebate_Lookup[[#This Row],[SKU CODE]],PRICING[SKU],0))","v":"A"},{"$f":"INDEX(PRICING[Product],MATCH(B17,PRICING[SKU],0))","v":"Fame® +C Fungicide"},{"$f":"INDEX(PRICING[Size],MATCH(Rebate_Lookup[[#This Row],[SKU CODE]],PRICING[SKU],0))","v":"2.5 gal"},{"$f":"INDEX(PRICING[Indication],MATCH(Rebate_Lookup[[#This Row],[SKU CODE]],PRICING[SKU],0))","v":"F"},{"$f":"COUNTIFS(PRICING[SKU],B17)","v":1},0,null,null,{"$f":"SUMIFS(PRICING[Rebate $],PRICING[SKU],Rebate_Lookup[[#This Row],[SKU CODE]],PRICING[Set],1)","v":0},{"$f":"SUMIFS(PRICING[Rebate $],PRICING[SKU],Rebate_Lookup[[#This Row],[SKU CODE]],PRICING[Set],2)","v":0},{"$f":"SUMIFS(PRICING[Rebate $],PRICING[SKU],Rebate_Lookup[[#This Row],[SKU CODE]],PRICING[Set],3)","v":0},{"$f":"INDEX('2025 GOLF Only Fall Solutions'!J:J,MATCH(Rebate_Lookup[[#This Row],[SKU CODE]],'2025 GOLF Only Fall Solutions'!A:A,0))","v":0},{"$f":"IF(Rebate_Lookup[[#This Row],[Instances]]=1,1,\nIF(AND(Rebate_Lookup[[#This Row],[Instances]]=2,Rebate_Lookup[[#This Row],[Order Form Quantity]]<Rebate_Lookup[[#This Row],[MOQ_2]]),1,IF(AND(Rebate_Lookup[[#This Row],[Instances]]=2,Rebate_Lookup[[#This Row],[Order Form Quantity]]>=Rebate_Lookup[[#This Row],[MOQ_2]]),2,\nIF(AND(Rebate_Lookup[[#This Row],[Instances]]=3,Rebate_Lookup[[#This Row],[Order Form Quantity]]<Rebate_Lookup[[#This Row],[MOQ_2]]),1,IF(AND(Rebate_Lookup[[#This Row],[Instances]]=3,Rebate_Lookup[[#This Row],[MOQ_2]]<=Rebate_Lookup[[#This Row],[Order Form Quantity]],Rebate_Lookup[[#This Row],[Order Form Quantity]]<Rebate_Lookup[[#This Row],[MOQ_3]]),2,IF(AND(Rebate_Lookup[[#This Row],[Instances]]=3,Rebate_Lookup[[#This Row],[Order Form Quantity]]>=Rebate_Lookup[[#This Row],[MOQ_3]]),3))))))","v":1},{"$f":"COUNTIF('2025 GOLF Only Fall Solutions'!A:A,Rebate_Lookup[[#This Row],[SKU CODE]])","v":1},{"$f":"IFERROR(Rebate_Lookup[[#This Row],[Order Form Quantity]]>=Rebate_Lookup[[#This Row],[MOQ_2]],0)","v":true},null,{"$f":"COUNTIF('2025 GOLF Only Fall Solutions'!A:A,Rebate_Lookup[[#This Row],[SKU CODE]])","v":1}]
[null,11008393,{"$f":"INDEX(PRICING[Agency/TT],MATCH(Rebate_Lookup[[#This Row],[SKU CODE]],PRICING[SKU],0))","v":"A"},{"$f":"INDEX(PRICING[Product],MATCH(B18,PRICING[SKU],0))","v":"Fame® SC Fungicide"},{"$f":"INDEX(PRICING[Size],MATCH(Rebate_Lookup[[#This Row],[SKU CODE]],PRICING[SKU],0))","v":"16 oz"},{"$f":"INDEX(PRICING[Indication],MATCH(Rebate_Lookup[[#This Row],[SKU CODE]],PRICING[SKU],0))","v":"F"},{"$f":"COUNTIFS(PRICING[SKU],B18)","v":2},0,4,null,{"$f":"SUMIFS(PRICING[Rebate $],PRICING[SKU],Rebate_Lookup[[#This Row],[SKU CODE]],PRICING[Set],1)","v":0},{"$f":"SUMIFS(PRICING[Rebate $],PRICING[SKU],Rebate_Lookup[[#This Row],[SKU CODE]],PRICING[Set],2)","v":50},{"$f":"SUMIFS(PRICING[Rebate $],PRICING[SKU],Rebate_Lookup[[#This Row],[SKU CODE]],PRICING[Set],3)","v":0},{"$f":"INDEX('2025 GOLF Only Fall Solutions'!J:J,MATCH(Rebate_Lookup[[#This Row],[SKU CODE]],'2025 GOLF Only Fall Solutions'!A:A,0))","v":0},{"$f":"IF(Rebate_Lookup[[#This Row],[Instances]]=1,1,\nIF(AND(Rebate_Lookup[[#This Row],[Instances]]=2,Rebate_Lookup[[#This Row],[Order Form Quantity]]<Rebate_Lookup[[#This Row],[MOQ_2]]),1,IF(AND(Rebate_Lookup[[#This Row],[Instances]]=2,Rebate_Lookup[[#This Row],[Order Form Quantity]]>=Rebate_Lookup[[#This Row],[MOQ_2]]),2,\nIF(AND(Rebate_Lookup[[#This Row],[Instances]]=3,Rebate_Lookup[[#This Row],[Order Form Quantity]]<Rebate_Lookup[[#This Row],[MOQ_2]]),1,IF(AND(Rebate_Lookup[[#This Row],[Instances]]=3,Rebate_Lookup[[#This Row],[MOQ_2]]<=Rebate_Lookup[[#This Row],[Order Form Quantity]],Rebate_Lookup[[#This Row],[Order Form Quantity]]<Rebate_Lookup[[#This Row],[MOQ_3]]),2,IF(AND(Rebate_Lookup[[#This Row],[Instances]]=3,Rebate_Lookup[[#This Row],[Order Form Quantity]]>=Rebate_Lookup[[#This Row],[MOQ_3]]),3))))))","v":1},{"$f":"COUNTIF('2025 GOLF Only Fall Solutions'!A:A,Rebate_Lookup[[#This Row],[SKU CODE]])","v":1},{"$f":"IFERROR(Rebate_Lookup[[#This Row],[Order Form Quantity]]>=Rebate_Lookup[[#This Row],[MOQ_2]],0)","v":false},null,{"$f":"COUNTIF('2025 GOLF Only Fall Solutions'!A:A,Rebate_Lookup[[#This Row],[SKU CODE]])","v":1}]
[null,11008557,{"$f":"INDEX(PRICING[Agency/TT],MATCH(Rebate_Lookup[[#This Row],[SKU CODE]],PRICING[SKU],0))","v":"A"},{"$f":"INDEX(PRICING[Product],MATCH(B19,PRICING[SKU],0))","v":"Fame® SC Fungicide"},{"$f":"INDEX(PRICING[Size],MATCH(Rebate_Lookup[[#This Row],[SKU CODE]],PRICING[SKU],0))","v":"64 oz"},{"$f":"INDEX(PRICING[Indication],MATCH(Rebate_Lookup[[#This Row],[SKU CODE]],PRICING[SKU],0))","v":"F"},{"$f":"COUNTIFS(PRICING[SKU],B19)","v":2},0,4,null,{"$f":"SUMIFS(PRICING[Rebate $],PRICING[SKU],Rebate_Lookup[[#This Row],[SKU CODE]],PRICING[Set],1)","v":0},410,{"$f":"SUMIFS(PRICING[Rebate $],PRICING[SKU],Rebate_Lookup[[#This Row],[SKU CODE]],PRICING[Set],3)","v":0},{"$f":"INDEX('2025 GOLF Only Fall Solutions'!J:J,MATCH(Rebate_Lookup[[#This Row],[SKU CODE]],'2025 GOLF Only Fall Solutions'!A:A,0))","v":0},{"$f":"IF(Rebate_Lookup[[#This Row],[Instances]]=1,1,\nIF(AND(Rebate_Lookup[[#This Row],[Instances]]=2,Rebate_Lookup[[#This Row],[Order Form Quantity]]<Rebate_Lookup[[#This Row],[MOQ_2]]),1,IF(AND(Rebate_Lookup[[#This Row],[Instances]]=2,Rebate_Lookup[[#This Row],[Order Form Quantity]]>=Rebate_Lookup[[#This Row],[MOQ_2]]),2,\nIF(AND(Rebate_Lookup[[#This Row],[Instances]]=3,Rebate_Lookup[[#This Row],[Order Form Quantity]]<Rebate_Lookup[[#This Row],[MOQ_2]]),1,IF(AND(Rebate_Lookup[[#This Row],[Instances]]=3,Rebate_Lookup[[#This Row],[MOQ_2]]<=Rebate_Lookup[[#This Row],[Order Form Quantity]],Rebate_Lookup[[#This Row],[Order Form Quantity]]<Rebate_Lookup[[#This Row],[MOQ_3]]),2,IF(AND(Rebate_Lookup[[#This Row],[Instances]]=3,Rebate_Lookup[[#This Row],[Order Form Quantity]]>=Rebate_Lookup[[#This Row],[MOQ_3]]),3))))))","v":1},{"$f":"COUNTIF('2025 GOLF Only Fall Solutions'!A:A,Rebate_Lookup[[#This Row],[SKU CODE]])","v":1},{"$f":"IFERROR(Rebate_Lookup[[#This Row],[Order Form Quantity]]>=Rebate_Lookup[[#This Row],[MOQ_2]],0)","v":false},null,{"$f":"COUNTIF('2025 GOLF Only Fall Solutions'!A:A,Rebate_Lookup[[#This Row],[SKU CODE]])","v":1}]
[null,11009500,{"$f":"INDEX(PRICING[Agency/TT],MATCH(Rebate_Lookup[[#This Row],[SKU CODE]],PRICING[SKU],0))","v":"A"},{"$f":"INDEX(PRICING[Product],MATCH(B20,PRICING[SKU],0))","v":"Fame® SC Fungicide"},{"$f":"INDEX(PRICING[Size],MATCH(Rebate_Lookup[[#This Row],[SKU CODE]],PRICING[SKU],0))","v":"2.5 gal"},{"$f":"INDEX(PRICING[Indication],MATCH(Rebate_Lookup[[#This Row],[SKU CODE]],PRICING[SKU],0))","v":"F"},{"$f":"COUNTIFS(PRICING[SKU],B20)","v":3},0,2,4,{"$f":"SUMIFS(PRICING[Rebate $],PRICING[SKU],Rebate_Lookup[[#This Row],[SKU CODE]],PRICING[Set],1)","v":0},{"$f":"SUMIFS(PRICING[Rebate $],PRICING[SKU],Rebate_Lookup[[#This Row],[SKU CODE]],PRICING[Set],2)","v":1450},{"$f":"SUMIFS(PRICING[Rebate $],PRICING[SKU],Rebate_Lookup[[#This Row],[SKU CODE]],PRICING[Set],3)","v":1600},{"$f":"INDEX('2025 GOLF Only Fall Solutions'!J:J,MATCH(Rebate_Lookup[[#This Row],[SKU CODE]],'2025 GOLF Only Fall Solutions'!A:A,0))","v":0},{"$f":"IF(Rebate_Lookup[[#This Row],[Instances]]=1,1,\nIF(AND(Rebate_Lookup[[#This Row],[Instances]]=2,Rebate_Lookup[[#This Row],[Order Form Quantity]]<Rebate_Lookup[[#This Row],[MOQ_2]]),1,IF(AND(Rebate_Lookup[[#This Row],[Instances]]=2,Rebate_Lookup[[#This Row],[Order Form Quantity]]>=Rebate_Lookup[[#This Row],[MOQ_2]]),2,\nIF(AND(Rebate_Lookup[[#This Row],[Instances]]=3,Rebate_Lookup[[#This Row],[Order Form Quantity]]<Rebate_Lookup[[#This Row],[MOQ_2]]),1,IF(AND(Rebate_Lookup[[#This Row],[Instances]]=3,Rebate_Lookup[[#This Row],[MOQ_2]]<=Rebate_Lookup[[#This Row],[Order Form Quantity]],Rebate_Lookup[[#This Row],[Order Form Quantity]]<Rebate_Lookup[[#This Row],[MOQ_3]]),2,IF(AND(Rebate_Lookup[[#This Row],[Instances]]=3,Rebate_Lookup[[#This Row],[Order Form Quantity]]>=Rebate_Lookup[[#This Row],[MOQ_3]]),3))))))","v":1},{"$f":"COUNTIF('2025 GOLF Only Fall Solutions'!A:A,Rebate_Lookup[[#This Row],[SKU CODE]])","v":1},{"$f":"IFERROR(Rebate_Lookup[[#This Row],[Order Form Quantity]]>=Rebate_Lookup[[#This Row],[MOQ_2]],0)","v":false},null,{"$f":"COUNTIF('2025 GOLF Only Fall Solutions'!A:A,Rebate_Lookup[[#This Row],[SKU CODE]])","v":1}]
[null,"D00000935",{"$f":"INDEX(PRICING[Agency/TT],MATCH(Rebate_Lookup[[#This Row],[SKU CODE]],PRICING[SKU],0))","v":"A"},{"$f":"INDEX(PRICING[Product],MATCH(B21,PRICING[SKU],0))","v":"Fiata® Stressgard®"},{"$f":"INDEX(PRICING[Size],MATCH(Rebate_Lookup[[#This Row],[SKU CODE]],PRICING[SKU],0))","v":" 2.5 gal"},{"$f":"INDEX(PRICING[Indication],MATCH(Rebate_Lookup[[#This Row],[SKU CODE]],PRICING[SKU],0))","v":"F"},{"$f":"COUNTIFS(PRICING[SKU],B21)","v":2},0,16,null,{"$f":"SUMIFS(PRICING[Rebate $],PRICING[SKU],Rebate_Lookup[[#This Row],[SKU CODE]],PRICING[Set],1)","v":0},{"$f":"SUMIFS(PRICING[Rebate $],PRICING[SKU],Rebate_Lookup[[#This Row],[SKU CODE]],PRICING[Set],2)","v":10},{"$f":"SUMIFS(PRICING[Rebate $],PRICING[SKU],Rebate_Lookup[[#This Row],[SKU CODE]],PRICING[Set],3)","v":0},{"$f":"INDEX('2025 GOLF Only Fall Solutions'!J:J,MATCH(Rebate_Lookup[[#This Row],[SKU CODE]],'2025 GOLF Only Fall Solutions'!A:A,0))","v":0},{"$f":"IF(Rebate_Lookup[[#This Row],[Instances]]=1,1,\nIF(AND(Rebate_Lookup[[#This Row],[Instances]]=2,Rebate_Lookup[[#This Row],[Order Form Quantity]]<Rebate_Lookup[[#This Row],[MOQ_2]]),1,IF(AND(Rebate_Lookup[[#This Row],[Instances]]=2,Rebate_Lookup[[#This Row],[Order Form Quantity]]>=Rebate_Lookup[[#This Row],[MOQ_2]]),2,\nIF(AND(Rebate_Lookup[[#This Row],[Instances]]=3,Rebate_Lookup[[#This Row],[Order Form Quantity]]<Rebate_Lookup[[#This Row],[MOQ_2]]),1,IF(AND(Rebate_Lookup[[#This Row],[Instances]]=3,Rebate_Lookup[[#This Row],[MOQ_2]]<=Rebate_Lookup[[#This Row],[Order Form Quantity]],Rebate_Lookup[[#This Row],[Order Form Quantity]]<Rebate_Lookup[[#This Row],[MOQ_3]]),2,IF(AND(Rebate_Lookup[[#This Row],[Instances]]=3,Rebate_Lookup[[#This Row],[Order Form Quantity]]>=Rebate_Lookup[[#This Row],[MOQ_3]]),3))))))","v":1},{"$f":"COUNTIF('2025 GOLF Only Fall Solutions'!A:A,Rebate_Lookup[[#This Row],[SKU CODE]])","v":1},{"$f":"IFERROR(Rebate_Lookup[[#This Row],[Order Form Quantity]]>=Rebate_Lookup[[#This Row],[MOQ_2]],0)","v":false},null,{"$f":"COUNTIF('2025 GOLF Only Fall Solutions'!A:A,Rebate_Lookup[[#This Row],[SKU CODE]])","v":1}]
[null,3944704,{"$f":"INDEX(PRICING[Agency/TT],MATCH(Rebate_Lookup[[#This Row],[SKU CODE]],PRICING[SKU],0))","v":"TT"},{"$f":"INDEX(PRICING[Product],MATCH(B22,PRICING[SKU],0))","v":"Forbid"},{"$f":"INDEX(PRICING[Size],MATCH(Rebate_Lookup[[#This Row],[SKU CODE]],PRICING[SKU],0))","v":"8 oz "},{"$f":"INDEX(PRICING[Indication],MATCH(Rebate_Lookup[[#This Row],[SKU CODE]],PRICING[SKU],0))","v":"I"},{"$f":"COUNTIFS(PRICING[SKU],B22)","v":1},0,null,null,null,{"$f":"SUMIFS(PRICING[Rebate $],PRICING[Program],\"NOW\",PRICING[SKU],Rebate_Lookup[[#This Row],[SKU CODE]],PRICING[Set],2)","v":0},{"$f":"SUMIFS(PRICING[Rebate $],PRICING[Program],\"NOW\",PRICING[SKU],Rebate_Lookup[[#This Row],[SKU CODE]],PRICING[Set],3)","v":0},{"$f":"INDEX('2025 GOLF Only Fall Solutions'!J:J,MATCH(Rebate_Lookup[[#This Row],[SKU CODE]],'2025 GOLF Only Fall Solutions'!A:A,0))","v":0},{"$f":"IF(Rebate_Lookup[[#This Row],[Instances]]=1,1,\nIF(AND(Rebate_Lookup[[#This Row],[Instances]]=2,Rebate_Lookup[[#This Row],[Order Form Quantity]]<Rebate_Lookup[[#This Row],[MOQ_2]]),1,IF(AND(Rebate_Lookup[[#This Row],[Instances]]=2,Rebate_Lookup[[#This Row],[Order Form Quantity]]>=Rebate_Lookup[[#This Row],[MOQ_2]]),2,\nIF(AND(Rebate_Lookup[[#This Row],[Instances]]=3,Rebate_Lookup[[#This Row],[Order Form Quantity]]<Rebate_Lookup[[#This Row],[MOQ_2]]),1,IF(AND(Rebate_Lookup[[#This Row],[Instances]]=3,Rebate_Lookup[[#This Row],[MOQ_2]]<=Rebate_Lookup[[#This Row],[Order Form Quantity]],Rebate_Lookup[[#This Row],[Order Form Quantity]]<Rebate_Lookup[[#This Row],[MOQ_3]]),2,IF(AND(Rebate_Lookup[[#This Row],[Instances]]=3,Rebate_Lookup[[#This Row],[Order Form Quantity]]>=Rebate_Lookup[[#This Row],[MOQ_3]]),3))))))","v":1},{"$f":"COUNTIF('2025 GOLF Only Fall Solutions'!A:A,Rebate_Lookup[[#This Row],[SKU CODE]])","v":1},{"$f":"IFERROR(Rebate_Lookup[[#This Row],[Order Form Quantity]]>=Rebate_Lookup[[#This Row],[MOQ_2]],0)","v":true}]
[null,"D00001379",{"$f":"INDEX(PRICING[Agency/TT],MATCH(Rebate_Lookup[[#This Row],[SKU CODE]],PRICING[SKU],0))","v":"A"},{"$f":"INDEX(PRICING[Product],MATCH(B23,PRICING[SKU],0))","v":"Indemnify®"},{"$f":"INDEX(PRICING[Size],MATCH(Rebate_Lookup[[#This Row],[SKU CODE]],PRICING[SKU],0))","v":"17.1 fl oz"},{"$f":"INDEX(PRICING[Indication],MATCH(Rebate_Lookup[[#This Row],[SKU CODE]],PRICING[SKU],0))","v":"F"},{"$f":"COUNTIFS(PRICING[SKU],B23)","v":3},0,3,6,{"$f":"SUMIFS(PRICING[Rebate $],PRICING[SKU],Rebate_Lookup[[#This Row],[SKU CODE]],PRICING[Set],1)","v":0},{"$f":"SUMIFS(PRICING[Rebate $],PRICING[SKU],Rebate_Lookup[[#This Row],[SKU CODE]],PRICING[Set],2)","v":185},{"$f":"SUMIFS(PRICING[Rebate $],PRICING[SKU],Rebate_Lookup[[#This Row],[SKU CODE]],PRICING[Set],3)","v":410},{"$f":"INDEX('2025 GOLF Only Fall Solutions'!J:J,MATCH(Rebate_Lookup[[#This Row],[SKU CODE]],'2025 GOLF Only Fall Solutions'!A:A,0))","v":0},{"$f":"IF(Rebate_Lookup[[#This Row],[Instances]]=1,1,\nIF(AND(Rebate_Lookup[[#This Row],[Instances]]=2,Rebate_Lookup[[#This Row],[Order Form Quantity]]<Rebate_Lookup[[#This Row],[MOQ_2]]),1,IF(AND(Rebate_Lookup[[#This Row],[Instances]]=2,Rebate_Lookup[[#This Row],[Order Form Quantity]]>=Rebate_Lookup[[#This Row],[MOQ_2]]),2,\nIF(AND(Rebate_Lookup[[#This Row],[Instances]]=3,Rebate_Lookup[[#This Row],[Order Form Quantity]]<Rebate_Lookup[[#This Row],[MOQ_2]]),1,IF(AND(Rebate_Lookup[[#This Row],[Instances]]=3,Rebate_Lookup[[#This Row],[MOQ_2]]<=Rebate_Lookup[[#This Row],[Order Form Quantity]],Rebate_Lookup[[#This Row],[Order Form Quantity]]<Rebate_Lookup[[#This Row],[MOQ_3]]),2,IF(AND(Rebate_Lookup[[#This Row],[Instances]]=3,Rebate_Lookup[[#This Row],[Order Form Quantity]]>=Rebate_Lookup[[#This Row],[MOQ_3]]),3))))))","v":1},{"$f":"COUNTIF('2025 GOLF Only Fall Solutions'!A:A,Rebate_Lookup[[#This Row],[SKU CODE]])","v":1},{"$f":"IFERROR(Rebate_Lookup[[#This Row],[Order Form Quantity]]>=Rebate_Lookup[[#This Row],[MOQ_2]],0)","v":false},null,{"$f":"COUNTIF('2025 GOLF Only Fall Solutions'!A:A,Rebate_Lookup[[#This Row],[SKU CODE]])","v":1}]
[null,81701245,{"$f":"INDEX(PRICING[Agency/TT],MATCH(Rebate_Lookup[[#This Row],[SKU CODE]],PRICING[SKU],0))","v":"A"},{"$f":"INDEX(PRICING[Product],MATCH(B24,PRICING[SKU],0))","v":"Interface® Stressgard®"},{"$f":"INDEX(PRICING[Size],MATCH(Rebate_Lookup[[#This Row],[SKU CODE]],PRICING[SKU],0))","v":"2.5 gal"},{"$f":"INDEX(PRICING[Indication],MATCH(Rebate_Lookup[[#This Row],[SKU CODE]],PRICING[SKU],0))","v":"F"},{"$f":"COUNTIFS(PRICING[SKU],B24)","v":2},0,6,null,{"$f":"SUMIFS(PRICING[Rebate $],PRICING[SKU],Rebate_Lookup[[#This Row],[SKU CODE]],PRICING[Set],1)","v":0},{"$f":"SUMIFS(PRICING[Rebate $],PRICING[SKU],Rebate_Lookup[[#This Row],[SKU CODE]],PRICING[Set],2)","v":90},{"$f":"SUMIFS(PRICING[Rebate $],PRICING[SKU],Rebate_Lookup[[#This Row],[SKU CODE]],PRICING[Set],3)","v":0},{"$f":"INDEX('2025 GOLF Only Fall Solutions'!J:J,MATCH(Rebate_Lookup[[#This Row],[SKU CODE]],'2025 GOLF Only Fall Solutions'!A:A,0))","v":0},{"$f":"IF(Rebate_Lookup[[#This Row],[Instances]]=1,1,\nIF(AND(Rebate_Lookup[[#This Row],[Instances]]=2,Rebate_Lookup[[#This Row],[Order Form Quantity]]<Rebate_Lookup[[#This Row],[MOQ_2]]),1,IF(AND(Rebate_Lookup[[#This Row],[Instances]]=2,Rebate_Lookup[[#This Row],[Order Form Quantity]]>=Rebate_Lookup[[#This Row],[MOQ_2]]),2,\nIF(AND(Rebate_Lookup[[#This Row],[Instances]]=3,Rebate_Lookup[[#This Row],[Order Form Quantity]]<Rebate_Lookup[[#This Row],[MOQ_2]]),1,IF(AND(Rebate_Lookup[[#This Row],[Instances]]=3,Rebate_Lookup[[#This Row],[MOQ_2]]<=Rebate_Lookup[[#This Row],[Order Form Quantity]],Rebate_Lookup[[#This Row],[Order Form Quantity]]<Rebate_Lookup[[#This Row],[MOQ_3]]),2,IF(AND(Rebate_Lookup[[#This Row],[Instances]]=3,Rebate_Lookup[[#This Row],[Order Form Quantity]]>=Rebate_Lookup[[#This Row],[MOQ_3]]),3))))))","v":1},{"$f":"COUNTIF('2025 GOLF Only Fall Solutions'!A:A,Rebate_Lookup[[#This Row],[SKU CODE]])","v":1},{"$f":"IFERROR(Rebate_Lookup[[#This Row],[Order Form Quantity]]>=Rebate_Lookup[[#This Row],[MOQ_2]],0)","v":false},null,{"$f":"COUNTIF('2025 GOLF Only Fall Solutions'!A:A,Rebate_Lookup[[#This Row],[SKU CODE]])","v":1}]
[null,11013671,{"$f":"INDEX(PRICING[Agency/TT],MATCH(Rebate_Lookup[[#This Row],[SKU CODE]],PRICING[SKU],0))","v":"A"},{"$f":"INDEX(PRICING[Product],MATCH(B25,PRICING[SKU],0))","v":"Kalida® Fungicide "},{"$f":"INDEX(PRICING[Size],MATCH(Rebate_Lookup[[#This Row],[SKU CODE]],PRICING[SKU],0))","v":"64 oz"},{"$f":"INDEX(PRICING[Indication],MATCH(Rebate_Lookup[[#This Row],[SKU CODE]],PRICING[SKU],0))","v":"F"},{"$f":"COUNTIFS(PRICING[SKU],B25)","v":2},0,4,null,{"$f":"SUMIFS(PRICING[Rebate $],PRICING[SKU],Rebate_Lookup[[#This Row],[SKU CODE]],PRICING[Set],1)","v":0},{"$f":"SUMIFS(PRICING[Rebate $],PRICING[SKU],Rebate_Lookup[[#This Row],[SKU CODE]],PRICING[Set],2)","v":295},{"$f":"SUMIFS(PRICING[Rebate $],PRICING[SKU],Rebate_Lookup[[#This Row],[SKU CODE]],PRICING[Set],3)","v":0},{"$f":"INDEX('2025 GOLF Only Fall Solutions'!J:J,MATCH(Rebate_Lookup[[#This Row],[SKU CODE]],'2025 GOLF Only Fall Solutions'!A:A,0))","v":0},{"$f":"IF(Rebate_Lookup[[#This Row],[Instances]]=1,1,\nIF(AND(Rebate_Lookup[[#This Row],[Instances]]=2,Rebate_Lookup[[#This Row],[Order Form Quantity]]<Rebate_Lookup[[#This Row],[MOQ_2]]),1,IF(AND(Rebate_Lookup[[#This Row],[Instances]]=2,Rebate_Lookup[[#This Row],[Order Form Quantity]]>=Rebate_Lookup[[#This Row],[MOQ_2]]),2,\nIF(AND(Rebate_Lookup[[#This Row],[Instances]]=3,Rebate_Lookup[[#This Row],[Order Form Quantity]]<Rebate_Lookup[[#This Row],[MOQ_2]]),1,IF(AND(Rebate_Lookup[[#This Row],[Instances]]=3,Rebate_Lookup[[#This Row],[MOQ_2]]<=Rebate_Lookup[[#This Row],[Order Form Quantity]],Rebate_Lookup[[#This Row],[Order Form Quantity]]<Rebate_Lookup[[#This Row],[MOQ_3]]),2,IF(AND(Rebate_Lookup[[#This Row],[Instances]]=3,Rebate_Lookup[[#This Row],[Order Form Quantity]]>=Rebate_Lookup[[#This Row],[MOQ_3]]),3))))))","v":1},{"$f":"COUNTIF('2025 GOLF Only Fall Solutions'!A:A,Rebate_Lookup[[#This Row],[SKU CODE]])","v":1},{"$f":"IFERROR(Rebate_Lookup[[#This Row],[Order Form Quantity]]>=Rebate_Lookup[[#This Row],[MOQ_2]],0)","v":false},null,{"$f":"COUNTIF('2025 GOLF Only Fall Solutions'!A:A,Rebate_Lookup[[#This Row],[SKU CODE]])","v":1}]
[null,"D00000965",{"$f":"INDEX(PRICING[Agency/TT],MATCH(Rebate_Lookup[[#This Row],[SKU CODE]],PRICING[SKU],0))","v":"A"},{"$f":"INDEX(PRICING[Product],MATCH(B26,PRICING[SKU],0))","v":"Mirage® Stressgard®"},{"$f":"INDEX(PRICING[Size],MATCH(Rebate_Lookup[[#This Row],[SKU CODE]],PRICING[SKU],0))","v":"2.5 gal"},{"$f":"INDEX(PRICING[Indication],MATCH(Rebate_Lookup[[#This Row],[SKU CODE]],PRICING[SKU],0))","v":"F"},{"$f":"COUNTIFS(PRICING[SKU],B26)","v":2},0,4,null,{"$f":"SUMIFS(PRICING[Rebate $],PRICING[SKU],Rebate_Lookup[[#This Row],[SKU CODE]],PRICING[Set],1)","v":0},{"$f":"SUMIFS(PRICING[Rebate $],PRICING[SKU],Rebate_Lookup[[#This Row],[SKU CODE]],PRICING[Set],2)","v":90},{"$f":"SUMIFS(PRICING[Rebate $],PRICING[SKU],Rebate_Lookup[[#This Row],[SKU CODE]],PRICING[Set],3)","v":0},{"$f":"INDEX('2025 GOLF Only Fall Solutions'!J:J,MATCH(Rebate_Lookup[[#This Row],[SKU CODE]],'2025 GOLF Only Fall Solutions'!A:A,0))","v":0},{"$f":"IF(Rebate_Lookup[[#This Row],[Instances]]=1,1,\nIF(AND(Rebate_Lookup[[#This Row],[Instances]]=2,Rebate_Lookup[[#This Row],[Order Form Quantity]]<Rebate_Lookup[[#This Row],[MOQ_2]]),1,IF(AND(Rebate_Lookup[[#This Row],[Instances]]=2,Rebate_Lookup[[#This Row],[Order Form Quantity]]>=Rebate_Lookup[[#This Row],[MOQ_2]]),2,\nIF(AND(Rebate_Lookup[[#This Row],[Instances]]=3,Rebate_Lookup[[#This Row],[Order Form Quantity]]<Rebate_Lookup[[#This Row],[MOQ_2]]),1,IF(AND(Rebate_Lookup[[#This Row],[Instances]]=3,Rebate_Lookup[[#This Row],[MOQ_2]]<=Rebate_Lookup[[#This Row],[Order Form Quantity]],Rebate_Lookup[[#This Row],[Order Form Quantity]]<Rebate_Lookup[[#This Row],[MOQ_3]]),2,IF(AND(Rebate_Lookup[[#This Row],[Instances]]=3,Rebate_Lookup[[#This Row],[Order Form Quantity]]>=Rebate_Lookup[[#This Row],[MOQ_3]]),3))))))","v":1},{"$f":"COUNTIF('2025 GOLF Only Fall Solutions'!A:A,Rebate_Lookup[[#This Row],[SKU CODE]])","v":1},{"$f":"IFERROR(Rebate_Lookup[[#This Row],[Order Form Quantity]]>=Rebate_Lookup[[#This Row],[MOQ_2]],0)","v":false},null,{"$f":"COUNTIF('2025 GOLF Only Fall Solutions'!A:A,Rebate_Lookup[[#This Row],[SKU CODE]])","v":1}]
[null,11003880,{"$f":"INDEX(PRICING[Agency/TT],MATCH(Rebate_Lookup[[#This Row],[SKU CODE]],PRICING[SKU],0))","v":"A"},{"$f":"INDEX(PRICING[Product],MATCH(B27,PRICING[SKU],0))","v":"Rayora® Fungicide "},{"$f":"INDEX(PRICING[Size],MATCH(Rebate_Lookup[[#This Row],[SKU CODE]],PRICING[SKU],0))","v":"2.5 gal"},{"$f":"INDEX(PRICING[Indication],MATCH(Rebate_Lookup[[#This Row],[SKU CODE]],PRICING[SKU],0))","v":"F"},{"$f":"COUNTIFS(PRICING[SKU],B27)","v":2},0,6,null,{"$f":"SUMIFS(PRICING[Rebate $],PRICING[SKU],Rebate_Lookup[[#This Row],[SKU CODE]],PRICING[Set],1)","v":0},{"$f":"SUMIFS(PRICING[Rebate $],PRICING[SKU],Rebate_Lookup[[#This Row],[SKU CODE]],PRICING[Set],2)","v":160},{"$f":"SUMIFS(PRICING[Rebate $],PRICING[SKU],Rebate_Lookup[[#This Row],[SKU CODE]],PRICING[Set],3)","v":0},{"$f":"INDEX('2025 GOLF Only Fall Solutions'!J:J,MATCH(Rebate_Lookup[[#This Row],[SKU CODE]],'2025 GOLF Only Fall Solutions'!A:A,0))","v":0},{"$f":"IF(Rebate_Lookup[[#This Row],[Instances]]=1,1,\nIF(AND(Rebate_Lookup[[#This Row],[Instances]]=2,Rebate_Lookup[[#This Row],[Order Form Quantity]]<Rebate_Lookup[[#This Row],[MOQ_2]]),1,IF(AND(Rebate_Lookup[[#This Row],[Instances]]=2,Rebate_Lookup[[#This Row],[Order Form Quantity]]>=Rebate_Lookup[[#This Row],[MOQ_2]]),2,\nIF(AND(Rebate_Lookup[[#This Row],[Instances]]=3,Rebate_Lookup[[#This Row],[Order Form Quantity]]<Rebate_Lookup[[#This Row],[MOQ_2]]),1,IF(AND(Rebate_Lookup[[#This Row],[Instances]]=3,Rebate_Lookup[[#This Row],[MOQ_2]]<=Rebate_Lookup[[#This Row],[Order Form Quantity]],Rebate_Lookup[[#This Row],[Order Form Quantity]]<Rebate_Lookup[[#This Row],[MOQ_3]]),2,IF(AND(Rebate_Lookup[[#This Row],[Instances]]=3,Rebate_Lookup[[#This Row],[Order Form Quantity]]>=Rebate_Lookup[[#This Row],[MOQ_3]]),3))))))","v":1},{"$f":"COUNTIF('2025 GOLF Only Fall Solutions'!A:A,Rebate_Lookup[[#This Row],[SKU CODE]])","v":1},{"$f":"IFERROR(Rebate_Lookup[[#This Row],[Order Form Quantity]]>=Rebate_Lookup[[#This Row],[MOQ_2]],0)","v":false},null,{"$f":"COUNTIF('2025 GOLF Only Fall Solutions'!A:A,Rebate_Lookup[[#This Row],[SKU CODE]])","v":1}]
[null,"D00000125",{"$f":"INDEX(PRICING[Agency/TT],MATCH(Rebate_Lookup[[#This Row],[SKU CODE]],PRICING[SKU],0))","v":"A"},{"$f":"INDEX(PRICING[Product],MATCH(B28,PRICING[SKU],0))","v":"Resilia™"},{"$f":"INDEX(PRICING[Size],MATCH(Rebate_Lookup[[#This Row],[SKU CODE]],PRICING[SKU],0))","v":"2.72 gal"},{"$f":"INDEX(PRICING[Indication],MATCH(Rebate_Lookup[[#This Row],[SKU CODE]],PRICING[SKU],0))","v":"F"},{"$f":"COUNTIFS(PRICING[SKU],B28)","v":3},0,4,15,{"$f":"SUMIFS(PRICING[Rebate $],PRICING[SKU],Rebate_Lookup[[#This Row],[SKU CODE]],PRICING[Set],1)","v":0},{"$f":"SUMIFS(PRICING[Rebate $],PRICING[SKU],Rebate_Lookup[[#This Row],[SKU CODE]],PRICING[Set],2)","v":65},{"$f":"SUMIFS(PRICING[Rebate $],PRICING[SKU],Rebate_Lookup[[#This Row],[SKU CODE]],PRICING[Set],3)","v":180},{"$f":"INDEX('2025 GOLF Only Fall Solutions'!J:J,MATCH(Rebate_Lookup[[#This Row],[SKU CODE]],'2025 GOLF Only Fall Solutions'!A:A,0))","v":0},{"$f":"IF(Rebate_Lookup[[#This Row],[Instances]]=1,1,\nIF(AND(Rebate_Lookup[[#This Row],[Instances]]=2,Rebate_Lookup[[#This Row],[Order Form Quantity]]<Rebate_Lookup[[#This Row],[MOQ_2]]),1,IF(AND(Rebate_Lookup[[#This Row],[Instances]]=2,Rebate_Lookup[[#This Row],[Order Form Quantity]]>=Rebate_Lookup[[#This Row],[MOQ_2]]),2,\nIF(AND(Rebate_Lookup[[#This Row],[Instances]]=3,Rebate_Lookup[[#This Row],[Order Form Quantity]]<Rebate_Lookup[[#This Row],[MOQ_2]]),1,IF(AND(Rebate_Lookup[[#This Row],[Instances]]=3,Rebate_Lookup[[#This Row],[MOQ_2]]<=Rebate_Lookup[[#This Row],[Order Form Quantity]],Rebate_Lookup[[#This Row],[Order Form Quantity]]<Rebate_Lookup[[#This Row],[MOQ_3]]),2,IF(AND(Rebate_Lookup[[#This Row],[Instances]]=3,Rebate_Lookup[[#This Row],[Order Form Quantity]]>=Rebate_Lookup[[#This Row],[MOQ_3]]),3))))))","v":1},{"$f":"COUNTIF('2025 GOLF Only Fall Solutions'!A:A,Rebate_Lookup[[#This Row],[SKU CODE]])","v":1},{"$f":"IFERROR(Rebate_Lookup[[#This Row],[Order Form Quantity]]>=Rebate_Lookup[[#This Row],[MOQ_2]],0)","v":false},null,{"$f":"COUNTIF('2025 GOLF Only Fall Solutions'!A:A,Rebate_Lookup[[#This Row],[SKU CODE]])","v":1}]
[null,79545312,{"$f":"INDEX(PRICING[Agency/TT],MATCH(Rebate_Lookup[[#This Row],[SKU CODE]],PRICING[SKU],0))","v":"A"},{"$f":"INDEX(PRICING[Product],MATCH(B29,PRICING[SKU],0))","v":"Revolver®"},{"$f":"INDEX(PRICING[Size],MATCH(Rebate_Lookup[[#This Row],[SKU CODE]],PRICING[SKU],0))","v":"87 fl oz"},{"$f":"INDEX(PRICING[Indication],MATCH(Rebate_Lookup[[#This Row],[SKU CODE]],PRICING[SKU],0))","v":"H"},{"$f":"COUNTIFS(PRICING[SKU],B29)","v":2},0,16,null,{"$f":"SUMIFS(PRICING[Rebate $],PRICING[SKU],Rebate_Lookup[[#This Row],[SKU CODE]],PRICING[Set],1)","v":0},{"$f":"SUMIFS(PRICING[Rebate $],PRICING[SKU],Rebate_Lookup[[#This Row],[SKU CODE]],PRICING[Set],2)","v":50},{"$f":"SUMIFS(PRICING[Rebate $],PRICING[SKU],Rebate_Lookup[[#This Row],[SKU CODE]],PRICING[Set],3)","v":0},{"$f":"INDEX('2025 GOLF Only Fall Solutions'!J:J,MATCH(Rebate_Lookup[[#This Row],[SKU CODE]],'2025 GOLF Only Fall Solutions'!A:A,0))","v":0},{"$f":"IF(Rebate_Lookup[[#This Row],[Instances]]=1,1,\nIF(AND(Rebate_Lookup[[#This Row],[Instances]]=2,Rebate_Lookup[[#This Row],[Order Form Quantity]]<Rebate_Lookup[[#This Row],[MOQ_2]]),1,IF(AND(Rebate_Lookup[[#This Row],[Instances]]=2,Rebate_Lookup[[#This Row],[Order Form Quantity]]>=Rebate_Lookup[[#This Row],[MOQ_2]]),2,\nIF(AND(Rebate_Lookup[[#This Row],[Instances]]=3,Rebate_Lookup[[#This Row],[Order Form Quantity]]<Rebate_Lookup[[#This Row],[MOQ_2]]),1,IF(AND(Rebate_Lookup[[#This Row],[Instances]]=3,Rebate_Lookup[[#This Row],[MOQ_2]]<=Rebate_Lookup[[#This Row],[Order Form Quantity]],Rebate_Lookup[[#This Row],[Order Form Quantity]]<Rebate_Lookup[[#This Row],[MOQ_3]]),2,IF(AND(Rebate_Lookup[[#This Row],[Instances]]=3,Rebate_Lookup[[#This Row],[Order Form Quantity]]>=Rebate_Lookup[[#This Row],[MOQ_3]]),3))))))","v":1},{"$f":"COUNTIF('2025 GOLF Only Fall Solutions'!A:A,Rebate_Lookup[[#This Row],[SKU CODE]])","v":1},{"$f":"IFERROR(Rebate_Lookup[[#This Row],[Order Form Quantity]]>=Rebate_Lookup[[#This Row],[MOQ_2]],0)","v":false},null,{"$f":"COUNTIF('2025 GOLF Only Fall Solutions'!A:A,Rebate_Lookup[[#This Row],[SKU CODE]])","v":1}]
[null,"D00000986",{"$f":"INDEX(PRICING[Agency/TT],MATCH(Rebate_Lookup[[#This Row],[SKU CODE]],PRICING[SKU],0))","v":"A"},{"$f":"INDEX(PRICING[Product],MATCH(B30,PRICING[SKU],0))","v":"Ronstar® FLO "},{"$f":"INDEX(PRICING[Size],MATCH(Rebate_Lookup[[#This Row],[SKU CODE]],PRICING[SKU],0))","v":"2.5 gal"},{"$f":"INDEX(PRICING[Indication],MATCH(Rebate_Lookup[[#This Row],[SKU CODE]],PRICING[SKU],0))","v":"H"},{"$f":"COUNTIFS(PRICING[SKU],B30)","v":2},1,12,40,{"$f":"SUMIFS(PRICING[Rebate $],PRICING[SKU],Rebate_Lookup[[#This Row],[SKU CODE]],PRICING[Set],1)","v":0},{"$f":"SUMIFS(PRICING[Rebate $],PRICING[SKU],Rebate_Lookup[[#This Row],[SKU CODE]],PRICING[Set],2)","v":0},{"$f":"SUMIFS(PRICING[Rebate $],PRICING[SKU],Rebate_Lookup[[#This Row],[SKU CODE]],PRICING[Set],3)","v":0},{"$f":"INDEX('2025 GOLF Only Fall Solutions'!J:J,MATCH(Rebate_Lookup[[#This Row],[SKU CODE]],'2025 GOLF Only Fall Solutions'!A:A,0))","v":0},{"$f":"IF(Rebate_Lookup[[#This Row],[Instances]]=1,1,\nIF(AND(Rebate_Lookup[[#This Row],[Instances]]=2,Rebate_Lookup[[#This Row],[Order Form Quantity]]<Rebate_Lookup[[#This Row],[MOQ_2]]),1,IF(AND(Rebate_Lookup[[#This Row],[Instances]]=2,Rebate_Lookup[[#This Row],[Order Form Quantity]]>=Rebate_Lookup[[#This Row],[MOQ_2]]),2,\nIF(AND(Rebate_Lookup[[#This Row],[Instances]]=3,Rebate_Lookup[[#This Row],[Order Form Quantity]]<Rebate_Lookup[[#This Row],[MOQ_2]]),1,IF(AND(Rebate_Lookup[[#This Row],[Instances]]=3,Rebate_Lookup[[#This Row],[MOQ_2]]<=Rebate_Lookup[[#This Row],[Order Form Quantity]],Rebate_Lookup[[#This Row],[Order Form Quantity]]<Rebate_Lookup[[#This Row],[MOQ_3]]),2,IF(AND(Rebate_Lookup[[#This Row],[Instances]]=3,Rebate_Lookup[[#This Row],[Order Form Quantity]]>=Rebate_Lookup[[#This Row],[MOQ_3]]),3))))))","v":1},{"$f":"COUNTIF('2025 GOLF Only Fall Solutions'!A:A,Rebate_Lookup[[#This Row],[SKU CODE]])","v":2},{"$f":"IFERROR(Rebate_Lookup[[#This Row],[Order Form Quantity]]>=Rebate_Lookup[[#This Row],[MOQ_2]],0)","v":false},null,{"$f":"COUNTIF('2025 GOLF Only Fall Solutions'!A:A,Rebate_Lookup[[#This Row],[SKU CODE]])","v":2}]
[null,11009495,{"$f":"INDEX(PRICING[Agency/TT],MATCH(Rebate_Lookup[[#This Row],[SKU CODE]],PRICING[SKU],0))","v":"A"},{"$f":"INDEX(PRICING[Product],MATCH(B31,PRICING[SKU],0))","v":"Scion"},{"$f":"INDEX(PRICING[Size],MATCH(Rebate_Lookup[[#This Row],[SKU CODE]],PRICING[SKU],0))","v":"32 oz"},{"$f":"INDEX(PRICING[Indication],MATCH(Rebate_Lookup[[#This Row],[SKU CODE]],PRICING[SKU],0))","v":"I"},{"$f":"COUNTIFS(PRICING[SKU],B31)","v":1},1,null,null,38,{"$f":"SUMIFS(PRICING[Rebate $],PRICING[SKU],Rebate_Lookup[[#This Row],[SKU CODE]],PRICING[Set],2)","v":0},{"$f":"SUMIFS(PRICING[Rebate $],PRICING[SKU],Rebate_Lookup[[#This Row],[SKU CODE]],PRICING[Set],3)","v":0},{"$f":"INDEX('2025 GOLF Only Fall Solutions'!J:J,MATCH(Rebate_Lookup[[#This Row],[SKU CODE]],'2025 GOLF Only Fall Solutions'!A:A,0))","v":{"$error":"#N/A"}},{"$f":"IF(Rebate_Lookup[[#This Row],[Instances]]=1,1,\nIF(AND(Rebate_Lookup[[#This Row],[Instances]]=2,Rebate_Lookup[[#This Row],[Order Form Quantity]]<Rebate_Lookup[[#This Row],[MOQ_2]]),1,IF(AND(Rebate_Lookup[[#This Row],[Instances]]=2,Rebate_Lookup[[#This Row],[Order Form Quantity]]>=Rebate_Lookup[[#This Row],[MOQ_2]]),2,\nIF(AND(Rebate_Lookup[[#This Row],[Instances]]=3,Rebate_Lookup[[#This Row],[Order Form Quantity]]<Rebate_Lookup[[#This Row],[MOQ_2]]),1,IF(AND(Rebate_Lookup[[#This Row],[Instances]]=3,Rebate_Lookup[[#This Row],[MOQ_2]]<=Rebate_Lookup[[#This Row],[Order Form Quantity]],Rebate_Lookup[[#This Row],[Order Form Quantity]]<Rebate_Lookup[[#This Row],[MOQ_3]]),2,IF(AND(Rebate_Lookup[[#This Row],[Instances]]=3,Rebate_Lookup[[#This Row],[Order Form Quantity]]>=Rebate_Lookup[[#This Row],[MOQ_3]]),3))))))","v":1},{"$f":"COUNTIF('2025 GOLF Only Fall Solutions'!A:A,Rebate_Lookup[[#This Row],[SKU CODE]])","v":0},{"$f":"IFERROR(Rebate_Lookup[[#This Row],[Order Form Quantity]]>=Rebate_Lookup[[#This Row],[MOQ_2]],0)","v":0},null,{"$f":"COUNTIF('2025 GOLF Only Fall Solutions'!A:A,Rebate_Lookup[[#This Row],[SKU CODE]])","v":0}]
[null,11014245,{"$f":"INDEX(PRICING[Agency/TT],MATCH(Rebate_Lookup[[#This Row],[SKU CODE]],PRICING[SKU],0))","v":"A"},{"$f":"INDEX(PRICING[Product],MATCH(B32,PRICING[SKU],0))","v":"Serata® Fungicide "},{"$f":"INDEX(PRICING[Size],MATCH(Rebate_Lookup[[#This Row],[SKU CODE]],PRICING[SKU],0))","v":"35 oz"},{"$f":"INDEX(PRICING[Indication],MATCH(Rebate_Lookup[[#This Row],[SKU CODE]],PRICING[SKU],0))","v":"F"},{"$f":"COUNTIFS(PRICING[SKU],B32)","v":2},0,8,null,{"$f":"SUMIFS(PRICING[Rebate $],PRICING[SKU],Rebate_Lookup[[#This Row],[SKU CODE]],PRICING[Set],1)","v":0},{"$f":"SUMIFS(PRICING[Rebate $],PRICING[SKU],Rebate_Lookup[[#This Row],[SKU CODE]],PRICING[Set],2)","v":15},{"$f":"SUMIFS(PRICING[Rebate $],PRICING[SKU],Rebate_Lookup[[#This Row],[SKU CODE]],PRICING[Set],3)","v":0},{"$f":"INDEX('2025 GOLF Only Fall Solutions'!J:J,MATCH(Rebate_Lookup[[#This Row],[SKU CODE]],'2025 GOLF Only Fall Solutions'!A:A,0))","v":0},{"$f":"IF(Rebate_Lookup[[#This Row],[Instances]]=1,1,\nIF(AND(Rebate_Lookup[[#This Row],[Instances]]=2,Rebate_Lookup[[#This Row],[Order Form Quantity]]<Rebate_Lookup[[#This Row],[MOQ_2]]),1,IF(AND(Rebate_Lookup[[#This Row],[Instances]]=2,Rebate_Lookup[[#This Row],[Order Form Quantity]]>=Rebate_Lookup[[#This Row],[MOQ_2]]),2,\nIF(AND(Rebate_Lookup[[#This Row],[Instances]]=3,Rebate_Lookup[[#This Row],[Order Form Quantity]]<Rebate_Lookup[[#This Row],[MOQ_2]]),1,IF(AND(Rebate_Lookup[[#This Row],[Instances]]=3,Rebate_Lookup[[#This Row],[MOQ_2]]<=Rebate_Lookup[[#This Row],[Order Form Quantity]],Rebate_Lookup[[#This Row],[Order Form Quantity]]<Rebate_Lookup[[#This Row],[MOQ_3]]),2,IF(AND(Rebate_Lookup[[#This Row],[Instances]]=3,Rebate_Lookup[[#This Row],[Order Form Quantity]]>=Rebate_Lookup[[#This Row],[MOQ_3]]),3))))))","v":1},{"$f":"COUNTIF('2025 GOLF Only Fall Solutions'!A:A,Rebate_Lookup[[#This Row],[SKU CODE]])","v":1},{"$f":"IFERROR(Rebate_Lookup[[#This Row],[Order Form Quantity]]>=Rebate_Lookup[[#This Row],[MOQ_2]],0)","v":false},null,{"$f":"COUNTIF('2025 GOLF Only Fall Solutions'!A:A,Rebate_Lookup[[#This Row],[SKU CODE]])","v":1}]
[null,"D00000989",{"$f":"INDEX(PRICING[Agency/TT],MATCH(Rebate_Lookup[[#This Row],[SKU CODE]],PRICING[SKU],0))","v":"A"},{"$f":"INDEX(PRICING[Product],MATCH(B33,PRICING[SKU],0))","v":"Signature™ XTRA Stressgard® "},{"$f":"INDEX(PRICING[Size],MATCH(Rebate_Lookup[[#This Row],[SKU CODE]],PRICING[SKU],0))","v":"5.5 lb"},{"$f":"INDEX(PRICING[Indication],MATCH(Rebate_Lookup[[#This Row],[SKU CODE]],PRICING[SKU],0))","v":"F"},{"$f":"COUNTIFS(PRICING[SKU],B33)","v":2},0,24,null,{"$f":"SUMIFS(PRICING[Rebate $],PRICING[SKU],Rebate_Lookup[[#This Row],[SKU CODE]],PRICING[Set],1)","v":0},{"$f":"SUMIFS(PRICING[Rebate $],PRICING[SKU],Rebate_Lookup[[#This Row],[SKU CODE]],PRICING[Set],2)","v":15},{"$f":"SUMIFS(PRICING[Rebate $],PRICING[SKU],Rebate_Lookup[[#This Row],[SKU CODE]],PRICING[Set],3)","v":0},{"$f":"INDEX('2025 GOLF Only Fall Solutions'!J:J,MATCH(Rebate_Lookup[[#This Row],[SKU CODE]],'2025 GOLF Only Fall Solutions'!A:A,0))","v":0},{"$f":"IF(Rebate_Lookup[[#This Row],[Instances]]=1,1,\nIF(AND(Rebate_Lookup[[#This Row],[Instances]]=2,Rebate_Lookup[[#This Row],[Order Form Quantity]]<Rebate_Lookup[[#This Row],[MOQ_2]]),1,IF(AND(Rebate_Lookup[[#This Row],[Instances]]=2,Rebate_Lookup[[#This Row],[Order Form Quantity]]>=Rebate_Lookup[[#This Row],[MOQ_2]]),2,\nIF(AND(Rebate_Lookup[[#This Row],[Instances]]=3,Rebate_Lookup[[#This Row],[Order Form Quantity]]<Rebate_Lookup[[#This Row],[MOQ_2]]),1,IF(AND(Rebate_Lookup[[#This Row],[Instances]]=3,Rebate_Lookup[[#This Row],[MOQ_2]]<=Rebate_Lookup[[#This Row],[Order Form Quantity]],Rebate_Lookup[[#This Row],[Order Form Quantity]]<Rebate_Lookup[[#This Row],[MOQ_3]]),2,IF(AND(Rebate_Lookup[[#This Row],[Instances]]=3,Rebate_Lookup[[#This Row],[Order Form Quantity]]>=Rebate_Lookup[[#This Row],[MOQ_3]]),3))))))","v":1},{"$f":"COUNTIF('2025 GOLF Only Fall Solutions'!A:A,Rebate_Lookup[[#This Row],[SKU CODE]])","v":1},{"$f":"IFERROR(Rebate_Lookup[[#This Row],[Order Form Quantity]]>=Rebate_Lookup[[#This Row],[MOQ_2]],0)","v":false},null,{"$f":"COUNTIF('2025 GOLF Only Fall Solutions'!A:A,Rebate_Lookup[[#This Row],[SKU CODE]])","v":1}]
[null,11008522,{"$f":"INDEX(PRICING[Agency/TT],MATCH(Rebate_Lookup[[#This Row],[SKU CODE]],PRICING[SKU],0))","v":"A"},{"$f":"INDEX(PRICING[Product],MATCH(B34,PRICING[SKU],0))","v":"Solitare® Herbicide "},{"$f":"INDEX(PRICING[Size],MATCH(Rebate_Lookup[[#This Row],[SKU CODE]],PRICING[SKU],0))","v":"4 lb"},{"$f":"INDEX(PRICING[Indication],MATCH(Rebate_Lookup[[#This Row],[SKU CODE]],PRICING[SKU],0))","v":"H"},{"$f":"COUNTIFS(PRICING[SKU],B34)","v":2},0,16,null,{"$f":"SUMIFS(PRICING[Rebate $],PRICING[SKU],Rebate_Lookup[[#This Row],[SKU CODE]],PRICING[Set],1)","v":0},{"$f":"SUMIFS(PRICING[Rebate $],PRICING[SKU],Rebate_Lookup[[#This Row],[SKU CODE]],PRICING[Set],2)","v":40},{"$f":"SUMIFS(PRICING[Rebate $],PRICING[SKU],Rebate_Lookup[[#This Row],[SKU CODE]],PRICING[Set],3)","v":0},{"$f":"INDEX('2025 GOLF Only Fall Solutions'!J:J,MATCH(Rebate_Lookup[[#This Row],[SKU CODE]],'2025 GOLF Only Fall Solutions'!A:A,0))","v":0},{"$f":"IF(Rebate_Lookup[[#This Row],[Instances]]=1,1,\nIF(AND(Rebate_Lookup[[#This Row],[Instances]]=2,Rebate_Lookup[[#This Row],[Order Form Quantity]]<Rebate_Lookup[[#This Row],[MOQ_2]]),1,IF(AND(Rebate_Lookup[[#This Row],[Instances]]=2,Rebate_Lookup[[#This Row],[Order Form Quantity]]>=Rebate_Lookup[[#This Row],[MOQ_2]]),2,\nIF(AND(Rebate_Lookup[[#This Row],[Instances]]=3,Rebate_Lookup[[#This Row],[Order Form Quantity]]<Rebate_Lookup[[#This Row],[MOQ_2]]),1,IF(AND(Rebate_Lookup[[#This Row],[Instances]]=3,Rebate_Lookup[[#This Row],[MOQ_2]]<=Rebate_Lookup[[#This Row],[Order Form Quantity]],Rebate_Lookup[[#This Row],[Order Form Quantity]]<Rebate_Lookup[[#This Row],[MOQ_3]]),2,IF(AND(Rebate_Lookup[[#This Row],[Instances]]=3,Rebate_Lookup[[#This Row],[Order Form Quantity]]>=Rebate_Lookup[[#This Row],[MOQ_3]]),3))))))","v":1},{"$f":"COUNTIF('2025 GOLF Only Fall Solutions'!A:A,Rebate_Lookup[[#This Row],[SKU CODE]])","v":1},{"$f":"IF(OR('2025 GOLF Only Fall Solutions'!J31>6,'2025 GOLF Only Fall Solutions'!J32>6,'2025 GOLF Only Fall Solutions'!J33>6,'2025 GOLF Only Fall Solutions'!J34>6),TRUE,0)","v":0},null,{"$f":"COUNTIF('2025 GOLF Only Fall Solutions'!A:A,Rebate_Lookup[[#This Row],[SKU CODE]])","v":1}]
[null,11013862,{"$f":"INDEX(PRICING[Agency/TT],MATCH(Rebate_Lookup[[#This Row],[SKU CODE]],PRICING[SKU],0))","v":"A"},{"$f":"INDEX(PRICING[Product],MATCH(B35,PRICING[SKU],0))","v":"Solitare® WSL Herbicide"},{"$f":"INDEX(PRICING[Size],MATCH(Rebate_Lookup[[#This Row],[SKU CODE]],PRICING[SKU],0))","v":"2.5 gal"},{"$f":"INDEX(PRICING[Indication],MATCH(Rebate_Lookup[[#This Row],[SKU CODE]],PRICING[SKU],0))","v":"H"},{"$f":"COUNTIFS(PRICING[SKU],B35)","v":2},0,24,null,{"$f":"SUMIFS(PRICING[Rebate $],PRICING[SKU],Rebate_Lookup[[#This Row],[SKU CODE]],PRICING[Set],1)","v":0},{"$f":"SUMIFS(PRICING[Rebate $],PRICING[SKU],Rebate_Lookup[[#This Row],[SKU CODE]],PRICING[Set],2)","v":40},{"$f":"SUMIFS(PRICING[Rebate $],PRICING[SKU],Rebate_Lookup[[#This Row],[SKU CODE]],PRICING[Set],3)","v":0},{"$f":"INDEX('2025 GOLF Only Fall Solutions'!J:J,MATCH(Rebate_Lookup[[#This Row],[SKU CODE]],'2025 GOLF Only Fall Solutions'!A:A,0))","v":0},{"$f":"IF(Rebate_Lookup[[#This Row],[Instances]]=1,1,\nIF(AND(Rebate_Lookup[[#This Row],[Instances]]=2,Rebate_Lookup[[#This Row],[Order Form Quantity]]<Rebate_Lookup[[#This Row],[MOQ_2]]),1,IF(AND(Rebate_Lookup[[#This Row],[Instances]]=2,Rebate_Lookup[[#This Row],[Order Form Quantity]]>=Rebate_Lookup[[#This Row],[MOQ_2]]),2,\nIF(AND(Rebate_Lookup[[#This Row],[Instances]]=3,Rebate_Lookup[[#This Row],[Order Form Quantity]]<Rebate_Lookup[[#This Row],[MOQ_2]]),1,IF(AND(Rebate_Lookup[[#This Row],[Instances]]=3,Rebate_Lookup[[#This Row],[MOQ_2]]<=Rebate_Lookup[[#This Row],[Order Form Quantity]],Rebate_Lookup[[#This Row],[Order Form Quantity]]<Rebate_Lookup[[#This Row],[MOQ_3]]),2,IF(AND(Rebate_Lookup[[#This Row],[Instances]]=3,Rebate_Lookup[[#This Row],[Order Form Quantity]]>=Rebate_Lookup[[#This Row],[MOQ_3]]),3))))))","v":1},{"$f":"COUNTIF('2025 GOLF Only Fall Solutions'!A:A,Rebate_Lookup[[#This Row],[SKU CODE]])","v":1},{"$f":"IFERROR(Rebate_Lookup[[#This Row],[Order Form Quantity]]>=Rebate_Lookup[[#This Row],[MOQ_2]],0)","v":false},null,{"$f":"COUNTIF('2025 GOLF Only Fall Solutions'!A:A,Rebate_Lookup[[#This Row],[SKU CODE]])","v":1}]
[null,"D00000990",{"$f":"INDEX(PRICING[Agency/TT],MATCH(Rebate_Lookup[[#This Row],[SKU CODE]],PRICING[SKU],0))","v":"A"},{"$f":"INDEX(PRICING[Product],MATCH(B36,PRICING[SKU],0))","v":"Specticle® FLO "},{"$f":"INDEX(PRICING[Size],MATCH(Rebate_Lookup[[#This Row],[SKU CODE]],PRICING[SKU],0))","v":"1 gal"},{"$f":"INDEX(PRICING[Indication],MATCH(Rebate_Lookup[[#This Row],[SKU CODE]],PRICING[SKU],0))","v":"H"},{"$f":"COUNTIFS(PRICING[SKU],B36)-1","v":3},7,14,26,{"$f":"SUMIFS(PRICING[Rebate $],PRICING[SKU],Rebate_Lookup[[#This Row],[SKU CODE]],PRICING[Set],1)","v":0},{"$f":"SUMIFS(PRICING[Rebate $],PRICING[SKU],Rebate_Lookup[[#This Row],[SKU CODE]],PRICING[Set],2)","v":38},{"$f":"SUMIFS(PRICING[Rebate $],PRICING[SKU],Rebate_Lookup[[#This Row],[SKU CODE]],PRICING[Set],3)","v":32},{"$f":"INDEX('2025 GOLF Only Fall Solutions'!J:J,MATCH(Rebate_Lookup[[#This Row],[SKU CODE]],'2025 GOLF Only Fall Solutions'!A:A,0))","v":0},{"$f":"IF(Rebate_Lookup[[#This Row],[Instances]]=1,1,\nIF(AND(Rebate_Lookup[[#This Row],[Instances]]=2,Rebate_Lookup[[#This Row],[Order Form Quantity]]<Rebate_Lookup[[#This Row],[MOQ_2]]),1,IF(AND(Rebate_Lookup[[#This Row],[Instances]]=2,Rebate_Lookup[[#This Row],[Order Form Quantity]]>=Rebate_Lookup[[#This Row],[MOQ_2]]),2,\nIF(AND(Rebate_Lookup[[#This Row],[Instances]]=3,Rebate_Lookup[[#This Row],[Order Form Quantity]]<Rebate_Lookup[[#This Row],[MOQ_2]]),1,IF(AND(Rebate_Lookup[[#This Row],[Instances]]=3,Rebate_Lookup[[#This Row],[MOQ_2]]<=Rebate_Lookup[[#This Row],[Order Form Quantity]],Rebate_Lookup[[#This Row],[Order Form Quantity]]<Rebate_Lookup[[#This Row],[MOQ_3]]),2,IF(AND(Rebate_Lookup[[#This Row],[Instances]]=3,Rebate_Lookup[[#This Row],[Order Form Quantity]]>=Rebate_Lookup[[#This Row],[MOQ_3]]),3))))))","v":1},{"$f":"COUNTIF('2025 GOLF Only Fall Solutions'!A:A,Rebate_Lookup[[#This Row],[SKU CODE]])","v":4},{"$f":"IFERROR(Rebate_Lookup[[#This Row],[Order Form Quantity]]>=Rebate_Lookup[[#This Row],[MOQ_2]],0)","v":false},null,{"$f":"COUNTIF('2025 GOLF Only Fall Solutions'!A:A,Rebate_Lookup[[#This Row],[SKU CODE]])","v":4}]
[null,"D00000992",{"$f":"INDEX(PRICING[Agency/TT],MATCH(Rebate_Lookup[[#This Row],[SKU CODE]],PRICING[SKU],0))","v":"A"},{"$f":"INDEX(PRICING[Product],MATCH(B37,PRICING[SKU],0))","v":"Specticle® G"},{"$f":"INDEX(PRICING[Size],MATCH(Rebate_Lookup[[#This Row],[SKU CODE]],PRICING[SKU],0))","v":"50 lb"},{"$f":"INDEX(PRICING[Indication],MATCH(Rebate_Lookup[[#This Row],[SKU CODE]],PRICING[SKU],0))","v":"H"},{"$f":"COUNTIFS(PRICING[SKU],B37)","v":2},0,20,null,{"$f":"SUMIFS(PRICING[Rebate $],PRICING[SKU],Rebate_Lookup[[#This Row],[SKU CODE]],PRICING[Set],1)","v":0},{"$f":"SUMIFS(PRICING[Rebate $],PRICING[SKU],Rebate_Lookup[[#This Row],[SKU CODE]],PRICING[Set],2)","v":8},{"$f":"SUMIFS(PRICING[Rebate $],PRICING[SKU],Rebate_Lookup[[#This Row],[SKU CODE]],PRICING[Set],3)","v":0},{"$f":"INDEX('2025 GOLF Only Fall Solutions'!J:J,MATCH(Rebate_Lookup[[#This Row],[SKU CODE]],'2025 GOLF Only Fall Solutions'!A:A,0))","v":0},{"$f":"IF(Rebate_Lookup[[#This Row],[Instances]]=1,1,\nIF(AND(Rebate_Lookup[[#This Row],[Instances]]=2,Rebate_Lookup[[#This Row],[Order Form Quantity]]<Rebate_Lookup[[#This Row],[MOQ_2]]),1,IF(AND(Rebate_Lookup[[#This Row],[Instances]]=2,Rebate_Lookup[[#This Row],[Order Form Quantity]]>=Rebate_Lookup[[#This Row],[MOQ_2]]),2,\nIF(AND(Rebate_Lookup[[#This Row],[Instances]]=3,Rebate_Lookup[[#This Row],[Order Form Quantity]]<Rebate_Lookup[[#This Row],[MOQ_2]]),1,IF(AND(Rebate_Lookup[[#This Row],[Instances]]=3,Rebate_Lookup[[#This Row],[MOQ_2]]<=Rebate_Lookup[[#This Row],[Order Form Quantity]],Rebate_Lookup[[#This Row],[Order Form Quantity]]<Rebate_Lookup[[#This Row],[MOQ_3]]),2,IF(AND(Rebate_Lookup[[#This Row],[Instances]]=3,Rebate_Lookup[[#This Row],[Order Form Quantity]]>=Rebate_Lookup[[#This Row],[MOQ_3]]),3))))))","v":1},{"$f":"COUNTIF('2025 GOLF Only Fall Solutions'!A:A,Rebate_Lookup[[#This Row],[SKU CODE]])","v":1},{"$f":"IFERROR(Rebate_Lookup[[#This Row],[Order Form Quantity]]>=Rebate_Lookup[[#This Row],[MOQ_2]],0)","v":false},null,{"$f":"COUNTIF('2025 GOLF Only Fall Solutions'!A:A,Rebate_Lookup[[#This Row],[SKU CODE]])","v":1}]
[null,"D00000998",{"$f":"INDEX(PRICING[Agency/TT],MATCH(Rebate_Lookup[[#This Row],[SKU CODE]],PRICING[SKU],0))","v":"A"},{"$f":"INDEX(PRICING[Product],MATCH(B38,PRICING[SKU],0))","v":"Tartan® Stressgard® "},{"$f":"INDEX(PRICING[Size],MATCH(Rebate_Lookup[[#This Row],[SKU CODE]],PRICING[SKU],0))","v":"2.5 gal"},{"$f":"INDEX(PRICING[Indication],MATCH(Rebate_Lookup[[#This Row],[SKU CODE]],PRICING[SKU],0))","v":"F"},{"$f":"COUNTIFS(PRICING[SKU],B38)","v":2},0,6,null,{"$f":"SUMIFS(PRICING[Rebate $],PRICING[SKU],Rebate_Lookup[[#This Row],[SKU CODE]],PRICING[Set],1)","v":0},{"$f":"SUMIFS(PRICING[Rebate $],PRICING[SKU],Rebate_Lookup[[#This Row],[SKU CODE]],PRICING[Set],2)","v":93},{"$f":"SUMIFS(PRICING[Rebate $],PRICING[SKU],Rebate_Lookup[[#This Row],[SKU CODE]],PRICING[Set],3)","v":0},{"$f":"INDEX('2025 GOLF Only Fall Solutions'!J:J,MATCH(Rebate_Lookup[[#This Row],[SKU CODE]],'2025 GOLF Only Fall Solutions'!A:A,0))","v":0},{"$f":"IF(Rebate_Lookup[[#This Row],[Instances]]=1,1,\nIF(AND(Rebate_Lookup[[#This Row],[Instances]]=2,Rebate_Lookup[[#This Row],[Order Form Quantity]]<Rebate_Lookup[[#This Row],[MOQ_2]]),1,IF(AND(Rebate_Lookup[[#This Row],[Instances]]=2,Rebate_Lookup[[#This Row],[Order Form Quantity]]>=Rebate_Lookup[[#This Row],[MOQ_2]]),2,\nIF(AND(Rebate_Lookup[[#This Row],[Instances]]=3,Rebate_Lookup[[#This Row],[Order Form Quantity]]<Rebate_Lookup[[#This Row],[MOQ_2]]),1,IF(AND(Rebate_Lookup[[#This Row],[Instances]]=3,Rebate_Lookup[[#This Row],[MOQ_2]]<=Rebate_Lookup[[#This Row],[Order Form Quantity]],Rebate_Lookup[[#This Row],[Order Form Quantity]]<Rebate_Lookup[[#This Row],[MOQ_3]]),2,IF(AND(Rebate_Lookup[[#This Row],[Instances]]=3,Rebate_Lookup[[#This Row],[Order Form Quantity]]>=Rebate_Lookup[[#This Row],[MOQ_3]]),3))))))","v":1},{"$f":"COUNTIF('2025 GOLF Only Fall Solutions'!A:A,Rebate_Lookup[[#This Row],[SKU CODE]])","v":1},{"$f":"IFERROR(Rebate_Lookup[[#This Row],[Order Form Quantity]]>=Rebate_Lookup[[#This Row],[MOQ_2]],0)","v":false},null,{"$f":"COUNTIF('2025 GOLF Only Fall Solutions'!A:A,Rebate_Lookup[[#This Row],[SKU CODE]])","v":1}]
[null,11015981,{"$f":"INDEX(PRICING[Agency/TT],MATCH(Rebate_Lookup[[#This Row],[SKU CODE]],PRICING[SKU],0))","v":"A"},{"$f":"INDEX(PRICING[Product],MATCH(B39,PRICING[SKU],0))","v":"Tarvecta™"},{"$f":"INDEX(PRICING[Size],MATCH(Rebate_Lookup[[#This Row],[SKU CODE]],PRICING[SKU],0))","v":"2.5 gal"},{"$f":"INDEX(PRICING[Indication],MATCH(Rebate_Lookup[[#This Row],[SKU CODE]],PRICING[SKU],0))","v":"F"},{"$f":"COUNTIFS(PRICING[SKU],B39)","v":2},0,3,null,{"$f":"SUMIFS(PRICING[Rebate $],PRICING[SKU],Rebate_Lookup[[#This Row],[SKU CODE]],PRICING[Set],1)","v":0},{"$f":"SUMIFS(PRICING[Rebate $],PRICING[SKU],Rebate_Lookup[[#This Row],[SKU CODE]],PRICING[Set],2)","v":400},{"$f":"SUMIFS(PRICING[Rebate $],PRICING[SKU],Rebate_Lookup[[#This Row],[SKU CODE]],PRICING[Set],3)","v":0},{"$f":"INDEX('2025 GOLF Only Fall Solutions'!J:J,MATCH(Rebate_Lookup[[#This Row],[SKU CODE]],'2025 GOLF Only Fall Solutions'!A:A,0))","v":0},{"$f":"IF(Rebate_Lookup[[#This Row],[Instances]]=1,1,\nIF(AND(Rebate_Lookup[[#This Row],[Instances]]=2,Rebate_Lookup[[#This Row],[Order Form Quantity]]<Rebate_Lookup[[#This Row],[MOQ_2]]),1,IF(AND(Rebate_Lookup[[#This Row],[Instances]]=2,Rebate_Lookup[[#This Row],[Order Form Quantity]]>=Rebate_Lookup[[#This Row],[MOQ_2]]),2,\nIF(AND(Rebate_Lookup[[#This Row],[Instances]]=3,Rebate_Lookup[[#This Row],[Order Form Quantity]]<Rebate_Lookup[[#This Row],[MOQ_2]]),1,IF(AND(Rebate_Lookup[[#This Row],[Instances]]=3,Rebate_Lookup[[#This Row],[MOQ_2]]<=Rebate_Lookup[[#This Row],[Order Form Quantity]],Rebate_Lookup[[#This Row],[Order Form Quantity]]<Rebate_Lookup[[#This Row],[MOQ_3]]),2,IF(AND(Rebate_Lookup[[#This Row],[Instances]]=3,Rebate_Lookup[[#This Row],[Order Form Quantity]]>=Rebate_Lookup[[#This Row],[MOQ_3]]),3))))))","v":1},{"$f":"COUNTIF('2025 GOLF Only Fall Solutions'!A:A,Rebate_Lookup[[#This Row],[SKU CODE]])","v":1},{"$f":"IFERROR(Rebate_Lookup[[#This Row],[Order Form Quantity]]>=Rebate_Lookup[[#This Row],[MOQ_2]],0)","v":false},null,{"$f":"COUNTIF('2025 GOLF Only Fall Solutions'!A:A,Rebate_Lookup[[#This Row],[SKU CODE]])","v":1}]
[null,11015990,{"$f":"INDEX(PRICING[Agency/TT],MATCH(Rebate_Lookup[[#This Row],[SKU CODE]],PRICING[SKU],0))","v":"A"},{"$f":"INDEX(PRICING[Product],MATCH(B40,PRICING[SKU],0))","v":"Tarvecta™"},{"$f":"INDEX(PRICING[Size],MATCH(Rebate_Lookup[[#This Row],[SKU CODE]],PRICING[SKU],0))","v":"64 oz"},{"$f":"INDEX(PRICING[Indication],MATCH(Rebate_Lookup[[#This Row],[SKU CODE]],PRICING[SKU],0))","v":"F"},{"$f":"COUNTIFS(PRICING[SKU],B40)","v":2},0,4,null,{"$f":"SUMIFS(PRICING[Rebate $],PRICING[SKU],Rebate_Lookup[[#This Row],[SKU CODE]],PRICING[Set],1)","v":0},{"$f":"SUMIFS(PRICING[Rebate $],PRICING[SKU],Rebate_Lookup[[#This Row],[SKU CODE]],PRICING[Set],2)","v":145},{"$f":"SUMIFS(PRICING[Rebate $],PRICING[SKU],Rebate_Lookup[[#This Row],[SKU CODE]],PRICING[Set],3)","v":0},{"$f":"INDEX('2025 GOLF Only Fall Solutions'!J:J,MATCH(Rebate_Lookup[[#This Row],[SKU CODE]],'2025 GOLF Only Fall Solutions'!A:A,0))","v":0},{"$f":"IF(Rebate_Lookup[[#This Row],[Instances]]=1,1,\nIF(AND(Rebate_Lookup[[#This Row],[Instances]]=2,Rebate_Lookup[[#This Row],[Order Form Quantity]]<Rebate_Lookup[[#This Row],[MOQ_2]]),1,IF(AND(Rebate_Lookup[[#This Row],[Instances]]=2,Rebate_Lookup[[#This Row],[Order Form Quantity]]>=Rebate_Lookup[[#This Row],[MOQ_2]]),2,\nIF(AND(Rebate_Lookup[[#This Row],[Instances]]=3,Rebate_Lookup[[#This Row],[Order Form Quantity]]<Rebate_Lookup[[#This Row],[MOQ_2]]),1,IF(AND(Rebate_Lookup[[#This Row],[Instances]]=3,Rebate_Lookup[[#This Row],[MOQ_2]]<=Rebate_Lookup[[#This Row],[Order Form Quantity]],Rebate_Lookup[[#This Row],[Order Form Quantity]]<Rebate_Lookup[[#This Row],[MOQ_3]]),2,IF(AND(Rebate_Lookup[[#This Row],[Instances]]=3,Rebate_Lookup[[#This Row],[Order Form Quantity]]>=Rebate_Lookup[[#This Row],[MOQ_3]]),3))))))","v":1},{"$f":"COUNTIF('2025 GOLF Only Fall Solutions'!A:A,Rebate_Lookup[[#This Row],[SKU CODE]])","v":1},{"$f":"IFERROR(Rebate_Lookup[[#This Row],[Order Form Quantity]]>=Rebate_Lookup[[#This Row],[MOQ_2]],0)","v":false},null,{"$f":"COUNTIF('2025 GOLF Only Fall Solutions'!A:A,Rebate_Lookup[[#This Row],[SKU CODE]])","v":1}]
[null,86797658,{"$f":"INDEX(PRICING[Agency/TT],MATCH(Rebate_Lookup[[#This Row],[SKU CODE]],PRICING[SKU],0))","v":"A"},{"$f":"INDEX(PRICING[Product],MATCH(B41,PRICING[SKU],0))","v":"Tetrino®"},{"$f":"INDEX(PRICING[Size],MATCH(Rebate_Lookup[[#This Row],[SKU CODE]],PRICING[SKU],0))","v":" 1 gal"},{"$f":"INDEX(PRICING[Indication],MATCH(Rebate_Lookup[[#This Row],[SKU CODE]],PRICING[SKU],0))","v":"I"},{"$f":"COUNTIFS(PRICING[SKU],B41)","v":2},0,4,null,{"$f":"SUMIFS(PRICING[Rebate $],PRICING[SKU],Rebate_Lookup[[#This Row],[SKU CODE]],PRICING[Set],1)","v":0},{"$f":"SUMIFS(PRICING[Rebate $],PRICING[SKU],Rebate_Lookup[[#This Row],[SKU CODE]],PRICING[Set],2)","v":40},{"$f":"SUMIFS(PRICING[Rebate $],PRICING[SKU],Rebate_Lookup[[#This Row],[SKU CODE]],PRICING[Set],3)","v":0},{"$f":"INDEX('2025 GOLF Only Fall Solutions'!J:J,MATCH(Rebate_Lookup[[#This Row],[SKU CODE]],'2025 GOLF Only Fall Solutions'!A:A,0))","v":0},{"$f":"IF(Rebate_Lookup[[#This Row],[Instances]]=1,1,\nIF(AND(Rebate_Lookup[[#This Row],[Instances]]=2,Rebate_Lookup[[#This Row],[Order Form Quantity]]<Rebate_Lookup[[#This Row],[MOQ_2]]),1,IF(AND(Rebate_Lookup[[#This Row],[Instances]]=2,Rebate_Lookup[[#This Row],[Order Form Quantity]]>=Rebate_Lookup[[#This Row],[MOQ_2]]),2,\nIF(AND(Rebate_Lookup[[#This Row],[Instances]]=3,Rebate_Lookup[[#This Row],[Order Form Quantity]]<Rebate_Lookup[[#This Row],[MOQ_2]]),1,IF(AND(Rebate_Lookup[[#This Row],[Instances]]=3,Rebate_Lookup[[#This Row],[MOQ_2]]<=Rebate_Lookup[[#This Row],[Order Form Quantity]],Rebate_Lookup[[#This Row],[Order Form Quantity]]<Rebate_Lookup[[#This Row],[MOQ_3]]),2,IF(AND(Rebate_Lookup[[#This Row],[Instances]]=3,Rebate_Lookup[[#This Row],[Order Form Quantity]]>=Rebate_Lookup[[#This Row],[MOQ_3]]),3))))))","v":1},{"$f":"COUNTIF('2025 GOLF Only Fall Solutions'!A:A,Rebate_Lookup[[#This Row],[SKU CODE]])","v":1},{"$f":"IFERROR(Rebate_Lookup[[#This Row],[Order Form Quantity]]>=Rebate_Lookup[[#This Row],[MOQ_2]],0)","v":false},null,{"$f":"COUNTIF('2025 GOLF Only Fall Solutions'!A:A,Rebate_Lookup[[#This Row],[SKU CODE]])","v":1}]
[null,81746257,{"$f":"INDEX(PRICING[Agency/TT],MATCH(Rebate_Lookup[[#This Row],[SKU CODE]],PRICING[SKU],0))","v":"A"},{"$f":"INDEX(PRICING[Product],MATCH(B42,PRICING[SKU],0))","v":"Tribute® Total"},{"$f":"INDEX(PRICING[Size],MATCH(Rebate_Lookup[[#This Row],[SKU CODE]],PRICING[SKU],0))","v":"6 oz"},{"$f":"INDEX(PRICING[Indication],MATCH(Rebate_Lookup[[#This Row],[SKU CODE]],PRICING[SKU],0))","v":"H"},{"$f":"COUNTIFS(PRICING[SKU],B42)","v":2},0,24,null,{"$f":"SUMIFS(PRICING[Rebate $],PRICING[SKU],Rebate_Lookup[[#This Row],[SKU CODE]],PRICING[Set],1)","v":0},{"$f":"SUMIFS(PRICING[Rebate $],PRICING[SKU],Rebate_Lookup[[#This Row],[SKU CODE]],PRICING[Set],2)","v":30},{"$f":"SUMIFS(PRICING[Rebate $],PRICING[SKU],Rebate_Lookup[[#This Row],[SKU CODE]],PRICING[Set],3)","v":0},{"$f":"INDEX('2025 GOLF Only Fall Solutions'!J:J,MATCH(Rebate_Lookup[[#This Row],[SKU CODE]],'2025 GOLF Only Fall Solutions'!A:A,0))","v":0},{"$f":"IF(Rebate_Lookup[[#This Row],[Instances]]=1,1,\nIF(AND(Rebate_Lookup[[#This Row],[Instances]]=2,Rebate_Lookup[[#This Row],[Order Form Quantity]]<Rebate_Lookup[[#This Row],[MOQ_2]]),1,IF(AND(Rebate_Lookup[[#This Row],[Instances]]=2,Rebate_Lookup[[#This Row],[Order Form Quantity]]>=Rebate_Lookup[[#This Row],[MOQ_2]]),2,\nIF(AND(Rebate_Lookup[[#This Row],[Instances]]=3,Rebate_Lookup[[#This Row],[Order Form Quantity]]<Rebate_Lookup[[#This Row],[MOQ_2]]),1,IF(AND(Rebate_Lookup[[#This Row],[Instances]]=3,Rebate_Lookup[[#This Row],[MOQ_2]]<=Rebate_Lookup[[#This Row],[Order Form Quantity]],Rebate_Lookup[[#This Row],[Order Form Quantity]]<Rebate_Lookup[[#This Row],[MOQ_3]]),2,IF(AND(Rebate_Lookup[[#This Row],[Instances]]=3,Rebate_Lookup[[#This Row],[Order Form Quantity]]>=Rebate_Lookup[[#This Row],[MOQ_3]]),3))))))","v":1},{"$f":"COUNTIF('2025 GOLF Only Fall Solutions'!A:A,Rebate_Lookup[[#This Row],[SKU CODE]])","v":1},{"$f":"IFERROR(Rebate_Lookup[[#This Row],[Order Form Quantity]]>=Rebate_Lookup[[#This Row],[MOQ_2]],0)","v":false},null,{"$f":"COUNTIF('2025 GOLF Only Fall Solutions'!A:A,Rebate_Lookup[[#This Row],[SKU CODE]])","v":1}]
[null,11008521,{"$f":"INDEX(PRICING[Agency/TT],MATCH(Rebate_Lookup[[#This Row],[SKU CODE]],PRICING[SKU],0))","v":"A"},{"$f":"INDEX(PRICING[Product],MATCH(B43,PRICING[SKU],0))","v":"Triple Crown® Golf Insecticide (RUP)"},{"$f":"INDEX(PRICING[Size],MATCH(Rebate_Lookup[[#This Row],[SKU CODE]],PRICING[SKU],0))","v":"1 gal"},{"$f":"INDEX(PRICING[Indication],MATCH(Rebate_Lookup[[#This Row],[SKU CODE]],PRICING[SKU],0))","v":"I"},{"$f":"COUNTIFS(PRICING[SKU],B43)","v":3},0,20,40,{"$f":"SUMIFS(PRICING[Rebate $],PRICING[SKU],Rebate_Lookup[[#This Row],[SKU CODE]],PRICING[Set],1)","v":0},{"$f":"SUMIFS(PRICING[Rebate $],PRICING[SKU],Rebate_Lookup[[#This Row],[SKU CODE]],PRICING[Set],2)","v":12},{"$f":"SUMIFS(PRICING[Rebate $],PRICING[SKU],Rebate_Lookup[[#This Row],[SKU CODE]],PRICING[Set],3)","v":25},{"$f":"INDEX('2025 GOLF Only Fall Solutions'!J:J,MATCH(Rebate_Lookup[[#This Row],[SKU CODE]],'2025 GOLF Only Fall Solutions'!A:A,0))","v":0},{"$f":"IF(Rebate_Lookup[[#This Row],[Instances]]=1,1,\nIF(AND(Rebate_Lookup[[#This Row],[Instances]]=2,Rebate_Lookup[[#This Row],[Order Form Quantity]]<Rebate_Lookup[[#This Row],[MOQ_2]]),1,IF(AND(Rebate_Lookup[[#This Row],[Instances]]=2,Rebate_Lookup[[#This Row],[Order Form Quantity]]>=Rebate_Lookup[[#This Row],[MOQ_2]]),2,\nIF(AND(Rebate_Lookup[[#This Row],[Instances]]=3,Rebate_Lookup[[#This Row],[Order Form Quantity]]<Rebate_Lookup[[#This Row],[MOQ_2]]),1,IF(AND(Rebate_Lookup[[#This Row],[Instances]]=3,Rebate_Lookup[[#This Row],[MOQ_2]]<=Rebate_Lookup[[#This Row],[Order Form Quantity]],Rebate_Lookup[[#This Row],[Order Form Quantity]]<Rebate_Lookup[[#This Row],[MOQ_3]]),2,IF(AND(Rebate_Lookup[[#This Row],[Instances]]=3,Rebate_Lookup[[#This Row],[Order Form Quantity]]>=Rebate_Lookup[[#This Row],[MOQ_3]]),3))))))","v":1},{"$f":"COUNTIF('2025 GOLF Only Fall Solutions'!A:A,Rebate_Lookup[[#This Row],[SKU CODE]])","v":1},{"$f":"IFERROR(Rebate_Lookup[[#This Row],[Order Form Quantity]]>=Rebate_Lookup[[#This Row],[MOQ_2]],0)","v":false},null,{"$f":"COUNTIF('2025 GOLF Only Fall Solutions'!A:A,Rebate_Lookup[[#This Row],[SKU CODE]])","v":1}]
[null,11008520,{"$f":"INDEX(PRICING[Agency/TT],MATCH(Rebate_Lookup[[#This Row],[SKU CODE]],PRICING[SKU],0))","v":"A"},{"$f":"INDEX(PRICING[Product],MATCH(B44,PRICING[SKU],0))","v":"Triple Crown® T&O Insecticide "},{"$f":"INDEX(PRICING[Size],MATCH(Rebate_Lookup[[#This Row],[SKU CODE]],PRICING[SKU],0))","v":"1 gal "},{"$f":"INDEX(PRICING[Indication],MATCH(Rebate_Lookup[[#This Row],[SKU CODE]],PRICING[SKU],0))","v":"I"},{"$f":"COUNTIFS(PRICING[SKU],B44)","v":3},0,20,40,{"$f":"SUMIFS(PRICING[Rebate $],PRICING[SKU],Rebate_Lookup[[#This Row],[SKU CODE]],PRICING[Set],1)","v":0},{"$f":"SUMIFS(PRICING[Rebate $],PRICING[SKU],Rebate_Lookup[[#This Row],[SKU CODE]],PRICING[Set],2)","v":12},{"$f":"SUMIFS(PRICING[Rebate $],PRICING[SKU],Rebate_Lookup[[#This Row],[SKU CODE]],PRICING[Set],3)","v":25},{"$f":"INDEX('2025 GOLF Only Fall Solutions'!J:J,MATCH(Rebate_Lookup[[#This Row],[SKU CODE]],'2025 GOLF Only Fall Solutions'!A:A,0))","v":{"$error":"#N/A"}},{"$f":"IF(Rebate_Lookup[[#This Row],[Instances]]=1,1,\nIF(AND(Rebate_Lookup[[#This Row],[Instances]]=2,Rebate_Lookup[[#This Row],[Order Form Quantity]]<Rebate_Lookup[[#This Row],[MOQ_2]]),1,IF(AND(Rebate_Lookup[[#This Row],[Instances]]=2,Rebate_Lookup[[#This Row],[Order Form Quantity]]>=Rebate_Lookup[[#This Row],[MOQ_2]]),2,\nIF(AND(Rebate_Lookup[[#This Row],[Instances]]=3,Rebate_Lookup[[#This Row],[Order Form Quantity]]<Rebate_Lookup[[#This Row],[MOQ_2]]),1,IF(AND(Rebate_Lookup[[#This Row],[Instances]]=3,Rebate_Lookup[[#This Row],[MOQ_2]]<=Rebate_Lookup[[#This Row],[Order Form Quantity]],Rebate_Lookup[[#This Row],[Order Form Quantity]]<Rebate_Lookup[[#This Row],[MOQ_3]]),2,IF(AND(Rebate_Lookup[[#This Row],[Instances]]=3,Rebate_Lookup[[#This Row],[Order Form Quantity]]>=Rebate_Lookup[[#This Row],[MOQ_3]]),3))))))","v":{"$error":"#N/A"}},{"$f":"COUNTIF('2025 GOLF Only Fall Solutions'!A:A,Rebate_Lookup[[#This Row],[SKU CODE]])","v":0},{"$f":"IFERROR(Rebate_Lookup[[#This Row],[Order Form Quantity]]>=Rebate_Lookup[[#This Row],[MOQ_2]],0)","v":0},null,{"$f":"COUNTIF('2025 GOLF Only Fall Solutions'!A:A,Rebate_Lookup[[#This Row],[SKU CODE]])","v":0}]
[null,11008590,{"$f":"INDEX(PRICING[Agency/TT],MATCH(Rebate_Lookup[[#This Row],[SKU CODE]],PRICING[SKU],0))","v":"A"},{"$f":"INDEX(PRICING[Product],MATCH(B45,PRICING[SKU],0))","v":"Xonerate® 2SC Herbicide"},{"$f":"INDEX(PRICING[Size],MATCH(Rebate_Lookup[[#This Row],[SKU CODE]],PRICING[SKU],0))","v":"12 oz"},{"$f":"INDEX(PRICING[Indication],MATCH(Rebate_Lookup[[#This Row],[SKU CODE]],PRICING[SKU],0))","v":"H"},{"$f":"COUNTIFS(PRICING[SKU],B45)","v":2},0,24,null,{"$f":"SUMIFS(PRICING[Rebate $],PRICING[SKU],Rebate_Lookup[[#This Row],[SKU CODE]],PRICING[Set],1)","v":0},{"$f":"SUMIFS(PRICING[Rebate $],PRICING[SKU],Rebate_Lookup[[#This Row],[SKU CODE]],PRICING[Set],2)","v":50},{"$f":"SUMIFS(PRICING[Rebate $],PRICING[SKU],Rebate_Lookup[[#This Row],[SKU CODE]],PRICING[Set],3)","v":0},{"$f":"INDEX('2025 GOLF Only Fall Solutions'!J:J,MATCH(Rebate_Lookup[[#This Row],[SKU CODE]],'2025 GOLF Only Fall Solutions'!A:A,0))","v":0},{"$f":"IF(Rebate_Lookup[[#This Row],[Instances]]=1,1,\nIF(AND(Rebate_Lookup[[#This Row],[Instances]]=2,Rebate_Lookup[[#This Row],[Order Form Quantity]]<Rebate_Lookup[[#This Row],[MOQ_2]]),1,IF(AND(Rebate_Lookup[[#This Row],[Instances]]=2,Rebate_Lookup[[#This Row],[Order Form Quantity]]>=Rebate_Lookup[[#This Row],[MOQ_2]]),2,\nIF(AND(Rebate_Lookup[[#This Row],[Instances]]=3,Rebate_Lookup[[#This Row],[Order Form Quantity]]<Rebate_Lookup[[#This Row],[MOQ_2]]),1,IF(AND(Rebate_Lookup[[#This Row],[Instances]]=3,Rebate_Lookup[[#This Row],[MOQ_2]]<=Rebate_Lookup[[#This Row],[Order Form Quantity]],Rebate_Lookup[[#This Row],[Order Form Quantity]]<Rebate_Lookup[[#This Row],[MOQ_3]]),2,IF(AND(Rebate_Lookup[[#This Row],[Instances]]=3,Rebate_Lookup[[#This Row],[Order Form Quantity]]>=Rebate_Lookup[[#This Row],[MOQ_3]]),3))))))","v":1},{"$f":"COUNTIF('2025 GOLF Only Fall Solutions'!A:A,Rebate_Lookup[[#This Row],[SKU CODE]])","v":1},{"$f":"IFERROR(Rebate_Lookup[[#This Row],[Order Form Quantity]]>=Rebate_Lookup[[#This Row],[MOQ_2]],0)","v":false}]
[null,4250930,{"$f":"INDEX(PRICING[Agency/TT],MATCH(Rebate_Lookup[[#This Row],[SKU CODE]],PRICING[SKU],0))","v":"TT"},{"$f":"INDEX(PRICING[Product],MATCH(B46,PRICING[SKU],0))","v":"26GT™"},{"$f":"INDEX(PRICING[Size],MATCH(Rebate_Lookup[[#This Row],[SKU CODE]],PRICING[SKU],0))","v":"2.5 gal"},{"$f":"INDEX(PRICING[Indication],MATCH(Rebate_Lookup[[#This Row],[SKU CODE]],PRICING[SKU],0))","v":"F"},{"$f":"COUNTIFS(PRICING[SKU],B46)","v":1},null,null,null,{"$f":"SUMIFS(PRICING[Rebate $],PRICING[SKU],Rebate_Lookup[[#This Row],[SKU CODE]],PRICING[Set],1)","v":0},{"$f":"SUMIFS(PRICING[Rebate $],PRICING[SKU],Rebate_Lookup[[#This Row],[SKU CODE]],PRICING[Set],2)","v":0},{"$f":"SUMIFS(PRICING[Rebate $],PRICING[SKU],Rebate_Lookup[[#This Row],[SKU CODE]],PRICING[Set],3)","v":0},{"$f":"INDEX('2025 GOLF Only Fall Solutions'!J:J,MATCH(Rebate_Lookup[[#This Row],[SKU CODE]],'2025 GOLF Only Fall Solutions'!A:A,0))","v":0},{"$f":"IF(Rebate_Lookup[[#This Row],[Instances]]=1,1,\nIF(AND(Rebate_Lookup[[#This Row],[Instances]]=2,Rebate_Lookup[[#This Row],[Order Form Quantity]]<Rebate_Lookup[[#This Row],[MOQ_2]]),1,IF(AND(Rebate_Lookup[[#This Row],[Instances]]=2,Rebate_Lookup[[#This Row],[Order Form Quantity]]>=Rebate_Lookup[[#This Row],[MOQ_2]]),2,\nIF(AND(Rebate_Lookup[[#This Row],[Instances]]=3,Rebate_Lookup[[#This Row],[Order Form Quantity]]<Rebate_Lookup[[#This Row],[MOQ_2]]),1,IF(AND(Rebate_Lookup[[#This Row],[Instances]]=3,Rebate_Lookup[[#This Row],[MOQ_2]]<=Rebate_Lookup[[#This Row],[Order Form Quantity]],Rebate_Lookup[[#This Row],[Order Form Quantity]]<Rebate_Lookup[[#This Row],[MOQ_3]]),2,IF(AND(Rebate_Lookup[[#This Row],[Instances]]=3,Rebate_Lookup[[#This Row],[Order Form Quantity]]>=Rebate_Lookup[[#This Row],[MOQ_3]]),3))))))","v":1},{"$f":"COUNTIF('2025 GOLF Only Fall Solutions'!A:A,Rebate_Lookup[[#This Row],[SKU CODE]])","v":1},{"$f":"IFERROR(Rebate_Lookup[[#This Row],[Order Form Quantity]]>=Rebate_Lookup[[#This Row],[MOQ_2]],0)","v":true},null,{"$f":"COUNTIF('2025 GOLF Only Fall Solutions'!A:A,Rebate_Lookup[[#This Row],[SKU CODE]])","v":1}]
[null,"D00000665",{"$f":"INDEX(PRICING[Agency/TT],MATCH(Rebate_Lookup[[#This Row],[SKU CODE]],PRICING[SKU],0))","v":"TT"},{"$f":"INDEX(PRICING[Product],MATCH(B47,PRICING[SKU],0))","v":"Acclaim Accelerate"},{"$f":"INDEX(PRICING[Size],MATCH(Rebate_Lookup[[#This Row],[SKU CODE]],PRICING[SKU],0))","v":"0.5 gal"},{"$f":"INDEX(PRICING[Indication],MATCH(Rebate_Lookup[[#This Row],[SKU CODE]],PRICING[SKU],0))","v":"H"},{"$f":"COUNTIFS(PRICING[SKU],B47)","v":1},null,null,null,{"$f":"SUMIFS(PRICING[Rebate $],PRICING[SKU],Rebate_Lookup[[#This Row],[SKU CODE]],PRICING[Set],1)","v":7.5},{"$f":"SUMIFS(PRICING[Rebate $],PRICING[SKU],Rebate_Lookup[[#This Row],[SKU CODE]],PRICING[Set],2)","v":0},{"$f":"SUMIFS(PRICING[Rebate $],PRICING[SKU],Rebate_Lookup[[#This Row],[SKU CODE]],PRICING[Set],3)","v":0},{"$f":"INDEX('2025 GOLF Only Fall Solutions'!J:J,MATCH(Rebate_Lookup[[#This Row],[SKU CODE]],'2025 GOLF Only Fall Solutions'!A:A,0))","v":{"$error":"#N/A"}},{"$f":"IF(Rebate_Lookup[[#This Row],[Instances]]=1,1,\nIF(AND(Rebate_Lookup[[#This Row],[Instances]]=2,Rebate_Lookup[[#This Row],[Order Form Quantity]]<Rebate_Lookup[[#This Row],[MOQ_2]]),1,IF(AND(Rebate_Lookup[[#This Row],[Instances]]=2,Rebate_Lookup[[#This Row],[Order Form Quantity]]>=Rebate_Lookup[[#This Row],[MOQ_2]]),2,\nIF(AND(Rebate_Lookup[[#This Row],[Instances]]=3,Rebate_Lookup[[#This Row],[Order Form Quantity]]<Rebate_Lookup[[#This Row],[MOQ_2]]),1,IF(AND(Rebate_Lookup[[#This Row],[Instances]]=3,Rebate_Lookup[[#This Row],[MOQ_2]]<=Rebate_Lookup[[#This Row],[Order Form Quantity]],Rebate_Lookup[[#This Row],[Order Form Quantity]]<Rebate_Lookup[[#This Row],[MOQ_3]]),2,IF(AND(Rebate_Lookup[[#This Row],[Instances]]=3,Rebate_Lookup[[#This Row],[Order Form Quantity]]>=Rebate_Lookup[[#This Row],[MOQ_3]]),3))))))","v":1},{"$f":"COUNTIF('2025 GOLF Only Fall Solutions'!A:A,Rebate_Lookup[[#This Row],[SKU CODE]])","v":0},{"$f":"IFERROR(Rebate_Lookup[[#This Row],[Order Form Quantity]]>=Rebate_Lookup[[#This Row],[MOQ_2]],0)","v":0},null,{"$f":"COUNTIF('2025 GOLF Only Fall Solutions'!A:A,Rebate_Lookup[[#This Row],[SKU CODE]])","v":0}]
[null,"D00000666",{"$f":"INDEX(PRICING[Agency/TT],MATCH(Rebate_Lookup[[#This Row],[SKU CODE]],PRICING[SKU],0))","v":"TT"},{"$f":"INDEX(PRICING[Product],MATCH(B48,PRICING[SKU],0))","v":"Acclaim Accelerate"},{"$f":"INDEX(PRICING[Size],MATCH(Rebate_Lookup[[#This Row],[SKU CODE]],PRICING[SKU],0))","v":"2.5 gal "},{"$f":"INDEX(PRICING[Indication],MATCH(Rebate_Lookup[[#This Row],[SKU CODE]],PRICING[SKU],0))","v":"H"},{"$f":"COUNTIFS(PRICING[SKU],B48)","v":1},null,null,null,{"$f":"SUMIFS(PRICING[Rebate $],PRICING[SKU],Rebate_Lookup[[#This Row],[SKU CODE]],PRICING[Set],1)","v":37.5},{"$f":"SUMIFS(PRICING[Rebate $],PRICING[SKU],Rebate_Lookup[[#This Row],[SKU CODE]],PRICING[Set],2)","v":0},{"$f":"SUMIFS(PRICING[Rebate $],PRICING[SKU],Rebate_Lookup[[#This Row],[SKU CODE]],PRICING[Set],3)","v":0},{"$f":"INDEX('2025 GOLF Only Fall Solutions'!J:J,MATCH(Rebate_Lookup[[#This Row],[SKU CODE]],'2025 GOLF Only Fall Solutions'!A:A,0))","v":{"$error":"#N/A"}},{"$f":"IF(Rebate_Lookup[[#This Row],[Instances]]=1,1,\nIF(AND(Rebate_Lookup[[#This Row],[Instances]]=2,Rebate_Lookup[[#This Row],[Order Form Quantity]]<Rebate_Lookup[[#This Row],[MOQ_2]]),1,IF(AND(Rebate_Lookup[[#This Row],[Instances]]=2,Rebate_Lookup[[#This Row],[Order Form Quantity]]>=Rebate_Lookup[[#This Row],[MOQ_2]]),2,\nIF(AND(Rebate_Lookup[[#This Row],[Instances]]=3,Rebate_Lookup[[#This Row],[Order Form Quantity]]<Rebate_Lookup[[#This Row],[MOQ_2]]),1,IF(AND(Rebate_Lookup[[#This Row],[Instances]]=3,Rebate_Lookup[[#This Row],[MOQ_2]]<=Rebate_Lookup[[#This Row],[Order Form Quantity]],Rebate_Lookup[[#This Row],[Order Form Quantity]]<Rebate_Lookup[[#This Row],[MOQ_3]]),2,IF(AND(Rebate_Lookup[[#This Row],[Instances]]=3,Rebate_Lookup[[#This Row],[Order Form Quantity]]>=Rebate_Lookup[[#This Row],[MOQ_3]]),3))))))","v":1},{"$f":"COUNTIF('2025 GOLF Only Fall Solutions'!A:A,Rebate_Lookup[[#This Row],[SKU CODE]])","v":0},{"$f":"IFERROR(Rebate_Lookup[[#This Row],[Order Form Quantity]]>=Rebate_Lookup[[#This Row],[MOQ_2]],0)","v":0},null,{"$f":"COUNTIF('2025 GOLF Only Fall Solutions'!A:A,Rebate_Lookup[[#This Row],[SKU CODE]])","v":0}]
[null,87300722,{"$f":"INDEX(PRICING[Agency/TT],MATCH(Rebate_Lookup[[#This Row],[SKU CODE]],PRICING[SKU],0))","v":"TT"},{"$f":"INDEX(PRICING[Product],MATCH(B49,PRICING[SKU],0))","v":"Acclaim Extra"},{"$f":"INDEX(PRICING[Size],MATCH(Rebate_Lookup[[#This Row],[SKU CODE]],PRICING[SKU],0))","v":"1 gal"},{"$f":"INDEX(PRICING[Indication],MATCH(Rebate_Lookup[[#This Row],[SKU CODE]],PRICING[SKU],0))","v":"H"},{"$f":"COUNTIFS(PRICING[SKU],B49)","v":1},null,null,null,{"$f":"SUMIFS(PRICING[Rebate $],PRICING[SKU],Rebate_Lookup[[#This Row],[SKU CODE]],PRICING[Set],1)","v":90},{"$f":"SUMIFS(PRICING[Rebate $],PRICING[SKU],Rebate_Lookup[[#This Row],[SKU CODE]],PRICING[Set],2)","v":0},{"$f":"SUMIFS(PRICING[Rebate $],PRICING[SKU],Rebate_Lookup[[#This Row],[SKU CODE]],PRICING[Set],3)","v":0},{"$f":"INDEX('2025 GOLF Only Fall Solutions'!J:J,MATCH(Rebate_Lookup[[#This Row],[SKU CODE]],'2025 GOLF Only Fall Solutions'!A:A,0))","v":0},{"$f":"IF(Rebate_Lookup[[#This Row],[Instances]]=1,1,\nIF(AND(Rebate_Lookup[[#This Row],[Instances]]=2,Rebate_Lookup[[#This Row],[Order Form Quantity]]<Rebate_Lookup[[#This Row],[MOQ_2]]),1,IF(AND(Rebate_Lookup[[#This Row],[Instances]]=2,Rebate_Lookup[[#This Row],[Order Form Quantity]]>=Rebate_Lookup[[#This Row],[MOQ_2]]),2,\nIF(AND(Rebate_Lookup[[#This Row],[Instances]]=3,Rebate_Lookup[[#This Row],[Order Form Quantity]]<Rebate_Lookup[[#This Row],[MOQ_2]]),1,IF(AND(Rebate_Lookup[[#This Row],[Instances]]=3,Rebate_Lookup[[#This Row],[MOQ_2]]<=Rebate_Lookup[[#This Row],[Order Form Quantity]],Rebate_Lookup[[#This Row],[Order Form Quantity]]<Rebate_Lookup[[#This Row],[MOQ_3]]),2,IF(AND(Rebate_Lookup[[#This Row],[Instances]]=3,Rebate_Lookup[[#This Row],[Order Form Quantity]]>=Rebate_Lookup[[#This Row],[MOQ_3]]),3))))))","v":1},{"$f":"COUNTIF('2025 GOLF Only Fall Solutions'!A:A,Rebate_Lookup[[#This Row],[SKU CODE]])","v":1},{"$f":"IFERROR(Rebate_Lookup[[#This Row],[Order Form Quantity]]>=Rebate_Lookup[[#This Row],[MOQ_2]],0)","v":true},null,{"$f":"COUNTIF('2025 GOLF Only Fall Solutions'!A:A,Rebate_Lookup[[#This Row],[SKU CODE]])","v":1}]
[null,"D00000898",{"$f":"INDEX(PRICING[Agency/TT],MATCH(Rebate_Lookup[[#This Row],[SKU CODE]],PRICING[SKU],0))","v":"TT"},{"$f":"INDEX(PRICING[Product],MATCH(B50,PRICING[SKU],0))","v":"Armada 50 WDG"},{"$f":"INDEX(PRICING[Size],MATCH(Rebate_Lookup[[#This Row],[SKU CODE]],PRICING[SKU],0))","v":"2 lb"},{"$f":"INDEX(PRICING[Indication],MATCH(Rebate_Lookup[[#This Row],[SKU CODE]],PRICING[SKU],0))","v":"F"},{"$f":"COUNTIFS(PRICING[SKU],B50)","v":1},null,null,null,{"$f":"SUMIFS(PRICING[Rebate $],PRICING[SKU],Rebate_Lookup[[#This Row],[SKU CODE]],PRICING[Set],1)","v":10},{"$f":"SUMIFS(PRICING[Rebate $],PRICING[SKU],Rebate_Lookup[[#This Row],[SKU CODE]],PRICING[Set],2)","v":0},{"$f":"SUMIFS(PRICING[Rebate $],PRICING[SKU],Rebate_Lookup[[#This Row],[SKU CODE]],PRICING[Set],3)","v":0},{"$f":"INDEX('2025 GOLF Only Fall Solutions'!J:J,MATCH(Rebate_Lookup[[#This Row],[SKU CODE]],'2025 GOLF Only Fall Solutions'!A:A,0))","v":{"$error":"#N/A"}},{"$f":"IF(Rebate_Lookup[[#This Row],[Instances]]=1,1,\nIF(AND(Rebate_Lookup[[#This Row],[Instances]]=2,Rebate_Lookup[[#This Row],[Order Form Quantity]]<Rebate_Lookup[[#This Row],[MOQ_2]]),1,IF(AND(Rebate_Lookup[[#This Row],[Instances]]=2,Rebate_Lookup[[#This Row],[Order Form Quantity]]>=Rebate_Lookup[[#This Row],[MOQ_2]]),2,\nIF(AND(Rebate_Lookup[[#This Row],[Instances]]=3,Rebate_Lookup[[#This Row],[Order Form Quantity]]<Rebate_Lookup[[#This Row],[MOQ_2]]),1,IF(AND(Rebate_Lookup[[#This Row],[Instances]]=3,Rebate_Lookup[[#This Row],[MOQ_2]]<=Rebate_Lookup[[#This Row],[Order Form Quantity]],Rebate_Lookup[[#This Row],[Order Form Quantity]]<Rebate_Lookup[[#This Row],[MOQ_3]]),2,IF(AND(Rebate_Lookup[[#This Row],[Instances]]=3,Rebate_Lookup[[#This Row],[Order Form Quantity]]>=Rebate_Lookup[[#This Row],[MOQ_3]]),3))))))","v":1},{"$f":"COUNTIF('2025 GOLF Only Fall Solutions'!A:A,Rebate_Lookup[[#This Row],[SKU CODE]])","v":0},{"$f":"IFERROR(Rebate_Lookup[[#This Row],[Order Form Quantity]]>=Rebate_Lookup[[#This Row],[MOQ_2]],0)","v":0},null,{"$f":"COUNTIF('2025 GOLF Only Fall Solutions'!A:A,Rebate_Lookup[[#This Row],[SKU CODE]])","v":0}]
[null,11008351,{"$f":"INDEX(PRICING[Agency/TT],MATCH(Rebate_Lookup[[#This Row],[SKU CODE]],PRICING[SKU],0))","v":"TT"},{"$f":"INDEX(PRICING[Product],MATCH(B51,PRICING[SKU],0))","v":"Blindside® Herbicide "},{"$f":"INDEX(PRICING[Size],MATCH(Rebate_Lookup[[#This Row],[SKU CODE]],PRICING[SKU],0))","v":"0.5 lb"},{"$f":"INDEX(PRICING[Indication],MATCH(Rebate_Lookup[[#This Row],[SKU CODE]],PRICING[SKU],0))","v":"H"},{"$f":"COUNTIFS(PRICING[SKU],B51)","v":1},null,null,null,{"$f":"SUMIFS(PRICING[Rebate $],PRICING[SKU],Rebate_Lookup[[#This Row],[SKU CODE]],PRICING[Set],1)","v":22},{"$f":"SUMIFS(PRICING[Rebate $],PRICING[SKU],Rebate_Lookup[[#This Row],[SKU CODE]],PRICING[Set],2)","v":0},{"$f":"SUMIFS(PRICING[Rebate $],PRICING[SKU],Rebate_Lookup[[#This Row],[SKU CODE]],PRICING[Set],3)","v":0},{"$f":"INDEX('2025 GOLF Only Fall Solutions'!J:J,MATCH(Rebate_Lookup[[#This Row],[SKU CODE]],'2025 GOLF Only Fall Solutions'!A:A,0))","v":0},{"$f":"IF(Rebate_Lookup[[#This Row],[Instances]]=1,1,\nIF(AND(Rebate_Lookup[[#This Row],[Instances]]=2,Rebate_Lookup[[#This Row],[Order Form Quantity]]<Rebate_Lookup[[#This Row],[MOQ_2]]),1,IF(AND(Rebate_Lookup[[#This Row],[Instances]]=2,Rebate_Lookup[[#This Row],[Order Form Quantity]]>=Rebate_Lookup[[#This Row],[MOQ_2]]),2,\nIF(AND(Rebate_Lookup[[#This Row],[Instances]]=3,Rebate_Lookup[[#This Row],[Order Form Quantity]]<Rebate_Lookup[[#This Row],[MOQ_2]]),1,IF(AND(Rebate_Lookup[[#This Row],[Instances]]=3,Rebate_Lookup[[#This Row],[MOQ_2]]<=Rebate_Lookup[[#This Row],[Order Form Quantity]],Rebate_Lookup[[#This Row],[Order Form Quantity]]<Rebate_Lookup[[#This Row],[MOQ_3]]),2,IF(AND(Rebate_Lookup[[#This Row],[Instances]]=3,Rebate_Lookup[[#This Row],[Order Form Quantity]]>=Rebate_Lookup[[#This Row],[MOQ_3]]),3))))))","v":1},{"$f":"COUNTIF('2025 GOLF Only Fall Solutions'!A:A,Rebate_Lookup[[#This Row],[SKU CODE]])","v":1},{"$f":"IFERROR(Rebate_Lookup[[#This Row],[Order Form Quantity]]>=Rebate_Lookup[[#This Row],[MOQ_2]],0)","v":true},null,{"$f":"COUNTIF('2025 GOLF Only Fall Solutions'!A:A,Rebate_Lookup[[#This Row],[SKU CODE]])","v":1}]
[null,11008357,{"$f":"INDEX(PRICING[Agency/TT],MATCH(Rebate_Lookup[[#This Row],[SKU CODE]],PRICING[SKU],0))","v":"TT"},{"$f":"INDEX(PRICING[Product],MATCH(B52,PRICING[SKU],0))","v":"Dismiss® CA Herbicide"},{"$f":"INDEX(PRICING[Size],MATCH(Rebate_Lookup[[#This Row],[SKU CODE]],PRICING[SKU],0))","v":"6 oz"},{"$f":"INDEX(PRICING[Indication],MATCH(Rebate_Lookup[[#This Row],[SKU CODE]],PRICING[SKU],0))","v":"H"},{"$f":"COUNTIFS(PRICING[SKU],B52)","v":1},null,null,null,{"$f":"SUMIFS(PRICING[Rebate $],PRICING[SKU],Rebate_Lookup[[#This Row],[SKU CODE]],PRICING[Set],1)","v":14},{"$f":"SUMIFS(PRICING[Rebate $],PRICING[SKU],Rebate_Lookup[[#This Row],[SKU CODE]],PRICING[Set],2)","v":0},{"$f":"SUMIFS(PRICING[Rebate $],PRICING[SKU],Rebate_Lookup[[#This Row],[SKU CODE]],PRICING[Set],3)","v":0},{"$f":"INDEX('2025 GOLF Only Fall Solutions'!J:J,MATCH(Rebate_Lookup[[#This Row],[SKU CODE]],'2025 GOLF Only Fall Solutions'!A:A,0))","v":0},{"$f":"IF(Rebate_Lookup[[#This Row],[Instances]]=1,1,\nIF(AND(Rebate_Lookup[[#This Row],[Instances]]=2,Rebate_Lookup[[#This Row],[Order Form Quantity]]<Rebate_Lookup[[#This Row],[MOQ_2]]),1,IF(AND(Rebate_Lookup[[#This Row],[Instances]]=2,Rebate_Lookup[[#This Row],[Order Form Quantity]]>=Rebate_Lookup[[#This Row],[MOQ_2]]),2,\nIF(AND(Rebate_Lookup[[#This Row],[Instances]]=3,Rebate_Lookup[[#This Row],[Order Form Quantity]]<Rebate_Lookup[[#This Row],[MOQ_2]]),1,IF(AND(Rebate_Lookup[[#This Row],[Instances]]=3,Rebate_Lookup[[#This Row],[MOQ_2]]<=Rebate_Lookup[[#This Row],[Order Form Quantity]],Rebate_Lookup[[#This Row],[Order Form Quantity]]<Rebate_Lookup[[#This Row],[MOQ_3]]),2,IF(AND(Rebate_Lookup[[#This Row],[Instances]]=3,Rebate_Lookup[[#This Row],[Order Form Quantity]]>=Rebate_Lookup[[#This Row],[MOQ_3]]),3))))))","v":1},{"$f":"COUNTIF('2025 GOLF Only Fall Solutions'!A:A,Rebate_Lookup[[#This Row],[SKU CODE]])","v":1},{"$f":"IFERROR(Rebate_Lookup[[#This Row],[Order Form Quantity]]>=Rebate_Lookup[[#This Row],[MOQ_2]],0)","v":true},null,{"$f":"COUNTIF('2025 GOLF Only Fall Solutions'!A:A,Rebate_Lookup[[#This Row],[SKU CODE]])","v":1}]
[null,11008474,{"$f":"INDEX(PRICING[Agency/TT],MATCH(Rebate_Lookup[[#This Row],[SKU CODE]],PRICING[SKU],0))","v":"TT"},{"$f":"INDEX(PRICING[Product],MATCH(B53,PRICING[SKU],0))","v":"Dismiss® South Herbicide"},{"$f":"INDEX(PRICING[Size],MATCH(Rebate_Lookup[[#This Row],[SKU CODE]],PRICING[SKU],0))","v":"1 pint "},{"$f":"INDEX(PRICING[Indication],MATCH(Rebate_Lookup[[#This Row],[SKU CODE]],PRICING[SKU],0))","v":"H"},{"$f":"COUNTIFS(PRICING[SKU],B53)","v":1},null,null,null,{"$f":"SUMIFS(PRICING[Rebate $],PRICING[SKU],Rebate_Lookup[[#This Row],[SKU CODE]],PRICING[Set],1)","v":24},{"$f":"SUMIFS(PRICING[Rebate $],PRICING[SKU],Rebate_Lookup[[#This Row],[SKU CODE]],PRICING[Set],2)","v":0},{"$f":"SUMIFS(PRICING[Rebate $],PRICING[SKU],Rebate_Lookup[[#This Row],[SKU CODE]],PRICING[Set],3)","v":0},{"$f":"INDEX('2025 GOLF Only Fall Solutions'!J:J,MATCH(Rebate_Lookup[[#This Row],[SKU CODE]],'2025 GOLF Only Fall Solutions'!A:A,0))","v":0},{"$f":"IF(Rebate_Lookup[[#This Row],[Instances]]=1,1,\nIF(AND(Rebate_Lookup[[#This Row],[Instances]]=2,Rebate_Lookup[[#This Row],[Order Form Quantity]]<Rebate_Lookup[[#This Row],[MOQ_2]]),1,IF(AND(Rebate_Lookup[[#This Row],[Instances]]=2,Rebate_Lookup[[#This Row],[Order Form Quantity]]>=Rebate_Lookup[[#This Row],[MOQ_2]]),2,\nIF(AND(Rebate_Lookup[[#This Row],[Instances]]=3,Rebate_Lookup[[#This Row],[Order Form Quantity]]<Rebate_Lookup[[#This Row],[MOQ_2]]),1,IF(AND(Rebate_Lookup[[#This Row],[Instances]]=3,Rebate_Lookup[[#This Row],[MOQ_2]]<=Rebate_Lookup[[#This Row],[Order Form Quantity]],Rebate_Lookup[[#This Row],[Order Form Quantity]]<Rebate_Lookup[[#This Row],[MOQ_3]]),2,IF(AND(Rebate_Lookup[[#This Row],[Instances]]=3,Rebate_Lookup[[#This Row],[Order Form Quantity]]>=Rebate_Lookup[[#This Row],[MOQ_3]]),3))))))","v":1},{"$f":"COUNTIF('2025 GOLF Only Fall Solutions'!A:A,Rebate_Lookup[[#This Row],[SKU CODE]])","v":1},{"$f":"IFERROR(Rebate_Lookup[[#This Row],[Order Form Quantity]]>=Rebate_Lookup[[#This Row],[MOQ_2]],0)","v":true}]
[null,11008475,{"$f":"INDEX(PRICING[Agency/TT],MATCH(Rebate_Lookup[[#This Row],[SKU CODE]],PRICING[SKU],0))","v":"TT"},{"$f":"INDEX(PRICING[Product],MATCH(B54,PRICING[SKU],0))","v":"Dismiss® Turf Herbicide"},{"$f":"INDEX(PRICING[Size],MATCH(Rebate_Lookup[[#This Row],[SKU CODE]],PRICING[SKU],0))","v":"6 oz"},{"$f":"INDEX(PRICING[Indication],MATCH(Rebate_Lookup[[#This Row],[SKU CODE]],PRICING[SKU],0))","v":"H"},{"$f":"COUNTIFS(PRICING[SKU],B54)","v":1},null,null,null,{"$f":"SUMIFS(PRICING[Rebate $],PRICING[SKU],Rebate_Lookup[[#This Row],[SKU CODE]],PRICING[Set],1)","v":14},{"$f":"SUMIFS(PRICING[Rebate $],PRICING[SKU],Rebate_Lookup[[#This Row],[SKU CODE]],PRICING[Set],2)","v":0},{"$f":"SUMIFS(PRICING[Rebate $],PRICING[SKU],Rebate_Lookup[[#This Row],[SKU CODE]],PRICING[Set],3)","v":0},{"$f":"INDEX('2025 GOLF Only Fall Solutions'!J:J,MATCH(Rebate_Lookup[[#This Row],[SKU CODE]],'2025 GOLF Only Fall Solutions'!A:A,0))","v":0},{"$f":"IF(Rebate_Lookup[[#This Row],[Instances]]=1,1,\nIF(AND(Rebate_Lookup[[#This Row],[Instances]]=2,Rebate_Lookup[[#This Row],[Order Form Quantity]]<Rebate_Lookup[[#This Row],[MOQ_2]]),1,IF(AND(Rebate_Lookup[[#This Row],[Instances]]=2,Rebate_Lookup[[#This Row],[Order Form Quantity]]>=Rebate_Lookup[[#This Row],[MOQ_2]]),2,\nIF(AND(Rebate_Lookup[[#This Row],[Instances]]=3,Rebate_Lookup[[#This Row],[Order Form Quantity]]<Rebate_Lookup[[#This Row],[MOQ_2]]),1,IF(AND(Rebate_Lookup[[#This Row],[Instances]]=3,Rebate_Lookup[[#This Row],[MOQ_2]]<=Rebate_Lookup[[#This Row],[Order Form Quantity]],Rebate_Lookup[[#This Row],[Order Form Quantity]]<Rebate_Lookup[[#This Row],[MOQ_3]]),2,IF(AND(Rebate_Lookup[[#This Row],[Instances]]=3,Rebate_Lookup[[#This Row],[Order Form Quantity]]>=Rebate_Lookup[[#This Row],[MOQ_3]]),3))))))","v":1},{"$f":"COUNTIF('2025 GOLF Only Fall Solutions'!A:A,Rebate_Lookup[[#This Row],[SKU CODE]])","v":1},{"$f":"IFERROR(Rebate_Lookup[[#This Row],[Order Form Quantity]]>=Rebate_Lookup[[#This Row],[MOQ_2]],0)","v":true}]
[null,11008336,{"$f":"INDEX(PRICING[Agency/TT],MATCH(Rebate_Lookup[[#This Row],[SKU CODE]],PRICING[SKU],0))","v":"TT"},{"$f":"INDEX(PRICING[Product],MATCH(B55,PRICING[SKU],0))","v":"Dismiss® Turf Herbicide"},{"$f":"INDEX(PRICING[Size],MATCH(Rebate_Lookup[[#This Row],[SKU CODE]],PRICING[SKU],0))","v":"64 oz"},{"$f":"INDEX(PRICING[Indication],MATCH(Rebate_Lookup[[#This Row],[SKU CODE]],PRICING[SKU],0))","v":"H"},{"$f":"COUNTIFS(PRICING[SKU],B55)","v":1},null,null,null,{"$f":"SUMIFS(PRICING[Rebate $],PRICING[SKU],Rebate_Lookup[[#This Row],[SKU CODE]],PRICING[Set],1)","v":40},{"$f":"SUMIFS(PRICING[Rebate $],PRICING[SKU],Rebate_Lookup[[#This Row],[SKU CODE]],PRICING[Set],2)","v":0},{"$f":"SUMIFS(PRICING[Rebate $],PRICING[SKU],Rebate_Lookup[[#This Row],[SKU CODE]],PRICING[Set],3)","v":0},{"$f":"INDEX('2025 GOLF Only Fall Solutions'!J:J,MATCH(Rebate_Lookup[[#This Row],[SKU CODE]],'2025 GOLF Only Fall Solutions'!A:A,0))","v":0},{"$f":"IF(Rebate_Lookup[[#This Row],[Instances]]=1,1,\nIF(AND(Rebate_Lookup[[#This Row],[Instances]]=2,Rebate_Lookup[[#This Row],[Order Form Quantity]]<Rebate_Lookup[[#This Row],[MOQ_2]]),1,IF(AND(Rebate_Lookup[[#This Row],[Instances]]=2,Rebate_Lookup[[#This Row],[Order Form Quantity]]>=Rebate_Lookup[[#This Row],[MOQ_2]]),2,\nIF(AND(Rebate_Lookup[[#This Row],[Instances]]=3,Rebate_Lookup[[#This Row],[Order Form Quantity]]<Rebate_Lookup[[#This Row],[MOQ_2]]),1,IF(AND(Rebate_Lookup[[#This Row],[Instances]]=3,Rebate_Lookup[[#This Row],[MOQ_2]]<=Rebate_Lookup[[#This Row],[Order Form Quantity]],Rebate_Lookup[[#This Row],[Order Form Quantity]]<Rebate_Lookup[[#This Row],[MOQ_3]]),2,IF(AND(Rebate_Lookup[[#This Row],[Instances]]=3,Rebate_Lookup[[#This Row],[Order Form Quantity]]>=Rebate_Lookup[[#This Row],[MOQ_3]]),3))))))","v":1},{"$f":"COUNTIF('2025 GOLF Only Fall Solutions'!A:A,Rebate_Lookup[[#This Row],[SKU CODE]])","v":1},{"$f":"IFERROR(Rebate_Lookup[[#This Row],[Order Form Quantity]]>=Rebate_Lookup[[#This Row],[MOQ_2]],0)","v":true}]
[null,86215578,{"$f":"INDEX(PRICING[Agency/TT],MATCH(Rebate_Lookup[[#This Row],[SKU CODE]],PRICING[SKU],0))","v":"TT"},{"$f":"INDEX(PRICING[Product],MATCH(B56,PRICING[SKU],0))","v":"Prograss EC"},{"$f":"INDEX(PRICING[Size],MATCH(Rebate_Lookup[[#This Row],[SKU CODE]],PRICING[SKU],0))","v":"2.5 gal "},{"$f":"INDEX(PRICING[Indication],MATCH(Rebate_Lookup[[#This Row],[SKU CODE]],PRICING[SKU],0))","v":"H"},{"$f":"COUNTIFS(PRICING[SKU],B56)","v":1},null,null,null,{"$f":"SUMIFS(PRICING[Rebate $],PRICING[SKU],Rebate_Lookup[[#This Row],[SKU CODE]],PRICING[Set],1)","v":22},{"$f":"SUMIFS(PRICING[Rebate $],PRICING[SKU],Rebate_Lookup[[#This Row],[SKU CODE]],PRICING[Set],2)","v":0},{"$f":"SUMIFS(PRICING[Rebate $],PRICING[SKU],Rebate_Lookup[[#This Row],[SKU CODE]],PRICING[Set],3)","v":0},{"$f":"INDEX('2025 GOLF Only Fall Solutions'!J:J,MATCH(Rebate_Lookup[[#This Row],[SKU CODE]],'2025 GOLF Only Fall Solutions'!A:A,0))","v":0},{"$f":"IF(Rebate_Lookup[[#This Row],[Instances]]=1,1,\nIF(AND(Rebate_Lookup[[#This Row],[Instances]]=2,Rebate_Lookup[[#This Row],[Order Form Quantity]]<Rebate_Lookup[[#This Row],[MOQ_2]]),1,IF(AND(Rebate_Lookup[[#This Row],[Instances]]=2,Rebate_Lookup[[#This Row],[Order Form Quantity]]>=Rebate_Lookup[[#This Row],[MOQ_2]]),2,\nIF(AND(Rebate_Lookup[[#This Row],[Instances]]=3,Rebate_Lookup[[#This Row],[Order Form Quantity]]<Rebate_Lookup[[#This Row],[MOQ_2]]),1,IF(AND(Rebate_Lookup[[#This Row],[Instances]]=3,Rebate_Lookup[[#This Row],[MOQ_2]]<=Rebate_Lookup[[#This Row],[Order Form Quantity]],Rebate_Lookup[[#This Row],[Order Form Quantity]]<Rebate_Lookup[[#This Row],[MOQ_3]]),2,IF(AND(Rebate_Lookup[[#This Row],[Instances]]=3,Rebate_Lookup[[#This Row],[Order Form Quantity]]>=Rebate_Lookup[[#This Row],[MOQ_3]]),3))))))","v":1},{"$f":"COUNTIF('2025 GOLF Only Fall Solutions'!A:A,Rebate_Lookup[[#This Row],[SKU CODE]])","v":1},{"$f":"IFERROR(Rebate_Lookup[[#This Row],[Order Form Quantity]]>=Rebate_Lookup[[#This Row],[MOQ_2]],0)","v":true}]
[null,"D00000913",{"$f":"INDEX(PRICING[Agency/TT],MATCH(Rebate_Lookup[[#This Row],[SKU CODE]],PRICING[SKU],0))","v":"TT"},{"$f":"INDEX(PRICING[Product],MATCH(B57,PRICING[SKU],0))","v":"Proxy"},{"$f":"INDEX(PRICING[Size],MATCH(Rebate_Lookup[[#This Row],[SKU CODE]],PRICING[SKU],0))","v":"2.5 gal "},{"$f":"INDEX(PRICING[Indication],MATCH(Rebate_Lookup[[#This Row],[SKU CODE]],PRICING[SKU],0))","v":"H"},{"$f":"COUNTIFS(PRICING[SKU],B57)","v":1},null,null,null,{"$f":"SUMIFS(PRICING[Rebate $],PRICING[SKU],Rebate_Lookup[[#This Row],[SKU CODE]],PRICING[Set],1)","v":0},{"$f":"SUMIFS(PRICING[Rebate $],PRICING[SKU],Rebate_Lookup[[#This Row],[SKU CODE]],PRICING[Set],2)","v":0},{"$f":"SUMIFS(PRICING[Rebate $],PRICING[SKU],Rebate_Lookup[[#This Row],[SKU CODE]],PRICING[Set],3)","v":0},{"$f":"INDEX('2025 GOLF Only Fall Solutions'!J:J,MATCH(Rebate_Lookup[[#This Row],[SKU CODE]],'2025 GOLF Only Fall Solutions'!A:A,0))","v":0},{"$f":"IF(Rebate_Lookup[[#This Row],[Instances]]=1,1,\nIF(AND(Rebate_Lookup[[#This Row],[Instances]]=2,Rebate_Lookup[[#This Row],[Order Form Quantity]]<Rebate_Lookup[[#This Row],[MOQ_2]]),1,IF(AND(Rebate_Lookup[[#This Row],[Instances]]=2,Rebate_Lookup[[#This Row],[Order Form Quantity]]>=Rebate_Lookup[[#This Row],[MOQ_2]]),2,\nIF(AND(Rebate_Lookup[[#This Row],[Instances]]=3,Rebate_Lookup[[#This Row],[Order Form Quantity]]<Rebate_Lookup[[#This Row],[MOQ_2]]),1,IF(AND(Rebate_Lookup[[#This Row],[Instances]]=3,Rebate_Lookup[[#This Row],[MOQ_2]]<=Rebate_Lookup[[#This Row],[Order Form Quantity]],Rebate_Lookup[[#This Row],[Order Form Quantity]]<Rebate_Lookup[[#This Row],[MOQ_3]]),2,IF(AND(Rebate_Lookup[[#This Row],[Instances]]=3,Rebate_Lookup[[#This Row],[Order Form Quantity]]>=Rebate_Lookup[[#This Row],[MOQ_3]]),3))))))","v":1},{"$f":"COUNTIF('2025 GOLF Only Fall Solutions'!A:A,Rebate_Lookup[[#This Row],[SKU CODE]])","v":1},{"$f":"IFERROR(Rebate_Lookup[[#This Row],[Order Form Quantity]]>=Rebate_Lookup[[#This Row],[MOQ_2]],0)","v":true}]
[null,11008447,{"$f":"INDEX(PRICING[Agency/TT],MATCH(Rebate_Lookup[[#This Row],[SKU CODE]],PRICING[SKU],0))","v":"TT"},{"$f":"INDEX(PRICING[Product],MATCH(B58,PRICING[SKU],0))","v":"QuickSilver® Herbicide "},{"$f":"INDEX(PRICING[Size],MATCH(Rebate_Lookup[[#This Row],[SKU CODE]],PRICING[SKU],0))","v":"8 oz"},{"$f":"INDEX(PRICING[Indication],MATCH(Rebate_Lookup[[#This Row],[SKU CODE]],PRICING[SKU],0))","v":"H"},{"$f":"COUNTIFS(PRICING[SKU],B58)","v":1},null,null,null,{"$f":"SUMIFS(PRICING[Rebate $],PRICING[SKU],Rebate_Lookup[[#This Row],[SKU CODE]],PRICING[Set],1)","v":20},{"$f":"SUMIFS(PRICING[Rebate $],PRICING[SKU],Rebate_Lookup[[#This Row],[SKU CODE]],PRICING[Set],2)","v":0},{"$f":"SUMIFS(PRICING[Rebate $],PRICING[SKU],Rebate_Lookup[[#This Row],[SKU CODE]],PRICING[Set],3)","v":0},{"$f":"INDEX('2025 GOLF Only Fall Solutions'!J:J,MATCH(Rebate_Lookup[[#This Row],[SKU CODE]],'2025 GOLF Only Fall Solutions'!A:A,0))","v":0},{"$f":"IF(Rebate_Lookup[[#This Row],[Instances]]=1,1,\nIF(AND(Rebate_Lookup[[#This Row],[Instances]]=2,Rebate_Lookup[[#This Row],[Order Form Quantity]]<Rebate_Lookup[[#This Row],[MOQ_2]]),1,IF(AND(Rebate_Lookup[[#This Row],[Instances]]=2,Rebate_Lookup[[#This Row],[Order Form Quantity]]>=Rebate_Lookup[[#This Row],[MOQ_2]]),2,\nIF(AND(Rebate_Lookup[[#This Row],[Instances]]=3,Rebate_Lookup[[#This Row],[Order Form Quantity]]<Rebate_Lookup[[#This Row],[MOQ_2]]),1,IF(AND(Rebate_Lookup[[#This Row],[Instances]]=3,Rebate_Lookup[[#This Row],[MOQ_2]]<=Rebate_Lookup[[#This Row],[Order Form Quantity]],Rebate_Lookup[[#This Row],[Order Form Quantity]]<Rebate_Lookup[[#This Row],[MOQ_3]]),2,IF(AND(Rebate_Lookup[[#This Row],[Instances]]=3,Rebate_Lookup[[#This Row],[Order Form Quantity]]>=Rebate_Lookup[[#This Row],[MOQ_3]]),3))))))","v":1},{"$f":"COUNTIF('2025 GOLF Only Fall Solutions'!A:A,Rebate_Lookup[[#This Row],[SKU CODE]])","v":1},{"$f":"IFERROR(Rebate_Lookup[[#This Row],[Order Form Quantity]]>=Rebate_Lookup[[#This Row],[MOQ_2]],0)","v":true}]
[null,79850980,{"$f":"INDEX(PRICING[Agency/TT],MATCH(Rebate_Lookup[[#This Row],[SKU CODE]],PRICING[SKU],0))","v":"TT"},{"$f":"INDEX(PRICING[Product],MATCH(B59,PRICING[SKU],0))","v":"Revolver®"},{"$f":"INDEX(PRICING[Size],MATCH(Rebate_Lookup[[#This Row],[SKU CODE]],PRICING[SKU],0))","v":"32 fl oz"},{"$f":"INDEX(PRICING[Indication],MATCH(Rebate_Lookup[[#This Row],[SKU CODE]],PRICING[SKU],0))","v":"H"},{"$f":"COUNTIFS(PRICING[SKU],B59)","v":1},null,null,null,{"$f":"SUMIFS(PRICING[Rebate $],PRICING[SKU],Rebate_Lookup[[#This Row],[SKU CODE]],PRICING[Set],1)","v":21},{"$f":"SUMIFS(PRICING[Rebate $],PRICING[SKU],Rebate_Lookup[[#This Row],[SKU CODE]],PRICING[Set],2)","v":0},{"$f":"SUMIFS(PRICING[Rebate $],PRICING[SKU],Rebate_Lookup[[#This Row],[SKU CODE]],PRICING[Set],3)","v":0},{"$f":"INDEX('2025 GOLF Only Fall Solutions'!J:J,MATCH(Rebate_Lookup[[#This Row],[SKU CODE]],'2025 GOLF Only Fall Solutions'!A:A,0))","v":0},{"$f":"IF(Rebate_Lookup[[#This Row],[Instances]]=1,1,\nIF(AND(Rebate_Lookup[[#This Row],[Instances]]=2,Rebate_Lookup[[#This Row],[Order Form Quantity]]<Rebate_Lookup[[#This Row],[MOQ_2]]),1,IF(AND(Rebate_Lookup[[#This Row],[Instances]]=2,Rebate_Lookup[[#This Row],[Order Form Quantity]]>=Rebate_Lookup[[#This Row],[MOQ_2]]),2,\nIF(AND(Rebate_Lookup[[#This Row],[Instances]]=3,Rebate_Lookup[[#This Row],[Order Form Quantity]]<Rebate_Lookup[[#This Row],[MOQ_2]]),1,IF(AND(Rebate_Lookup[[#This Row],[Instances]]=3,Rebate_Lookup[[#This Row],[MOQ_2]]<=Rebate_Lookup[[#This Row],[Order Form Quantity]],Rebate_Lookup[[#This Row],[Order Form Quantity]]<Rebate_Lookup[[#This Row],[MOQ_3]]),2,IF(AND(Rebate_Lookup[[#This Row],[Instances]]=3,Rebate_Lookup[[#This Row],[Order Form Quantity]]>=Rebate_Lookup[[#This Row],[MOQ_3]]),3))))))","v":1},{"$f":"COUNTIF('2025 GOLF Only Fall Solutions'!A:A,Rebate_Lookup[[#This Row],[SKU CODE]])","v":1},{"$f":"IFERROR(Rebate_Lookup[[#This Row],[Order Form Quantity]]>=Rebate_Lookup[[#This Row],[MOQ_2]],0)","v":true}]
[null,427709,{"$f":"INDEX(PRICING[Agency/TT],MATCH(Rebate_Lookup[[#This Row],[SKU CODE]],PRICING[SKU],0))","v":"TT"},{"$f":"INDEX(PRICING[Product],MATCH(B60,PRICING[SKU],0))","v":"Sencor 75"},{"$f":"INDEX(PRICING[Size],MATCH(Rebate_Lookup[[#This Row],[SKU CODE]],PRICING[SKU],0))","v":"5 lb"},{"$f":"INDEX(PRICING[Indication],MATCH(Rebate_Lookup[[#This Row],[SKU CODE]],PRICING[SKU],0))","v":"H"},{"$f":"COUNTIFS(PRICING[SKU],B60)","v":1},null,null,null,{"$f":"SUMIFS(PRICING[Rebate $],PRICING[SKU],Rebate_Lookup[[#This Row],[SKU CODE]],PRICING[Set],1)","v":0},{"$f":"SUMIFS(PRICING[Rebate $],PRICING[SKU],Rebate_Lookup[[#This Row],[SKU CODE]],PRICING[Set],2)","v":0},{"$f":"SUMIFS(PRICING[Rebate $],PRICING[SKU],Rebate_Lookup[[#This Row],[SKU CODE]],PRICING[Set],3)","v":0},{"$f":"INDEX('2025 GOLF Only Fall Solutions'!J:J,MATCH(Rebate_Lookup[[#This Row],[SKU CODE]],'2025 GOLF Only Fall Solutions'!A:A,0))","v":0},{"$f":"IF(Rebate_Lookup[[#This Row],[Instances]]=1,1,\nIF(AND(Rebate_Lookup[[#This Row],[Instances]]=2,Rebate_Lookup[[#This Row],[Order Form Quantity]]<Rebate_Lookup[[#This Row],[MOQ_2]]),1,IF(AND(Rebate_Lookup[[#This Row],[Instances]]=2,Rebate_Lookup[[#This Row],[Order Form Quantity]]>=Rebate_Lookup[[#This Row],[MOQ_2]]),2,\nIF(AND(Rebate_Lookup[[#This Row],[Instances]]=3,Rebate_Lookup[[#This Row],[Order Form Quantity]]<Rebate_Lookup[[#This Row],[MOQ_2]]),1,IF(AND(Rebate_Lookup[[#This Row],[Instances]]=3,Rebate_Lookup[[#This Row],[MOQ_2]]<=Rebate_Lookup[[#This Row],[Order Form Quantity]],Rebate_Lookup[[#This Row],[Order Form Quantity]]<Rebate_Lookup[[#This Row],[MOQ_3]]),2,IF(AND(Rebate_Lookup[[#This Row],[Instances]]=3,Rebate_Lookup[[#This Row],[Order Form Quantity]]>=Rebate_Lookup[[#This Row],[MOQ_3]]),3))))))","v":1},{"$f":"COUNTIF('2025 GOLF Only Fall Solutions'!A:A,Rebate_Lookup[[#This Row],[SKU CODE]])","v":1},{"$f":"IFERROR(Rebate_Lookup[[#This Row],[Order Form Quantity]]>=Rebate_Lookup[[#This Row],[MOQ_2]],0)","v":true}]
[null,11008482,{"$f":"INDEX(PRICING[Agency/TT],MATCH(Rebate_Lookup[[#This Row],[SKU CODE]],PRICING[SKU],0))","v":"TT"},{"$f":"INDEX(PRICING[Product],MATCH(B61,PRICING[SKU],0))","v":"Solitare® Herbicide "},{"$f":"INDEX(PRICING[Size],MATCH(Rebate_Lookup[[#This Row],[SKU CODE]],PRICING[SKU],0))","v":"1 lb "},{"$f":"INDEX(PRICING[Indication],MATCH(Rebate_Lookup[[#This Row],[SKU CODE]],PRICING[SKU],0))","v":"H"},{"$f":"COUNTIFS(PRICING[SKU],B61)","v":1},null,null,null,{"$f":"SUMIFS(PRICING[Rebate $],PRICING[SKU],Rebate_Lookup[[#This Row],[SKU CODE]],PRICING[Set],1)","v":15},{"$f":"SUMIFS(PRICING[Rebate $],PRICING[SKU],Rebate_Lookup[[#This Row],[SKU CODE]],PRICING[Set],2)","v":0},{"$f":"SUMIFS(PRICING[Rebate $],PRICING[SKU],Rebate_Lookup[[#This Row],[SKU CODE]],PRICING[Set],3)","v":0},{"$f":"INDEX('2025 GOLF Only Fall Solutions'!J:J,MATCH(Rebate_Lookup[[#This Row],[SKU CODE]],'2025 GOLF Only Fall Solutions'!A:A,0))","v":0},{"$f":"IF(Rebate_Lookup[[#This Row],[Instances]]=1,1,\nIF(AND(Rebate_Lookup[[#This Row],[Instances]]=2,Rebate_Lookup[[#This Row],[Order Form Quantity]]<Rebate_Lookup[[#This Row],[MOQ_2]]),1,IF(AND(Rebate_Lookup[[#This Row],[Instances]]=2,Rebate_Lookup[[#This Row],[Order Form Quantity]]>=Rebate_Lookup[[#This Row],[MOQ_2]]),2,\nIF(AND(Rebate_Lookup[[#This Row],[Instances]]=3,Rebate_Lookup[[#This Row],[Order Form Quantity]]<Rebate_Lookup[[#This Row],[MOQ_2]]),1,IF(AND(Rebate_Lookup[[#This Row],[Instances]]=3,Rebate_Lookup[[#This Row],[MOQ_2]]<=Rebate_Lookup[[#This Row],[Order Form Quantity]],Rebate_Lookup[[#This Row],[Order Form Quantity]]<Rebate_Lookup[[#This Row],[MOQ_3]]),2,IF(AND(Rebate_Lookup[[#This Row],[Instances]]=3,Rebate_Lookup[[#This Row],[Order Form Quantity]]>=Rebate_Lookup[[#This Row],[MOQ_3]]),3))))))","v":1},{"$f":"COUNTIF('2025 GOLF Only Fall Solutions'!A:A,Rebate_Lookup[[#This Row],[SKU CODE]])","v":1},{"$f":"IFERROR(Rebate_Lookup[[#This Row],[Order Form Quantity]]>=Rebate_Lookup[[#This Row],[MOQ_2]],0)","v":true}]
[null,11008369,{"$f":"INDEX(PRICING[Agency/TT],MATCH(Rebate_Lookup[[#This Row],[SKU CODE]],PRICING[SKU],0))","v":"TT"},{"$f":"INDEX(PRICING[Product],MATCH(B62,PRICING[SKU],0))","v":"Solitare® WSL Herbicide"},{"$f":"INDEX(PRICING[Size],MATCH(Rebate_Lookup[[#This Row],[SKU CODE]],PRICING[SKU],0))","v":"0.75 gal "},{"$f":"INDEX(PRICING[Indication],MATCH(Rebate_Lookup[[#This Row],[SKU CODE]],PRICING[SKU],0))","v":"H"},{"$f":"COUNTIFS(PRICING[SKU],B62)","v":1},null,null,null,{"$f":"SUMIFS(PRICING[Rebate $],PRICING[SKU],Rebate_Lookup[[#This Row],[SKU CODE]],PRICING[Set],1)","v":12},{"$f":"SUMIFS(PRICING[Rebate $],PRICING[SKU],Rebate_Lookup[[#This Row],[SKU CODE]],PRICING[Set],2)","v":0},{"$f":"SUMIFS(PRICING[Rebate $],PRICING[SKU],Rebate_Lookup[[#This Row],[SKU CODE]],PRICING[Set],3)","v":0},{"$f":"INDEX('2025 GOLF Only Fall Solutions'!J:J,MATCH(Rebate_Lookup[[#This Row],[SKU CODE]],'2025 GOLF Only Fall Solutions'!A:A,0))","v":0},{"$f":"IF(Rebate_Lookup[[#This Row],[Instances]]=1,1,\nIF(AND(Rebate_Lookup[[#This Row],[Instances]]=2,Rebate_Lookup[[#This Row],[Order Form Quantity]]<Rebate_Lookup[[#This Row],[MOQ_2]]),1,IF(AND(Rebate_Lookup[[#This Row],[Instances]]=2,Rebate_Lookup[[#This Row],[Order Form Quantity]]>=Rebate_Lookup[[#This Row],[MOQ_2]]),2,\nIF(AND(Rebate_Lookup[[#This Row],[Instances]]=3,Rebate_Lookup[[#This Row],[Order Form Quantity]]<Rebate_Lookup[[#This Row],[MOQ_2]]),1,IF(AND(Rebate_Lookup[[#This Row],[Instances]]=3,Rebate_Lookup[[#This Row],[MOQ_2]]<=Rebate_Lookup[[#This Row],[Order Form Quantity]],Rebate_Lookup[[#This Row],[Order Form Quantity]]<Rebate_Lookup[[#This Row],[MOQ_3]]),2,IF(AND(Rebate_Lookup[[#This Row],[Instances]]=3,Rebate_Lookup[[#This Row],[Order Form Quantity]]>=Rebate_Lookup[[#This Row],[MOQ_3]]),3))))))","v":1},{"$f":"COUNTIF('2025 GOLF Only Fall Solutions'!A:A,Rebate_Lookup[[#This Row],[SKU CODE]])","v":1},{"$f":"IFERROR(Rebate_Lookup[[#This Row],[Order Form Quantity]]>=Rebate_Lookup[[#This Row],[MOQ_2]],0)","v":true}]
[null,"D00000675",{"$f":"INDEX(PRICING[Agency/TT],MATCH(Rebate_Lookup[[#This Row],[SKU CODE]],PRICING[SKU],0))","v":"TT"},{"$f":"INDEX(PRICING[Product],MATCH(B63,PRICING[SKU],0))","v":"Terradex C&B"},{"$f":"INDEX(PRICING[Size],MATCH(Rebate_Lookup[[#This Row],[SKU CODE]],PRICING[SKU],0))","v":"1 gal "},{"$f":"INDEX(PRICING[Indication],MATCH(Rebate_Lookup[[#This Row],[SKU CODE]],PRICING[SKU],0))","v":"H"},{"$f":"COUNTIFS(PRICING[SKU],B63)","v":1},null,null,null,{"$f":"SUMIFS(PRICING[Rebate $],PRICING[SKU],Rebate_Lookup[[#This Row],[SKU CODE]],PRICING[Set],1)","v":15},{"$f":"SUMIFS(PRICING[Rebate $],PRICING[SKU],Rebate_Lookup[[#This Row],[SKU CODE]],PRICING[Set],2)","v":0},{"$f":"SUMIFS(PRICING[Rebate $],PRICING[SKU],Rebate_Lookup[[#This Row],[SKU CODE]],PRICING[Set],3)","v":0},{"$f":"INDEX('2025 GOLF Only Fall Solutions'!J:J,MATCH(Rebate_Lookup[[#This Row],[SKU CODE]],'2025 GOLF Only Fall Solutions'!A:A,0))","v":{"$error":"#N/A"}},{"$f":"IF(Rebate_Lookup[[#This Row],[Instances]]=1,1,\nIF(AND(Rebate_Lookup[[#This Row],[Instances]]=2,Rebate_Lookup[[#This Row],[Order Form Quantity]]<Rebate_Lookup[[#This Row],[MOQ_2]]),1,IF(AND(Rebate_Lookup[[#This Row],[Instances]]=2,Rebate_Lookup[[#This Row],[Order Form Quantity]]>=Rebate_Lookup[[#This Row],[MOQ_2]]),2,\nIF(AND(Rebate_Lookup[[#This Row],[Instances]]=3,Rebate_Lookup[[#This Row],[Order Form Quantity]]<Rebate_Lookup[[#This Row],[MOQ_2]]),1,IF(AND(Rebate_Lookup[[#This Row],[Instances]]=3,Rebate_Lookup[[#This Row],[MOQ_2]]<=Rebate_Lookup[[#This Row],[Order Form Quantity]],Rebate_Lookup[[#This Row],[Order Form Quantity]]<Rebate_Lookup[[#This Row],[MOQ_3]]),2,IF(AND(Rebate_Lookup[[#This Row],[Instances]]=3,Rebate_Lookup[[#This Row],[Order Form Quantity]]>=Rebate_Lookup[[#This Row],[MOQ_3]]),3))))))","v":1},{"$f":"COUNTIF('2025 GOLF Only Fall Solutions'!A:A,Rebate_Lookup[[#This Row],[SKU CODE]])","v":0},{"$f":"IFERROR(Rebate_Lookup[[#This Row],[Order Form Quantity]]>=Rebate_Lookup[[#This Row],[MOQ_2]],0)","v":0}]
[null,"D00000674",{"$f":"INDEX(PRICING[Agency/TT],MATCH(Rebate_Lookup[[#This Row],[SKU CODE]],PRICING[SKU],0))","v":"TT"},{"$f":"INDEX(PRICING[Product],MATCH(B64,PRICING[SKU],0))","v":"Terradex C&B"},{"$f":"INDEX(PRICING[Size],MATCH(Rebate_Lookup[[#This Row],[SKU CODE]],PRICING[SKU],0))","v":"2.5 gal "},{"$f":"INDEX(PRICING[Indication],MATCH(Rebate_Lookup[[#This Row],[SKU CODE]],PRICING[SKU],0))","v":"H"},{"$f":"COUNTIFS(PRICING[SKU],B64)","v":1},null,null,null,{"$f":"SUMIFS(PRICING[Rebate $],PRICING[SKU],Rebate_Lookup[[#This Row],[SKU CODE]],PRICING[Set],1)","v":37.5},{"$f":"SUMIFS(PRICING[Rebate $],PRICING[SKU],Rebate_Lookup[[#This Row],[SKU CODE]],PRICING[Set],2)","v":0},{"$f":"SUMIFS(PRICING[Rebate $],PRICING[SKU],Rebate_Lookup[[#This Row],[SKU CODE]],PRICING[Set],3)","v":0},{"$f":"INDEX('2025 GOLF Only Fall Solutions'!J:J,MATCH(Rebate_Lookup[[#This Row],[SKU CODE]],'2025 GOLF Only Fall Solutions'!A:A,0))","v":{"$error":"#N/A"}},{"$f":"IF(Rebate_Lookup[[#This Row],[Instances]]=1,1,\nIF(AND(Rebate_Lookup[[#This Row],[Instances]]=2,Rebate_Lookup[[#This Row],[Order Form Quantity]]<Rebate_Lookup[[#This Row],[MOQ_2]]),1,IF(AND(Rebate_Lookup[[#This Row],[Instances]]=2,Rebate_Lookup[[#This Row],[Order Form Quantity]]>=Rebate_Lookup[[#This Row],[MOQ_2]]),2,\nIF(AND(Rebate_Lookup[[#This Row],[Instances]]=3,Rebate_Lookup[[#This Row],[Order Form Quantity]]<Rebate_Lookup[[#This Row],[MOQ_2]]),1,IF(AND(Rebate_Lookup[[#This Row],[Instances]]=3,Rebate_Lookup[[#This Row],[MOQ_2]]<=Rebate_Lookup[[#This Row],[Order Form Quantity]],Rebate_Lookup[[#This Row],[Order Form Quantity]]<Rebate_Lookup[[#This Row],[MOQ_3]]),2,IF(AND(Rebate_Lookup[[#This Row],[Instances]]=3,Rebate_Lookup[[#This Row],[Order Form Quantity]]>=Rebate_Lookup[[#This Row],[MOQ_3]]),3))))))","v":1},{"$f":"COUNTIF('2025 GOLF Only Fall Solutions'!A:A,Rebate_Lookup[[#This Row],[SKU CODE]])","v":0},{"$f":"IFERROR(Rebate_Lookup[[#This Row],[Order Form Quantity]]>=Rebate_Lookup[[#This Row],[MOQ_2]],0)","v":0}]
[null,"D00000669",{"$f":"INDEX(PRICING[Agency/TT],MATCH(Rebate_Lookup[[#This Row],[SKU CODE]],PRICING[SKU],0))","v":"TT"},{"$f":"INDEX(PRICING[Product],MATCH(B65,PRICING[SKU],0))","v":"Terradex Power Premix"},{"$f":"INDEX(PRICING[Size],MATCH(Rebate_Lookup[[#This Row],[SKU CODE]],PRICING[SKU],0))","v":"2.5 gal "},{"$f":"INDEX(PRICING[Indication],MATCH(Rebate_Lookup[[#This Row],[SKU CODE]],PRICING[SKU],0))","v":"H"},{"$f":"COUNTIFS(PRICING[SKU],B65)","v":1},null,null,null,{"$f":"SUMIFS(PRICING[Rebate $],PRICING[SKU],Rebate_Lookup[[#This Row],[SKU CODE]],PRICING[Set],1)","v":37.5},{"$f":"SUMIFS(PRICING[Rebate $],PRICING[SKU],Rebate_Lookup[[#This Row],[SKU CODE]],PRICING[Set],2)","v":0},{"$f":"SUMIFS(PRICING[Rebate $],PRICING[SKU],Rebate_Lookup[[#This Row],[SKU CODE]],PRICING[Set],3)","v":0},{"$f":"INDEX('2025 GOLF Only Fall Solutions'!J:J,MATCH(Rebate_Lookup[[#This Row],[SKU CODE]],'2025 GOLF Only Fall Solutions'!A:A,0))","v":{"$error":"#N/A"}},{"$f":"IF(Rebate_Lookup[[#This Row],[Instances]]=1,1,\nIF(AND(Rebate_Lookup[[#This Row],[Instances]]=2,Rebate_Lookup[[#This Row],[Order Form Quantity]]<Rebate_Lookup[[#This Row],[MOQ_2]]),1,IF(AND(Rebate_Lookup[[#This Row],[Instances]]=2,Rebate_Lookup[[#This Row],[Order Form Quantity]]>=Rebate_Lookup[[#This Row],[MOQ_2]]),2,\nIF(AND(Rebate_Lookup[[#This Row],[Instances]]=3,Rebate_Lookup[[#This Row],[Order Form Quantity]]<Rebate_Lookup[[#This Row],[MOQ_2]]),1,IF(AND(Rebate_Lookup[[#This Row],[Instances]]=3,Rebate_Lookup[[#This Row],[MOQ_2]]<=Rebate_Lookup[[#This Row],[Order Form Quantity]],Rebate_Lookup[[#This Row],[Order Form Quantity]]<Rebate_Lookup[[#This Row],[MOQ_3]]),2,IF(AND(Rebate_Lookup[[#This Row],[Instances]]=3,Rebate_Lookup[[#This Row],[Order Form Quantity]]>=Rebate_Lookup[[#This Row],[MOQ_3]]),3))))))","v":1},{"$f":"COUNTIF('2025 GOLF Only Fall Solutions'!A:A,Rebate_Lookup[[#This Row],[SKU CODE]])","v":0},{"$f":"IFERROR(Rebate_Lookup[[#This Row],[Order Form Quantity]]>=Rebate_Lookup[[#This Row],[MOQ_2]],0)","v":0}]
[null,"D00000670",{"$f":"INDEX(PRICING[Agency/TT],MATCH(Rebate_Lookup[[#This Row],[SKU CODE]],PRICING[SKU],0))","v":"TT"},{"$f":"INDEX(PRICING[Product],MATCH(B66,PRICING[SKU],0))","v":"Terradex Power Premix"},{"$f":"INDEX(PRICING[Size],MATCH(Rebate_Lookup[[#This Row],[SKU CODE]],PRICING[SKU],0))","v":"30 gal"},{"$f":"INDEX(PRICING[Indication],MATCH(Rebate_Lookup[[#This Row],[SKU CODE]],PRICING[SKU],0))","v":"H"},{"$f":"COUNTIFS(PRICING[SKU],B66)","v":1},null,null,null,{"$f":"SUMIFS(PRICING[Rebate $],PRICING[SKU],Rebate_Lookup[[#This Row],[SKU CODE]],PRICING[Set],1)","v":450},{"$f":"SUMIFS(PRICING[Rebate $],PRICING[SKU],Rebate_Lookup[[#This Row],[SKU CODE]],PRICING[Set],2)","v":0},{"$f":"SUMIFS(PRICING[Rebate $],PRICING[SKU],Rebate_Lookup[[#This Row],[SKU CODE]],PRICING[Set],3)","v":0},{"$f":"INDEX('2025 GOLF Only Fall Solutions'!J:J,MATCH(Rebate_Lookup[[#This Row],[SKU CODE]],'2025 GOLF Only Fall Solutions'!A:A,0))","v":{"$error":"#N/A"}},{"$f":"IF(Rebate_Lookup[[#This Row],[Instances]]=1,1,\nIF(AND(Rebate_Lookup[[#This Row],[Instances]]=2,Rebate_Lookup[[#This Row],[Order Form Quantity]]<Rebate_Lookup[[#This Row],[MOQ_2]]),1,IF(AND(Rebate_Lookup[[#This Row],[Instances]]=2,Rebate_Lookup[[#This Row],[Order Form Quantity]]>=Rebate_Lookup[[#This Row],[MOQ_2]]),2,\nIF(AND(Rebate_Lookup[[#This Row],[Instances]]=3,Rebate_Lookup[[#This Row],[Order Form Quantity]]<Rebate_Lookup[[#This Row],[MOQ_2]]),1,IF(AND(Rebate_Lookup[[#This Row],[Instances]]=3,Rebate_Lookup[[#This Row],[MOQ_2]]<=Rebate_Lookup[[#This Row],[Order Form Quantity]],Rebate_Lookup[[#This Row],[Order Form Quantity]]<Rebate_Lookup[[#This Row],[MOQ_3]]),2,IF(AND(Rebate_Lookup[[#This Row],[Instances]]=3,Rebate_Lookup[[#This Row],[Order Form Quantity]]>=Rebate_Lookup[[#This Row],[MOQ_3]]),3))))))","v":1},{"$f":"COUNTIF('2025 GOLF Only Fall Solutions'!A:A,Rebate_Lookup[[#This Row],[SKU CODE]])","v":0},{"$f":"IFERROR(Rebate_Lookup[[#This Row],[Order Form Quantity]]>=Rebate_Lookup[[#This Row],[MOQ_2]],0)","v":0}]
[null,"D00000673",{"$f":"INDEX(PRICING[Agency/TT],MATCH(Rebate_Lookup[[#This Row],[SKU CODE]],PRICING[SKU],0))","v":"TT"},{"$f":"INDEX(PRICING[Product],MATCH(B67,PRICING[SKU],0))","v":"Terradex Quick Strike"},{"$f":"INDEX(PRICING[Size],MATCH(Rebate_Lookup[[#This Row],[SKU CODE]],PRICING[SKU],0))","v":"1 gal "},{"$f":"INDEX(PRICING[Indication],MATCH(Rebate_Lookup[[#This Row],[SKU CODE]],PRICING[SKU],0))","v":"H"},{"$f":"COUNTIFS(PRICING[SKU],B67)","v":1},null,null,null,{"$f":"SUMIFS(PRICING[Rebate $],PRICING[SKU],Rebate_Lookup[[#This Row],[SKU CODE]],PRICING[Set],1)","v":15},{"$f":"SUMIFS(PRICING[Rebate $],PRICING[SKU],Rebate_Lookup[[#This Row],[SKU CODE]],PRICING[Set],2)","v":0},{"$f":"SUMIFS(PRICING[Rebate $],PRICING[SKU],Rebate_Lookup[[#This Row],[SKU CODE]],PRICING[Set],3)","v":0},{"$f":"INDEX('2025 GOLF Only Fall Solutions'!J:J,MATCH(Rebate_Lookup[[#This Row],[SKU CODE]],'2025 GOLF Only Fall Solutions'!A:A,0))","v":{"$error":"#N/A"}},{"$f":"IF(Rebate_Lookup[[#This Row],[Instances]]=1,1,\nIF(AND(Rebate_Lookup[[#This Row],[Instances]]=2,Rebate_Lookup[[#This Row],[Order Form Quantity]]<Rebate_Lookup[[#This Row],[MOQ_2]]),1,IF(AND(Rebate_Lookup[[#This Row],[Instances]]=2,Rebate_Lookup[[#This Row],[Order Form Quantity]]>=Rebate_Lookup[[#This Row],[MOQ_2]]),2,\nIF(AND(Rebate_Lookup[[#This Row],[Instances]]=3,Rebate_Lookup[[#This Row],[Order Form Quantity]]<Rebate_Lookup[[#This Row],[MOQ_2]]),1,IF(AND(Rebate_Lookup[[#This Row],[Instances]]=3,Rebate_Lookup[[#This Row],[MOQ_2]]<=Rebate_Lookup[[#This Row],[Order Form Quantity]],Rebate_Lookup[[#This Row],[Order Form Quantity]]<Rebate_Lookup[[#This Row],[MOQ_3]]),2,IF(AND(Rebate_Lookup[[#This Row],[Instances]]=3,Rebate_Lookup[[#This Row],[Order Form Quantity]]>=Rebate_Lookup[[#This Row],[MOQ_3]]),3))))))","v":1},{"$f":"COUNTIF('2025 GOLF Only Fall Solutions'!A:A,Rebate_Lookup[[#This Row],[SKU CODE]])","v":0},{"$f":"IFERROR(Rebate_Lookup[[#This Row],[Order Form Quantity]]>=Rebate_Lookup[[#This Row],[MOQ_2]],0)","v":0}]
[null,"D00000672",{"$f":"INDEX(PRICING[Agency/TT],MATCH(Rebate_Lookup[[#This Row],[SKU CODE]],PRICING[SKU],0))","v":"TT"},{"$f":"INDEX(PRICING[Product],MATCH(B68,PRICING[SKU],0))","v":"Terradex Quick Strike"},{"$f":"INDEX(PRICING[Size],MATCH(Rebate_Lookup[[#This Row],[SKU CODE]],PRICING[SKU],0))","v":"2.5 gal "},{"$f":"INDEX(PRICING[Indication],MATCH(Rebate_Lookup[[#This Row],[SKU CODE]],PRICING[SKU],0))","v":"H"},{"$f":"COUNTIFS(PRICING[SKU],B68)","v":1},null,null,null,{"$f":"SUMIFS(PRICING[Rebate $],PRICING[SKU],Rebate_Lookup[[#This Row],[SKU CODE]],PRICING[Set],1)","v":37.5},{"$f":"SUMIFS(PRICING[Rebate $],PRICING[SKU],Rebate_Lookup[[#This Row],[SKU CODE]],PRICING[Set],2)","v":0},{"$f":"SUMIFS(PRICING[Rebate $],PRICING[SKU],Rebate_Lookup[[#This Row],[SKU CODE]],PRICING[Set],3)","v":0},{"$f":"INDEX('2025 GOLF Only Fall Solutions'!J:J,MATCH(Rebate_Lookup[[#This Row],[SKU CODE]],'2025 GOLF Only Fall Solutions'!A:A,0))","v":{"$error":"#N/A"}},{"$f":"IF(Rebate_Lookup[[#This Row],[Instances]]=1,1,\nIF(AND(Rebate_Lookup[[#This Row],[Instances]]=2,Rebate_Lookup[[#This Row],[Order Form Quantity]]<Rebate_Lookup[[#This Row],[MOQ_2]]),1,IF(AND(Rebate_Lookup[[#This Row],[Instances]]=2,Rebate_Lookup[[#This Row],[Order Form Quantity]]>=Rebate_Lookup[[#This Row],[MOQ_2]]),2,\nIF(AND(Rebate_Lookup[[#This Row],[Instances]]=3,Rebate_Lookup[[#This Row],[Order Form Quantity]]<Rebate_Lookup[[#This Row],[MOQ_2]]),1,IF(AND(Rebate_Lookup[[#This Row],[Instances]]=3,Rebate_Lookup[[#This Row],[MOQ_2]]<=Rebate_Lookup[[#This Row],[Order Form Quantity]],Rebate_Lookup[[#This Row],[Order Form Quantity]]<Rebate_Lookup[[#This Row],[MOQ_3]]),2,IF(AND(Rebate_Lookup[[#This Row],[Instances]]=3,Rebate_Lookup[[#This Row],[Order Form Quantity]]>=Rebate_Lookup[[#This Row],[MOQ_3]]),3))))))","v":1},{"$f":"COUNTIF('2025 GOLF Only Fall Solutions'!A:A,Rebate_Lookup[[#This Row],[SKU CODE]])","v":0},{"$f":"IFERROR(Rebate_Lookup[[#This Row],[Order Form Quantity]]>=Rebate_Lookup[[#This Row],[MOQ_2]],0)","v":0}]
[null,"D00000671",{"$f":"INDEX(PRICING[Agency/TT],MATCH(Rebate_Lookup[[#This Row],[SKU CODE]],PRICING[SKU],0))","v":"TT"},{"$f":"INDEX(PRICING[Product],MATCH(B69,PRICING[SKU],0))","v":"Terradex Quick Strike"},{"$f":"INDEX(PRICING[Size],MATCH(Rebate_Lookup[[#This Row],[SKU CODE]],PRICING[SKU],0))","v":"30 gal"},{"$f":"INDEX(PRICING[Indication],MATCH(Rebate_Lookup[[#This Row],[SKU CODE]],PRICING[SKU],0))","v":"H"},{"$f":"COUNTIFS(PRICING[SKU],B69)","v":1},null,null,null,{"$f":"SUMIFS(PRICING[Rebate $],PRICING[SKU],Rebate_Lookup[[#This Row],[SKU CODE]],PRICING[Set],1)","v":450},{"$f":"SUMIFS(PRICING[Rebate $],PRICING[SKU],Rebate_Lookup[[#This Row],[SKU CODE]],PRICING[Set],2)","v":0},{"$f":"SUMIFS(PRICING[Rebate $],PRICING[SKU],Rebate_Lookup[[#This Row],[SKU CODE]],PRICING[Set],3)","v":0},{"$f":"INDEX('2025 GOLF Only Fall Solutions'!J:J,MATCH(Rebate_Lookup[[#This Row],[SKU CODE]],'2025 GOLF Only Fall Solutions'!A:A,0))","v":{"$error":"#N/A"}},{"$f":"IF(Rebate_Lookup[[#This Row],[Instances]]=1,1,\nIF(AND(Rebate_Lookup[[#This Row],[Instances]]=2,Rebate_Lookup[[#This Row],[Order Form Quantity]]<Rebate_Lookup[[#This Row],[MOQ_2]]),1,IF(AND(Rebate_Lookup[[#This Row],[Instances]]=2,Rebate_Lookup[[#This Row],[Order Form Quantity]]>=Rebate_Lookup[[#This Row],[MOQ_2]]),2,\nIF(AND(Rebate_Lookup[[#This Row],[Instances]]=3,Rebate_Lookup[[#This Row],[Order Form Quantity]]<Rebate_Lookup[[#This Row],[MOQ_2]]),1,IF(AND(Rebate_Lookup[[#This Row],[Instances]]=3,Rebate_Lookup[[#This Row],[MOQ_2]]<=Rebate_Lookup[[#This Row],[Order Form Quantity]],Rebate_Lookup[[#This Row],[Order Form Quantity]]<Rebate_Lookup[[#This Row],[MOQ_3]]),2,IF(AND(Rebate_Lookup[[#This Row],[Instances]]=3,Rebate_Lookup[[#This Row],[Order Form Quantity]]>=Rebate_Lookup[[#This Row],[MOQ_3]]),3))))))","v":1},{"$f":"COUNTIF('2025 GOLF Only Fall Solutions'!A:A,Rebate_Lookup[[#This Row],[SKU CODE]])","v":0},{"$f":"IFERROR(Rebate_Lookup[[#This Row],[Order Form Quantity]]>=Rebate_Lookup[[#This Row],[MOQ_2]],0)","v":0}]
[null,"D00001012",{"$f":"INDEX(PRICING[Agency/TT],MATCH(Rebate_Lookup[[#This Row],[SKU CODE]],PRICING[SKU],0))","v":"TT"},{"$f":"INDEX(PRICING[Product],MATCH(B70,PRICING[SKU],0))","v":"TopChoice"},{"$f":"INDEX(PRICING[Size],MATCH(Rebate_Lookup[[#This Row],[SKU CODE]],PRICING[SKU],0))","v":"50 lb"},{"$f":"INDEX(PRICING[Indication],MATCH(Rebate_Lookup[[#This Row],[SKU CODE]],PRICING[SKU],0))","v":"I"},{"$f":"COUNTIFS(PRICING[SKU],B70)","v":1},null,null,null,{"$f":"SUMIFS(PRICING[Rebate $],PRICING[SKU],Rebate_Lookup[[#This Row],[SKU CODE]],PRICING[Set],1)","v":2},{"$f":"SUMIFS(PRICING[Rebate $],PRICING[SKU],Rebate_Lookup[[#This Row],[SKU CODE]],PRICING[Set],2)","v":0},{"$f":"SUMIFS(PRICING[Rebate $],PRICING[SKU],Rebate_Lookup[[#This Row],[SKU CODE]],PRICING[Set],3)","v":0},{"$f":"INDEX('2025 GOLF Only Fall Solutions'!J:J,MATCH(Rebate_Lookup[[#This Row],[SKU CODE]],'2025 GOLF Only Fall Solutions'!A:A,0))","v":0},{"$f":"IF(Rebate_Lookup[[#This Row],[Instances]]=1,1,\nIF(AND(Rebate_Lookup[[#This Row],[Instances]]=2,Rebate_Lookup[[#This Row],[Order Form Quantity]]<Rebate_Lookup[[#This Row],[MOQ_2]]),1,IF(AND(Rebate_Lookup[[#This Row],[Instances]]=2,Rebate_Lookup[[#This Row],[Order Form Quantity]]>=Rebate_Lookup[[#This Row],[MOQ_2]]),2,\nIF(AND(Rebate_Lookup[[#This Row],[Instances]]=3,Rebate_Lookup[[#This Row],[Order Form Quantity]]<Rebate_Lookup[[#This Row],[MOQ_2]]),1,IF(AND(Rebate_Lookup[[#This Row],[Instances]]=3,Rebate_Lookup[[#This Row],[MOQ_2]]<=Rebate_Lookup[[#This Row],[Order Form Quantity]],Rebate_Lookup[[#This Row],[Order Form Quantity]]<Rebate_Lookup[[#This Row],[MOQ_3]]),2,IF(AND(Rebate_Lookup[[#This Row],[Instances]]=3,Rebate_Lookup[[#This Row],[Order Form Quantity]]>=Rebate_Lookup[[#This Row],[MOQ_3]]),3))))))","v":1},{"$f":"COUNTIF('2025 GOLF Only Fall Solutions'!A:A,Rebate_Lookup[[#This Row],[SKU CODE]])","v":1},{"$f":"IFERROR(Rebate_Lookup[[#This Row],[Order Form Quantity]]>=Rebate_Lookup[[#This Row],[MOQ_2]],0)","v":true}]

{"sheet":"2025 NOW_EOP_LL","index":3,"n_rows":129,"n_cols":38,"rows_kept":129,"cut":false,"hidden":true,"merged":[]}
["Manufacturer","Agency/TT","Segment","Region","Indication","Vol Buys","Program","Old Bayer SKU ","Old Envu SKU","SKU","Product","Size","2025 In-Season Price","NOW Price","In SZN-NOW delta","Min Qty","Rebate $","Final Price","Extra Rebates- 14%","Lowest Price with 14% Tier Rebate","Total Savings with 14% Tier Rebate - GOLF","Extra Rebates- 12%","Lowest Price with 12% Tier Rebate","Total Savings with 12% Tier Rebate - LAWN/GSS","CA In-season Price","CA NOW Price","CA Final Price","WA In-season Price","WA NOW Price","WA Final Price","Package Ounces","Standard Use Rate (oz/M)","Standard Use Rate (oz/Acre)","Price/1000 sq ft","Price/Acre","Total %","*cumlative","Set"]
["Envu","A","G","NST","F","X","NOW",79895402,null,"D00000907","Banol®","2.5 gal ",1267,1267,0,null,null,1267,null,null,0.14000000000000001,null,null,0.12,1302.1600000000001,1302.1600000000001,1302.1600000000001,1275.8499999999999,1275.8499999999999,1275.8499999999999,320,2,87.12,7.9187500000000002,344.94075000000004,0,null,1]
["Envu","A","G","NST","F","X","NOW",79895402,null,"D00000907","Banol®","2.5 gal ",1267,1267,0,"2+",90,1177,null,null,0.21103393843725338,null,null,0.19103393843725336,1302.1600000000001,1302.1600000000001,1212.1600000000001,1275.8499999999999,1275.8499999999999,1185.8499999999999,320,2,87.12,7.3562500000000002,320.43825000000004,7.1033938437253363E-2,null,{"$f":"IF(PRICING[[#This Row],[SKU]]=J2,AL2+1,1)","v":2}]
["Envu","A","G","NST","F","X","NOW",null,null,"D00000623","Castlon™","1 gal",2748.2,2610.79,137.40999999999985,null,null,2610.79,null,null,0.18999999999999995,null,null,0.16999999999999993,"NA","NA","NA",2767.44,2629.07,2629.07,128,0.36,15.6816,7.3428468749999993,319.85440987499999,4.9999999999999933E-2,null,{"$f":"IF(PRICING[[#This Row],[SKU]]=J3,AL3+1,1)","v":1}]
["Envu","A","G","NST","F","X","NOW",null,null,"D00000623","Castlon™","1 gal",2748.2,2610.79,137.40999999999985,"5-9",525,2085.79,null,null,0.38103413143148235,null,null,0.36103413143148233,"NA","NA","NA",2767.44,2629.07,2104.0700000000002,128,0.36,15.6816,5.8662843749999993,255.53534737499999,0.24103413143148233,null,{"$f":"IF(PRICING[[#This Row],[SKU]]=J4,AL4+1,1)","v":2}]
["Envu","A","G","NST","F","X","NOW",null,null,"D00000623","Castlon™","1 gal",2748.2,2610.79,137.40999999999985,"10+",585,2025.79,null,null,0.40286660359508042,null,null,0.3828666035950804,"NA","NA","NA",2767.44,2629.07,2044.0700000000002,128,0.36,15.6816,5.697534375,248.18459737499998,0.26286660359508041,null,{"$f":"IF(PRICING[[#This Row],[SKU]]=J5,AL5+1,1)","v":3}]
["Envu","A","G","NST","F","X","EOP",null,null,"D00000624","Castlon™","16 oz",428,406.6,21.399999999999977,null,null,406.6,null,null,0.18999999999999995,null,null,0.16999999999999993,"NA","NA","NA",431,409.45,409.45,16,0.36,15.6816,9.1485000000000003,398.50866000000002,4.9999999999999933E-2,null,{"$f":"IF(PRICING[[#This Row],[SKU]]=J6,AL6+1,1)","v":1}]
["Envu","A","G","NST","F","X","EOP",null,null,"D00000624","Castlon™","16 oz",428,406.6,21.399999999999977,"4+",50,356.6,null,null,0.30682242990654207,null,null,0.28682242990654205,"NA","NA","NA",431,409.45,359.45,16,0.36,15.6816,8.0235000000000003,349.50366000000002,0.16682242990654206,null,{"$f":"IF(PRICING[[#This Row],[SKU]]=J7,AL7+1,1)","v":2}]
["Envu","A","GL","ST","H","X","NOW",null,null,79714858,"Celsius® WG","10 oz",131.19999999999999,124.64,6.5599999999999881,null,null,124.64,null,null,0.18999999999999995,null,null,0.16999999999999993,134.84,128.1,128.1,132.12,125.51,125.51,10,8.4940312213039507E-2,3.7000000000000011,1.0586960514233243,46.116800000000012,4.9999999999999933E-2,null,{"$f":"IF(PRICING[[#This Row],[SKU]]=J8,AL8+1,1)","v":1}]
["Envu","A","GL","ST","H","X","NOW",null,null,79714858,"Celsius® WG","10 oz",131.19999999999999,124.64,6.5599999999999881,"48+",12,112.64,null,null,0.28146341463414626,null,null,0.26146341463414624,134.84,128.1,116.1,132.12,125.51,113.51,10,8.4940312213039507E-2,3.7000000000000011,0.95676767676767693,41.676800000000007,0.14146341463414625,null,{"$f":"IF(PRICING[[#This Row],[SKU]]=J9,AL9+1,1)","v":2}]
["Envu","A","GL","ST","H","X","NOW","86773201",null,"D00000911","Celsius® XTRA","10 oz",166.4,158.08000000000001,8.3199999999999932,null,null,158.08000000000001,null,null,0.18999999999999995,null,null,0.16999999999999993,"NA","NA","NA",167.56,159.19,159.19,10,0.17217630853994489,7.5,2.721763085399449,118.56000000000002,4.9999999999999933E-2,null,{"$f":"IF(PRICING[[#This Row],[SKU]]=J10,AL10+1,1)","v":1}]
["Envu","A","GL","ST","H","X","NOW","86773201",null,"D00000911","Celsius® XTRA","10 oz",166.4,158.08000000000001,8.3199999999999932,"16+",12,146.08000000000001,null,null,0.26211538461538464,null,null,0.24211538461538462,"NA","NA","NA",167.56,159.19,147.19,10,0.17217630853994489,7.5,2.5151515151515151,109.56,0.12211538461538463,null,{"$f":"IF(PRICING[[#This Row],[SKU]]=J11,AL11+1,1)","v":2}]
["Envu","A","G","NST","F","X","NOW","87276341",null,"D00000914","Chipco® Signature™","11 lb",404.8,384.56,20.240000000000009,null,0,384.56,53.838400000000007,330.72159999999997,0.19000000000000006,46.147199999999998,338.4128,0.17000000000000004,416.03,395.23,395.23,407.64,387.25,387.25,10,4,174.24,153.82400000000001,6700.573440000001,5.0000000000000044E-2,null,{"$f":"IF(PRICING[[#This Row],[SKU]]=J12,AL12+1,1)","v":1}]
["Envu","A","G","NST","F","X","NOW","87276341",null,"D00000914","Chipco® Signature™","11 lb",404.8,384.56,20.240000000000009,"9+",5,379.56,53.838400000000007,325.72159999999997,0.20235177865612652,46.147199999999998,333.4128,0.18235177865612651,416.03,395.23,390.23,407.64,387.25,382.25,10,4,174.24,151.82400000000001,6613.4534400000011,6.2351778656126511E-2,null,{"$f":"IF(PRICING[[#This Row],[SKU]]=J13,AL13+1,1)","v":2}]
["Envu","A","G","NST","F","X","NOW","87348709","D00000926","D00001373","Densicor®","51 oz",702.8,667.66,35.139999999999986,null,null,667.66,null,null,0.18999999999999995,null,null,0.16999999999999993,"NA","NA","NA",707.72,672.33,672.33,51,0.19600000000000001,8.5377600000000005,2.5659090196078429,111.77099689411764,4.9999999999999933E-2,null,{"$f":"IF(PRICING[[#This Row],[SKU]]=J14,AL14+1,1)","v":1}]
["Envu","A","G","NST","F","X","NOW","87348709","D00000926","D00001373","Densicor®","51 oz",702.8,667.66,35.139999999999986,"3+",100,567.66,null,null,0.33228799089356864,null,null,0.31228799089356862,"NA","NA","NA",707.72,672.33,572.33000000000004,51,0.19600000000000001,8.5377600000000005,2.1815952941176473,95.030291011764717,0.19228799089356863,null,{"$f":"IF(PRICING[[#This Row],[SKU]]=J15,AL15+1,1)","v":2}]
["FMC","A","GL","NST","I","X","EOP",null,null,11015390,"Durentis™ Insecticide  ","16 oz",630,567,63,"1-3",null,567,null,null,0.24,null,null,0.21999999999999997,647.48,582.73,582.73,634.12,570.97,570.97,16,6.1983471074380167E-2,2.7,2.196539256198347,95.681250000000006,9.9999999999999978E-2,null,{"$f":"IF(PRICING[[#This Row],[SKU]]=J16,AL16+1,1)","v":1}]
["FMC","A","GL","NST","I","X","EOP",null,null,11015390,"Durentis™ Insecticide  ","16 oz",630,567,63,"4+",90,477,null,null,0.3828571428571429,null,null,0.36285714285714288,647.48,582.73,492.73,634.12,570.97,480.97,16,0.06,2.7,1.7887499999999998,80.493750000000006,0.24285714285714288,null,{"$f":"IF(PRICING[[#This Row],[SKU]]=J17,AL17+1,1)","v":2}]
["FMC","A","GL","NST","I","X","EOP",null,null,11015391,"Durentis™ Insecticide  ","64 oz",2362.6,2126.34,236.25999999999976,null,null,2126.34,null,null,0.23999999999999988,null,null,0.21999999999999986,2428.16,2185.35,2185.35,2379.14,2141.2199999999998,2141.2199999999998,64,0.06,2.7,1.99344375,89.704968750000006,9.9999999999999867E-2,null,{"$f":"IF(PRICING[[#This Row],[SKU]]=J18,AL18+1,1)","v":1}]
["FMC","A","GL","NST","I","X","EOP",null,null,11015391,"Durentis™ Insecticide  ","64 oz",2362.6,2126.34,236.25999999999976,"2-3",550,1576.3400000000001,null,null,0.47279437907390154,null,null,0.45279437907390152,2428.16,2185.35,1635.35,2379.14,2141.2199999999998,1591.2199999999998,65,0.06,2.7,1.4550830769230769,65.47873846153847,0.33279437907390153,null,{"$f":"IF(PRICING[[#This Row],[SKU]]=J19,AL19+1,1)","v":2}]
["FMC","A","GL","NST","I","X","EOP",null,null,11015391,"Durentis™ Insecticide  ","64 oz",2362.6,2126.34,236.25999999999976,"4+",650,1476.3400000000001,null,null,0.51512062981461093,null,null,0.49512062981461091,2428.16,2185.35,1535.35,2379.14,2141.2199999999998,1491.2199999999998,64,0.06,2.7,1.3840687500000002,62.283093750000013,0.37512062981461092,null,{"$f":"IF(PRICING[[#This Row],[SKU]]=J20,AL20+1,1)","v":3}]
["FMC","A","GL","NST","H","X","EOP",null,null,11008464,"Echelon® 4SC Herbicide","1 gal",454,431.3,22.699999999999989,null,null,431.3,null,null,0.18999999999999995,null,null,0.16999999999999993,"NA","NA","NA",457.18,434.32,434.32,128,0.55096418732782371,24.000000000000004,1.856491046831956,80.86875000000002,4.9999999999999933E-2,null,{"$f":"IF(PRICING[[#This Row],[SKU]]=J21,AL21+1,1)","v":1}]
["FMC","A","GL","NST","H","X","EOP",null,null,11008464,"Echelon® 4SC Herbicide","1 gal",454,431.3,22.699999999999989,"16+",145,286.3,null,null,0.50938325991189426,null,null,0.48938325991189424,"NA","NA","NA",457.18,434.32,289.32,128,0.55096418732782371,24.000000000000004,1.2323519283746558,53.681250000000013,0.36938325991189425,null,{"$f":"IF(PRICING[[#This Row],[SKU]]=J22,AL22+1,1)","v":2}]
["Envu","A","G","NST","F","X","EOP",85771248,"D00000934","D00000934","Exteris® Stressgard®"," 2.5 gal",370,370,0,null,null,370,null,null,0.14000000000000001,null,null,0.12,"NA","NA","NA",372.6,372.6,372.6,320,4,174.24,4.625,201.465,0,null,{"$f":"IF(PRICING[[#This Row],[SKU]]=J23,AL23+1,1)","v":1}]
["Envu","A","G","NST","F","X","EOP",85771248,"D00000934","D00000934","Exteris® Stressgard®"," 2.5 gal",370,370,0,"6+",45,325,null,null,0.26162162162162161,null,null,0.2416216216216216,"NA","NA","NA",372.6,372.6,327.60000000000002,320,4,174.24,4.0625,176.96250000000001,0.1216216216216216,null,{"$f":"IF(PRICING[[#This Row],[SKU]]=J24,AL24+1,1)","v":2}]
["FMC","A","G","NST","F",null,"EOP",null,null,11008377,"Fame® +C Fungicide","2.5 gal",575.4,575.4,0,null,null,575.4,null,null,0.14000000000000001,null,null,0.12,"NA","NA","NA",579.41999999999996,579.41999999999996,579.41999999999996,320,4,174.24,7.1924999999999999,313.30529999999999,0,null,{"$f":"IF(PRICING[[#This Row],[SKU]]=J25,AL25+1,1)","v":1}]
["FMC","A","G","NST","F","X","EOP",null,null,11008393,"Fame® SC Fungicide","16 oz",428,406.6,21.399999999999977,null,null,406.6,null,null,0.18999999999999995,null,null,0.16999999999999993,439.88,417.88,417.88,431,409.45,409.45,16,0.36,15.6816,9.1485000000000003,398.50866000000002,4.9999999999999933E-2,null,{"$f":"IF(PRICING[[#This Row],[SKU]]=J26,AL26+1,1)","v":1}]
["FMC","A","G","NST","F","X","EOP",null,null,11008393,"Fame® SC Fungicide","16 oz",428,406.6,21.399999999999977,"4+",50,356.6,null,null,0.30682242990654207,null,null,0.28682242990654205,439.88,417.88,367.88,431,409.45,359.45,16,0.36,15.6816,8.0235000000000003,349.50366000000002,0.16682242990654206,null,{"$f":"IF(PRICING[[#This Row],[SKU]]=J27,AL27+1,1)","v":2}]
["FMC","A","GL","NST","F","X","NOW",null,null,11008557,"Fame® SC Fungicide","64 oz",1549.45,1471.98,77.470000000000027,null,null,1471.98,null,null,0.18999838652425061,null,null,0.16999838652425059,1592.45,1512.83,1512.83,1560.3,1482.28,1482.28,64,0.36,15.6816,8.2798874999999992,360.67189949999999,4.9998386524250593E-2,null,{"$f":"IF(PRICING[[#This Row],[SKU]]=J28,AL28+1,1)","v":1}]
["FMC","A","GL","NST","F","X","NOW",null,null,11008557,"Fame® SC Fungicide","64 oz",1549.45,1471.98,77.470000000000027,"4+",410,1061.98,null,null,0.45460840943560621,null,null,0.43460840943560619,1592.45,1512.83,1102.83,1560.3,1482.28,1072.28,64,0.36,15.6816,5.9736374999999997,260.21164950000002,0.3146084094356062,null,{"$f":"IF(PRICING[[#This Row],[SKU]]=J29,AL29+1,1)","v":2}]
["FMC","A","GL","NST","F","X","NOW",null,null,11009500,"Fame® SC Fungicide","2.5 gal",6863.6,6520.42,343.18000000000029,null,null,6520.42,null,null,0.19000000000000006,null,null,0.17000000000000004,7054.06,6701.36,6701.36,6911.64,6566.06,6566.06,320,0.36,15.6816,7.3354724999999998,319.53318210000003,5.0000000000000044E-2,null,{"$f":"IF(PRICING[[#This Row],[SKU]]=J30,AL30+1,1)","v":1}]
["FMC","A","GL","NST","F","X","NOW",null,null,11009500,"Fame® SC Fungicide","2.5 gal",6863.6,6520.42,343.18000000000029,"2-3",1450,5070.42,null,null,0.40125939740078098,null,null,0.38125939740078096,7054.06,6701.36,5251.36,6911.64,6566.06,5116.0600000000004,320,0.36,15.6816,5.7042225000000002,248.47593209999999,0.26125939740078097,null,{"$f":"IF(PRICING[[#This Row],[SKU]]=J31,AL31+1,1)","v":2}]
["FMC","A","GL","NST","F","X","NOW",null,null,11009500,"Fame® SC Fungicide","2.5 gal",6863.6,6520.42,343.18000000000029,"4+",1600,4920.42,null,null,0.42311381782155144,null,null,0.40311381782155142,7054.06,6701.36,5101.3599999999997,6911.64,6566.06,4966.0600000000004,320,0.36,15.6816,5.5354725,241.12518210000002,0.28311381782155143,null,{"$f":"IF(PRICING[[#This Row],[SKU]]=J32,AL32+1,1)","v":3}]
["Envu","A","G","NST","F","X","EOP","80910932",null,"D00000935","Fiata® Stressgard®"," 2.5 gal",192,192,0,null,null,192,null,null,0.14000000000000001,null,null,0.12,197.33,197.33,197.33,193.35,193.35,193.35,320,3,130.68,1.7999999999999998,78.408000000000001,0,null,{"$f":"IF(PRICING[[#This Row],[SKU]]=J33,AL33+1,1)","v":1}]
["Envu","A","G","NST","F","X","EOP","80910932",null,"D00000935","Fiata® Stressgard®"," 2.5 gal",192,192,0,"16+",10,182,null,null,0.19208333333333338,null,null,0.17208333333333337,197.33,197.33,187.33,193.35,193.35,183.35,320,3,130.68,1.7062499999999998,74.324250000000006,5.208333333333337E-2,null,{"$f":"IF(PRICING[[#This Row],[SKU]]=J34,AL34+1,1)","v":2}]
["Envu","A","G","NST","F","X","NOW","84411426","D00000940","D00001379","Indemnify®","17.1 fl oz",1963.6,1865.42,98.179999999999836,null,null,1865.42,null,null,0.18999999999999995,null,null,0.16999999999999993,2018.09,1917.19,1917.19,1977.34,1878.48,1878.48,17.100000000000001,0.39,16.988400000000002,42.544666666666672,1853.2456800000002,4.9999999999999933E-2,null,{"$f":"IF(PRICING[[#This Row],[SKU]]=J35,AL35+1,1)","v":1}]
["Envu","A","G","NST","F","X","NOW","84411426","D00000940","D00001379","Indemnify®","17.1 fl oz",1963.6,1865.42,98.179999999999836,"3-5",185,1680.42,null,null,0.28421470767977175,null,null,0.26421470767977173,2018.09,1917.19,1732.19,1977.34,1878.48,1693.48,17.100000000000001,0.39,16.988400000000002,38.32536842105263,1669.4530484210527,0.14421470767977174,null,{"$f":"IF(PRICING[[#This Row],[SKU]]=J36,AL36+1,1)","v":2}]
["Envu","A","G","NST","F","X","NOW","84411426","D00000940","D00001379","Indemnify®","17.1 fl oz",1963.6,1865.42,98.179999999999836,"6+",410,1455.42,null,null,0.39880016296598075,null,null,0.37880016296598074,2018.09,1917.19,1507.19,1977.34,1878.48,1468.48,17.100000000000001,0.39,16.988400000000002,33.193789473684213,1445.9214694736845,0.25880016296598074,null,{"$f":"IF(PRICING[[#This Row],[SKU]]=J37,AL37+1,1)","v":3}]
["Envu","A","G","NST","F","X","NOW",null,null,81701245,"Interface® Stressgard®","2.5 gal",573,544.35,28.649999999999977,null,null,544.35,null,null,0.18999999999999995,null,null,0.16999999999999993,588.9,559.46,559.46,577,548.16,548.16,320,4,174.24,6.8043750000000003,296.39857500000005,4.9999999999999933E-2,null,{"$f":"IF(PRICING[[#This Row],[SKU]]=J38,AL38+1,1)","v":1}]
["Envu","A","G","NST","F","X","NOW",null,null,81701245,"Interface® Stressgard®","2.5 gal",573,544.35,28.649999999999977,"6+",90,454.35,null,null,0.34706806282722513,null,null,0.32706806282722511,588.9,559.46,469.46000000000004,577,548.16,458.15999999999997,320,4,174.24,5.6793750000000003,247.39357500000003,0.20706806282722512,null,{"$f":"IF(PRICING[[#This Row],[SKU]]=J39,AL39+1,1)","v":2}]
["FMC","A","G","NST","F","X","EOP",null,null,11013671,"Kalida® Fungicide ","64 oz",866.4,866.4,0,null,null,866.4,null,null,0.14000000000000001,null,null,0.12,"NA","NA","NA",872.46,872.46,872.46,64,0.4,17.424000000000003,5.415,235.87740000000002,0,null,{"$f":"IF(PRICING[[#This Row],[SKU]]=J40,AL40+1,1)","v":1}]
["FMC","A","G","NST","F","X","EOP",null,null,11013671,"Kalida® Fungicide ","64 oz",866.4,866.4,0,"4+",295,571.4,null,null,0.48048938134810715,null,null,0.46048938134810713,"NA","NA","NA",872.46,872.46,577.46,64,0.4,17.424000000000003,3.57125,155.56365000000002,0.34048938134810713,null,{"$f":"IF(PRICING[[#This Row],[SKU]]=J41,AL41+1,1)","v":2}]
["Envu","A","G","NST","F","X","NOW","80973942",null,"D00000965","Mirage® Stressgard®","2.5 gal",493,493,0,null,null,493,null,null,0.14000000000000001,null,null,0.12,506.68,506.68,506.68,496.45,496.45,496.45,320,1,43.56,1.5406249999999999,67.109624999999994,0,null,{"$f":"IF(PRICING[[#This Row],[SKU]]=J42,AL42+1,1)","v":1}]
["Envu","A","G","NST","F","X","NOW","80973942",null,"D00000965","Mirage® Stressgard®","2.5 gal",493,493,0,"4+",90,403,null,null,0.32255578093306292,null,null,0.3025557809330629,506.68,506.68,416.68,496.45,496.45,406.45,320,1,43.56,1.2593749999999999,54.858375000000002,0.18255578093306291,null,{"$f":"IF(PRICING[[#This Row],[SKU]]=J43,AL43+1,1)","v":2}]
["FMC","A","G","NST","F","X","NOW",null,null,11003880,"Rayora® Fungicide ","2.5 gal",631.4,631.4,0,null,null,631.4,null,null,0.14000000000000001,null,null,0.12,"NA","NA","NA",635.82000000000005,635.82000000000005,635.82000000000005,320,1.22,53.1432,2.4072125,104.8581765,0,null,{"$f":"IF(PRICING[[#This Row],[SKU]]=J44,AL44+1,1)","v":1}]
["FMC","A","G","NST","F","X","NOW",null,null,11003880,"Rayora® Fungicide ","2.5 gal",631.4,631.4,0,"6+",160,471.4,null,null,0.39340513145391198,null,null,0.37340513145391196,"NA","NA","NA",635.82000000000005,635.82000000000005,475.82000000000005,320,1.22,53.1432,1.7972124999999999,78.286576499999995,0.25340513145391197,null,{"$f":"IF(PRICING[[#This Row],[SKU]]=J45,AL45+1,1)","v":2}]
["Envu","A","G","NST","F","X","NOW",null,null,"D00000125","Resilia™","2.72 gal",946.56,946.56,0,null,null,946.56,null,null,0.14000000000000001,null,null,0.12,"NA","NA","NA",953.2,953.2,953.2,348.16,4,174.24,10.874999999999998,473.71499999999997,0,null,{"$f":"IF(PRICING[[#This Row],[SKU]]=J46,AL46+1,1)","v":1}]
["Envu","A","G","NST","F","X","NOW",null,null,"D00000125","Resilia™","2.72 gal",946.56,946.56,0,"4-14",65,881.56,null,null,0.20866970926301553,null,null,0.18866970926301552,"NA","NA","NA",953.2,953.2,888.2,348.16,4,174.24,10.128216911764705,441.18512867647058,6.8669709263015521E-2,null,{"$f":"IF(PRICING[[#This Row],[SKU]]=J47,AL47+1,1)","v":2}]
["Envu","A","G","NST","F","X","NOW",null,null,"D00000125","Resilia™","2.72 gal",946.56,946.56,0,"15+",180,766.56,null,null,0.33016227180527391,null,null,0.31016227180527389,"NA","NA","NA",953.2,953.2,773.2,348.16,4,174.24,8.806985294117645,383.63227941176461,0.1901622718052739,null,{"$f":"IF(PRICING[[#This Row],[SKU]]=J48,AL48+1,1)","v":3}]
["Envu","A","GL","ST","H","X","NOW",null,null,79545312,"Revolver®","87 fl oz",765.6,727.32,38.279999999999973,null,null,727.32,null,null,0.18999999999999995,null,null,0.16999999999999993,786.85,747.5,747.5,770.96,732.41,732.41,87,0.3994490358126721,17.399999999999999,3.3393939393939394,145.464,4.9999999999999933E-2,null,{"$f":"IF(PRICING[[#This Row],[SKU]]=J49,AL49+1,1)","v":1}]
["Envu","A","GL","ST","H","X","NOW",null,null,79545312,"Revolver®","87 fl oz",765.6,727.32,38.279999999999973,"16+",50,677.32,null,null,0.25530825496342735,null,null,0.23530825496342733,786.85,747.5,697.5,770.96,732.41,682.41,87,0.3994490358126721,17.399999999999999,3.1098255280073461,135.464,0.11530825496342734,null,{"$f":"IF(PRICING[[#This Row],[SKU]]=J50,AL50+1,1)","v":2}]
["Envu","A","G","ST","H",null,"EOP",80847505,null,"D00000986","Ronstar® FLO ","2.5 gal",552,552,0,"1-11",null,552,null,null,0,null,null,0,567.32000000000005,567.32000000000005,567.32000000000005,555.86,555.86,555.86,320,1.9972451790633607,87,3.4452479338842976,150.07500000000002,0,null,{"$f":"IF(PRICING[[#This Row],[SKU]]=J51,AL51+1,1)","v":1}]
["Envu","A","G","ST","H","X","EOP",80847505,null,"D00000986","Ronstar® FLO ","2.5 gal",453,423,30,"12+",null,423,null,null,6.6225165562913912E-2,null,null,6.6225165562913912E-2,465.57,434.74,434.74,456.17,425.96,425.96,320,1.9972451790633607,87,2.6401084710743796,115.003125,6.6225165562913912E-2,null,{"$f":"IF(PRICING[[#This Row],[SKU]]=J52,AL52+1,1)","v":2}]
["Envu","A","L","NST","I",null,"EOP",null,null,11009495,"Scion","32 oz",156.6,156.6,0,null,38,118.6,null,null,0.38265644955300127,null,null,0.36265644955300125,160.94999999999999,160.94999999999999,122.94999999999999,157.69999999999999,157.69999999999999,119.69999999999999,32,{"$error":"#N/A"},{"$error":"#N/A"},{"$error":"#N/A"},{"$error":"#N/A"},0.24265644955300125,null,{"$f":"IF(PRICING[[#This Row],[SKU]]=J53,AL53+1,1)","v":1}]
["FMC","A","G","NST","F","X","NOW",null,null,11014245,"Serata® Fungicide ","35 oz",499.8,474.81,24.990000000000009,null,null,474.81,null,null,0.19000000000000006,null,null,0.17000000000000004,513.66999999999996,487.99,487.99,503.3,478.13,478.13,35,0.6,26.135999999999999,8.1395999999999997,354.56097599999998,5.0000000000000044E-2,null,{"$f":"IF(PRICING[[#This Row],[SKU]]=J54,AL54+1,1)","v":1}]
["FMC","A","G","NST","F","X","NOW",null,null,11014245,"Serata® Fungicide ","35 oz",499.8,474.81,24.990000000000009,"8+",15,459.81,null,null,0.22001200480192085,null,null,0.20001200480192083,513.66999999999996,487.99,472.99,503.3,478.13,463.13,35,0.6,26.135999999999999,7.8824571428571426,343.35983314285716,8.0012004801920833E-2,null,{"$f":"IF(PRICING[[#This Row],[SKU]]=J55,AL55+1,1)","v":2}]
["Envu","A","G","NST","F","X","NOW","85355422",null,"D00000989","Signature™ XTRA Stressgard® ","5.5 lb",210.4,199.88,10.52000000000001,null,null,199.88,null,null,0.19000000000000006,null,null,0.17000000000000004,216.24,205.43,205.43,211.88,201.28,201.28,88,4,174.24,9.0854545454545459,395.76240000000001,5.0000000000000044E-2,null,{"$f":"IF(PRICING[[#This Row],[SKU]]=J56,AL56+1,1)","v":1}]
["Envu","A","G","NST","F","X","NOW","85355422",null,"D00000989","Signature™ XTRA Stressgard® ","5.5 lb",210.4,199.88,10.52000000000001,"24+",15,184.88,null,null,0.26129277566539932,null,null,0.24129277566539931,216.24,205.43,190.43,211.88,201.28,186.28,88,4,174.24,8.4036363636363642,366.06240000000003,0.12129277566539931,null,{"$f":"IF(PRICING[[#This Row],[SKU]]=J57,AL57+1,1)","v":2}]
["FMC","A","GL","NST","H","X","EOP",null,null,11008522,"Solitare® Herbicide ","4 lb",596.4,566.58000000000004,29.819999999999936,null,null,566.58000000000004,null,null,0.18999999999999995,null,null,0.16999999999999993,"NA","NA","NA",600.58000000000004,570.54999999999995,570.54999999999995,64,0.3673094582185491,16,3.2517217630853996,141.64500000000001,4.9999999999999933E-2,null,{"$f":"IF(PRICING[[#This Row],[SKU]]=J58,AL58+1,1)","v":1}]
["FMC","A","GL","NST","H","X","EOP",null,null,11008522,"Solitare® Herbicide ","4 lb",596.4,566.58000000000004,29.819999999999936,"16+",40,526.58000000000004,null,null,0.25706908115358806,null,null,0.23706908115358805,"NA","NA","NA",600.58000000000004,570.54999999999995,530.54999999999995,64,0.3673094582185491,16,3.0221533516988064,131.64500000000001,0.11706908115358805,null,{"$f":"IF(PRICING[[#This Row],[SKU]]=J59,AL59+1,1)","v":2}]
["FMC","A","GL","NST","H","X","NOW",null,null,11013862,"Solitare® WSL Herbicide","2.5 gal",262.39999999999998,249.28,13.119999999999976,null,null,249.28,null,null,0.18999999999999995,null,null,0.16999999999999993,"NA","NA","NA",264.24,251.02,251.02,320,3.9,169.88400000000001,3.0381,132.33963600000001,4.9999999999999933E-2,null,{"$f":"IF(PRICING[[#This Row],[SKU]]=J60,AL60+1,1)","v":1}]
["FMC","A","GL","NST","H","X","NOW",null,null,11013862,"Solitare® WSL Herbicide","2.5 gal",262.39999999999998,249.28,13.119999999999976,"24+",40,209.28,null,null,0.34243902439024387,null,null,0.32243902439024386,"NA","NA","NA",264.24,251.02,211.02,320,3.9,169.88400000000001,2.5506000000000002,111.10413600000001,0.20243902439024386,null,{"$f":"IF(PRICING[[#This Row],[SKU]]=J61,AL61+1,1)","v":2}]
["Envu","A","GL","ST","H","X","NOW","86775387",null,"D00000990","Specticle® FLO ","1 gal",2092.8000000000002,1946.3,146.50000000000023,"1-6",null,1946.3,null,null,7.0001911314984788E-2,null,null,7.0001911314984788E-2,2150.88,2000.31,2000.31,2107.44,1959.92,1959.92,128,0.13774104683195593,6.0000000000000009,2.0944171831955924,91.232812500000009,7.0001911314984788E-2,null,{"$f":"IF(PRICING[[#This Row],[SKU]]=J62,AL62+1,1)","v":1}]
["Envu","A","GL","ST","H","X","NOW","86775387",null,"D00000990","Specticle® FLO ","1 gal",2092.8000000000002,1862.59,230.21000000000026,"7-13",38,1824.59,null,null,0.12815844801223253,null,null,0.12815844801223253,2150.88,1914.28,1876.28,2107.44,1875.63,1837.63,128,0.13774104683195593,6.0000000000000009,1.9634448174931129,85.527656250000007,0.12815844801223253,null,{"$f":"IF(PRICING[[#This Row],[SKU]]=J63,AL63+1,1)","v":2}]
["Envu","A","GL","ST","H","X","NOW","86775387",null,"D00000990","Specticle® FLO ","1 gal",1796.4,1625.74,170.66000000000008,"14-25",32,1593.74,null,null,0.1128145179247384,null,null,0.1128145179247384,1846.25,1670.85,1638.85,1808.98,1637.12,1605.12,128,0.13774104683195593,6.0000000000000009,1.7150266873278237,74.706562500000018,0.1128145179247384,null,{"$f":"IF(PRICING[[#This Row],[SKU]]=J64,AL64+1,1)","v":3}]
["Envu","A","GL","ST","H","X","EOP","86775387",null,"D00000990","Specticle® FLO ","1 gal",1796.4,1455.08,341.32000000000016,"26+",131,1324.08,null,null,0.26292585170340688,null,null,0.26292585170340688,1846.25,1495.46,1364.46,1808.98,1465.27,1334.27,128,0.13774104683195593,6.0000000000000009,1.4248450413223139,62.066250000000004,0.26292585170340688,null,{"$f":"IF(PRICING[[#This Row],[SKU]]=J65,AL65+1,1)","v":4}]
["Envu","A","GL","ST","H","X","NOW","84056146",null,"D00000992","Specticle® G","50 lb",130.5,123.98,6.519999999999996,null,null,123.98,null,null,0.18996168582375472,null,null,0.1699616858237547,134.12,127.42,127.42,131.5,124.85,124.85,800,3.443526170798898,150,0.53366046831955927,23.24625,4.9961685823754709E-2,null,{"$f":"IF(PRICING[[#This Row],[SKU]]=J66,AL66+1,1)","v":1}]
["Envu","A","GL","ST","H","X","NOW","84056146",null,"D00000992","Specticle® G","50 lb",130.5,123.98,6.519999999999996,"20+",8,115.98,null,null,0.25126436781609196,null,null,0.23126436781609194,134.12,127.42,119.42,131.5,124.85,116.85,800,3.443526170798898,150,0.49922520661157022,21.74625,0.11126436781609195,null,{"$f":"IF(PRICING[[#This Row],[SKU]]=J67,AL67+1,1)","v":2}]
["Envu","A","G","NST","F","X","EOP","81760942",null,"D00000998","Tartan® Stressgard® ","2.5 gal",1033,981.35,51.649999999999977,null,0,981.35,null,null,0.18999999999999995,null,null,0.16999999999999993,1033,1008.58,1008.58,1040.25,988.22,988.22,320,1.5,65.34,4.6000781250000005,200.37940312500001,4.9999999999999933E-2,null,{"$f":"IF(PRICING[[#This Row],[SKU]]=J68,AL68+1,1)","v":1}]
["Envu","A","G","NST","F","X","EOP","81760942",null,"D00000998","Tartan® Stressgard® ","2.5 gal",1033,981.35,51.649999999999977,"6+",93,888.35,null,null,0.28002904162633102,null,null,0.260029041626331,1033,1008.58,915.58,1040.25,988.22,895.22,320,1.5,65.34,4.1641406249999999,181.38996562500003,0.14002904162633101,null,{"$f":"IF(PRICING[[#This Row],[SKU]]=J69,AL69+1,1)","v":2}]
["FMC","A","G","NST","F","X","EOP",null,null,11015981,"Tarvecta™","2.5 gal",3360,3360,0,null,null,3360,null,null,0.14000000000000001,null,null,0.12,"NA","NA","NA",3383.52,3383.52,3383.52,320,{"$error":"#N/A"},{"$error":"#N/A"},{"$error":"#N/A"},{"$error":"#N/A"},0,null,{"$f":"IF(PRICING[[#This Row],[SKU]]=J70,AL70+1,1)","v":1}]
["FMC","A","G","NST","F","X","EOP",null,null,11015981,"Tarvecta™","2.5 gal",3360,3360,0,"3+",400,2960,null,null,0.25904761904761908,null,null,0.23904761904761906,"NA","NA","NA",3383.52,3383.52,2983.52,320,{"$error":"#N/A"},{"$error":"#N/A"},{"$error":"#N/A"},{"$error":"#N/A"},0.11904761904761907,null,{"$f":"IF(PRICING[[#This Row],[SKU]]=J71,AL71+1,1)","v":2}]
["FMC","A","G","NST","F","X","EOP",null,null,11015990,"Tarvecta™","64 oz",772.8,772.8,0,null,null,772.8,null,null,0.14000000000000001,null,null,0.12,"NA","NA","NA",778.2,778.2,778.2,64,{"$error":"#N/A"},{"$error":"#N/A"},{"$error":"#N/A"},{"$error":"#N/A"},0,null,{"$f":"IF(PRICING[[#This Row],[SKU]]=J72,AL72+1,1)","v":1}]
["FMC","A","G","NST","F","X","EOP",null,null,11015990,"Tarvecta™","64 oz",772.8,772.8,0,"4+",145,627.79999999999995,null,null,0.3276293995859213,null,null,0.30762939958592128,"NA","NA","NA",778.2,778.2,633.20000000000005,64,{"$error":"#N/A"},{"$error":"#N/A"},{"$error":"#N/A"},{"$error":"#N/A"},0.18762939958592129,null,{"$f":"IF(PRICING[[#This Row],[SKU]]=J73,AL73+1,1)","v":2}]
["Envu","A","GL","NST","I","X","EOP",null,null,86797658,"Tetrino®"," 1 gal",528,528,0,null,null,528,null,null,0.14000000000000001,null,null,0.12,542.65,542.65,542.65,531.70000000000005,531.70000000000005,531.70000000000005,128,0.73,31.7988,3.01125,131.17005,0,null,{"$f":"IF(PRICING[[#This Row],[SKU]]=J74,AL74+1,1)","v":1}]
["Envu","A","GL","NST","I","X","EOP",null,null,86797658,"Tetrino®"," 1 gal",528,528,0,"4+",40,488,null,null,0.21575757575757581,null,null,0.1957575757575758,542.65,542.65,502.65,531.70000000000005,531.70000000000005,491.70000000000005,128,0.73,31.7988,2.7831250000000001,121.23292499999999,7.5757575757575801E-2,null,{"$f":"IF(PRICING[[#This Row],[SKU]]=J75,AL75+1,1)","v":2}]
["Envu","A","GL","ST","H","X","NOW",null,null,81746257,"Tribute® Total","6 oz",426.4,405.08,21.319999999999993,null,null,405.08,null,null,0.18999999999999995,null,null,0.16999999999999993,438.23,416.32,416.32,429.38,407.92,407.92,6,2.2956841138659319E-2,1,1.5498928680746862,67.513333333333335,4.9999999999999933E-2,null,{"$f":"IF(PRICING[[#This Row],[SKU]]=J76,AL76+1,1)","v":1}]
["Envu","A","GL","ST","H","X","NOW",null,null,81746257,"Tribute® Total","6 oz",426.4,405.08,21.319999999999993,"24+",30,375.08,null,null,0.26035647279549723,null,null,0.24035647279549721,438.23,416.32,386.32,429.38,407.92,377.92,6,2.2956841138659319E-2,1,1.4351086623813893,62.513333333333328,0.12035647279549722,null,{"$f":"IF(PRICING[[#This Row],[SKU]]=J77,AL77+1,1)","v":2}]
["FMC","A","G","NST","I","X","EOP",null,null,11008521,"Triple Crown® Golf Insecticide (RUP)","1 gal",348.2,330.79,17.409999999999968,null,null,330.79,null,null,0.18999999999999995,null,null,0.16999999999999993,357.86,339.97,339.97,350.64,333.11,333.11,128,0.46,20.037600000000001,1.1887765625000002,51.783107062500008,4.9999999999999933E-2,null,{"$f":"IF(PRICING[[#This Row],[SKU]]=J78,AL78+1,1)","v":1}]
["FMC","A","G","NST","I","X","EOP",null,null,11008521,"Triple Crown® Golf Insecticide (RUP)","1 gal",348.2,330.79,17.409999999999968,"20-39",12,318.79000000000002,null,null,0.22446295232624924,null,null,0.20446295232624923,357.86,339.97,327.97,350.64,333.11,321.11,128,0.46,20.037600000000001,1.1456515625000001,49.904582062500005,8.446295232624923E-2,null,{"$f":"IF(PRICING[[#This Row],[SKU]]=J79,AL79+1,1)","v":2}]
["FMC","A","G","NST","I","X","EOP",null,null,11008521,"Triple Crown® Golf Insecticide (RUP)","1 gal",348.2,330.79,17.409999999999968,"40+",25,305.79000000000002,null,null,0.26179781734635255,null,null,0.24179781734635253,357.86,339.97,314.97000000000003,350.64,333.11,308.11,128,0.46,20.037600000000001,1.0989328125000002,47.869513312500004,0.12179781734635253,null,{"$f":"IF(PRICING[[#This Row],[SKU]]=J80,AL80+1,1)","v":3}]
["FMC","A","L","NST","I","X","EOP",null,null,11008520,"Triple Crown® T&O Insecticide ","1 gal ",348.2,330.79,17.409999999999968,null,null,330.79,null,null,0.18999999999999995,null,null,0.16999999999999993,357.86,339.97,339.97,350.64,333.11,333.11,128,0.46,20.037600000000001,1.1887765625000002,51.783107062500008,4.9999999999999933E-2,null,{"$f":"IF(PRICING[[#This Row],[SKU]]=J81,AL81+1,1)","v":1}]
["FMC","A","L","NST","I","X","EOP",null,null,11008520,"Triple Crown® T&O Insecticide ","1 gal ",348.2,330.79,17.409999999999968,"20-39",12,318.79000000000002,null,null,0.22446295232624924,null,null,0.20446295232624923,357.86,339.97,327.97,350.64,333.11,321.11,128,0.46,20.037600000000001,1.1456515625000001,49.904582062500005,8.446295232624923E-2,null,{"$f":"IF(PRICING[[#This Row],[SKU]]=J82,AL82+1,1)","v":2}]
["FMC","A","L","NST","I","X","EOP",null,null,11008520,"Triple Crown® T&O Insecticide ","1 gal ",348.2,330.79,17.409999999999968,"40+",25,305.79000000000002,null,null,0.26179781734635255,null,null,0.24179781734635253,357.86,339.97,314.97000000000003,350.64,333.11,308.11,128,0.46,20.037600000000001,1.0989328125000002,47.869513312500004,0.12179781734635253,null,{"$f":"IF(PRICING[[#This Row],[SKU]]=J83,AL83+1,1)","v":3}]
["FMC","A","GL","NST","H","X","EOP",null,null,11008590,"Xonerate® 2SC Herbicide","12 oz",489.4,464.93,24.46999999999997,null,null,464.93,null,null,0.18999999999999995,null,null,0.16999999999999993,"NA","NA","NA","NA","NA","NA",12,0.32139577594123048,14,12.45221150902969,542.41833333333329,4.9999999999999933E-2,null,{"$f":"IF(PRICING[[#This Row],[SKU]]=J84,AL84+1,1)","v":1}]
["FMC","A","GL","NST","H","X","EOP",null,null,11008590,"Xonerate® 2SC Herbicide","12 oz",489.4,464.93,24.46999999999997,"24+",50,414.93,null,null,0.29216591744993869,null,null,0.27216591744993868,"NA","NA","NA","NA","NA","NA",12,0.32139577594123048,14,11.113062442607896,484.08500000000004,0.15216591744993868,null,{"$f":"IF(PRICING[[#This Row],[SKU]]=J85,AL85+1,1)","v":2}]
["Envu","A","GLO","NST","I",null,"EOP/ORN","84989509",null,"D00000903","Altus®","64 oz",437.2,437.2,0,"1-15",null,437.2,null,null,null,null,null,null,449.33,449.33,449.33,440.26,440.26,440.26,64,0.32,13.939200000000001,2.1859999999999999,95.222160000000002,0,null,{"$f":"IF(PRICING[[#This Row],[SKU]]=J86,AL86+1,1)","v":1}]
["Envu","A","GLO","NST","I",null,"EOP/ORN","84989509",null,"D00000903","Altus®","64 oz",437.2,415.36,21.839999999999975,"16-31",null,415.36,null,null,null,null,null,null,449.33,426.89,426.89,440.26,418.27,418.27,64,0.32,13.939200000000001,2.0768,90.465408000000011,4.9954254345837112E-2,null,{"$f":"IF(PRICING[[#This Row],[SKU]]=J87,AL87+1,1)","v":2}]
["Envu","A","GLO","NST","I",null,"EOP/ORN","84989509",null,"D00000903","Altus®","64 oz",437.2,393.6,43.599999999999966,"32+",null,393.6,null,null,null,null,null,null,449.33,404.52,404.52,440.26,396.36,396.36,64,0.32,13.939200000000001,1.9680000000000002,85.72608000000001,9.972552607502283E-2,null,{"$f":"IF(PRICING[[#This Row],[SKU]]=J88,AL88+1,1)","v":3}]
["Envu","A","GO",null,"I",null,"EOP/ORN",null,null,"D00001272","Kontos","1 qt",744,744,0,"1-3",null,null,null,null,null,null,null,null,764.65,764.65,764.65,749.21,749.21,749.21,32,7.8053259871441683E-2,3.4,1.8147382920110191,79.05,0.1,0.1,{"$f":"IF(PRICING[[#This Row],[SKU]]=J89,AL89+1,1)","v":1}]
["Envu","A","GO",null,"I",null,"EOP/ORN",null,null,"D00001272","Kontos","1 qt",744,706.88,37.120000000000005,"4-15",null,null,null,null,null,null,null,null,764.65,726.41,726.41,749.21,711.75,711.75,32,7.8053259871441683E-2,3.4,1.7241965105601467,75.105999999999995,0.14989247311827961,0.1,{"$f":"IF(PRICING[[#This Row],[SKU]]=J90,AL90+1,1)","v":2}]
["Envu","A","GO",null,"I",null,"EOP/ORN",null,null,"D00001272","Kontos","1 qt",744,669.6,74.399999999999977,"16+",null,null,null,null,null,null,null,null,764.65,688.18,688.18,749.21,674.29,674.29,32,7.8053259871441683E-2,3.4,1.6332644628099173,71.144999999999996,0.19999999999999998,0.1,{"$f":"IF(PRICING[[#This Row],[SKU]]=J91,AL91+1,1)","v":3}]
["Envu","TT","G","NST","F",null,"EOP",null,null,4250930,"26GT™","2.5 gal",509,509,0,null,null,509,null,null,0.14000000000000001,null,null,0.12,null,null,null,null,null,null,320,{"$error":"#N/A"},{"$error":"#N/A"},{"$error":"#N/A"},{"$error":"#N/A"},0,null,{"$f":"IF(PRICING[[#This Row],[SKU]]=J92,AL92+1,1)","v":1}]
["Envu","TT","L","NST","H",null,"EOP",null,null,"D00000665","Acclaim Accelerate","0.5 gal",43.8,43.8,0,"150 gal*",7.5,36.299999999999997,null,null,0.3112328767123288,null,null,0.29123287671232878,"NA","NA","NA",null,null,null,64,1.4692378328741964,64,0.83333333333333326,36.299999999999997,0.17123287671232879,null,{"$f":"IF(PRICING[[#This Row],[SKU]]=J93,AL93+1,1)","v":1}]
["Envu","TT","L","NST","H",null,"EOP",null,null,"D00000666","Acclaim Accelerate","2.5 gal ",211.04,211.04,0,"150 gal*",37.5,173.54,null,null,0.31769143290371493,null,null,0.29769143290371491,"NA","NA","NA",null,null,null,320,1.4692378328741964,64,0.79678604224058758,34.707999999999998,0.17769143290371492,null,{"$f":"IF(PRICING[[#This Row],[SKU]]=J94,AL94+1,1)","v":1}]
["Envu","TT","GL","N","H",null,"EOP",null,null,87300722,"Acclaim Extra","1 gal",665.2,665.2,0,null,90,575.20000000000005,null,null,0.27529765484064939,null,null,0.25529765484064937,null,null,null,null,null,null,128,0.4591368227731864,20,2.0632460973370064,89.875,0.13529765484064937,null,{"$f":"IF(PRICING[[#This Row],[SKU]]=J95,AL95+1,1)","v":1}]
["Envu","TT","L","NST","F",null,"EOP","80224672",null,"D00000898","Armada 50 WDG","2 lb",114,114,0,null,10,104,null,null,0.2277192982456141,null,null,0.20771929824561408,null,null,null,null,null,null,32,1.2,52.271999999999998,3.9,169.88399999999999,8.7719298245614086E-2,null,{"$f":"IF(PRICING[[#This Row],[SKU]]=J96,AL96+1,1)","v":1}]
["Envu","TT","GL","ST","H",null,"EOP",null,null,11008351,"Blindside® Herbicide ","0.5 lb",139.05000000000001,139.05000000000001,0,null,22,117.05000000000001,null,null,0.29821646889608056,null,null,0.27821646889608054,"NA","NA","NA","NA","NA","NA",8,0.14921946740128558,6.5,2.1832673324150598,95.103125000000006,0.15821646889608054,null,{"$f":"IF(PRICING[[#This Row],[SKU]]=J97,AL97+1,1)","v":1}]
["Envu","TT","G","NST","I",null,"EOP",null,null,"NoSKU1","Chipco Choice","50 lb",221,221,0,null,null,null,null,null,null,null,null,null,null,null,null,"NA","NA","NA",800,null,null,0,0,1,null,{"$f":"IF(PRICING[[#This Row],[SKU]]=J98,AL98+1,1)","v":1}]
["FMC","TT","GL","ST","H",null,"EOP",null,null,11008357,"Dismiss® CA Herbicide","6 oz",68.150000000000006,68.150000000000006,0,null,14,54.150000000000006,null,null,0.34542920029347024,null,null,0.32542920029347022,null,null,null,"NA","NA","NA",6,0,0,0,0,0.20542920029347023,null,{"$f":"IF(PRICING[[#This Row],[SKU]]=J99,AL99+1,1)","v":1}]
["FMC","TT","GL","ST","H",null,"EOP",null,null,11008474,"Dismiss® South Herbicide","1 pint ",155.55000000000001,155.55000000000001,0,null,24,131.55000000000001,null,null,0.29429122468659596,null,null,0.27429122468659595,"NA","NA","NA","NA","NA","NA",16,0.21808999081726355,9.5,1.7931086432506889,78.107812500000009,0.15429122468659595,null,{"$f":"IF(PRICING[[#This Row],[SKU]]=J100,AL100+1,1)","v":1}]
["FMC","TT","GL","NST","H",null,"EOP",null,null,11008475,"Dismiss® Turf Herbicide","6 oz",81.78,81.78,0,null,14,67.78,null,null,0.31119100024455859,null,null,0.29119100024455857,"NA","NA","NA",null,null,null,6,0.18365472910927455,8,2.0746862565044384,90.373333333333335,0.17119100024455858,null,{"$f":"IF(PRICING[[#This Row],[SKU]]=J101,AL101+1,1)","v":1}]
["FMC","TT","GL","NST","H",null,"EOP",null,null,11008336,"Dismiss® Turf Herbicide","64 oz",303,303,0,null,40,263,null,null,0.27201320132013207,null,null,0.25201320132013205,"NA","NA","NA",null,null,null,64,0.18365472910927455,8,0.75470615243342509,32.875,0.13201320132013206,null,{"$f":"IF(PRICING[[#This Row],[SKU]]=J102,AL102+1,1)","v":1}]
["FMC","TT","GL","NST","I",null,"EOP",null,null,"NoSKU2","Durentis 0.058% On-Fertilizer","50 lb",20,20,null,null,2,null,null,null,0.14000000000000001,null,null,0.12,"NA","NA","NA","NA","NA","NA",null,null,null,null,null,null,null,{"$f":"IF(PRICING[[#This Row],[SKU]]=J103,AL103+1,1)","v":1}]
["FMC","TT","GL","NST","I",null,"EOP",null,null,"NoSKU3","Durentis 0.067% On-Fertilizer","50 lb",25,25,null,null,5,null,null,null,0.14000000000000001,null,null,0.12,"NA","NA","NA","NA","NA","NA",null,null,null,null,null,null,null,{"$f":"IF(PRICING[[#This Row],[SKU]]=J104,AL104+1,1)","v":1}]
["Envu","TT","GL","NST","I",null,"EOP","86248913",null,"D00001040","Dylox SL420","2.5 gal ",225.38,225.38,0,null,null,225.38,null,null,0.14000000000000001,null,null,0.12,"NA","NA","NA",null,null,null,320,6.9,300.56400000000002,4.8597562500000002,211.69098225000002,0,null,{"$f":"IF(PRICING[[#This Row],[SKU]]=J105,AL105+1,1)","v":1}]
["Envu","TT","GL","NST","I",null,"EOP",null,null,3944704,"Forbid","8 oz ",253.95,253.95,0,null,22,231.95,null,null,0.22663122661941326,null,null,0.20663122661941324,null,null,null,null,null,null,8,0,0,0,0,8.6631226619413249E-2,null,{"$f":"IF(PRICING[[#This Row],[SKU]]=J106,AL106+1,1)","v":1}]
["Envu","TT","GL","NST","I",null,"EOP","02406377",null,"D00000961","Merit® 2F","1 gal",52.5,52.5,0,null,null,52.5,null,null,0.14000000000000001,null,null,0.12,null,null,null,null,null,null,128,{"$error":"#N/A"},{"$error":"#N/A"},{"$error":"#N/A"},{"$error":"#N/A"},0,null,{"$f":"IF(PRICING[[#This Row],[SKU]]=J107,AL107+1,1)","v":1}]
["Envu","TT","G","NST","H",null,"EOP",null,null,86215578,"Prograss EC","2.5 gal ",368.25,368.25,0,null,22,346.25,null,null,0.19974202308214528,null,null,0.17974202308214526,null,null,null,null,null,null,320,1.9513314967860422,85,2.1114016586317721,91.97265625,5.9742023082145268E-2,null,{"$f":"IF(PRICING[[#This Row],[SKU]]=J108,AL108+1,1)","v":1}]
["Envu","TT","G","NST","H",null,"EOP","04249932",null,"D00000913","Proxy","2.5 gal ",102.25,102.25,0,null,null,102.25,null,null,0.14000000000000001,null,null,0.12,null,null,null,null,null,null,320,5,217.8,1.59765625,69.593906250000003,0,null,{"$f":"IF(PRICING[[#This Row],[SKU]]=J109,AL109+1,1)","v":1}]
["FMC","TT","GL","NST","H",null,"EOP",null,null,11008447,"QuickSilver® Herbicide ","8 oz",166.6,166.6,0,null,20,146.6,null,null,0.26004801920768306,null,null,0.24004801920768304,null,null,null,null,null,null,8,2.7548209366391182E-2,1.2,0.50482093663911842,21.99,0.12004801920768304,null,{"$f":"IF(PRICING[[#This Row],[SKU]]=J110,AL110+1,1)","v":1}]
["Envu","TT","GL","ST","H",null,"EOP",null,null,79850980,"Revolver®","32 fl oz",291.45,291.45,0,null,21,270.45,null,null,0.21205352547606793,null,null,0.19205352547606791,null,null,null,null,null,null,32,0.3994490358126721,17.399999999999999,3.3759684917355366,147.05718749999997,7.2053525476067914E-2,null,{"$f":"IF(PRICING[[#This Row],[SKU]]=J111,AL111+1,1)","v":1}]
["Envu","TT","G","ST","H",null,"EOP",null,null,427709,"Sencor 75","5 lb",591.75,591.75,0,null,null,591.75,null,null,0.14000000000000001,null,null,0.12,null,null,null,"NA","NA","NA",10.6,0.24334251606978877,10.6,13.584710743801653,591.75,0,null,{"$f":"IF(PRICING[[#This Row],[SKU]]=J112,AL112+1,1)","v":1}]
["FMC","TT","GL","NST","H",null,"EOP",null,null,11008482,"Solitare® Herbicide ","1 lb ",164.8,164.8,0,null,15,149.80000000000001,null,null,0.23101941747572818,null,null,0.21101941747572817,"NA","NA","NA",null,null,null,16,0.3673094582185491,16,3.4389348025711661,149.80000000000001,9.101941747572817E-2,null,{"$f":"IF(PRICING[[#This Row],[SKU]]=J113,AL113+1,1)","v":1}]
["FMC","TT","GL","NST","H",null,"EOP",null,null,11008369,"Solitare® WSL Herbicide","0.75 gal ",98,98,0,null,12,86,null,null,0.26244897959183677,null,null,0.24244897959183676,"NA","NA","NA",null,null,null,96,3.9,169.88400000000001,3.4937499999999999,152.18775000000002,0.12244897959183676,null,{"$f":"IF(PRICING[[#This Row],[SKU]]=J114,AL114+1,1)","v":1}]
["FMC","TT","G","NST","I",null,"EOP/ORN",null,null,11008457,"Talstar® Select Insecticide (RUP) ","1 gal",50.6,50.6,0,"4+",6,44.6,null,null,0.25857707509881422,null,null,0.23857707509881421,null,null,null,null,null,null,128,1.8365472910927456,80,0.63992194674012859,27.875,0.11857707509881421,null,{"$f":"IF(PRICING[[#This Row],[SKU]]=J115,AL115+1,1)","v":1}]
["Envu","TT","L","NT","H",null,"EOP",null,null,"D00000675","Terradex C&B","1 gal ",90.77,90.77,0,"150 gal*",15,75.77,null,null,0.30525283684036575,null,null,0.28525283684036573,null,null,null,null,null,null,128,2.5711662075298438,112,1.5220098714416894,66.298749999999998,0.16525283684036574,null,{"$f":"IF(PRICING[[#This Row],[SKU]]=J116,AL116+1,1)","v":1}]
["Envu","TT","L","NT","H",null,"EOP",null,null,"D00000674","Terradex C&B","2.5 gal ",217.03,217.03,0,"150 gal*",37.5,179.53,null,null,0.31278717228032993,null,null,0.29278717228032991,null,null,null,null,null,null,320,2.5711662075298438,112,1.4425045913682277,62.835499999999996,0.17278717228032991,null,{"$f":"IF(PRICING[[#This Row],[SKU]]=J117,AL117+1,1)","v":1}]
["Envu","TT","L","NT","H",null,"EOP",null,null,"D00000669","Terradex Power Premix","2.5 gal ",179.17,179.17,0,"150 gal*",37.5,141.66999999999999,null,null,0.34929843165708552,null,null,0.3292984316570855,"NA","NA","NA",null,null,null,320,1.1019283746556474,48.000000000000007,0.48784435261707981,21.250499999999999,0.2092984316570855,null,{"$f":"IF(PRICING[[#This Row],[SKU]]=J118,AL118+1,1)","v":1}]
["Envu","TT","L","NT","H",null,"EOP",null,null,"D00000670","Terradex Power Premix","30 gal",1959.09,1959.09,0,"150 gal*",450,1509.09,null,null,0.36969848245869263,null,null,0.34969848245869262,"NA","NA","NA",null,null,null,3840,1.1019283746556474,48.000000000000007,0.43304924242424242,18.863625000000003,0.22969848245869262,null,{"$f":"IF(PRICING[[#This Row],[SKU]]=J119,AL119+1,1)","v":1}]
["Envu","TT","L","NST","H",null,"EOP",null,null,"D00000673","Terradex Quick Strike","1 gal ",63.7,63.7,0,"150 gal*",15,48.7,null,null,0.37547880690737834,null,null,0.35547880690737832,"NA","NA","NA",null,null,null,128,1.1019283746556474,48.000000000000007,0.41924931129476589,18.262500000000003,0.23547880690737832,null,{"$f":"IF(PRICING[[#This Row],[SKU]]=J120,AL120+1,1)","v":1}]
["Envu","TT","L","NST","H",null,"EOP",null,null,"D00000672","Terradex Quick Strike","2.5 gal ",151.34,151.34,0,"150 gal*",37.5,113.84,null,null,0.38778644112594163,null,null,0.36778644112594161,"NA","NA","NA",null,null,null,320,1.1019283746556474,48.000000000000007,0.3920110192837466,17.076000000000004,0.24778644112594161,null,{"$f":"IF(PRICING[[#This Row],[SKU]]=J121,AL121+1,1)","v":1}]
["Envu","TT","L","NST","H",null,"EOP",null,null,"D00000671","Terradex Quick Strike","30 gal",1720.21,1720.21,0,"150 gal*",450,1270.21,null,null,0.40159596793414754,null,null,0.38159596793414752,"NA","NA","NA",null,null,null,3840,1.1019283746556474,48.000000000000007,0.36450011478420569,15.877625000000002,0.26159596793414752,null,{"$f":"IF(PRICING[[#This Row],[SKU]]=J122,AL122+1,1)","v":1}]
["Envu","TT","GL","ST","I",null,"EOP","79982844",null,"D00001012","TopChoice","50 lb",63.5,63.5,0,null,2,61.5,null,null,0.17149606299212605,null,null,0.15149606299212603,null,null,null,"NA","NA","NA",800,31.96,1392.1776000000002,2.456925,107.02365300000001,3.1496062992126039E-2,null,{"$f":"IF(PRICING[[#This Row],[SKU]]=J123,AL123+1,1)","v":1}]
["FMC","A","GLO","NST","H",null,"EOP",null,null,11008409,"Dismiss® NXT Herbicide","10 oz",94.8,94.8,null,null,11,83.8,null,null,null,null,null,null,"NA","NA","NA",95.46,95.46,84.46,10,0.23415977961432505,10.199999999999999,1.9622589531680437,85.475999999999985,0.11603375527426163,null,{"$f":"IF(PRICING[[#This Row],[SKU]]=J124,AL124+1,1)","v":1}]
["FMC","A","GLO","NST","H","X","EOP",null,null,11008589,"Dismiss® NXT Herbicide","60 oz",504.8,479.56,null,null,null,479.56,null,null,null,null,null,null,"NA","NA","NA",508.34,482.92,482.92,60,0.23415977961432505,10.199999999999999,1.8715610651974286,81.525199999999998,5.0000000000000044E-2,null,{"$f":"IF(PRICING[[#This Row],[SKU]]=J125,AL125+1,1)","v":1}]
["FMC","A","GLO","NST","H","X","EOP",null,null,11008589,"Dismiss® NXT Herbicide","60 oz",504.8,479.56,null,"16+",60,419.56,null,null,null,null,null,null,"NA","NA","NA",508.34,482.92,422.92,60,0.23415977961432505,10.199999999999999,1.6374012855831035,71.325199999999995,0.16885895404120443,null,{"$f":"IF(PRICING[[#This Row],[SKU]]=J126,AL126+1,1)","v":2}]
[null,null,null,null,null,null,null,null,null,null,null,null,null,null,null,null,null,null,null,null,null,null,null,null,null,null,null,null,null,null,null,null,null,null,null,null,null,{"$f":"IF(PRICING[[#This Row],[SKU]]=J127,AL127+1,1)","v":1}]
[null,null,null,null,null,null,null,null,null,null,null,null,null,null,null,null,null,null,null,null,null,null,null,null,null,null,null,null,null,null,null,null,null,null,null,null,null,{"$f":"IF(PRICING[[#This Row],[SKU]]=J128,AL128+1,1)","v":2}]

{"sheet":"Sheet4","index":4,"n_rows":66,"n_cols":12,"rows_kept":66,"cut":false,"hidden":true,"merged":[]}
[]
[]
["SKU","Product","Program","Agency/TT","NOW Price"]
[427709,"Sencor 75","NOW","TT",710.1]
[3944704,"Forbid","NOW","TT",304.73999999999995,null,null,null,null,"D00000665","Acclaim Accelerate","0.5 gal"]
[11003880,"Rayora","NOW","A",631.4,null,null,null,null,"D00000666","Acclaim Accelerate","2.5 gal "]
[11008336,"Dismiss® Turf Herbicide","NOW","TT",363.59999999999997,null,null,null,null,"D00000907","Banol®","2.5 gal "]
[11008351,"Blindside® Herbicide ","NOW","TT",166.86,null,null,null,null,"D00000898","Armada 50 WDG","2 lb"]
[11008357,"Dismiss® CA Herbicide","NOW","TT",81.78,null,null,null,null,"D00000623","Castlon™","1 gal"]
[11008447,"QuickSilver® ","NOW","TT",199.92,null,null,null,null,"D00000624","Castlon™","16 oz"]
[11008457,"Talstar® Select Insecticide (RUP) ","NOW","TT",60.72,null,null,null,null,79714858,"Celsius® WG","10 oz"]
[11008474,"Dismiss® South Herbicide","NOW","TT",186.66,null,null,null,null,"D00000911","Celsius® XTRA","10 oz"]
[11008520,"Triple Crown T&O","NOW","A",330.79,null,null,null,null,"D00000914","Chipco® Signature™","11 lb"]
[11008521,"Triple Crown Golf (RUP)","NOW","A",330.79,null,null,null,null,"D00001373","Densicor®","51 oz"]
[11008522,"Solitare","NOW","A",566.58000000000004,null,null,null,null,11015390,"Durentis™ Insecticide  ","16 oz"]
[11008557,"Fame SC","NOW","A",1471.98,null,null,null,null,11015391,"Durentis™ Insecticide  ","64 oz"]
[11008589,"Dismiss NXT","NOW","A",479.56,null,null,null,null,11008464,"Echelon® 4SC Herbicide","1 gal"]
[11009495,"Scion","NOW","A",156.6,null,null,null,null,"D00000934","Exteris® Stressgard®"," 2.5 gal"]
[11009500,"Fame SC","NOW","A",6520.42,null,null,null,null,11008377,"Fame® +C Fungicide","2.5 gal"]
[11013862,"Solitare WSL","NOW","A",249.28,null,null,null,null,11008557,"Fame® SC Fungicide","64 oz"]
[11014245,"Serata","NOW","A",474.81,null,null,null,null,11009500,"Fame® SC Fungicide","2.5 gal"]
[11015990,"Tarvecta","NOW","A",772.8,null,null,null,null,11008393,"Fame® SC Fungicide","16 oz"]
[79545312,"Revolver","NOW","A",720.1,null,null,null,null,"D00000935","Fiata® Stressgard®"," 2.5 gal"]
[79714858,"Celsius","NOW","A",124.64,null,null,null,null,"D00001379","Indemnify®","17.1 fl oz"]
[79850980,"Revolver","NOW","TT",349.73999999999995,null,null,null,null,81701245,"Interface® Stressgard®","2.5 gal"]
[81701245,"Interface Stressgard","NOW","A",544.35,null,null,null,null,11013671,"Kalida® Fungicide ","64 oz"]
[81746257,"Tribute Total","NOW","A",405.08,null,null,null,null,"D00000965","Mirage® Stressgard®","2.5 gal"]
[87300722,"Acclaim Extra","NOW","TT",798.24,null,null,null,null,11003880,"Rayora® Fungicide ","2.5 gal"]
["D00000125","Resilia","NOW","A",946.56,null,null,null,null,"D00000125","Resilia™","2.72 gal"]
["D00000623","Castlon","NOW","A",2610.79,null,null,null,null,79545312,"Revolver®","87 fl oz"]
["D00000665","Acclaim Accelerate","NOW","TT",55.32,null,null,null,null,"D00000986","Ronstar® FLO ","2.5 gal"]
["D00000666","Acclaim Accelerate","NOW","TT",266.58,null,null,null,null,11009495,"Scion","32 oz"]
["D00000669","Terradex Power Premix","NOW","TT",226.32,null,null,null,null,11014245,"Serata® Fungicide ","35 oz"]
["D00000670","Terradex Power Premix","NOW","TT",2474.64,null,null,null,null,"D00000989","Signature™ XTRA Stressgard® ","5.5 lb"]
["D00000671","Terradex Quick Strike","NOW","TT",2172.9,null,null,null,null,11008522,"Solitare® Herbicide ","4 lb"]
["D00000672","Terradex Quick Strike","NOW","TT",191.16,null,null,null,null,11013862,"Solitare® WSL Herbicide","2.5 gal"]
["D00000673","Terradex Quick Strike","NOW","TT",80.459999999999994,null,null,null,null,"D00000990","Specticle® FLO ","1 gal"]
["D00000674","Terradex C&B","NOW","TT",274.14,null,null,null,null,"D00000992","Specticle® G","50 lb"]
["D00000675","Terradex C&B","NOW","TT",114.66,null,null,null,null,"D00000998","Tartan® Stressgard® ","2.5 gal"]
["D00000898","Armada 50 WDG","NOW","TT",136.79999999999998,null,null,null,null,11015981,"Tarvecta™","2.5 gal"]
["D00000907","Banol®","NOW","A",1267,null,null,null,null,11015990,"Tarvecta™","64 oz"]
["D00000911","Celsius XTRA","NOW","A",158.08000000000001,null,null,null,null,86797658,"Tetrino®"," 1 gal"]
["D00000913","Proxy","NOW","TT",122.69999999999999,null,null,null,null,81746257,"Tribute® Total","6 oz"]
["D00000914","Chipco Signature","NOW","A",383.8,null,null,null,null,4250930,"26GT™","2.5 gal"]
["D00000961","Merit 2F","NOW","TT",63,null,null,null,null,87300722,"Acclaim Extra","1 gal"]
["D00000965","Mirage Stressgard","NOW","A",493,null,null,null,null,11008351,"Blindside® Herbicide ","0.5 lb"]
["D00000989","Signature XTRA Stressgard","NOW","A",199.88,null,null,null,null,11008521,"Triple Crown® Golf Insecticide (RUP)","1 gal"]
["D00000990","Specticle FLO","NOW","A",1643.71,null,null,null,null,11008357,"Dismiss® CA Herbicide","6 oz"]
[null,null,null,null,1883.52,null,null,null,null,11008474,"Dismiss® South Herbicide","1 pint "]
[null,null,null,null,1967.23,null,null,null,null,11008520,"Triple Crown® T&O Insecticide ","1 gal "]
["D00000992","Specticle G","NOW","A",123.98,null,null,null,null,11008475,"Dismiss® Turf Herbicide","6 oz"]
["D00000998","Tartan Stressgard","NOW","A",893,null,null,null,null,11008336,"Dismiss® Turf Herbicide","64 oz"]
[null,null,null,null,981.35,null,null,null,null,86215578,"Prograss EC","2.5 gal "]
["D00001012","TopChoice","NOW","TT",76.2,null,null,null,null,"D00000913","Proxy","2.5 gal "]
["D00001040","Dylox 420 SL","NOW","TT",270.45599999999996,null,null,null,null,11008447,"QuickSilver® Herbicide ","8 oz"]
["D00001373","Densicor","NOW","A",667.66,null,null,null,null,79850980,"Revolver®","32 fl oz"]
["D00001379","Indemnify","NOW","A",1865.42,null,null,null,null,427709,"Sencor 75","5 lb"]
[null,null,null,null,null,null,null,null,null,"D00000675","Terradex C&B","1 gal "]
[null,null,null,null,null,null,null,null,null,"D00000674","Terradex C&B","2.5 gal "]
[null,null,null,null,null,null,null,null,null,"D00000669","Terradex Power Premix","2.5 gal "]
[null,null,null,null,null,null,null,null,null,"D00000670","Terradex Power Premix","30 gal"]
[null,null,null,null,null,null,null,null,null,"D00000673","Terradex Quick Strike","1 gal "]
[null,null,null,null,null,null,null,null,null,"D00000672","Terradex Quick Strike","2.5 gal "]
[null,null,null,null,null,null,null,null,null,"D00000671","Terradex Quick Strike","30 gal"]
[null,null,null,null,null,null,null,null,null,11008482,"Solitare® Herbicide ","1 lb "]
[null,null,null,null,null,null,null,null,null,11008369,"Solitare® WSL Herbicide","0.75 gal "]